Workbook

Sheet CONTENIDO modelos
A1: =+[1]Fecha!$A$1 -> EDECHI
A2: MODELO | B2: DETALLE DEL MODELO
A3: AT100 | B3: CALCULO DEL FACTOR DE ACTUALIZACION DE LOS CARGOS POR COMERCIALIZACION, DISTRIBUCION Y SERVICIO DE ALUMBRADO PUBLICO
A4: AT200 | B4: CALCULO DEL FACTOR DE ACTUALIZACION DEL CARGO POR PERDIDAS EN DISTRIBUCION
A5: AT300 | B5: CALCULO DEL FACTOR DE ACTUALIZACION DE LOS CARGOS POR TRANSMISION
A6: AT400 | B6: CALCULO DEL FACTOR DE ACTUALIZACION DEL CARGO POR PERDIDAS EN TRANSMISION
A7: AT500 | B7: CALCULO DEL FACTOR DE ACTUALIZACION DE LOS CARGOS POR GENERACION
A8: AT600 | B8: CALCULO DEL FACTOR DE ACTUALIZACION DE LOS CARGOS POR CONSUMO DE ALUMBRADO PUBLICO
A9: AT1000 | B9: TARIFAS DE P-2, P-1, P Y FACTORES DE AJUSTE
A10: AT RES | B10: VARIACIÓN DEL PRECIO PROMEDIO ESTIMADO DE LA ENERGIA ELECTRICA DE CLIENTES REGULADOS
A11: AT RES (POR TARIFA) | B11: VARIACIÓN DEL PRECIO PROMEDIO ESTIMADO DE LA ENERGIA ELECTRICA DE CLIENTES REGULADOS Y GRANDES CLIENTES POR TARIFA
A12: AT RES (3) | B12: VARIACIÓN DEL PRECIO PROMEDIO ESTIMADO DE LA ENERGIA ELECTRICA DE GRANDES CLIENTES

Sheet Coef_GC
A1: =+[1]Fecha!$A$1 -> EDECHI
A4: Ajuste Potencia G.C. (semestre p) | B4: 2018-07-01 | C4: 2018-08-01 | D4: 2018-09-01 | E4: 2018-10-01 | F4: 2018-11-01 | G4: 2018-12-01 | H4: 2019-01-01 | I4: 2019-02-01 | J4: 2019-03-01 | K4: 2019-04-01 | L4: 2019-05-01 | M4: 2019-06-01 | N4: 2019-07-01 | O4: 2019-08-01 | P4: 2019-09-01 | Q4: 2019-10-01 | R4: 2019-11-01 | S4: 2019-12-01 | T4: 2020-01-01 | U4: 2020-02-01 | V4: 2020-03-01 | W4: 2020-04-01 | X4: 2020-05-01 | Y4: 2020-06-01 | Z4: 2020-07-01 | AA4: 2020-08-01 | AB4: 2020-09-01 | AC4: 2020-10-01 | AD4: 2020-11-01 | AE4: 2020-12-01 | AF4: 2021-01-01 | AG4: 2021-02-01 | AH4: 2021-03-01 | AI4: 2021-04-01 | AJ4: 2021-05-01 | AK4: 2021-06-01 | AL4: 2021-07-01 | AM4: 2021-08-01 | AN4: 2021-09-01 | AO4: 2021-10-01 | AP4: 2021-11-01 | AQ4: 2021-12-01 | AR4: 2022-01-01 | AS4: 2022-02-01 | AT4: 2022-03-01 | AU4: 2022-04-01 | AV4: 2022-05-01 | AW4: 2022-06-01 | AX4: 2022-07-01 | AY4: 2022-08-01 | AZ4: 2022-09-01 | BA4: 2022-10-01 | BB4: 2022-11-01 | BC4: 2022-12-01 | BD4: 2023-01-01 | BE4: 2023-02-01 | BF4: 2023-03-01 | BG4: 2023-04-01 | BH4: 2023-05-01 | BI4: 2023-06-01 | BJ4: 2023-07-01 | BK4: 2023-08-01 | BL4: 2023-09-01 | BM4: 2023-10-01 | BN4: 2023-11-01 | BO4: 2023-12-01 | BP4: 2025-07-01 | BQ4: 2025-08-01 | BR4: 2025-09-01 | BS4: 2025-10-01 | BT4: 2025-11-01 | BU4: 2025-12-01 | BV4: 2026-01-01 | BW4: 2026-02-01 | BX4: 2026-03-01 | BY4: 2026-04-01 | BZ4: 2026-05-01 | CA4: 2026-06-01 | CB4: 2026-07-01 | CC4: 2026-08-01 | CD4: 2026-09-01 | CE4: 2026-10-01 | CF4: 2026-11-01 | CG4: 2026-12-01
A5: Factor de Ajuste | H5: =+(1+H6)*(1+H7) ->  | I5: =+(1+I6)*(1+I7) ->  | N5: =+(1+N6)*(1+N7) ->  | O5: =+(1+O6)*(1+O7) ->  | T5: =+(1+T6)*(1+T7) ->  | U5: =+(1+U6)*(1+U7) ->  | Z5: =+(1+Z6)*(1+Z7) ->  | AA5: =+(1+AA6)*(1+AA7) ->  | AF5: =+(1+AF6)*(1+AF7) ->  | AG5: =+(1+AG6)*(1+AG7) ->  | AL5: =+(1+AL6)*(1+AL7) ->  | AM5: =+(1+AM6)*(1+AM7) ->  | AR5: =+(1+AR6)*(1+AR7) ->  | AS5: =+(1+AS6)*(1+AS7) ->  | AX5: =+(1+AX6)*(1+AX7) ->  | AY5: =+(1+AY6)*(1+AY7) ->  | BD5: =+(1+BD6)*(1+BD7) ->  | BE5: =+(1+BE6)*(1+BE7) ->  | BJ5: =+(1+BJ6)*(1+BJ7) ->  | BK5: =+(1+BK6)*(1+BK7) ->  | BP5: 1.13565088 | BQ5: 1.13565088 | BR5: 1.13565088 | BS5: 1.13565088 | BT5: 1.13565088 | BU5: 1.13565088 | BV5: 1.13565088 | BW5: 1.13565088 | BX5: 1.13565088 | BY5: 1.13565088 | BZ5: 1.13565088 | CA5: 1.13565088 | CB5: =+(1+CB6)*(1+CB7) -> 1.13565088 | CC5: =+(1+CC6)*(1+CC7) -> 1.13565088 | CD5: 1.13565088 | CE5: 1.13565088 | CF5: 1.13565088 | CG5: 1.13565088
A6: Reserva para Confiabilidad de Largo Plazo | H6: =+'[1]Compras (p)'!#REF! ->  | I6: =+'[1]Compras (p)'!#REF! ->  | J6: =+'[1]Compras (p)'!#REF! ->  | K6: =+'[1]Compras (p)'!#REF! ->  | L6: =+'[1]Compras (p)'!#REF! ->  | M6: =+'[1]Compras (p)'!#REF! ->  | N6: =+'[1]Compras (p)'!#REF! ->  | O6: =+'[1]Compras (p)'!#REF! ->  | P6: =+'[1]Compras (p)'!#REF! ->  | Q6: =+'[1]Compras (p)'!#REF! ->  | R6: =+'[1]Compras (p)'!#REF! ->  | S6: =+'[1]Compras (p)'!#REF! ->  | T6: =+'[1]Compras (p)'!#REF! ->  | U6: =+'[1]Compras (p)'!#REF! ->  | V6: =+'[1]Compras (p)'!#REF! ->  | W6: =+'[1]Compras (p)'!#REF! ->  | X6: =+'[1]Compras (p)'!#REF! ->  | Y6: =+'[1]Compras (p)'!#REF! ->  | Z6: =+'[1]Compras (p)'!#REF! ->  | AA6: =+'[1]Compras (p)'!#REF! ->  | AB6: =+'[1]Compras (p)'!#REF! ->  | AC6: =+'[1]Compras (p)'!#REF! ->  | AD6: =+'[1]Compras (p)'!#REF! ->  | AE6: =+'[1]Compras (p)'!#REF! ->  | AF6: =+'[1]Compras (p)'!#REF! ->  | AG6: =+'[1]Compras (p)'!#REF! ->  | AH6: =+'[1]Compras (p)'!#REF! ->  | AI6: =+'[1]Compras (p)'!#REF! ->  | AJ6: =+'[1]Compras (p)'!#REF! ->  | AK6: =+'[1]Compras (p)'!#REF! ->  | AL6: =+'[1]Compras (p)'!#REF! ->  | AM6: =+'[1]Compras (p)'!#REF! ->  | AN6: =+'[1]Compras (p)'!#REF! ->  | AO6: =+'[1]Compras (p)'!#REF! ->  | AP6: =+'[1]Compras (p)'!#REF! ->  | AQ6: =+'[1]Compras (p)'!#REF! ->  | AR6: =+'[1]Compras (p)'!#REF! ->  | AS6: =+'[1]Compras (p)'!#REF! ->  | AT6: =+'[1]Compras (p)'!#REF! ->  | AU6: =+'[1]Compras (p)'!#REF! ->  | AV6: =+'[1]Compras (p)'!#REF! ->  | AW6: =+'[1]Compras (p)'!#REF! ->  | AX6: =+'[1]Compras (p)'!#REF! ->  | AY6: =+'[1]Compras (p)'!#REF! ->  | AZ6: =+'[1]Compras (p)'!#REF! ->  | BA6: =+'[1]Compras (p)'!#REF! ->  | BB6: =+'[1]Compras (p)'!#REF! ->  | BC6: =+'[1]Compras (p)'!#REF! ->  | BD6: =+'[1]Compras (p)'!#REF! ->  | BE6: =+'[1]Compras (p)'!#REF! ->  | BF6: =+'[1]Compras (p)'!#REF! ->  | BG6: =+'[1]Compras (p)'!#REF! ->  | BH6: =+'[1]Compras (p)'!#REF! ->  | BI6: =+'[1]Compras (p)'!#REF! ->  | BJ6: =+'[1]Compras (p)'!#REF! ->  | BK6: =+'[1]Compras (p)'!#REF! ->  | BL6: =+'[1]Compras (p)'!#REF! ->  | BM6: =+'[1]Compras (p)'!#REF! ->  | BN6: =+'[1]Compras (p)'!#REF! ->  | BO6: =+'[1]Compras (p)'!#REF! ->  | BP6: 0.0738 | BQ6: 0.0738 | BR6: 0.0738 | BS6: 0.0738 | BT6: 0.0738 | BU6: 0.0738 | BV6: 0.0738 | BW6: 0.0738 | BX6: 0.0738 | BY6: 0.0738 | BZ6: 0.0738 | CA6: 0.0738 | CB6: =+'[1]Compras (p)'!B29 -> 0.0738 | CC6: =+'[1]Compras (p)'!C29 -> 0.0738 | CD6: =+'[1]Compras (p)'!D29 -> 0.0738 | CE6: =+'[1]Compras (p)'!E29 -> 0.0738 | CF6: =+'[1]Compras (p)'!F29 -> 0.0738 | CG6: =+'[1]Compras (p)'!G29 -> 0.0738
A7: Pérdidas Típicas en Punta | H7: =+'[1]Compras (p)'!#REF! ->  | I7: =+'[1]Compras (p)'!#REF! ->  | J7: =+'[1]Compras (p)'!#REF! ->  | K7: =+'[1]Compras (p)'!#REF! ->  | L7: =+'[1]Compras (p)'!#REF! ->  | M7: =+'[1]Compras (p)'!#REF! ->  | N7: =+'[1]Compras (p)'!#REF! ->  | O7: =+'[1]Compras (p)'!#REF! ->  | P7: =+'[1]Compras (p)'!#REF! ->  | Q7: =+'[1]Compras (p)'!#REF! ->  | R7: =+'[1]Compras (p)'!#REF! ->  | S7: =+'[1]Compras (p)'!#REF! ->  | T7: =+'[1]Compras (p)'!#REF! ->  | U7: =+'[1]Compras (p)'!#REF! ->  | V7: =+'[1]Compras (p)'!#REF! ->  | W7: =+'[1]Compras (p)'!#REF! ->  | X7: =+'[1]Compras (p)'!#REF! ->  | Y7: =+'[1]Compras (p)'!#REF! ->  | Z7: =+'[1]Compras (p)'!#REF! ->  | AA7: =+'[1]Compras (p)'!#REF! ->  | AB7: =+'[1]Compras (p)'!#REF! ->  | AC7: =+'[1]Compras (p)'!#REF! ->  | AD7: =+'[1]Compras (p)'!#REF! ->  | AE7: =+'[1]Compras (p)'!#REF! ->  | AF7: =+'[1]Compras (p)'!#REF! ->  | AG7: =+'[1]Compras (p)'!#REF! ->  | AH7: =+'[1]Compras (p)'!#REF! ->  | AI7: =+'[1]Compras (p)'!#REF! ->  | AJ7: =+'[1]Compras (p)'!#REF! ->  | AK7: =+'[1]Compras (p)'!#REF! ->  | AL7: =+'[1]Compras (p)'!#REF! ->  | AM7: =+'[1]Compras (p)'!#REF! ->  | AN7: =+'[1]Compras (p)'!#REF! ->  | AO7: =+'[1]Compras (p)'!#REF! ->  | AP7: =+'[1]Compras (p)'!#REF! ->  | AQ7: =+'[1]Compras (p)'!#REF! ->  | AR7: =+'[1]Compras (p)'!#REF! ->  | AS7: =+'[1]Compras (p)'!#REF! ->  | AT7: =+'[1]Compras (p)'!#REF! ->  | AU7: =+'[1]Compras (p)'!#REF! ->  | AV7: =+'[1]Compras (p)'!#REF! ->  | AW7: =+'[1]Compras (p)'!#REF! ->  | AX7: =+'[1]Compras (p)'!#REF! ->  | AY7: =+'[1]Compras (p)'!#REF! ->  | AZ7: =+'[1]Compras (p)'!#REF! ->  | BA7: =+'[1]Compras (p)'!#REF! ->  | BB7: =+'[1]Compras (p)'!#REF! ->  | BC7: =+'[1]Compras (p)'!#REF! ->  | BD7: =+'[1]Compras (p)'!#REF! ->  | BE7: =+'[1]Compras (p)'!#REF! ->  | BF7: =+'[1]Compras (p)'!#REF! ->  | BG7: =+'[1]Compras (p)'!#REF! ->  | BH7: =+'[1]Compras (p)'!#REF! ->  | BI7: =+'[1]Compras (p)'!#REF! ->  | BJ7: =+'[1]Compras (p)'!#REF! ->  | BK7: =+'[1]Compras (p)'!#REF! ->  | BL7: =+'[1]Compras (p)'!#REF! ->  | BM7: =+'[1]Compras (p)'!#REF! ->  | BN7: =+'[1]Compras (p)'!#REF! ->  | BO7: =+'[1]Compras (p)'!#REF! ->  | BP7: 0.0576 | BQ7: 0.0576 | BR7: 0.0576 | BS7: 0.0576 | BT7: 0.0576 | BU7: 0.0576 | BV7: 0.0576 | BW7: 0.0576 | BX7: 0.0576 | BY7: 0.0576 | BZ7: 0.0576 | CA7: 0.0576 | CB7: =+'[1]Compras (p)'!B30 -> 0.0576 | CC7: =+'[1]Compras (p)'!C30 -> 0.0576 | CD7: =+'[1]Compras (p)'!D30 -> 0.0576 | CE7: =+'[1]Compras (p)'!E30 -> 0.0576 | CF7: =+'[1]Compras (p)'!F30 -> 0.0576 | CG7: =+'[1]Compras (p)'!G30 -> 0.0576
A9: Ajuste Potencia G.C. (aplicado) | Z9: 2020-07-01 | AA9: 2020-08-01 | AB9: 2020-09-01 | AC9: 2020-10-01 | AD9: 2020-11-01 | AE9: 2020-12-01 | AF9: 2021-01-01 | AG9: 2021-02-01 | AH9: 2021-03-01 | AI9: 2021-04-01 | AJ9: 2021-05-01 | AK9: 2021-06-01 | AL9: 2021-07-01 | AM9: 2021-08-01 | AN9: 2021-09-01 | AO9: 2021-10-01 | AP9: 2021-11-01 | AQ9: 2021-12-01 | AR9: 2022-01-01 | AS9: 2022-02-01 | AT9: 2022-03-01 | AU9: 2022-04-01 | AV9: 2022-05-01 | AW9: 2022-06-01 | AX9: 2022-07-01 | AY9: 2022-08-01 | AZ9: 2022-09-01 | BA9: 2022-10-01 | BB9: 2022-11-01 | BC9: 2022-12-01 | BD9: 2023-01-01 | BE9: 2023-02-01 | BF9: 2023-03-01 | BG9: 2023-04-01 | BH9: 2023-05-01 | BI9: 2023-06-01 | BJ9: 2023-07-01 | BK9: 2023-08-01 | BL9: 2023-09-01 | BM9: 2023-10-01 | BN9: 2023-11-01 | BO9: 2023-12-01 | BP9: 2025-07-01 | BQ9: 2025-08-01 | BR9: 2025-09-01 | BS9: 2025-10-01 | BT9: 2025-11-01 | BU9: 2025-12-01 | BV9: 2026-01-01 | BW9: 2026-02-01 | BX9: 2026-03-01 | BY9: 2026-04-01 | BZ9: 2026-05-01 | CA9: 2026-06-01 | CB9: 2026-07-01 | CC9: 2026-08-01 | CD9: 2026-09-01 | CE9: 2026-10-01 | CF9: 2026-11-01 | CG9: 2026-12-01
A10: Factor de Ajuste | Z10: =+(1+Z11)*(1+Z12) ->  | AA10: =+(1+AA11)*(1+AA12) ->  | AF10: =+(1+AF11)*(1+AF12) ->  | AG10: =+(1+AG11)*(1+AG12) ->  | AL10: =+(1+AL11)*(1+AL12) ->  | AM10: =+(1+AM11)*(1+AM12) ->  | AR10: =+(1+AR11)*(1+AR12) ->  | AS10: =+(1+AS11)*(1+AS12) ->  | AX10: =+(1+AX11)*(1+AX12) ->  | AY10: =+(1+AY11)*(1+AY12) ->  | BD10: =+(1+BD11)*(1+BD12) ->  | BE10: =+(1+BE11)*(1+BE12) ->  | BJ10: =+(1+BJ11)*(1+BJ12) ->  | BK10: =+(1+BK11)*(1+BK12) ->  | BP10: 1.13565088 | BQ10: 1.13565088 | BR10: 1.13565088 | BS10: 1.13565088 | BT10: 1.13565088 | BU10: 1.13565088 | BV10: 1.13565088 | BW10: 1.13565088 | BX10: 1.13565088 | BY10: 1.13565088 | BZ10: 1.13565088 | CA10: 1.13565088 | CB10: =+(1+CB11)*(1+CB12) -> 1.13565088 | CC10: =+(1+CC11)*(1+CC12) -> 1.13565088 | CD10: 1.13565088 | CE10: 1.13565088 | CF10: 1.13565088 | CG10: 1.13565088
A11: Reserva para Confiabilidad de Largo Plazo | Z11: =+'[1]Compras (p)'!#REF! ->  | AA11: =+'[1]Compras (p)'!#REF! ->  | AB11: =+'[1]Compras (p)'!#REF! ->  | AC11: =+'[1]Compras (p)'!#REF! ->  | AD11: =+'[1]Compras (p)'!#REF! ->  | AE11: =+'[1]Compras (p)'!#REF! ->  | AF11: =+'[1]Compras (p)'!#REF! ->  | AG11: =+'[1]Compras (p)'!#REF! ->  | AH11: =+'[1]Compras (p)'!#REF! ->  | AI11: =+'[1]Compras (p)'!#REF! ->  | AJ11: =+'[1]Compras (p)'!#REF! ->  | AK11: =+'[1]Compras (p)'!#REF! ->  | AL11: =+'[1]Compras (p)'!#REF! ->  | AM11: =+'[1]Compras (p)'!#REF! ->  | AN11: =+'[1]Compras (p)'!#REF! ->  | AO11: =+'[1]Compras (p)'!#REF! ->  | AP11: =+'[1]Compras (p)'!#REF! ->  | AQ11: =+'[1]Compras (p)'!#REF! ->  | AR11: =+'[1]Compras (p)'!#REF! ->  | AS11: =+'[1]Compras (p)'!#REF! ->  | AT11: =+'[1]Compras (p)'!#REF! ->  | AU11: =+'[1]Compras (p)'!#REF! ->  | AV11: =+'[1]Compras (p)'!#REF! ->  | AW11: =+'[1]Compras (p)'!#REF! ->  | AX11: =+'[1]Compras (p)'!#REF! ->  | AY11: =+'[1]Compras (p)'!#REF! ->  | AZ11: =+'[1]Compras (p)'!#REF! ->  | BA11: =+'[1]Compras (p)'!#REF! ->  | BB11: =+'[1]Compras (p)'!#REF! ->  | BC11: =+'[1]Compras (p)'!#REF! ->  | BD11: =+'[1]Compras (p)'!#REF! ->  | BE11: =+'[1]Compras (p)'!#REF! ->  | BF11: =+'[1]Compras (p)'!#REF! ->  | BG11: =+'[1]Compras (p)'!#REF! ->  | BH11: =+'[1]Compras (p)'!#REF! ->  | BI11: =+'[1]Compras (p)'!#REF! ->  | BJ11: =+'[1]Compras (p)'!#REF! ->  | BK11: =+'[1]Compras (p)'!#REF! ->  | BL11: =+'[1]Compras (p)'!#REF! ->  | BM11: =+'[1]Compras (p)'!#REF! ->  | BN11: =+'[1]Compras (p)'!#REF! ->  | BO11: =+'[1]Compras (p)'!#REF! ->  | BP11: 0.0738 | BQ11: 0.0738 | BR11: 0.0738 | BS11: 0.0738 | BT11: 0.0738 | BU11: 0.0738 | BV11: 0.0738 | BW11: 0.0738 | BX11: 0.0738 | BY11: 0.0738 | BZ11: 0.0738 | CA11: 0.0738 | CB11: =+'[1]Compras (p)'!B34 -> 0.0738 | CC11: =+'[1]Compras (p)'!C34 -> 0.0738 | CD11: =+'[1]Compras (p)'!D34 -> 0.0738 | CE11: =+'[1]Compras (p)'!E34 -> 0.0738 | CF11: =+'[1]Compras (p)'!F34 -> 0.0738 | CG11: =+'[1]Compras (p)'!G34 -> 0.0738
A12: Pérdidas Típicas en Punta | Z12: =+'[1]Compras (p)'!#REF! ->  | AA12: =+'[1]Compras (p)'!#REF! ->  | AB12: =+'[1]Compras (p)'!#REF! ->  | AC12: =+'[1]Compras (p)'!#REF! ->  | AD12: =+'[1]Compras (p)'!#REF! ->  | AE12: =+'[1]Compras (p)'!#REF! ->  | AF12: =+'[1]Compras (p)'!#REF! ->  | AG12: =+'[1]Compras (p)'!#REF! ->  | AH12: =+'[1]Compras (p)'!#REF! ->  | AI12: =+'[1]Compras (p)'!#REF! ->  | AJ12: =+'[1]Compras (p)'!#REF! ->  | AK12: =+'[1]Compras (p)'!#REF! ->  | AL12: =+'[1]Compras (p)'!#REF! ->  | AM12: =+'[1]Compras (p)'!#REF! ->  | AN12: =+'[1]Compras (p)'!#REF! ->  | AO12: =+'[1]Compras (p)'!#REF! ->  | AP12: =+'[1]Compras (p)'!#REF! ->  | AQ12: =+'[1]Compras (p)'!#REF! ->  | AR12: =+'[1]Compras (p)'!#REF! ->  | AS12: =+'[1]Compras (p)'!#REF! ->  | AT12: =+'[1]Compras (p)'!#REF! ->  | AU12: =+'[1]Compras (p)'!#REF! ->  | AV12: =+'[1]Compras (p)'!#REF! ->  | AW12: =+'[1]Compras (p)'!#REF! ->  | AX12: =+'[1]Compras (p)'!#REF! ->  | AY12: =+'[1]Compras (p)'!#REF! ->  | AZ12: =+'[1]Compras (p)'!#REF! ->  | BA12: =+'[1]Compras (p)'!#REF! ->  | BB12: =+'[1]Compras (p)'!#REF! ->  | BC12: =+'[1]Compras (p)'!#REF! ->  | BD12: =+'[1]Compras (p)'!#REF! ->  | BE12: =+'[1]Compras (p)'!#REF! ->  | BF12: =+'[1]Compras (p)'!#REF! ->  | BG12: =+'[1]Compras (p)'!#REF! ->  | BH12: =+'[1]Compras (p)'!#REF! ->  | BI12: =+'[1]Compras (p)'!#REF! ->  | BJ12: =+'[1]Compras (p)'!#REF! ->  | BK12: =+'[1]Compras (p)'!#REF! ->  | BL12: =+'[1]Compras (p)'!#REF! ->  | BM12: =+'[1]Compras (p)'!#REF! ->  | BN12: =+'[1]Compras (p)'!#REF! ->  | BO12: =+'[1]Compras (p)'!#REF! ->  | BP12: 0.0576 | BQ12: 0.0576 | BR12: 0.0576 | BS12: 0.0576 | BT12: 0.0576 | BU12: 0.0576 | BV12: 0.0576 | BW12: 0.0576 | BX12: 0.0576 | BY12: 0.0576 | BZ12: 0.0576 | CA12: 0.0576 | CB12: =+'[1]Compras (p)'!B35 -> 0.0576 | CC12: =+'[1]Compras (p)'!C35 -> 0.0576 | CD12: =+'[1]Compras (p)'!D35 -> 0.0576 | CE12: =+'[1]Compras (p)'!E35 -> 0.0576 | CF12: =+'[1]Compras (p)'!F35 -> 0.0576 | CG12: =+'[1]Compras (p)'!G35 -> 0.0576

Sheet Ajuste COMER DISTR Y AP-100
B1: CALCULO DEL FACTOR DE ACTUALIZACION DE:
B2: =+[1]Fecha!$A$1 -> EDECHI | C2: CARGOS DE COMERCIALIZACION, DISTRIBUCION
C3: Y SERVICIO DE ALUMBRADO PUBLICO
B25: Detalle | C25: Variable | D25: =+[1]Fecha!DF4 -> Ene-Jun/2026 | J25: =+[1]Fecha!DL4 -> Jul-Dic/2026
A26: 1 | B26: IPC p-2 (Viene del FORM AT 100) | C26: IPCmes 6 | D26: =+'COMER DISTR Y AP-100'!B10 -> 99.95700126 | J26: =+'COMER DISTR Y AP-100'!H10 -> 99.68676292
A27: 2 | B27: IPC p-3 (Viene del FORM AT 100) | C27: IPCmes 6 | D27: =+'COMER DISTR Y AP-100'!E10 -> 99.68805866 | J27: =+'COMER DISTR Y AP-100'!K10 -> 99.95700126
A28: 3 | B28: Factor de Ajuste = 1 / 2 | C28: (IPCp-2/IPCp-3) | D28: =+D26/D27 -> 1.002697842 | J28: =+J26/J27 -> 0.997296454
A29: 4 | B29: Porción de cargos de Comercialización que no se ajustan por IPC | C29: XC | D29: =+IF($B$2="EDEMET",0.1333,0.0988) -> 0.0988 | J29: =+IF($B$2="EDEMET",0.1333,0.0988) -> 0.0988
A30: 5 | B30: Porción de cargo de redes de Distribución que no se ajusta por IPC | C30: XUS | D30: =+IF($B$2="EDEMET",0.5873,0.4773) -> 0.4773 | J30: =+IF($B$2="EDEMET",0.5873,0.4773) -> 0.4773
A31: 6 | B31: Porción de cargo de Servicio de Alumbrado Público que no se ajusta por IPC | C31: XAP | D31: =+IF($B$2="EDEMET",0.7691,0.7347) -> 0.7347 | J31: =+IF($B$2="EDEMET",0.7691,0.7347) -> 0.7347
A32: 7 | B32: Factor de Actualización de Cargos de Comercialización | D32: =+D29+((1-D29)*D28) -> 1.002431295 | J32: =+J29+((1-J29)*J28) -> 0.9975635644
A33: 8 | B33: Factor de Actualización de Cargo de redes de Distribución, cargo de conexión y cargo de reconexión | D33: =+D30+((1-D30)*D28) -> 1.001410162 | J33: =+J30+((1-J30)*J28) -> 0.9985868565
A34: 9 | B34: Factor de Actualización de Cargo por Servicio de Alumbrado Público | D34: =+D31+((1-D31)*D28) -> 1.000715737 | J34: =+J31+((1-J31)*J28) -> 0.9992827493
D36: =+D26/D27-1 -> 0.002697841727 | J36: =+J26/J27-1 -> -0.002703545958
D37: =+D32-1 -> 0.002431294964 | J37: =+J32-1 -> -0.002436435617
D38: =+D33-1 -> 0.001410161871 | J38: =+J33-1 -> -0.001413143472
D39: =+D34-1 -> 0.0007157374101 | J39: =+J34-1 -> -0.0007172507425

Sheet AjustePérd de Dist-200
B1: CALCULO DEL FACTOR DE ACTUALIZACION DE:
B2: =+[1]Fecha!$A$1 -> EDECHI | C2: CARGO POR PERDIDAS EN DISTRIBUCION
B3: FORMULAS
B4: Para las categorías que posean medición con discriminación horaria
B5: Pérdidas de Energía en Punta:
B20: Pérdidas de Energía Fuera de Punta:
B32: Para las categorías que no posean medición con discriminación horaria
B33: Pérdidas de Energía
B42: Pérdidas de Potencia:
B52: Detalle | C52: Variable | D52: =+[1]Fecha!DL4 -> Jul-Dic/2026
A53: 1 | B53: Valor TOTAL permitido a recuperar en la tarifa para cubrir los costos de generación en el semestre p (Viene del MODELO AT500, punto 10) (B/.) | D53: =+'Ajuste Generación-500 (2)'!D74 -> 35510597.33
A54: 2 | B54: Valor permitido a traspasar a la tarifa para cubrir los costos del sistema de transmisión en el semestre p, más Costos del MER (Viene del MODELO AT300, punto 11) (B/.) | D54: =+'Ajuste Transmisión-300'!C32 -> 4281888.319
A55: 3 | B55: Valor permitido en la tarifa para cubrir los costos por pérdidas en transmisión en el semestre p (Viene del MODELO AT400, punto 6) (B/.) | D55: =+'AjustePérd de Trans-400'!D28 -> 50335.28965
A56: 4 | B56: Valor a recuperar para cubrir costos de generación, costos del sistema de transporte y pérdidas en transmisión en horas de punta pronosticados en el período p (B/.) = 1 + 2 + 3 | D56: =+D53+D54+D55 -> 39842820.94
A57: 5 | B57: Monto TOTAL necesario para cubrir los apartamientos que se produjeron entre los costos de generación reales y los ingresos reales (producidos por los cargos Base y las ventas reales) y por las diferencias entre los ingresos permitidos (producidos por los cargos Correcc y las ventas estimadas) y los ingresos reales (producidos por los cargos Correcc y las ventas reales) en horas de Punta del semestre p-2 actualizado con la tasa de descuento (Viene del MODELO AT500-En P (2), punto 7) (B/.) | D57: =+'Ajuste Generación-500 -En P (2)'!C31 -> 5105997.447
A58: 6 | B58: Monto necesario para cubrir los apartamientos que se produjeron entre los costos de transmisión reales y los ingresos reales (producidos por los cargos Base y las ventas reales) y por las diferencias entre los ingresos permitidos (producidos por los cargos Correcc y las ventas estimadas) y los ingresos reales (producidos por los cargos Correcc y las ventas reales), ambos referenciados al semestre p-2 actualizado con la tasa de descuento (Viene del MODELO AT300, punto 22) (B/.) | D58: =+'Ajuste Transmisión-300'!D45 -> 469988.389
A59: 7 | B59: Monto necesario para cubrir los apartamientos que se produjeron en el semestre p-2 entre los costos de pérdidas de transmisión reales y los ingresos reales (producidos por los cargos Base y las ventas reales) y por las diferencias entre los ingresos permitidos (producidos por los cargos Correcc y las ventas estimadas) y los ingresos reales (producidos por los cargos Correcc y las ventas reales) actualizado con la tasa de descuento (Viene del MODELO AT400, punto 16) (B/.) | D59: =+'AjustePérd de Trans-400'!D38 -> -13048.72593
A60: 8 | B60: Corrección para cubrir los apartamientos que se produjeron entre los costos de generación (potencia y energía y demás costos del mercado mayorista) y costos del sistema de transporte (incluyendo pérdidas en transmisión), y los ingresos reales (producidos por los cargos Base y las ventas reales), y por las diferencias entre los ingresos permitidos (producidos por los cargos Correcc y las ventas estimadas) y los ingresos reales (producidos por los cargos Correcc y las ventas reales) ambos en el semestre p-2 = 5 + 6 + 7 | D60: =+D57+D58+D59 -> 5562937.11
A61: 9 | B61: Ingresos estimados a partir de la proyección de ventas del semestre p y los cargos Base asociados a los costos de generación del semestre p-1(Viene del MODELO AT500, punto 12) (B/.) | D61: =+'Ajuste Generación-500 (2)'!F78 -> 34876232.56
A62: 10 | B62: Ingresos estimados a partir de la proyección de ventas del semestre p y los cargos Base asociados a los costos de transmisión del semestre p-1 (Viene del MODELO AT300, punto 13) (B/.) | D62: =+'Ajuste Transmisión-300'!D36 -> 4279243.192
A63: 11 | B63: Ingresos estimados a partir de la proyección de ventas del semestre p y los cargos BASE asociados a los costos de pérdidas de transmisión del semestre p-1 (Viene del MODELO AT400, punto 7) (B/.) | D63: =+'AjustePérd de Trans-400'!D29 -> 49920.95168
A64: 12 | B64: Valor que se recuperaría con los cargos de p-1 correspondientes a los costos Base de generación, costos del sistema de transporte y pérdidas de transmisión en horas de punta, aplicados a las ventas del semestre p (B/.) = 9 + 10 + 11 | D64: =+D61+D62+D63 -> 39205396.71
A65: 13 | B65: Factor de Actualización o corrección = 4 / 12 | D65: =+D56/D64 -> 1.016258584
A66: 14 | B66: Factor de Actualización o corrección = 8 / 12 | D66: =+D60/D64 -> 0.1418921265
B67: Nota: se utilizará el mismo factor de actualización para todos los cargos Base y el mismo factor de actualización para todos los cargos Correcc.

Sheet Ajuste Transmisión-300
B1: CALCULO DEL FACTOR DE ACTUALIZACION DE:
B2: =+[1]Fecha!$A$1 -> EDECHI
B3: FORMULAS
B5: Donde
B20: Detalle | C20: =+"SEMESTRE p "&[1]Fecha!DL4 -> SEMESTRE p Jul-Dic/2026 | D20: =+"SEMESTRE p-2 "&[1]Fecha!DL8 -> SEMESTRE p-2 Jul-Dic/2025
A21: 1 | B21: Costos de Conexión (B/.) (Viene del FORM AT302 Y AT322) | C21: =+SUM('TRANSMISION-302'!B21:G21) -> 1082367.504 | D21: =+SUM('TRANSMISION-322'!B21:G21) -> 910313.64
A22: 2 | B22: Costos por uso de la red de transporte (B/.) (Viene del FORM AT302 Y AT322) | C22: =+SUM('TRANSMISION-302'!B23:G30)+SUM('TRANSMISION-302'!B33:G36) -> 2966093.924 | D22: =+SUM('TRANSMISION-322'!B23:G29)+SUM('TRANSMISION-322'!B30:G30)+SUM('TRANSMISION-322'!B32:G32) -> 2019754.97
A23: 3 | B23: Costos por el servicio de Operación Integrada del Mercado Mayorista (B/.) (Viene del FORM AT302 Y AT322) | C23: =+SUM('TRANSMISION-302'!B31:G31) -> 353930.616 | D23: =+SUM('TRANSMISION-322'!B31:G31) -> 293680.006
A24: 4 | B24: Costos por el servicio de Operación Integrada del Mercado Mayorista IMPHA(B/.) (Viene del FORM AT302 Y AT322) | C24: =+SUM('TRANSMISION-302'!B32:G32) -> 263746.86 | D24: =+SUM('TRANSMISION-322'!B36:G36) -> 183136.98
A25: 5 | B25: Costos por uso de redes pagado a la Autoridad del Canal de Panamá (B/.) (Viene del FORM AT302 Y AT322) | C25: =+SUM('TRANSMISION-302'!B43:G44) -> 0 | D25: =+SUM('TRANSMISION-322'!B39:G40) -> 0
A26: 6 | B26: Costo por uso de redes, otros costos de transporte y Tasa de Regulación del Mercado Regional (B/.) (Viene del FORM AT302 Y AT322) | C26: =+SUM('TRANSMISION-302'!B37:G41) -> 148499.002 | D26: =+SUM('TRANSMISION-322'!B34:G35)+SUM('TRANSMISION-322'!B37:G37) -> 375090.7
A27: 7 | B27: Total de Costos de Transmisión (B/.) = 1 + 2 + 3 + 4 + 5 + 6 | C27: =+SUM(C21:C26) -> 4814637.906 | D27: =+SUM(D21:D26) -> 3781976.296
A28: 8 | B28: Energía transmitida (suma de la energía comprada por la distribuidora ingresada a su red en los nodos de compra o entrega (en contrato más mercado ocasional) más la energía asignada por el CND a los Grandes Clientes) (kWh) (Viene del FORM AT302 Y AT322) | C28: =+SUM('TRANSMISION-302'!B17:G17)*1000+SUM('Facturación-801 (energía)'!H422:M422)+SUM('Facturación-801 (energía)'!H376:M376) -> 621640571.1 | D28: =+SUM('TRANSMISION-322'!B17:G17)*1000+SUM('Facturación-821-A (energía)'!N459:S459)+SUM('Facturación-821-A (energía)'!N413:S413) -> 624821140.6
B29: Detalle | C29: =+C20 -> SEMESTRE p Jul-Dic/2026 | D29: =+D20 -> SEMESTRE p-2 Jul-Dic/2025
A30: 9 | B30: Costo Monómico de Transmisión (B/./kWh) = 6 / 7 | C30: =+IFERROR(C27/C28,0) -> 0.007745050967 | D30: =+IFERROR(D27/D28,0) -> 0.006052894261
A31: 10 | B31: Venta de energía a clientes, Consumo de Alumbrado Público y el consumo de los Grandes Clientes (kWh) (Viene del FORM AT801 y AT821) | C31: =+SUM('Facturación-801 (energía)'!H111:M111)+SUM('Facturación-801 (energía)'!H457:M457)+(SUM('Facturación-801 (energía)'!H422:M422)+SUM('Facturación-801 (energía)'!H376:M376)+SUM('Facturación-801 (energía)'!H545:M545)) -> 552854763.2 | D31: =+SUM('Facturación-821-A (energía)'!N111:S111)+SUM('Facturación-821-A (energía)'!N495:S495)+SUM('Facturación-821-A (energía)'!N459:S459)+SUM('Facturación-821-A (energía)'!N413:S413)+SUM('Facturación-821-A (energía)'!N588:S588) -> 531354715
A32: 11 | B32: Costos de Transmisión Permitidos (B/.) = 9 x 10 | C32: =+C30*C31 -> 4281888.319 | D32: =+D30*D31 -> 3216233.905
B34: Detalle | D34: Valor
A35: 12 | B35: Valor permitido a traspasar a la tarifa que la empresa aplicaría a los clientes para cubrir los costos puros de transmisión en el semestre p (B/.) (11) | D35: =+C32 -> 4281888.319
A36: 13 | B36: Ingresos estimados que resultan de aplicar los cargos Base por transmisión, que contienen las tarifas del semestre p-1 a la proyección de ventas de potencia y energía del semestre p (Viene del FORM AT303) (B/.) | D36: =+SUM('TRANSMISION-303'!B124:G124,'TRANSMISION-303'!B157:G157,'TRANSMISION-303'!B182:G182) -> 4279243.192
A37: 14 | B37: Costo permitido real de transmisión calculado en base a los costos reales de transmisión en el semestre p-2 (B/.) (11) | D37: =+D32 -> 3216233.905
A38: 15 | B38: Ingresos reales producidos por los cargos Base y las ventas reales del semestre p-2 (Viene del FORM AT306) (B/.) | D38: =+SUM('TRANSMISION-306'!B110:G110,'TRANSMISION-306'!B143:G143,'TRANSMISION-306'!B168:G168) -> 3277261.945
A39: 16 | B39: Ingresos permitidos producidos por los cargos Correcc por transmisión y las ventas estimadas en el semestre p-2 (Viene del FORM AT307) (B/.) | D39: =+SUM('TRANSMISION-307'!B109:G109,'TRANSMISION-307'!B142:G142,'TRANSMISION-307'!B167:G167) -> 374515.2241
A40: 17 | B40: Ingresos reales producidos por los cargos Correcc por transmisión y las ventas reales en el semestre p-2 (Viene del FORM AT308) (B/.) | D40: =+SUM('TRANSMISION-308'!B109:G109,'TRANSMISION-308'!B142:G142,'TRANSMISION-308'!B167:G167) -> 872863.8087
A41: 18 | B41: Monto necesario para cubrir las diferencias entre los ingresos permitidos (producidos por los cargos Correcc y las ventas estimadas) y los ingresos reales (producidos por los cargos Correcc y las ventas reales) en el semestre p-2 (B/.) = 16 - 17 | D41: =+D40-D39 -> 498348.5846
A42: 19 | B42: Monto necesario para cubrir los apartamientos que se produjeron entre los costos de transmisión reales y los ingresos reales (producidos por los cargos Base y las ventas reales) y por las diferencias entre los ingresos permitidos (producidos por los cargos Correcc y las ventas estimadas) y los ingresos reales (producidos por los cargos Correcc y las ventas reales), ambos referenciados al semestre p-2 (B/.) = 14 - 15 + 18 | D42: =+D37-D38+D41 -> 437320.5443
A43: 20 | B43: Tasa de interés (Viene del FORM AT700) | D43: =+'TASAS DE INTERES-700'!B20 -> 0.0747
A44: 21 | B44: Factor de la tasa de interés | D44: =1+D43 -> 1.0747
A45: 22 | B45: Valor de los apartamientos actualizado con la tasa de descuento “r” (B/.) = 19 x 21 | D45: =+D42*D44 -> 469988.389
A46: 23 | B46: Factor de Actualización o corrección BASE = (12 / 13) | D46: =+IFERROR(D35/D36,0) -> 1.00061813
A47: 24 | B47: Factor de Actualización o corrección = (22 / 13) | D47: =+IFERROR(D45/D36,0) -> 0.1098297918

Sheet AjustePérd de Trans-400
B1: CALCULO DEL FACTOR DE ACTUALIZACION DE:
B2: =+[1]Fecha!$A$1 -> EDECHI
B3: FORMULAS
B7: Donde
B20: Detalle | C20: =+"SEMESTRE p "&[1]Fecha!DL4 -> SEMESTRE p Jul-Dic/2026 | D20: =+"SEMESTRE p-2 "&[1]Fecha!DL8 -> SEMESTRE p-2 Jul-Dic/2025
A21: 1 | B21: Costos de las pérdidas en transmisión (B/.) (Viene del FORM AT402 y AT422) | C21: =+SUM('PERD TRANS-402'!B13:G13) -> 57196.32 | D21: =+SUM('PERD TRANS-422'!B13:G13) -> 59858.19
A22: 2 | B22: Energía transmitida (suma de la energía comprada por la distribuidora ingresada a su red en los nodos de compra o entrega (en contrato más mercado ocasional (kWh) (Viene del FORM AT302 Y AT322) | C22: =+SUM('TRANSMISION-302'!B17:G17)*1000 -> 573426275.1 | D22: =+SUM('TRANSMISION-322'!B17:G17)*1000 -> 574126739.6
A23: 3 | B23: Costo promedio de pérdidas en transmisión (B/./kWh) = 1 / 2 | C23: =+IFERROR(C21/C22,0) -> 9.974485385e-05 | D23: =+D21/D22 -> 0.0001042595404
A24: 4 | B24: Venta de energía a clientes y Consumo de Alumbrado Público (kWh) (Viene del FORM AT801 y AT821) | C24: =+SUM('Facturación-801 (energía)'!H111:M111)+SUM('Facturación-801 (energía)'!H457:M457)+SUM('Facturación-801 (energía)'!H545:M545) -> 504640467.2 | D24: =+SUM('Facturación-821-A (energía)'!N111:S111)+SUM('Facturación-821-A (energía)'!N495:S495)+SUM('Facturación-821-A (energía)'!N588:S588) -> 480660314
A25: 5 | B25: Costo permitido de pérdidas en transmisión (B/.) = 3 X 4 | C25: =+C23*C24 -> 50335.28965 | D25: =+D23*D24 -> 50113.42342
B27: Detalle | D27: Valor
A28: 6 | B28: Valor permitido en la tarifa que la empresa aplicaría a los clientes para cubrir los costos puros por pérdidas de energía en transmisión en el semestre p (B/.) (5) | D28: =+C25 -> 50335.28965
A29: 7 | B29: Ingresos estimados que resultan de aplicar los cargos Base por pérdidas de transmisión que contienen las tarifas del semestre p-1 a la proyección de ventas del semestre p (Viene del FORM AT403) (B/.) | D29: =+SUM('PERD TRANS-403'!B124:G124)+SUM('PERD TRANS-403'!B149:G149) -> 49920.95168
A30: 8 | B30: Costo permitido real de pérdidas de transmisión calculado en base a los costos reales de pérdidas de transmisión en el semestre p-2 (B/.) (5) | D30: =+D25 -> 50113.42342
A31: 9 | B31: Ingresos reales producidos por los cargos Base y las ventas reales del semestre p-2 (Viene del FORM AT406) (B/.) | D31: =+SUM('PERD TRANS-406'!B108:G108,'PERD TRANS-406'!B133:G133) -> 60540.00768
A32: 10 | B32: Ingresos reales producidos por los cargos CORREC por Pérdidas de Transmisión y las ventas reales del semestre p-2 (Viene del FORM AT407) (B/.) | D32: =+SUM('PERD TRANS-407'!B109:G109,'PERD TRANS-407'!B134:G134) -> -17296.49613
A33: 11 | B33: Ingresos permitidos producidos por los cargos CORREC por pérdidas transmisión y las ventas estimadas en el semestre p-2 (Viene del FORM AT408) (B/.) | D33: =+SUM('PERD TRANS-408'!B109:G109,'PERD TRANS-408'!B134:G134) -> -19011.64996
A34: 12 | B34: Monto necesario para cubrir las diferencias entre los ingresos permitidos (producidos por los cargos Correcc y las ventas estimadas) y los ingresos reales (producidos por los cargos CORREC y las ventas reales) en el semestre p-2 (B/.) = 10 - 11 | D34: =+D33-D32 -> -1715.153833
A35: 13 | B35: Monto necesario para cubrir los apartamientos que se produjeron en el semestre p-2 entre los costos de pérdidas de transmisión reales y los ingresos reales (producidos por los cargos Base y las ventas reales) y por las diferencias entre los ingresos permitidos (producidos por los cargos Correcc y las ventas estimadas) y los ingresos reales (producidos por los cargos Correcc y las ventas reales) (B/.) = 8 - 9 + 12 | D35: =+D30-D31+D34 -> -12141.73809
A36: 14 | B36: Tasa de interés (Viene del FORM AT700) | D36: =+'TASAS DE INTERES-700'!B20 -> 0.0747
A37: 15 | B37: Factor de la tasa de interés | D37: =1+D36 -> 1.0747
A38: 16 | B38: Valor de los apartamientos actualizado con la tasa de descuento “r” (B/.) = 13 x 15 | D38: =+D35*D37 -> -13048.72593
A39: 17 | B39: Factor de Actualización o corrección = (6 / 7) | D39: =+D28/D29 -> 1.008299881
A40: 18 | B40: Factor de Actualización o corrección = (16 / 7) | D40: =+D38/D29 -> -0.2613877638

Sheet Ajuste Generación-500 (2)
C1: CALCULO DEL FACTOR DE ACTUALIZACION DE:
C2: =+[1]Fecha!$A$1 -> EDECHI
C3: FORMULAS
C9: Para todos los Cargos los factores de ajuste son:
C11: Para cargos Base
C13: Donde
C53: Detalle | D53: =+'AjustePérd de Trans-400'!C$20 -> SEMESTRE p Jul-Dic/2026 | E53: =+'AjustePérd de Trans-400'!D$20 -> SEMESTRE p-2 Jul-Dic/2025
A54: 1 | C54: Costos de Generación (B/.) = 2 + 3 + 4 | D54: =+D55+D59+D63 -> 58949100.37 | E54: =+E55+E59+E63 -> 63323023.23
A55: 2 | C55: Costos de compra de potencia (B/.) = 2.1 + 2.2 + 2.3 | D55: =+D56+D57+D58 -> 21600650.49 | E55: =+E56+E57+E58 -> 22104046.82
B56: 2.1 | C56: Costos de compra de potencia contratada mediante el mecanismo establecido por la ASEP (Viene del FORM AT502 y AT522) (B/.) | D56: =+SUM('GEN-502 Cos_Pot'!B24:G24) -> 21313907.9 | E56: =+SUM('GEN-522 Cos_Pot'!B24:G24) -> 21139129.4
B57: 2.2 | C57: Costos o ingresos por Compensaciones de Potencia (Viene del FORM AT502 y AT522) (B/.) | D57: =+SUM('GEN-502 Cos_Pot'!B17:G17) -> 0 | E57: =+SUM('GEN-522 Cos_Pot'!B17:G17) -> -196.23
B58: 2.3 | C58: Costos por servicios auxiliares de potencia (Reserva, Seguimiento de la demanda) (Viene del FORM AT502 y AT522) (B/.) | D58: =+SUM('GEN-502 Cos_Pot'!B16:G16)+SUM('GEN-502 Cos_Pot'!B18:G18) -> 286742.59 | E58: =+SUM('GEN-522 Cos_Pot'!B16:G16)+SUM('GEN-522 Cos_Pot'!B18:G18) -> 965113.65
A59: 3 | C59: Costos por compra de energía (B/.) = 3.1 + 3.2 | D59: =+D60+D61+D62 -> 36466024.33 | E59: =+E60+E61+E62 -> 40312943.3
B60: 3.1 | C60: Costos por compra de energía asociada contratada mediante el mecanismo establecido por la ASEP (Viene del FORM AT502 y AT522) (B/.) | D60: =+SUM('GEN-502 Cos_Gen_P'!B24:G24)+SUM('GEN-502 Cos_Gen_FP'!B24:G24) -> 40319555.3 | E60: =+SUM('GEN-522 Cos_Gen_P'!B24:G24)+SUM('GEN-522 Cos_Gen_FP'!B24:G24) -> 33489916.89
B61: 3.2 | C61: Costos o ingresos por compras o ventas de energía en el mercado ocasional que hayan sido autorizadas por la ASEP (Viene del FORM AT502 y AT522) (B/.) | D61: =+SUM('GEN-502 Cos_Gen_P'!B16:G16)+SUM('GEN-502 Cos_Gen_FP'!B16:G16) -> -3853530.971 | E61: =+SUM('GEN-522 Cos_Gen_P'!B16:G16)+SUM('GEN-522 Cos_Gen_FP'!B16:G16) -> 6823026.403
B62: 3.3 | C62: Créditos que resultan a favor de los clientes producto de la aplicación del Procedimiento para Autoconsumo con Fuentes Nuevas, Renovables y Limpias aprobado mediante la Resolución AN No.10206-Elec de 11 de julio de 2016 (Viene del FORM AT502 y AT522) (B/.)
A63: 4 | C63: Costos del Mercado (B/.) = 4.1 + 4.2 + 4.3 + 4.4 - 4.5 | D63: =+D64+D65+D66+D67-D68 -> 882425.55 | E63: =+E64+E65+E66+E67-E68 -> 906033.12
B64: 4.1 | C64: Costos por servicios auxiliares (Viene del FORM AT502 y AT522) (B/.) | D64: =+SUM('GEN-502 Cos_Gen_P'!B17:G17) -> 300340.81 | E64: =+SUM('GEN-522 Cos_Gen_P'!B17:G17) -> 300340.81
B65: 4.2 | C65: Costo de Fianzas correspondientes a contratos (Viene del FORM AT502 y AT522) (B/.) | D65: =+SUM('GEN-502 Cos_Gen_P'!B20:G21) -> 351924.23 | E65: =+SUM('GEN-522 Cos_Gen_P'!B20:G22) -> 375531.8
B66: 4.3 | C66: Costos de Generación relacionados con el Mercado Regional y los servicios de operación integrada regional (Viene del FORM AT502 y AT522) (B/.) | D66: =+SUM('GEN-502 Cos_Gen_P'!B19:G19) -> 0 | E66: =+SUM('GEN-522 Cos_Gen_P'!B19:G19) -> 0
B67: 4.4 | C67: Sobrecostos por Generación Obligada (Viene del FORM AT502 y AT522) (B/.) | D67: =+SUM('GEN-502 Cos_Gen_P'!B18:G18) -> 280270.87 | E67: =+SUM('GEN-522 Cos_Gen_P'!B18:G18) -> 280270.87
B68: 4.5 | C68: Descuento por Cargo Por Uso Esporádico del Sistema de Transmisión (Viene del FORM AT502 y AT522) (B/.) | D68: =+SUM('GEN-502 Cos_Gen_P'!B23:G23) -> 50110.36 | E68: =+SUM('GEN-522 Cos_Gen_P'!B23:G23) -> 50110.36
A69: 5 | C69: Costo de generación extraordinario (Viene del MODELO AT500 (Extra), punto 1) (B/.) | D69: 0 | E69: 0
A70: 6 | C70: Ingresos que producen los cargos tarifarios por potencia de generación y las ventas del semeste correspondiente (Viene del FORM AT504-potencia y AT506-potencia) (B/.) | D70: =+SUM('GENERACION-504 (potencia)'!B124:G124,'GENERACION-504 (potencia)'!B140:G140,'GENERACION-504 (potencia)'!B166:G166) -> 18598175.55 | E70: =+SUM('GENERACION-506 (potencia)'!B112:G112,'GENERACION-506 (potencia)'!B309:G309,'GENERACION-506 (potencia)'!B336:G336) -> 13632727.15
A71: 7 | C71: Energía comprada por la distribuidora ingresada a la red de la distribuidora en los nodos de compra o entrega, generación propia y la energía total inyectada a su red por los clientes (contratos + mercado ocasional, incluye toda la energía de pérdidas en distribución) (Viene del FORM AT502 y AT522) (MWh) | D71: =+SUM('GEN-502 Gen_P'!B8:G8)*1000+SUM('GEN-502 Gen_FP'!B8:G8)*1000 -> 573426275.1 | E71: =+SUM('GEN-522 Gen_P'!B8:G8)*1000+SUM('GEN-522 Gen_FP'!B8:G8)*1000 -> 574126739.6
A72: 8 | C72: Precio promedio ponderado de generación permitido (B/./kWh) = (1 - 5 - 6) / 7 | D72: =+IFERROR((D54-D69-D70)/D71,0) -> 0.07036811282 | E72: =+(E54-E69-E70)/E71 -> 0.08654934992
A73: 9 | C73: Venta de energía a clientes y Consumo de Alumbrado Público (Viene del FORM AT801 y AT821 A) (kWh) | D73: =+SUM('Facturación-801 (energía)'!H111:M111)+SUM('Facturación-801 (energía)'!H457:M457)+SUM('Facturación-801 (energía)'!H545:M545) -> 504640467.2 | E73: =+SUM('Facturación-821 (energía)'!N111:S111)+SUM('Facturación-821 (energía)'!N495:S495)+SUM('Facturación-821 (energía)'!N588:S588) -> 480660314
A74: 10 | C74: Costo de generación permitido a trasladar a los cargos por energía de las tarifas (B/.) = 8 X 9 | D74: =+D72*D73 -> 35510597.33 | E74: =+E72*E73 -> 41600837.71
C76: Detalle | F76: Valor
B77: 11 | C77: Porción de los costos de generación permitidos a trasladar a los cargos por energía de las tarifas en el semestre p (B/.) (10) | F77: =+D74 -> 35510597.33
B78: 12 | C78: Ingresos estimados que obtendría la distribuidora de los clientes que no se encuentran abastecidos por otro agente para cubrir los costos de generación asignados a energía. Resultan de aplicar los cargos Base por energía de generación que contienen las tarifas del semestre p-1 a la proyección de ventas del semestre p (Viene del FORM AT503) (B/.) | F78: =+SUM('GENERACION-503'!B124:G124,'GENERACION-503'!B211:G211,'GENERACION-503'!B331:G331,'GENERACION-503'!B364:G364,'GENERACION-503'!B397:G397,'GENERACION-503'!B422:G422) -> 34876232.56
B79: 13 | C79: Costo permitido Real de generación (asignados a energía) calculado en base a los costos reales y a las ventas reales en el semestre p-2. (B/.) (10) | F79: =+E74 -> 41600837.71
B80: 14 | C80: Ingresos reales producidos por los cargos Base por energía y las ventas reales del semestre p-2, incluyendo los ingresos producidos por los cargos por variación por combustible relacionados a los costos del semestre respectivo. (Viene del FORM AT506 + FORM AT506 CVC) (B/.) | F80: =+SUM('GENERACION-506'!B115:G115,'GENERACION-506'!B199:G199,'GENERACION-506'!B316:G316,'GENERACION-506'!B349:G349,'GENERACION-506'!B382:G382,'GENERACION-506'!B407:G407)+SUM('GENERACION-506 (CVC)'!B64:G64,'GENERACION-506 (CVC)'!B112:G112)+SUM('GENERACION-506 (cvc)a'!H64:M64,'GENERACION-506 (cvc)a'!H112:M112) -> 39201301.28
B81: 15 | C81: Ingresos permitidos producidos por los cargos Correcc por generación y las ventas estimadas en el semestre p-2 (Viene del FORM AT507) (B/.) | F81: =+SUM('GENERACION-507'!B117:G117,'GENERACION-507'!B201:G201,'GENERACION-507'!B318:G318,,'GENERACION-507'!B351:G351,'GENERACION-507'!B384:G384,'GENERACION-507'!B409:G409) -> 4541999.627
B82: 16 | C82: Ingresos reales producidos por los cargos Correcc por generación y las ventas reales en el semestre p-2 (Viene del FORM AT508) (B/.) | F82: =+SUM('GENERACION-508'!B109:G109,'GENERACION-508'!B193:G193,'GENERACION-508'!B309:G309,'GENERACION-508'!B342:G342,'GENERACION-508'!B375:G375,'GENERACION-508'!B400:G400) -> 4989243.277
B83: 17 | C83: Monto necesario para cubrir las diferencias entre los ingresos permitidos (producidos por los cargos Correcc y las ventas estimadas) y los ingresos reales (producidos por los cargos Correcc y las ventas reales) en el semestre p-2 (B/.) = 15 - 16 | F83: =+F82-F81 -> 447243.6501
B84: 18 | C84: Monto necesario para cubrir los apartamientos que se produjeron entre los costos de generación reales (asignados a la energía) y los ingresos reales (producidos por los cargos Base y las ventas reales, incluyendo los ingresos por los cargos variación por combustible) y por las diferencias entre los ingresos permitidos (producidos por los cargos Correcc y las ventas estimadas) y los ingresos reales (producidos por los cargos Correcc y las ventas reales) del semestre p-2 (B/.) = 13 - 14 + 17 | F84: =+F79-F80+F83 -> 2846780.084
B85: 19 | C85: Tasa de interés (Viene del FORM AT700) | F85: =+'TASAS DE INTERES-700'!B20 -> 0.0747
B86: 20 | C86: Factor de la tasa de interés = (1 + 19) | F86: =+F85+1 -> 1.0747
B87: 21 | C87: Intereses generados dentro del semestre p-2 ocasionados por el desfase del costo permitido a recuperar en el ajuste mensual del cargo variable por combustible (Viene del FORM AT509) (B/.) | F87: =+'GENERACION-509'!B19 -> 2028539.405
B88: 22 | C88: Valor de los apartamientos actualizado con la tasa de descuento “r” (B/.) = ( 18 x 20 ) + 21 | F88: =+F84*F86+F87+F94 -> 5087973.961
B89: 23 | C89: Factor de Actualización o corrección = (11 / 12) | F89: =+IFERROR(F77/F78,0) -> 1.018189028
B90: 24 | C90: Factor de Actualización o corrección = (22 / 12) | F90: =+IFERROR(F88/F78,0) -> 0.1458865705
F93: CVC ene-dic 24
F94: 0

Sheet Ajuste Generación-500
B1: CALCULO DEL FACTOR DE ACTUALIZACION DE:
B2: =+[1]Fecha!$A$1 -> EDECHI
B3: FORMULAS
B4: Cargo por Potencia
B6: Donde
B27: Cargo por Energía en horas de punta
B28: Para las categorías que posean medición con discriminación horaria
B31: Donde
B38: Para las categorías que no posean medición con discriminación horaria
B41: Donde
B50: Detalle | C50: =+'AjustePérd de Trans-400'!C20 -> SEMESTRE p Jul-Dic/2026 | D50: =+'AjustePérd de Trans-400'!D20 -> SEMESTRE p-2 Jul-Dic/2025
A51: 1 | B51: Total de Costos de Generación Permitidos (B/.) = 2 + 3 + 4 | C51: =+C52+C56+C59 -> 58949100.37 | D51: =+D52+D56+D59 -> 63323023.23
A52: 2 | B52: Costos de compra de potencia (B/.) = 2.1 + 2.2 + 2.3 | C52: =+C53+C54+C55 -> 21600650.49 | D52: =+D53+D54+D55 -> 22104046.82
A53: 2.1 | B53: Costos de compra de potencia de contratos iniciales y contratada mediante el mecanismo establecido por la ASEP (Viene del FORM AT502 y AT522) (B/.) | C53: =+SUM('GEN-502 Cos_Pot'!B24:G24) -> 21313907.9 | D53: =+SUM('GEN-522 Cos_Pot'!B24:G24) -> 21139129.4
A54: 2.2 | B54: Costos o ingresos por Compensaciones de Potencia (Viene del FORM AT502 y AT522) (B/.) | C54: =+SUM('GEN-502 Cos_Pot'!B17:G17) -> 0 | D54: =+SUM('GEN-522 Cos_Pot'!B17:G17) -> -196.23
A55: 2.3 | B55: Costos por servicios auxiliares de potencia (Reserva, Seguimiento de la demanda) (Viene del FORM AT502 y AT522) (B/.) | C55: =+SUM('GEN-502 Cos_Pot'!B16:G16)+SUM('GEN-502 Cos_Pot'!B18:G18) -> 286742.59 | D55: =+SUM('GEN-522 Cos_Pot'!B16:G16)+SUM('GEN-522 Cos_Pot'!B18:G18) -> 965113.65
A56: 3 | B56: Costos por compra de energía (B/.) = 3.1 + 3.2 | C56: =+C57+C58 -> 36466024.33 | D56: =+D57+D58 -> 40312943.3
A57: 3.1 | B57: Costos por compra de energía en horas de punta asociada a contratos iniciales y contratada mediante el mecanismo establecido por la ASEP (Viene del FORM AT502 y AT522) (B/.) | C57: =+SUM('GEN-502 Cos_Gen_P'!B24:G24)+SUM('GEN-502 Cos_Gen_FP'!B24:G24) -> 40319555.3 | D57: =+SUM('GEN-522 Cos_Gen_P'!B24:G24)+SUM('GEN-522 Cos_Gen_FP'!B24:G24) -> 33489916.89
A58: 3.2 | B58: Costos o ingresos por compras o ventas de energía en el mercado ocasional en horas de punta que hayan sido autorizadas por la ASEP (Viene del FORM AT502 y AT522) (B/.) | C58: =+SUM('GEN-502 Cos_Gen_P'!B16:G16)+SUM('GEN-502 Cos_Gen_FP'!B16:G16) -> -3853530.971 | D58: =+SUM('GEN-522 Cos_Gen_P'!B16:G16)+SUM('GEN-522 Cos_Gen_FP'!B16:G16) -> 6823026.403
A59: 4 | B59: Costos del Mercado (B/.) = 4.1 + 4.2 + 4.3 + 4.4 - 4.5 | C59: =+C60+C61+C62+C63-C64 -> 882425.55 | D59: =+D60+D61+D62+D63-D64 -> 906033.12
A60: 4.1 | B60: Costos por servicios auxiliares (Viene del FORM AT502 y AT522) (B/.) | C60: =+SUM('GEN-502 Cos_Gen_P'!B17:G17) -> 300340.81 | D60: =+SUM('GEN-522 Cos_Gen_P'!B17:G17) -> 300340.81
A61: 4.2 | B61: Costo de Fianzas y Otros Costos (CSJ Samba Bonita) correspondientes a contratos (Viene del FORM AT502 y AT522) (B/.) | C61: =+SUM('GEN-502 Cos_Gen_P'!B20:G21) -> 351924.23 | D61: =+SUM('GEN-522 Cos_Gen_P'!B20:G22) -> 375531.8
A62: 4.3 | B62: Costos de Generación relacionados con el Mercado Regional y los servicios de operación integrada regional (Viene del FORM AT502 y AT522) (B/.) | C62: =+SUM('GEN-502 Cos_Gen_P'!B19:G19) -> 0 | D62: =+SUM('GEN-522 Cos_Gen_P'!B19:G19) -> 0
A63: 4.4 | B63: Sobrecostos por Generación Obligada (Viene del FORM AT502 y AT522) (B/.) | C63: =+SUM('GEN-502 Cos_Gen_P'!B18:G18) -> 280270.87 | D63: =+SUM('GEN-522 Cos_Gen_P'!B18:G18) -> 280270.87
A64: 4.5 | B64: Descuento por Cargo Por Uso Esporádico del Sistema de Transmisión (Viene del FORM AT502 y AT522) (B/.) | C64: =+SUM('GEN-502 Cos_Gen_P'!B23:G23) -> 50110.36 | D64: =+SUM('GEN-522 Cos_Gen_P'!B23:G23) -> 50110.36
B65: Detalle | C65: =+C50 -> SEMESTRE p Jul-Dic/2026 | D65: =+D50 -> SEMESTRE p-2 Jul-Dic/2025
A66: 5 | B66: Energía comprada por la distribuidora ingresada a la red de la distribuidora en los nodos de compra o entrega y la de generación propia (Viene del FORM AT502 y AT522) (MWh) | C66: =+SUM('GEN-502 Gen_P'!B8:G8)*1000+SUM('GEN-502 Gen_FP'!B8:G8)*1000 -> 573426275.1 | D66: =+SUM('GEN-522 Gen_P'!B8:G8)*1000+SUM('GEN-522 Gen_FP'!B8:G8)*1000 -> 574126739.6
A67: 6 | B67: Precio promedio ponderado monómico de generación permitido (B/./kWh) = 1 / 5 | C67: =+IFERROR((C51-C70)/C66,0) -> 0 | D67: =+(D51-D70)/D66 -> 
A68: 7 | B68: Venta de energía a clientes y Consumo de Alumbrado Público (Viene del FORM AT801 y AT821 A) (kWh) | C68: =+SUM('Facturación-801 (energía)'!H111:M111)+SUM('Facturación-801 (energía)'!H457:M457)+SUM('Facturación-801 (energía)'!H545:M545) -> 504640467.2 | D68: =+SUM('Facturación-821 (energía)'!N111:S111)+SUM('Facturación-821 (energía)'!N495:S495)+SUM('Facturación-821 (energía)'!N588:S588) -> 480660314
A69: 8 | B69: Costo de generación permitido (B/.) = 6 X 7 | C69: =+C67*C68 -> 0 | D69: =+D67*D68 -> 
A70: 9 | B70: Total de costos de generación por restricciones (B/.) = 9.1 + 9.2 + 9.3 | C70: =+SUM(C71:C74) ->  | D70: =+SUM(D71:D74) -> 
A71: 9.1 | B71: Costos de compra de potencia que la ASEP determine relacionados con mitigación de riesgo de racionamiento (Viene del FORM AT502 y AT522) (B/.) | C71: =+SUM(#REF!) ->  | D71: =+SUM('[1]Extra p-2'!#REF!) -> 
A72: 9.2 | B72: Costos de autoabastecimiento autorizados por la ASEP (Viene del FORM AT502 y AT522) (B/.) | C72: =+SUM(#REF!) ->  | D72: =+SUM('[1]Extra p-2'!#REF!) -> 
A73: 9.3 | B73: POTENCIA DE GRANDES CLIENTES y Sobrecostos por Generación Obligada específicamente relacionada con mitigación de riesgo de racionamiento (Viene del FORM AT502 y AT522) (B/.) | C73: =+SUM(#REF!) ->  | D73: =+SUM('[1]Extra p-2'!#REF!) -> 
A74: 9.4 | B74: COSTO POTENCIA SOBRECONTRATADA y Porción del Mercado Ocasional causada por la compra de energía para suplir los contratos cancelados o suspendidos cuya terminación o suspensión haya sido autorizada por la ASEP (Viene del FORM AT502 y AT522) (B/.) | C74: =+SUM(#REF!)+SUM(#REF!) ->  | D74: =+SUM('[1]Extra p-2'!#REF!)+SUM('[1]Extra p-2'!#REF!) -> 
A75: 10 | B75: Venta de energía a clientes sin el Consumo de Alumbrado Público (Viene del FORM AT801 y AT821 A) (kWh) | C75: =+SUM('Facturación-801 (energía)'!H112:M112)+SUM('Facturación-801 (energía)'!H457:M457)+SUM('Facturación-801 (energía)'!H545:M545) -> 483730101.3 | D75: =+SUM('Facturación-821 (energía)'!N111:S111)-+SUM('Facturación-821 (energía)'!N109:S109)+SUM('Facturación-821 (energía)'!N495:S495)+SUM('Facturación-821 (energía)'!N588:S588) -> 461268596
A76: 11 | B76: Precio promedio ponderado monómico de generación por restricciones, GEGRT (B/./kWh) = 9 / 10 | C76: =+IFERROR(C70/C75,0) -> 0 | D76: =+D70/D75 -> 
A77: 12 | B77: Costo de generación por restricciones (B/.) = 11 X 10 | C77: =+C76*C75 -> 0 | D77: =+D76*D75 -> 
A78: 13 | B78: Total de Costos de Generación (B/.) = 1 + 12 | C78: =+C69+C77 -> 0 | D78: =+D69+D77 -> 
A79: 14 | B79: Relación existente entre la energía comprada en punta respecto de la total comprada en el semestre p-2 (Viene del FORM AT200)
A80: 15 | B80: Costo permitido de generación en horas de punta (B/.) = 13 X 14
B82: Detalle | D82: Valor
A83: 16 | B83: Valor TOTAL permitido a recuperar en la tarifa para cubrir los costos de generación en horas de Punta en el semestre p (B/.) (15) | D83: =+C78 -> 0
A84: 17 | B84: TOTAL Ingresos estimados que resultan de aplicar los cargos Base por generación que contienen las tarifas del semestre p-1 a la proyección de ventas del semestre p (Viene del FORM AT503) (B/.) | D84: =+SUM('GENERACION-503'!B124:G124,'GENERACION-503'!B211:G211,'GENERACION-503'!B331:G331,'GENERACION-503'!B364:G364,'GENERACION-503'!B397:G397,'GENERACION-503'!B422:G422) -> 34876232.56
A85: 18 | B85: Costo TOTAL permitido Real de generación calculado en base a los costos reales y a las ventas reales en el semestre p-2 (B/.) (15) | D85: =+D78 -> 
A86: 19 | B86: TOTAL Ingresos reales producidos por los cargos Base y las ventas reales del semestre p-2, incluyendo los ingresos producidos por los cargos por variación por combustible relacionados a los costos del semestre respectivo. (Viene del FORM AT506 + FORM AT506 CVC) (B/.) | D86: =+SUM('GENERACION-506'!B115:G115,'GENERACION-506'!B199:G199,'GENERACION-506'!B316:G316,'GENERACION-506'!B349:G349,'GENERACION-506'!B382:G382,'GENERACION-506'!B407:G407)+SUM('GENERACION-506 (CVC)'!B64:G64,'GENERACION-506 (CVC)'!B112:G112)+SUM('GENERACION-506 (cvc)a'!H64:M64,'GENERACION-506 (cvc)a'!H112:M112) -> 39201301.28
A87: 20 | B87: TOTAL Ingresos permitidos producidos por los cargos Correcc por generación y las ventas estimadas en el semestre p-2 (Viene del FORM AT507) (B/.) | D87: =+SUM('GENERACION-507'!B117:G117,'GENERACION-507'!B201:G201,'GENERACION-507'!B318:G318,,'GENERACION-507'!B351:G351,'GENERACION-507'!B384:G384,'GENERACION-507'!B409:G409) -> 4541999.627
A88: 21 | B88: TOTAL Ingresos reales producidos por los cargos Correcc por generación y las ventas reales en el semestre p-2 (Viene del FORM AT508) (B/.) | D88: =+SUM('GENERACION-508'!B109:G109,'GENERACION-508'!B193:G193,'GENERACION-508'!B309:G309,'GENERACION-508'!B342:G342,'GENERACION-508'!B375:G375,'GENERACION-508'!B400:G400) -> 4989243.277
A89: 22 | B89: Monto necesario para cubrir las diferencias entre los ingresos permitidos (producidos por los cargos Correcc y las ventas estimadas) y los ingresos reales (producidos por los cargos Correcc y las ventas reales) en el semestre p-2 (B/.) = 20 - 21 | D89: =+D88-D87 -> 447243.6501
A90: 23 | B90: Monto necesario para cubrir los apartamientos que se produjeron entre los costos de generación reales y los ingresos reales (producidos por los cargos Base y las ventas reales, incluyendo los ingresos por los cargos variación por combustible) y por las diferencias entre los ingresos permitidos (producidos por los cargos Correcc y las ventas estimadas) y los ingresos reales (producidos por los cargos Correcc y las ventas reales) en horas de Punta del semestre p-2 (B/.) = 18 - 19 + 22 | D90: =+D85-D86+D89 -> 
A91: 24 | B91: Tasa de interés (Viene del FORM AT700) | D91: =+'TASAS DE INTERES-700'!B20 -> 0.0747
A92: 25 | B92: Factor de la tasa de interés = (1 + 24) | D92: =+D91+1 -> 1.0747
A93: 26 | B93: Intereses generados dentro del semestre p-2 ocasionados por el desfase del costo permitido a recuperar en el ajuste mensual del cargo variable por combustible (Viene del FORM AT509) (B/.) | D93: =+'GENERACION-509'!B19 -> 2028539.405
A94: 27 | B94: Valor de los apartamientos actualizado con la tasa de descuento “r” (B/.) = ( 23 x 25 ) + 26 | D94: =+D90*D92+D93+D99 -> 
A95: 28 | B95: Factor de Actualización o corrección (Base) = (16 / 17) | D95: =+IFERROR(D83/D84,0) -> 0
A96: 29 | B96: Factor de Actualización o corrección (Correc) = (27 / 17) | D96: =+IFERROR(D94/D84,0) -> 0
C99: Saldo FET | D99: =+IF($B$2="EDEMET",0,0) -> 0

Sheet Ajuste Generación-500 (Extra) (hidden)

Sheet Ajuste Generación-500-GC (hidden)

Sheet Ajuste Generación-500 -En P (2)
B1: CALCULO DEL FACTOR DE ACTUALIZACION DE:
B2: =+[1]Fecha!$A$1 -> EDECHI
B3: FORMULAS
B4: Cargo por Potencia
B24: Detalle | C24: =+'Ajuste Generación-500 (2)'!D53 -> SEMESTRE p Jul-Dic/2026
A25: 1 | B25: Costo permitido Real de generación (asignados a energía) calculado en base a los costos reales y a las ventas reales en el semestre p-2 (Viene del MODELO AT500, punto 13) (B/.) | C25: =+'Ajuste Generación-500 (2)'!F79 -> 41600837.71
A26: 2 | B26: Ingresos reales producidos por los cargos Base por energía y las ventas reales del semestre p-2 (Viene del FORM AT506) (B/.) | C26: =+SUM('GENERACION-506'!B115:G115)+SUM('GENERACION-506'!B382:G382)+SUM('GENERACION-506'!B199:G199)+SUM('GENERACION-506'!B316:G316)+SUM('GENERACION-506'!B349:G349)+SUM('GENERACION-506'!B407:G407) -> 37296990.41
A27: 3 | B27: Monto necesario para cubrir las diferencias entre los ingresos permitidos (producidos por los cargos Correcc y las ventas estimadas) y los ingresos reales (producidos por los cargos Correcc y las ventas reales) en el semestre p-2 (Viene del MODELO AT500-En Punta, punto 23)(B/.) | C27: =+'Ajuste Generación-500 (2)'!F83 -> 447243.6501
A28: 4 | B28: Monto necesario para cubrir los apartamientos que se produjeron entre los costos de abastecimiento reales y los ingresos reales (producidos por los cargos Base y las ventas reales) y por las diferencias entre los ingresos permitidos (producidos por los cargos Correcc y las ventas estimadas) y los ingresos reales (producidos por los cargos Correcc y las ventas reales) en horas de Punta del semestre p-2 (B/.) = 1 - 2 + 3 | C28: =+C25-C26+C27 -> 4751090.953
A29: 5 | B29: Tasa de interés (Viene del FORM AT700) | C29: =+'TASAS DE INTERES-700'!B20 -> 0.0747
A30: 6 | B30: Factor de la tasa de interés = (1 + 5) | C30: =+C29+1 -> 1.0747
A31: 7 | B31: Valor de los apartamientos actualizado con la tasa de descuento “r” (B/.) = 4 x 6 | C31: =+C28*C30 -> 5105997.447

Sheet Ajuste Cons AlumPub-600
B1: CALCULO DEL FACTOR DE ACTUALIZACION DE:
B2: =+[1]Fecha!$A$1 -> EDECHI
C3: CARGO POR CONSUMO DEL ALUMBRADO PÚBLICO
B4: FORMULAS
B5: Cargo por Energía
B15: Detalle | C15: Variable | D15: =+'Ajuste Generación-500 (2)'!D53 -> SEMESTRE p Jul-Dic/2026
A16: 1 | B16: Factor de Actualización o corrección (Viene del MODELO AT500, punto 22) | D16: =+'Ajuste Generación-500 (2)'!F89 -> 1.018189028
A17: 2 | B17: Factor de Actualización o corrección (Viene del MODELO AT500, punto 23) | D17: =+'Ajuste Generación-500 (2)'!F90 -> 0.1458865705

Sheet RES DE ACT TARIFARIA-1000
A1: =+"TARIFAS: "&[1]Fecha!$A$1 -> TARIFAS: EDECHI
A2: CARGOS | B2: Unidad | C2: Factor de Ajuste | E2: =+[1]Fecha!CZ4 -> Jul-Dic/2025 | I2: Factor de Ajuste | K2: =+[1]Fecha!DF4 -> Ene-Jun/2026 | O2: Factor de Ajuste | Q2: =+[1]Fecha!DL4 -> Jul-Dic/2026
C3: BASE | D3: Correcc | E3: Cargo Tarifario Actualizado | F3: BASE | G3: Correcc | I3: BASE | J3: Correcc | K3: Cargo Tarifario Actualizado | L3: BASE | M3: Correcc | O3: BASE | P3: Correcc | Q3: Cargo Tarifario Actualizado | R3: BASE | S3: Correcc
A4: Pérdidas de Energía en Distribución | C4: MODELO AT202 | I4: MODELO AT202 | O4: MODELO AT202
A5: CPERDEP | B5: B/./kW | C5: # 20 | D5: # 21 | I5: # 20 | J5: # 21 | O5: # 20 | P5: # 21
A6: BTH | C6: =+[1]Abastecimiento!AH6 -> 0.972585714 | D6: =+[1]Abastecimiento!AI6 -> 0.09825295107 | E6: =+[1]Abastecimiento!AJ6 -> 0.00849 | F6: =+[1]Abastecimiento!AK6 -> 0.00771 | G6: =+[1]Abastecimiento!AL6 -> 0.0007791459019 | I6: =+[1]Abastecimiento!AN6 -> 0.9688716874 | J6: =+[1]Abastecimiento!AO6 -> 0.08961220389 | K6: =+[1]Abastecimiento!AP6 -> 0.00816 | L6: =+[1]Abastecimiento!AQ6 -> 0.00747 | M6: =+[1]Abastecimiento!AR6 -> 0.000690910092 | P6: =+'AjustePérd de Dist-200'!D$66 -> 0.1418921265 | Q6: =+ROUND(R6+S6,5) -> 0.01179 | R6: =+[1]Abastecimiento!AW6 -> 0.01032122583 | S6: =+R6*P6 -> 0.001464500682
C7: =+[1]Abastecimiento!AH7 -> 0.972585714 | D7: =+[1]Abastecimiento!AI7 -> 0.09825295107 | E7: =+[1]Abastecimiento!AJ7 -> 0.13 | F7: =+[1]Abastecimiento!AK7 -> 0.12 | G7: =+[1]Abastecimiento!AL7 -> 0.01179035413 | I7: =+[1]Abastecimiento!AN7 -> 0.9688716874 | J7: =+[1]Abastecimiento!AO7 -> 0.08961220389 | K7: =+[1]Abastecimiento!AP7 -> 0.13 | L7: =+[1]Abastecimiento!AQ7 -> 0.12 | M7: =+[1]Abastecimiento!AR7 -> 0.01075346447 | P7: =+'AjustePérd de Dist-200'!D$66 -> 0.1418921265 | Q7: =+ROUND(R7+S7,2) -> 0.07 | R7: =+[1]Abastecimiento!AW7 -> 0.05867481127 | S7: 0.008325493744
A8: MTH | C8: =+[1]Abastecimiento!AH8 -> 0.972585714 | D8: =+[1]Abastecimiento!AI8 -> 0.09825295107 | E8: =+[1]Abastecimiento!AJ8 -> 0.00917 | F8: =+[1]Abastecimiento!AK8 -> 0.00833 | G8: =+[1]Abastecimiento!AL8 -> 0.0008410452611 | I8: =+[1]Abastecimiento!AN8 -> 0.9688716874 | J8: =+[1]Abastecimiento!AO8 -> 0.08961220389 | K8: =+[1]Abastecimiento!AP8 -> 0.00882 | L8: =+[1]Abastecimiento!AQ8 -> 0.00807 | M8: =+[1]Abastecimiento!AR8 -> 0.0007464696584 | P8: =+'AjustePérd de Dist-200'!D$66 -> 0.1418921265 | Q8: =+ROUND(R8+S8,5) -> 0.01095 | R8: =+[1]Abastecimiento!AW8 -> 0.009591542918 | S8: 0.001360964421
C9: =+[1]Abastecimiento!AH9 -> 0.972585714 | D9: =+[1]Abastecimiento!AI9 -> 0.09825295107 | E9: =+[1]Abastecimiento!AJ9 -> 0.2 | F9: =+[1]Abastecimiento!AK9 -> 0.18 | G9: =+[1]Abastecimiento!AL9 -> 0.01768553119 | I9: =+[1]Abastecimiento!AN9 -> 0.9688716874 | J9: =+[1]Abastecimiento!AO9 -> 0.08961220389 | K9: =+[1]Abastecimiento!AP9 -> 0.19 | L9: =+[1]Abastecimiento!AQ9 -> 0.17 | M9: =+[1]Abastecimiento!AR9 -> 0.0161301967 | P9: =+'AjustePérd de Dist-200'!D$66 -> 0.1418921265 | Q9: =+ROUND(R9+S9,2) -> 0.25 | R9: =+[1]Abastecimiento!AW9 -> 0.2201547025 | S9: 0.0312382189
A10: ATH | C10: =+[1]Abastecimiento!AH10 -> 0.972585714 | D10: =+[1]Abastecimiento!AI10 -> 0.09825295107 | E10: =+[1]Abastecimiento!AJ10 -> 0.00907 | F10: =+[1]Abastecimiento!AK10 -> 0.00824 | G10: =+[1]Abastecimiento!AL10 -> 0.0008322024955 | I10: =+[1]Abastecimiento!AN10 -> 0.9688716874 | J10: =+[1]Abastecimiento!AO10 -> 0.08961220389 | K10: =+[1]Abastecimiento!AP10 -> 0.00872 | L10: =+[1]Abastecimiento!AQ10 -> 0.00798 | M10: =+[1]Abastecimiento!AR10 -> 0.0007384045601 | P10: =+'AjustePérd de Dist-200'!D$66 -> 0.1418921265 | Q10: =+ROUND(R10+S10,5) -> 0.01076 | R10: =+[1]Abastecimiento!AW10 -> 0.009426371119 | S10: 0.001337527844
C11: =+[1]Abastecimiento!AH11 -> 0.972585714 | D11: =+[1]Abastecimiento!AI11 -> 0.09825295107 | E11: =+[1]Abastecimiento!AJ11 -> 0.19 | F11: =+[1]Abastecimiento!AK11 -> 0.17 | G11: =+[1]Abastecimiento!AL11 -> 0.01670300168 | I11: =+[1]Abastecimiento!AN11 -> 0.9688716874 | J11: =+[1]Abastecimiento!AO11 -> 0.08961220389 | K11: =+[1]Abastecimiento!AP11 -> 0.18 | L11: =+[1]Abastecimiento!AQ11 -> 0.16 | M11: =+[1]Abastecimiento!AR11 -> 0.01523407466 | P11: =+'AjustePérd de Dist-200'!D$66 -> 0.1418921265 | Q11: =+ROUND(R11+S11,2) -> 0.26 | R11: =+[1]Abastecimiento!AW11 -> 0.2240793077 | S11: 0.03179508949
A12: CPERDEFP | B12: B/./kW | C12: =+[1]Abastecimiento!AH12 -> # 22 | D12: =+[1]Abastecimiento!AI12 -> # 23 | E12: =+[1]Abastecimiento!AJ12 -> 0 | F12: =+[1]Abastecimiento!AK12 -> 0 | G12: =+[1]Abastecimiento!AL12 -> 0 | I12: =+[1]Abastecimiento!AN12 -> # 22 | J12: =+[1]Abastecimiento!AO12 -> # 23 | K12: =+[1]Abastecimiento!AP12 -> 0 | L12: =+[1]Abastecimiento!AQ12 -> 0 | M12: =+[1]Abastecimiento!AR12 -> 0 | P12: # 23
A13: BTH | C13: =+[1]Abastecimiento!AH13 -> 0.972585714 | D13: =+[1]Abastecimiento!AI13 -> 0.09825295107 | E13: =+[1]Abastecimiento!AJ13 -> 0.00642 | F13: =+[1]Abastecimiento!AK13 -> 0.00583 | G13: =+[1]Abastecimiento!AL13 -> 0.0005885351769 | I13: =+[1]Abastecimiento!AN13 -> 0.9688716874 | J13: =+[1]Abastecimiento!AO13 -> 0.08961220389 | K13: =+[1]Abastecimiento!AP13 -> 0.00617 | L13: =+[1]Abastecimiento!AQ13 -> 0.00565 | M13: =+[1]Abastecimiento!AR13 -> 0.0005224391487 | P13: =+'AjustePérd de Dist-200'!D$66 -> 0.1418921265 | Q13: =+ROUND(R13+S13,5) -> 0.00891 | R13: =+[1]Abastecimiento!AW13 -> 0.007806549661 | S13: =+R13*P13 -> 0.001107687932
C14: =+[1]Abastecimiento!AH14 -> 0.972585714 | D14: =+[1]Abastecimiento!AI14 -> 0.09825295107 | E14: =+[1]Abastecimiento!AJ14 -> 0.13 | F14: =+[1]Abastecimiento!AK14 -> 0.12 | G14: =+[1]Abastecimiento!AL14 -> 0.01179035413 | I14: =+[1]Abastecimiento!AN14 -> 0.9688716874 | J14: =+[1]Abastecimiento!AO14 -> 0.08961220389 | K14: =+[1]Abastecimiento!AP14 -> 0.13 | L14: =+[1]Abastecimiento!AQ14 -> 0.12 | M14: =+[1]Abastecimiento!AR14 -> 0.01075346447 | P14: =+'AjustePérd de Dist-200'!D$66 -> 0.1418921265 | Q14: =+ROUND(R14+S14,2) -> 0.06 | R14: =+[1]Abastecimiento!AW14 -> 0.05416136424 | S14: 0.007685071149
A15: MTH | C15: =+[1]Abastecimiento!AH15 -> 0.972585714 | D15: =+[1]Abastecimiento!AI15 -> 0.09825295107 | E15: =+[1]Abastecimiento!AJ15 -> 0.00685 | F15: =+[1]Abastecimiento!AK15 -> 0.00622 | G15: =+[1]Abastecimiento!AL15 -> 0.0006288188868 | I15: =+[1]Abastecimiento!AN15 -> 0.9688716874 | J15: =+[1]Abastecimiento!AO15 -> 0.08961220389 | K15: =+[1]Abastecimiento!AP15 -> 0.00659 | L15: =+[1]Abastecimiento!AQ15 -> 0.00603 | M15: =+[1]Abastecimiento!AR15 -> 0.0005573879082 | P15: =+'AjustePérd de Dist-200'!D$66 -> 0.1418921265 | Q15: =+ROUND(R15+S15,5) -> 0.00818 | R15: =+[1]Abastecimiento!AW15 -> 0.007166914968 | S15: 0.001016928806
C16: =+[1]Abastecimiento!AH16 -> 0.972585714 | D16: =+[1]Abastecimiento!AI16 -> 0.09825295107 | E16: =+[1]Abastecimiento!AJ16 -> 0.13 | F16: =+[1]Abastecimiento!AK16 -> 0.12 | G16: =+[1]Abastecimiento!AL16 -> 0.01179035413 | I16: =+[1]Abastecimiento!AN16 -> 0.9688716874 | J16: =+[1]Abastecimiento!AO16 -> 0.08961220389 | K16: =+[1]Abastecimiento!AP16 -> 0.13 | L16: =+[1]Abastecimiento!AQ16 -> 0.12 | M16: =+[1]Abastecimiento!AR16 -> 0.01075346447 | P16: =+'AjustePérd de Dist-200'!D$66 -> 0.1418921265 | Q16: =+ROUND(R16+S16,2) -> 0.16 | R16: =+[1]Abastecimiento!AW16 -> 0.1390450753 | S16: 0.01972940141
A17: ATH | C17: =+[1]Abastecimiento!AH17 -> 0.972585714 | D17: =+[1]Abastecimiento!AI17 -> 0.09825295107 | E17: =+[1]Abastecimiento!AJ17 -> 0.00646 | F17: =+[1]Abastecimiento!AK17 -> 0.00587 | G17: =+[1]Abastecimiento!AL17 -> 0.0005934478244 | I17: =+[1]Abastecimiento!AN17 -> 0.9688716874 | J17: =+[1]Abastecimiento!AO17 -> 0.08961220389 | K17: =+[1]Abastecimiento!AP17 -> 0.00622 | L17: =+[1]Abastecimiento!AQ17 -> 0.00569 | M17: =+[1]Abastecimiento!AR17 -> 0.0005260236368 | P17: =+'AjustePérd de Dist-200'!D$66 -> 0.1418921265 | Q17: =+ROUND(R17+S17,5) -> 0.00768 | R17: =+[1]Abastecimiento!AW17 -> 0.006721309733 | S17: 0.000953700931
C18: =+[1]Abastecimiento!AH18 -> 0.972585714 | D18: =+[1]Abastecimiento!AI18 -> 0.09825295107 | E18: =+[1]Abastecimiento!AJ18 -> 0.01 | F18: =+[1]Abastecimiento!AK18 -> 0.01 | G18: =+[1]Abastecimiento!AL18 -> 0.0009825295107 | I18: =+[1]Abastecimiento!AN18 -> 0.9688716874 | J18: =+[1]Abastecimiento!AO18 -> 0.08961220389 | K18: =+[1]Abastecimiento!AP18 -> 0.01 | L18: =+[1]Abastecimiento!AQ18 -> 0.01 | M18: =+[1]Abastecimiento!AR18 -> 0.0008961220389 | P18: =+'AjustePérd de Dist-200'!D$66 -> 0.1418921265 | Q18: =+ROUND(R18+S18,2) -> 0.01 | R18: =+[1]Abastecimiento!AW18 -> 0.01244885043 | S18: 0.00176639386
A19: CPERDE FP BAJO | C19: =+[1]Abastecimiento!AH19 -> 0 | D19: =+[1]Abastecimiento!AI19 -> 0 | E19: =+[1]Abastecimiento!AJ19 -> 0 | F19: =+[1]Abastecimiento!AK19 -> 0 | G19: =+[1]Abastecimiento!AL19 -> 0 | I19: =+[1]Abastecimiento!AN19 -> 0 | J19: =+[1]Abastecimiento!AO19 -> 0 | K19: =+[1]Abastecimiento!AP19 -> 0 | L19: =+[1]Abastecimiento!AQ19 -> 0 | M19: =+[1]Abastecimiento!AR19 -> 0
A20: BTH | C20: =+[1]Abastecimiento!AH20 -> 0.972585714 | D20: =+[1]Abastecimiento!AI20 -> 0.09825295107 | E20: =+[1]Abastecimiento!AJ20 -> 0.00642 | F20: =+[1]Abastecimiento!AK20 -> 0.00583 | G20: =+[1]Abastecimiento!AL20 -> 0.0005885351769 | I20: =+[1]Abastecimiento!AN20 -> 0.9688716874 | J20: =+[1]Abastecimiento!AO20 -> 0.08961220389 | K20: =+[1]Abastecimiento!AP20 -> 0.00617 | L20: =+[1]Abastecimiento!AQ20 -> 0.00565 | M20: =+[1]Abastecimiento!AR20 -> 0.0005224391487 | P20: =+'AjustePérd de Dist-200'!D$66 -> 0.1418921265 | Q20: =+ROUND(R20+S20,5) -> 0.00891 | R20: =+[1]Abastecimiento!AW20 -> 0.007806549661 | S20: =+R20*P20 -> 0.001107687932
A21: BTH | C21: =+[1]Abastecimiento!AH21 -> 0.972585714 | D21: =+[1]Abastecimiento!AI21 -> 0.09825295107 | E21: =+[1]Abastecimiento!AJ21 -> 0.13 | F21: =+[1]Abastecimiento!AK21 -> 0.12 | G21: =+[1]Abastecimiento!AL21 -> 0.01179035413 | I21: =+[1]Abastecimiento!AN21 -> 0.9688716874 | J21: =+[1]Abastecimiento!AO21 -> 0.08961220389 | K21: =+[1]Abastecimiento!AP21 -> 0.13 | L21: =+[1]Abastecimiento!AQ21 -> 0.12 | M21: =+[1]Abastecimiento!AR21 -> 0.01075346447 | P21: =+'AjustePérd de Dist-200'!D$66 -> 0.1418921265 | Q21: =+ROUND(R21+S21,2) -> 0.06 | R21: =+[1]Abastecimiento!AW21 -> 0.05416136424 | S21: 0.007685071149
A22: MTH | C22: =+[1]Abastecimiento!AH22 -> 0.972585714 | D22: =+[1]Abastecimiento!AI22 -> 0.09825295107 | E22: =+[1]Abastecimiento!AJ22 -> 0.00685 | F22: =+[1]Abastecimiento!AK22 -> 0.00622 | G22: =+[1]Abastecimiento!AL22 -> 0.0006288188868 | I22: =+[1]Abastecimiento!AN22 -> 0.9688716874 | J22: =+[1]Abastecimiento!AO22 -> 0.08961220389 | K22: =+[1]Abastecimiento!AP22 -> 0.00659 | L22: =+[1]Abastecimiento!AQ22 -> 0.00603 | M22: =+[1]Abastecimiento!AR22 -> 0.0005573879082 | P22: =+'AjustePérd de Dist-200'!D$66 -> 0.1418921265 | Q22: =+ROUND(R22+S22,5) -> 0.00818 | R22: =+[1]Abastecimiento!AW22 -> 0.007166914968 | S22: 0.001016928806
A23: MTH | C23: =+[1]Abastecimiento!AH23 -> 0.972585714 | D23: =+[1]Abastecimiento!AI23 -> 0.09825295107 | E23: =+[1]Abastecimiento!AJ23 -> 0.13 | F23: =+[1]Abastecimiento!AK23 -> 0.12 | G23: =+[1]Abastecimiento!AL23 -> 0.01179035413 | I23: =+[1]Abastecimiento!AN23 -> 0.9688716874 | J23: =+[1]Abastecimiento!AO23 -> 0.08961220389 | K23: =+[1]Abastecimiento!AP23 -> 0.13 | L23: =+[1]Abastecimiento!AQ23 -> 0.12 | M23: =+[1]Abastecimiento!AR23 -> 0.01075346447 | P23: =+'AjustePérd de Dist-200'!D$66 -> 0.1418921265 | Q23: =+ROUND(R23+S23,2) -> 0.16 | R23: =+[1]Abastecimiento!AW23 -> 0.1390450753 | S23: 0.01972940141
A24: ATH | C24: =+[1]Abastecimiento!AH24 -> 0.972585714 | D24: =+[1]Abastecimiento!AI24 -> 0.09825295107 | E24: =+[1]Abastecimiento!AJ24 -> 0.00646 | F24: =+[1]Abastecimiento!AK24 -> 0.00587 | G24: =+[1]Abastecimiento!AL24 -> 0.0005934478244 | I24: =+[1]Abastecimiento!AN24 -> 0.9688716874 | J24: =+[1]Abastecimiento!AO24 -> 0.08961220389 | K24: =+[1]Abastecimiento!AP24 -> 0.00622 | L24: =+[1]Abastecimiento!AQ24 -> 0.00569 | M24: =+[1]Abastecimiento!AR24 -> 0.0005260236368 | P24: =+'AjustePérd de Dist-200'!D$66 -> 0.1418921265 | Q24: =+ROUND(R24+S24,5) -> 0.00768 | R24: =+[1]Abastecimiento!AW24 -> 0.006721309733 | S24: 0.000953700931
A25: ATH | C25: =+[1]Abastecimiento!AH25 -> 0.972585714 | D25: =+[1]Abastecimiento!AI25 -> 0.09825295107 | E25: =+[1]Abastecimiento!AJ25 -> 0.01 | F25: =+[1]Abastecimiento!AK25 -> 0.01 | G25: =+[1]Abastecimiento!AL25 -> 0.0009825295107 | I25: =+[1]Abastecimiento!AN25 -> 0.9688716874 | J25: =+[1]Abastecimiento!AO25 -> 0.08961220389 | K25: =+[1]Abastecimiento!AP25 -> 0.01 | L25: =+[1]Abastecimiento!AQ25 -> 0.01 | M25: =+[1]Abastecimiento!AR25 -> 0.0008961220389 | P25: =+'AjustePérd de Dist-200'!D$66 -> 0.1418921265 | Q25: =+ROUND(R25+S25,2) -> 0.01 | R25: =+[1]Abastecimiento!AW25 -> 0.01244885043 | S25: 0.00176639386
A26: CPERDESM | B26: B/./kWh o B/./kW | C26: =+[1]Abastecimiento!AH26 -> # 26 | D26: =+[1]Abastecimiento!AI26 -> # 27 | E26: =+[1]Abastecimiento!AJ26 -> 0 | F26: =+[1]Abastecimiento!AK26 -> 0 | G26: =+[1]Abastecimiento!AL26 -> 0 | I26: =+[1]Abastecimiento!AN26 -> # 26 | J26: =+[1]Abastecimiento!AO26 -> # 27 | K26: =+[1]Abastecimiento!AP26 -> 0 | L26: =+[1]Abastecimiento!AQ26 -> 0 | M26: =+[1]Abastecimiento!AR26 -> 0 | P26: # 27
A27: BTS (0-300) | C27: =+[1]Abastecimiento!AH27 -> 0.972585714 | D27: =+[1]Abastecimiento!AI27 -> 0.09825295107 | E27: =+[1]Abastecimiento!AJ27 -> 0.00806 | F27: =+[1]Abastecimiento!AK27 -> 0.00732 | G27: =+[1]Abastecimiento!AL27 -> 0.0007398447215 | I27: =+[1]Abastecimiento!AN27 -> 0.9688716874 | J27: =+[1]Abastecimiento!AO27 -> 0.08961220389 | K27: =+[1]Abastecimiento!AP27 -> 0.00775 | L27: =+[1]Abastecimiento!AQ27 -> 0.00709 | M27: =+[1]Abastecimiento!AR27 -> 0.0006559613325 | P27: =+'AjustePérd de Dist-200'!D$66 -> 0.1418921265 | Q27: =+ROUND(R27+S27,5) -> 0.0095 | R27: =+[1]Abastecimiento!AW27 -> 0.008323702857 | S27: =+R27*P27 -> 0.001181067899
A28: BTS (301-750) | C28: =+[1]Abastecimiento!AH28 -> 0.972585714 | D28: =+[1]Abastecimiento!AI28 -> 0.09825295107 | E28: =+[1]Abastecimiento!AJ28 -> 0.00806 | F28: =+[1]Abastecimiento!AK28 -> 0.00732 | G28: =+[1]Abastecimiento!AL28 -> 0.0007398447215 | I28: =+[1]Abastecimiento!AN28 -> 0.9688716874 | J28: =+[1]Abastecimiento!AO28 -> 0.08961220389 | K28: =+[1]Abastecimiento!AP28 -> 0.00775 | L28: =+[1]Abastecimiento!AQ28 -> 0.00709 | M28: =+[1]Abastecimiento!AR28 -> 0.0006559613325 | P28: =+'AjustePérd de Dist-200'!D$66 -> 0.1418921265 | Q28: 0.0095 | R28: =+[1]Abastecimiento!AW28 -> 0.008323702857 | S28: 0.001181067899
A29: BTS (750-más) | C29: =+[1]Abastecimiento!AH29 -> 0.972585714 | D29: =+[1]Abastecimiento!AI29 -> 0.09825295107 | E29: =+[1]Abastecimiento!AJ29 -> 0.00806 | F29: =+[1]Abastecimiento!AK29 -> 0.00732 | G29: =+[1]Abastecimiento!AL29 -> 0.0007398447215 | I29: =+[1]Abastecimiento!AN29 -> 0.9688716874 | J29: =+[1]Abastecimiento!AO29 -> 0.08961220389 | K29: =+[1]Abastecimiento!AP29 -> 0.00775 | L29: =+[1]Abastecimiento!AQ29 -> 0.00709 | M29: =+[1]Abastecimiento!AR29 -> 0.0006559613325 | P29: =+'AjustePérd de Dist-200'!D$66 -> 0.1418921265 | Q29: 0.0095 | R29: =+[1]Abastecimiento!AW29 -> 0.008323702857 | S29: 0.001181067899
A30: BTD (0-10,000) | C30: =+[1]Abastecimiento!AH30 -> 0.972585714 | D30: =+[1]Abastecimiento!AI30 -> 0.09825295107 | E30: =+[1]Abastecimiento!AJ30 -> 0.00691 | F30: =+[1]Abastecimiento!AK30 -> 0.00628 | G30: =+[1]Abastecimiento!AL30 -> 0.0006347140639 | I30: =+[1]Abastecimiento!AN30 -> 0.9688716874 | J30: =+[1]Abastecimiento!AO30 -> 0.08961220389 | K30: =+[1]Abastecimiento!AP30 -> 0.00664 | L30: =+[1]Abastecimiento!AQ30 -> 0.00608 | M30: =+[1]Abastecimiento!AR30 -> 0.0005627646404 | P30: =+'AjustePérd de Dist-200'!D$66 -> 0.1418921265 | Q30: 0.00825 | R30: =+[1]Abastecimiento!AW30 -> 0.007222457229 | S30: 0.001024809815
C31: =+[1]Abastecimiento!AH31 -> 0.972585714 | D31: =+[1]Abastecimiento!AI31 -> 0.09825295107 | E31: =+[1]Abastecimiento!AJ31 -> 0.16 | F31: =+[1]Abastecimiento!AK31 -> 0.15 | G31: =+[1]Abastecimiento!AL31 -> 0.01473794266 | I31: =+[1]Abastecimiento!AN31 -> 0.9688716874 | J31: =+[1]Abastecimiento!AO31 -> 0.08961220389 | K31: =+[1]Abastecimiento!AP31 -> 0.16 | L31: =+[1]Abastecimiento!AQ31 -> 0.15 | M31: =+[1]Abastecimiento!AR31 -> 0.01344183058 | P31: =+'AjustePérd de Dist-200'!D$66 -> 0.1418921265 | Q31: =+ROUND(R31+S31,2) -> 0.21 | R31: =+[1]Abastecimiento!AW31 -> 0.1865182272 | S31: 0.0264654679
A32: BTD (10,001-30,000) | C32: =+[1]Abastecimiento!AH32 -> 0.972585714 | D32: =+[1]Abastecimiento!AI32 -> 0.09825295107 | E32: =+[1]Abastecimiento!AJ32 -> 0.00691 | F32: =+[1]Abastecimiento!AK32 -> 0.00628 | G32: =+[1]Abastecimiento!AL32 -> 0.0006347140639 | I32: =+[1]Abastecimiento!AN32 -> 0.9688716874 | J32: =+[1]Abastecimiento!AO32 -> 0.08961220389 | K32: =+[1]Abastecimiento!AP32 -> 0.00664 | L32: =+[1]Abastecimiento!AQ32 -> 0.00608 | M32: =+[1]Abastecimiento!AR32 -> 0.0005627646404 | P32: =+'AjustePérd de Dist-200'!D$66 -> 0.1418921265 | Q32: =+ROUND(R32+S32,5) -> 0.00825 | R32: =+[1]Abastecimiento!AW32 -> 0.007222457229 | S32: 0.001024809815
C33: =+[1]Abastecimiento!AH33 -> 0.972585714 | D33: =+[1]Abastecimiento!AI33 -> 0.09825295107 | E33: =+[1]Abastecimiento!AJ33 -> 0.16 | F33: =+[1]Abastecimiento!AK33 -> 0.15 | G33: =+[1]Abastecimiento!AL33 -> 0.01473794266 | I33: =+[1]Abastecimiento!AN33 -> 0.9688716874 | J33: =+[1]Abastecimiento!AO33 -> 0.08961220389 | K33: =+[1]Abastecimiento!AP33 -> 0.16 | L33: =+[1]Abastecimiento!AQ33 -> 0.15 | M33: =+[1]Abastecimiento!AR33 -> 0.01344183058 | P33: =+'AjustePérd de Dist-200'!D$66 -> 0.1418921265 | Q33: =+ROUND(R33+S33,2) -> 0.21 | R33: =+[1]Abastecimiento!AW33 -> 0.1865182272 | S33: 0.0264654679
A34: BTD (30,001-50,000) | C34: =+[1]Abastecimiento!AH34 -> 0.972585714 | D34: =+[1]Abastecimiento!AI34 -> 0.09825295107 | E34: =+[1]Abastecimiento!AJ34 -> 0.00691 | F34: =+[1]Abastecimiento!AK34 -> 0.00628 | G34: =+[1]Abastecimiento!AL34 -> 0.0006347140639 | I34: =+[1]Abastecimiento!AN34 -> 0.9688716874 | J34: =+[1]Abastecimiento!AO34 -> 0.08961220389 | K34: =+[1]Abastecimiento!AP34 -> 0.00664 | L34: =+[1]Abastecimiento!AQ34 -> 0.00608 | M34: =+[1]Abastecimiento!AR34 -> 0.0005627646404 | P34: =+'AjustePérd de Dist-200'!D$66 -> 0.1418921265 | Q34: =+ROUND(R34+S34,5) -> 0.00825 | R34: =+[1]Abastecimiento!AW34 -> 0.007222457229 | S34: 0.001024809815
C35: =+[1]Abastecimiento!AH35 -> 0.972585714 | D35: =+[1]Abastecimiento!AI35 -> 0.09825295107 | E35: =+[1]Abastecimiento!AJ35 -> 0.16 | F35: =+[1]Abastecimiento!AK35 -> 0.15 | G35: =+[1]Abastecimiento!AL35 -> 0.01473794266 | I35: =+[1]Abastecimiento!AN35 -> 0.9688716874 | J35: =+[1]Abastecimiento!AO35 -> 0.08961220389 | K35: =+[1]Abastecimiento!AP35 -> 0.16 | L35: =+[1]Abastecimiento!AQ35 -> 0.15 | M35: =+[1]Abastecimiento!AR35 -> 0.01344183058 | P35: =+'AjustePérd de Dist-200'!D$66 -> 0.1418921265 | Q35: =+ROUND(R35+S35,2) -> 0.21 | R35: =+[1]Abastecimiento!AW35 -> 0.1865182272 | S35: 0.0264654679
A36: BTD (50,001-más) | C36: =+[1]Abastecimiento!AH36 -> 0.972585714 | D36: =+[1]Abastecimiento!AI36 -> 0.09825295107 | E36: =+[1]Abastecimiento!AJ36 -> 0.00691 | F36: =+[1]Abastecimiento!AK36 -> 0.00628 | G36: =+[1]Abastecimiento!AL36 -> 0.0006347140639 | I36: =+[1]Abastecimiento!AN36 -> 0.9688716874 | J36: =+[1]Abastecimiento!AO36 -> 0.08961220389 | K36: =+[1]Abastecimiento!AP36 -> 0.00664 | L36: =+[1]Abastecimiento!AQ36 -> 0.00608 | M36: =+[1]Abastecimiento!AR36 -> 0.0005627646404 | P36: =+'AjustePérd de Dist-200'!D$66 -> 0.1418921265 | Q36: =+ROUND(R36+S36,5) -> 0.00825 | R36: =+[1]Abastecimiento!AW36 -> 0.007222457229 | S36: 0.001024809815
C37: =+[1]Abastecimiento!AH37 -> 0.972585714 | D37: =+[1]Abastecimiento!AI37 -> 0.09825295107 | E37: =+[1]Abastecimiento!AJ37 -> 0.16 | F37: =+[1]Abastecimiento!AK37 -> 0.15 | G37: =+[1]Abastecimiento!AL37 -> 0.01473794266 | I37: =+[1]Abastecimiento!AN37 -> 0.9688716874 | J37: =+[1]Abastecimiento!AO37 -> 0.08961220389 | K37: =+[1]Abastecimiento!AP37 -> 0.16 | L37: =+[1]Abastecimiento!AQ37 -> 0.15 | M37: =+[1]Abastecimiento!AR37 -> 0.01344183058 | P37: =+'AjustePérd de Dist-200'!D$66 -> 0.1418921265 | Q37: =+ROUND(R37+S37,2) -> 0.21 | R37: =+[1]Abastecimiento!AW37 -> 0.1865182272 | S37: 0.0264654679
A38: MTD (0-10,000) | C38: =+[1]Abastecimiento!AH38 -> 0.972585714 | D38: =+[1]Abastecimiento!AI38 -> 0.09825295107 | E38: =+[1]Abastecimiento!AJ38 -> 0.0069 | F38: =+[1]Abastecimiento!AK38 -> 0.00627 | G38: =+[1]Abastecimiento!AL38 -> 0.0006337315344 | I38: =+[1]Abastecimiento!AN38 -> 0.9688716874 | J38: =+[1]Abastecimiento!AO38 -> 0.08961220389 | K38: =+[1]Abastecimiento!AP38 -> 0.00663 | L38: =+[1]Abastecimiento!AQ38 -> 0.00607 | M38: =+[1]Abastecimiento!AR38 -> 0.0005618685184 | P38: =+'AjustePérd de Dist-200'!D$66 -> 0.1418921265 | Q38: =+ROUND(R38+S38,5) -> 0.00821 | R38: =+[1]Abastecimiento!AW38 -> 0.00719171911 | S38: 0.001020448318
C39: =+[1]Abastecimiento!AH39 -> 0.972585714 | D39: =+[1]Abastecimiento!AI39 -> 0.09825295107 | E39: =+[1]Abastecimiento!AJ39 -> 0.2 | F39: =+[1]Abastecimiento!AK39 -> 0.18 | G39: =+[1]Abastecimiento!AL39 -> 0.0186680607 | I39: =+[1]Abastecimiento!AN39 -> 0.9688716874 | J39: =+[1]Abastecimiento!AO39 -> 0.08961220389 | K39: =+[1]Abastecimiento!AP39 -> 0.19 | L39: =+[1]Abastecimiento!AQ39 -> 0.17 | M39: =+[1]Abastecimiento!AR39 -> 0.0161301967 | P39: =+'AjustePérd de Dist-200'!D$66 -> 0.1418921265 | Q39: =+ROUND(R39+S39,2) -> 0.26 | R39: =+[1]Abastecimiento!AW39 -> 0.2282451088 | S39: 0.03238618385
A40: MTD (10,001-30,000) | C40: =+[1]Abastecimiento!AH40 -> 0.972585714 | D40: =+[1]Abastecimiento!AI40 -> 0.09825295107 | E40: =+[1]Abastecimiento!AJ40 -> 0.0069 | F40: =+[1]Abastecimiento!AK40 -> 0.00627 | G40: =+[1]Abastecimiento!AL40 -> 0.0006337315344 | I40: =+[1]Abastecimiento!AN40 -> 0.9688716874 | J40: =+[1]Abastecimiento!AO40 -> 0.08961220389 | K40: =+[1]Abastecimiento!AP40 -> 0.00663 | L40: =+[1]Abastecimiento!AQ40 -> 0.00607 | M40: =+[1]Abastecimiento!AR40 -> 0.0005618685184 | P40: =+'AjustePérd de Dist-200'!D$66 -> 0.1418921265 | Q40: =+ROUND(R40+S40,5) -> 0.00821 | R40: =+[1]Abastecimiento!AW40 -> 0.00719171911 | S40: 0.001020448318
C41: =+[1]Abastecimiento!AH41 -> 0.972585714 | D41: =+[1]Abastecimiento!AI41 -> 0.09825295107 | E41: =+[1]Abastecimiento!AJ41 -> 0.2 | F41: =+[1]Abastecimiento!AK41 -> 0.18 | G41: =+[1]Abastecimiento!AL41 -> 0.0186680607 | I41: =+[1]Abastecimiento!AN41 -> 0.9688716874 | J41: =+[1]Abastecimiento!AO41 -> 0.08961220389 | K41: =+[1]Abastecimiento!AP41 -> 0.19 | L41: =+[1]Abastecimiento!AQ41 -> 0.17 | M41: =+[1]Abastecimiento!AR41 -> 0.0161301967 | P41: =+'AjustePérd de Dist-200'!D$66 -> 0.1418921265 | Q41: =+ROUND(R41+S41,2) -> 0.26 | R41: =+[1]Abastecimiento!AW41 -> 0.2282451088 | S41: 0.03238618385
A42: MTD (30,001-50,000) | C42: =+[1]Abastecimiento!AH42 -> 0.972585714 | D42: =+[1]Abastecimiento!AI42 -> 0.09825295107 | E42: =+[1]Abastecimiento!AJ42 -> 0.0069 | F42: =+[1]Abastecimiento!AK42 -> 0.00627 | G42: =+[1]Abastecimiento!AL42 -> 0.0006337315344 | I42: =+[1]Abastecimiento!AN42 -> 0.9688716874 | J42: =+[1]Abastecimiento!AO42 -> 0.08961220389 | K42: =+[1]Abastecimiento!AP42 -> 0.00663 | L42: =+[1]Abastecimiento!AQ42 -> 0.00607 | M42: =+[1]Abastecimiento!AR42 -> 0.0005618685184 | P42: =+'AjustePérd de Dist-200'!D$66 -> 0.1418921265 | Q42: =+ROUND(R42+S42,5) -> 0.00821 | R42: =+[1]Abastecimiento!AW42 -> 0.00719171911 | S42: 0.001020448318
C43: =+[1]Abastecimiento!AH43 -> 0.972585714 | D43: =+[1]Abastecimiento!AI43 -> 0.09825295107 | E43: =+[1]Abastecimiento!AJ43 -> 0.2 | F43: =+[1]Abastecimiento!AK43 -> 0.18 | G43: =+[1]Abastecimiento!AL43 -> 0.0186680607 | I43: =+[1]Abastecimiento!AN43 -> 0.9688716874 | J43: =+[1]Abastecimiento!AO43 -> 0.08961220389 | K43: =+[1]Abastecimiento!AP43 -> 0.19 | L43: =+[1]Abastecimiento!AQ43 -> 0.17 | M43: =+[1]Abastecimiento!AR43 -> 0.0161301967 | P43: =+'AjustePérd de Dist-200'!D$66 -> 0.1418921265 | Q43: =+ROUND(R43+S43,2) -> 0.26 | R43: =+[1]Abastecimiento!AW43 -> 0.2282451088 | S43: 0.03238618385
A44: MTD (50,001-más) | C44: =+[1]Abastecimiento!AH44 -> 0.972585714 | D44: =+[1]Abastecimiento!AI44 -> 0.09825295107 | E44: =+[1]Abastecimiento!AJ44 -> 0.0069 | F44: =+[1]Abastecimiento!AK44 -> 0.00627 | G44: =+[1]Abastecimiento!AL44 -> 0.0006337315344 | I44: =+[1]Abastecimiento!AN44 -> 0.9688716874 | J44: =+[1]Abastecimiento!AO44 -> 0.08961220389 | K44: =+[1]Abastecimiento!AP44 -> 0.00663 | L44: =+[1]Abastecimiento!AQ44 -> 0.00607 | M44: =+[1]Abastecimiento!AR44 -> 0.0005618685184 | P44: =+'AjustePérd de Dist-200'!D$66 -> 0.1418921265 | Q44: =+ROUND(R44+S44,5) -> 0.00821 | R44: =+[1]Abastecimiento!AW44 -> 0.00719171911 | S44: 0.001020448318
C45: =+[1]Abastecimiento!AH45 -> 0.972585714 | D45: =+[1]Abastecimiento!AI45 -> 0.09825295107 | E45: =+[1]Abastecimiento!AJ45 -> 0.2 | F45: =+[1]Abastecimiento!AK45 -> 0.18 | G45: =+[1]Abastecimiento!AL45 -> 0.0186680607 | I45: =+[1]Abastecimiento!AN45 -> 0.9688716874 | J45: =+[1]Abastecimiento!AO45 -> 0.08961220389 | K45: =+[1]Abastecimiento!AP45 -> 0.19 | L45: =+[1]Abastecimiento!AQ45 -> 0.17 | M45: =+[1]Abastecimiento!AR45 -> 0.0161301967 | P45: =+'AjustePérd de Dist-200'!D$66 -> 0.1418921265 | Q45: =+ROUND(R45+S45,2) -> 0.26 | R45: =+[1]Abastecimiento!AW45 -> 0.2282451088 | S45: 0.03238618385
A46: ATD | C46: =+[1]Abastecimiento!AH46 -> 0.972585714 | D46: =+[1]Abastecimiento!AI46 -> 0.09825295107 | E46: =+[1]Abastecimiento!AJ46 -> 0.0069 | F46: =+[1]Abastecimiento!AK46 -> 0.00627 | G46: =+[1]Abastecimiento!AL46 -> 0.0006337315344 | I46: =+[1]Abastecimiento!AN46 -> 0.9688716874 | J46: =+[1]Abastecimiento!AO46 -> 0.08961220389 | K46: =+[1]Abastecimiento!AP46 -> 0.00663 | L46: =+[1]Abastecimiento!AQ46 -> 0.00607 | M46: =+[1]Abastecimiento!AR46 -> 0.0005618685184 | P46: =+'AjustePérd de Dist-200'!D$66 -> 0.1418921265 | Q46: =+ROUND(R46+S46,5) -> 0.00828 | R46: =+[1]Abastecimiento!AW46 -> 0.007249966968 | S46: 0.00102871323
C47: =+[1]Abastecimiento!AH47 -> 0.972585714 | D47: =+[1]Abastecimiento!AI47 -> 0.09825295107 | E47: =+[1]Abastecimiento!AJ47 -> 0.11 | F47: =+[1]Abastecimiento!AK47 -> 0.1 | G47: =+[1]Abastecimiento!AL47 -> 0.009825295107 | I47: =+[1]Abastecimiento!AN47 -> 0.9688716874 | J47: =+[1]Abastecimiento!AO47 -> 0.08961220389 | K47: =+[1]Abastecimiento!AP47 -> 0.11 | L47: =+[1]Abastecimiento!AQ47 -> 0.1 | M47: =+[1]Abastecimiento!AR47 -> 0.008961220389 | P47: =+'AjustePérd de Dist-200'!D$66 -> 0.1418921265 | Q47: =+ROUND(R47+S47,2) -> 0.14 | R47: =+[1]Abastecimiento!AW47 -> 0.1208232187 | S47: 0.01714386343
A48: Pérdidas de Potencia en Distribución | C48: =+[1]Abastecimiento!AH48 -> 0 | D48: =+[1]Abastecimiento!AI48 -> 0 | E48: =+[1]Abastecimiento!AJ48 -> 0 | F48: =+[1]Abastecimiento!AK48 -> 0 | G48: =+[1]Abastecimiento!AL48 -> 0 | I48: =+[1]Abastecimiento!AN48 -> 0 | J48: =+[1]Abastecimiento!AO48 -> 0 | K48: =+[1]Abastecimiento!AP48 -> 0 | L48: =+[1]Abastecimiento!AQ48 -> 0 | M48: =+[1]Abastecimiento!AR48 -> 0
A49: CPERDP | B49: B/./kWh o B/./kW | C49: =+[1]Abastecimiento!AH49 -> # 20 | D49: =+[1]Abastecimiento!AI49 -> # 21 | E49: =+[1]Abastecimiento!AJ49 -> 0 | F49: =+[1]Abastecimiento!AK49 -> 0 | G49: =+[1]Abastecimiento!AL49 -> 0 | I49: =+[1]Abastecimiento!AN49 -> # 20 | J49: =+[1]Abastecimiento!AO49 -> # 21 | K49: =+[1]Abastecimiento!AP49 -> 0 | L49: =+[1]Abastecimiento!AQ49 -> 0 | M49: =+[1]Abastecimiento!AR49 -> 0 | P49: # 21
A50: BTS (0-300) | C50: =+[1]Abastecimiento!AH50 -> 0.972585714 | D50: =+[1]Abastecimiento!AI50 -> 0.09825295107 | E50: =+[1]Abastecimiento!AJ50 -> 0 | F50: =+[1]Abastecimiento!AK50 -> 0 | G50: =+[1]Abastecimiento!AL50 -> 0 | I50: =+[1]Abastecimiento!AN50 -> 0.9688716874 | J50: =+[1]Abastecimiento!AO50 -> 0.08961220389 | K50: =+[1]Abastecimiento!AP50 -> 0 | L50: =+[1]Abastecimiento!AQ50 -> 0 | M50: =+[1]Abastecimiento!AR50 -> 0 | P50: =+'AjustePérd de Dist-200'!D$66 -> 0.1418921265 | Q50: =+ROUND(R50+S50,5) -> 0 | R50: =+[1]Abastecimiento!AW50 -> 0 | S50: =+R50*P50 -> 0
A51: BTS (301-750) | C51: =+[1]Abastecimiento!AH51 -> 0.972585714 | D51: =+[1]Abastecimiento!AI51 -> 0.09825295107 | E51: =+[1]Abastecimiento!AJ51 -> 0 | F51: =+[1]Abastecimiento!AK51 -> 0 | G51: =+[1]Abastecimiento!AL51 -> 0 | I51: =+[1]Abastecimiento!AN51 -> 0.9688716874 | J51: =+[1]Abastecimiento!AO51 -> 0.08961220389 | K51: =+[1]Abastecimiento!AP51 -> 0 | L51: =+[1]Abastecimiento!AQ51 -> 0 | M51: =+[1]Abastecimiento!AR51 -> 0 | P51: =+'AjustePérd de Dist-200'!D$66 -> 0.1418921265 | Q51: =+ROUND(R51+S51,5) -> 0 | R51: =+[1]Abastecimiento!AW51 -> 0 | S51: 0
A52: BTS (750-más) | C52: =+[1]Abastecimiento!AH52 -> 0.972585714 | D52: =+[1]Abastecimiento!AI52 -> 0.09825295107 | E52: =+[1]Abastecimiento!AJ52 -> 0 | F52: =+[1]Abastecimiento!AK52 -> 0 | G52: =+[1]Abastecimiento!AL52 -> 0 | I52: =+[1]Abastecimiento!AN52 -> 0.9688716874 | J52: =+[1]Abastecimiento!AO52 -> 0.08961220389 | K52: =+[1]Abastecimiento!AP52 -> 0 | L52: =+[1]Abastecimiento!AQ52 -> 0 | M52: =+[1]Abastecimiento!AR52 -> 0 | P52: =+'AjustePérd de Dist-200'!D$66 -> 0.1418921265 | Q52: =+ROUND(R52+S52,5) -> 0 | R52: =+[1]Abastecimiento!AW52 -> 0 | S52: 0
A53: BTD (0-10,000) | C53: =+[1]Abastecimiento!AH53 -> 0.972585714 | D53: =+[1]Abastecimiento!AI53 -> 0.09825295107 | E53: =+[1]Abastecimiento!AJ53 -> 0 | F53: =+[1]Abastecimiento!AK53 -> 0 | G53: =+[1]Abastecimiento!AL53 -> 0 | I53: =+[1]Abastecimiento!AN53 -> 0.9688716874 | J53: =+[1]Abastecimiento!AO53 -> 0.08961220389 | K53: =+[1]Abastecimiento!AP53 -> 0 | L53: =+[1]Abastecimiento!AQ53 -> 0 | M53: =+[1]Abastecimiento!AR53 -> 0 | P53: =+'AjustePérd de Dist-200'!D$66 -> 0.1418921265 | Q53: =+ROUND(R53+S53,2) -> 0 | R53: =+[1]Abastecimiento!AW53 -> 0 | S53: 0
A54: BTD (10,001-30,000) | C54: =+[1]Abastecimiento!AH54 -> 0.972585714 | D54: =+[1]Abastecimiento!AI54 -> 0.09825295107 | E54: =+[1]Abastecimiento!AJ54 -> 0 | F54: =+[1]Abastecimiento!AK54 -> 0 | G54: =+[1]Abastecimiento!AL54 -> 0 | I54: =+[1]Abastecimiento!AN54 -> 0.9688716874 | J54: =+[1]Abastecimiento!AO54 -> 0.08961220389 | K54: =+[1]Abastecimiento!AP54 -> 0 | L54: =+[1]Abastecimiento!AQ54 -> 0 | M54: =+[1]Abastecimiento!AR54 -> 0 | P54: =+'AjustePérd de Dist-200'!D$66 -> 0.1418921265 | Q54: =+ROUND(R54+S54,2) -> 0 | R54: =+[1]Abastecimiento!AW54 -> 0 | S54: 0
A55: BTD (30,001-50,000) | C55: =+[1]Abastecimiento!AH55 -> 0.972585714 | D55: =+[1]Abastecimiento!AI55 -> 0.09825295107 | E55: =+[1]Abastecimiento!AJ55 -> 0 | F55: =+[1]Abastecimiento!AK55 -> 0 | G55: =+[1]Abastecimiento!AL55 -> 0 | I55: =+[1]Abastecimiento!AN55 -> 0.9688716874 | J55: =+[1]Abastecimiento!AO55 -> 0.08961220389 | K55: =+[1]Abastecimiento!AP55 -> 0 | L55: =+[1]Abastecimiento!AQ55 -> 0 | M55: =+[1]Abastecimiento!AR55 -> 0 | P55: =+'AjustePérd de Dist-200'!D$66 -> 0.1418921265 | Q55: =+ROUND(R55+S55,2) -> 0 | R55: =+[1]Abastecimiento!AW55 -> 0 | S55: 0
A56: BTD (50,001-más) | C56: =+[1]Abastecimiento!AH56 -> 0.972585714 | D56: =+[1]Abastecimiento!AI56 -> 0.09825295107 | E56: =+[1]Abastecimiento!AJ56 -> 0 | F56: =+[1]Abastecimiento!AK56 -> 0 | G56: =+[1]Abastecimiento!AL56 -> 0 | I56: =+[1]Abastecimiento!AN56 -> 0.9688716874 | J56: =+[1]Abastecimiento!AO56 -> 0.08961220389 | K56: =+[1]Abastecimiento!AP56 -> 0 | L56: =+[1]Abastecimiento!AQ56 -> 0 | M56: =+[1]Abastecimiento!AR56 -> 0 | P56: =+'AjustePérd de Dist-200'!D$66 -> 0.1418921265 | Q56: =+ROUND(R56+S56,2) -> 0 | R56: =+[1]Abastecimiento!AW56 -> 0 | S56: 0
A57: BTH | C57: =+[1]Abastecimiento!AH57 -> 0.972585714 | D57: =+[1]Abastecimiento!AI57 -> 0.09825295107 | E57: =+[1]Abastecimiento!AJ57 -> 0 | F57: =+[1]Abastecimiento!AK57 -> 0 | G57: =+[1]Abastecimiento!AL57 -> 0 | I57: =+[1]Abastecimiento!AN57 -> 0.9688716874 | J57: =+[1]Abastecimiento!AO57 -> 0.08961220389 | K57: =+[1]Abastecimiento!AP57 -> 0 | L57: =+[1]Abastecimiento!AQ57 -> 0 | M57: =+[1]Abastecimiento!AR57 -> 0 | P57: =+'AjustePérd de Dist-200'!D$66 -> 0.1418921265 | Q57: 0 | R57: =+[1]Abastecimiento!AW57 -> 0 | S57: 0
A58: MTD (0-10,000) | C58: =+[1]Abastecimiento!AH58 -> 0.972585714 | D58: =+[1]Abastecimiento!AI58 -> 0.09825295107 | E58: =+[1]Abastecimiento!AJ58 -> 0 | F58: =+[1]Abastecimiento!AK58 -> 0 | G58: =+[1]Abastecimiento!AL58 -> 0 | I58: =+[1]Abastecimiento!AN58 -> 0.9688716874 | J58: =+[1]Abastecimiento!AO58 -> 0.08961220389 | K58: =+[1]Abastecimiento!AP58 -> 0 | L58: =+[1]Abastecimiento!AQ58 -> 0 | M58: =+[1]Abastecimiento!AR58 -> 0 | P58: =+'AjustePérd de Dist-200'!D$66 -> 0.1418921265 | Q58: 0 | R58: =+[1]Abastecimiento!AW58 -> 0 | S58: 0
A59: MTD (10,001-30,000) | C59: =+[1]Abastecimiento!AH59 -> 0.972585714 | D59: =+[1]Abastecimiento!AI59 -> 0.09825295107 | E59: =+[1]Abastecimiento!AJ59 -> 0 | F59: =+[1]Abastecimiento!AK59 -> 0 | G59: =+[1]Abastecimiento!AL59 -> 0 | I59: =+[1]Abastecimiento!AN59 -> 0.9688716874 | J59: =+[1]Abastecimiento!AO59 -> 0.08961220389 | K59: =+[1]Abastecimiento!AP59 -> 0 | L59: =+[1]Abastecimiento!AQ59 -> 0 | M59: =+[1]Abastecimiento!AR59 -> 0 | P59: =+'AjustePérd de Dist-200'!D$66 -> 0.1418921265 | Q59: 0 | R59: =+[1]Abastecimiento!AW59 -> 0 | S59: 0
A60: MTD (30,001-50,000) | C60: =+[1]Abastecimiento!AH60 -> 0.972585714 | D60: =+[1]Abastecimiento!AI60 -> 0.09825295107 | E60: =+[1]Abastecimiento!AJ60 -> 0 | F60: =+[1]Abastecimiento!AK60 -> 0 | G60: =+[1]Abastecimiento!AL60 -> 0 | I60: =+[1]Abastecimiento!AN60 -> 0.9688716874 | J60: =+[1]Abastecimiento!AO60 -> 0.08961220389 | K60: =+[1]Abastecimiento!AP60 -> 0 | L60: =+[1]Abastecimiento!AQ60 -> 0 | M60: =+[1]Abastecimiento!AR60 -> 0 | P60: =+'AjustePérd de Dist-200'!D$66 -> 0.1418921265 | Q60: 0 | R60: =+[1]Abastecimiento!AW60 -> 0 | S60: 0
A61: MTD (50,001-más) | C61: =+[1]Abastecimiento!AH61 -> 0.972585714 | D61: =+[1]Abastecimiento!AI61 -> 0.09825295107 | E61: =+[1]Abastecimiento!AJ61 -> 0 | F61: =+[1]Abastecimiento!AK61 -> 0 | G61: =+[1]Abastecimiento!AL61 -> 0 | I61: =+[1]Abastecimiento!AN61 -> 0.9688716874 | J61: =+[1]Abastecimiento!AO61 -> 0.08961220389 | K61: =+[1]Abastecimiento!AP61 -> 0 | L61: =+[1]Abastecimiento!AQ61 -> 0 | M61: =+[1]Abastecimiento!AR61 -> 0 | P61: =+'AjustePérd de Dist-200'!D$66 -> 0.1418921265 | Q61: 0 | R61: =+[1]Abastecimiento!AW61 -> 0 | S61: 0
A62: MTH | C62: =+[1]Abastecimiento!AH62 -> 0.972585714 | D62: =+[1]Abastecimiento!AI62 -> 0.09825295107 | E62: =+[1]Abastecimiento!AJ62 -> 0 | F62: =+[1]Abastecimiento!AK62 -> 0 | G62: =+[1]Abastecimiento!AL62 -> 0 | I62: =+[1]Abastecimiento!AN62 -> 0.9688716874 | J62: =+[1]Abastecimiento!AO62 -> 0.08961220389 | K62: =+[1]Abastecimiento!AP62 -> 0 | L62: =+[1]Abastecimiento!AQ62 -> 0 | M62: =+[1]Abastecimiento!AR62 -> 0 | P62: =+'AjustePérd de Dist-200'!D$66 -> 0.1418921265 | Q62: 0 | R62: =+[1]Abastecimiento!AW62 -> 0 | S62: 0
A63: ATD | C63: =+[1]Abastecimiento!AH63 -> 0.972585714 | D63: =+[1]Abastecimiento!AI63 -> 0.09825295107 | E63: =+[1]Abastecimiento!AJ63 -> 0 | F63: =+[1]Abastecimiento!AK63 -> 0 | G63: =+[1]Abastecimiento!AL63 -> 0 | I63: =+[1]Abastecimiento!AN63 -> 0.9688716874 | J63: =+[1]Abastecimiento!AO63 -> 0.08961220389 | K63: =+[1]Abastecimiento!AP63 -> 0 | L63: =+[1]Abastecimiento!AQ63 -> 0 | M63: =+[1]Abastecimiento!AR63 -> 0 | P63: =+'AjustePérd de Dist-200'!D$66 -> 0.1418921265 | Q63: 0 | R63: =+[1]Abastecimiento!AW63 -> 0 | S63: 0
A64: ATH | C64: =+[1]Abastecimiento!AH64 -> 0.972585714 | D64: =+[1]Abastecimiento!AI64 -> 0.09825295107 | E64: =+[1]Abastecimiento!AJ64 -> 0 | F64: =+[1]Abastecimiento!AK64 -> 0 | G64: =+[1]Abastecimiento!AL64 -> 0 | I64: =+[1]Abastecimiento!AN64 -> 0.9688716874 | J64: =+[1]Abastecimiento!AO64 -> 0.08961220389 | K64: =+[1]Abastecimiento!AP64 -> 0 | L64: =+[1]Abastecimiento!AQ64 -> 0 | M64: =+[1]Abastecimiento!AR64 -> 0 | P64: =+'AjustePérd de Dist-200'!D$66 -> 0.1418921265 | Q64: 0 | R64: =+[1]Abastecimiento!AW64 -> 0 | S64: 0
A65: Alumbrado Público | C65: =+[1]Abastecimiento!AH65 -> MODELO AT602 | D65: =+[1]Abastecimiento!AI65 -> 0 | E65: =+[1]Abastecimiento!AJ65 -> 0 | F65: =+[1]Abastecimiento!AK65 -> 0 | G65: =+[1]Abastecimiento!AL65 -> 0 | I65: =+[1]Abastecimiento!AN65 -> MODELO AT602 | J65: =+[1]Abastecimiento!AO65 -> 0 | K65: =+[1]Abastecimiento!AP65 -> 0 | L65: =+[1]Abastecimiento!AQ65 -> 0 | M65: =+[1]Abastecimiento!AR65 -> 0
A66: CCONAP | B66: B/./KWh | C66: =+[1]Abastecimiento!AH66 -> # 8 | D66: =+[1]Abastecimiento!AI66 -> # 9 | E66: =+[1]Abastecimiento!AJ66 -> 0 | F66: =+[1]Abastecimiento!AK66 -> 0 | G66: =+[1]Abastecimiento!AL66 -> 0 | I66: =+[1]Abastecimiento!AN66 -> # 8 | J66: =+[1]Abastecimiento!AO66 -> # 9 | K66: =+[1]Abastecimiento!AP66 -> 0 | L66: =+[1]Abastecimiento!AQ66 -> 0 | M66: =+[1]Abastecimiento!AR66 -> 0 | P66: # 9
A67: BTS (0-300) | C67: =+[1]Abastecimiento!AH67 -> 0.9743872821 | D67: =+[1]Abastecimiento!AI67 -> 0.1184107533 | E67: =+[1]Abastecimiento!AJ67 -> 0.0039 | F67: =+[1]Abastecimiento!AK67 -> 0.00348 | G67: =+[1]Abastecimiento!AL67 -> 0.0004227263892 | I67: =+[1]Abastecimiento!AN67 -> 0.9765615876 | J67: =+[1]Abastecimiento!AO67 -> 0.1231094272 | K67: =+[1]Abastecimiento!AP67 -> 0.00383 | L67: =+[1]Abastecimiento!AQ67 -> 0.0034 | M67: =+[1]Abastecimiento!AR67 -> 0.0004284208065 | P67: =+'Ajuste Generación-500 (2)'!F$90 -> 0.1458865705 | Q67: =+ROUND(R67+S67,5) -> 0.00317 | R67: =+[1]Abastecimiento!AW67 -> 0.002765191697 | S67: =+R67*P67 -> 0.0004034043335
A68: BTS (301-750) | C68: =+[1]Abastecimiento!AH68 -> 0.9743872821 | D68: =+[1]Abastecimiento!AI68 -> 0.1184107533 | E68: =+[1]Abastecimiento!AJ68 -> 0.0039 | F68: =+[1]Abastecimiento!AK68 -> 0.00348 | G68: =+[1]Abastecimiento!AL68 -> 0.0004227263892 | I68: =+[1]Abastecimiento!AN68 -> 0.9765615876 | J68: =+[1]Abastecimiento!AO68 -> 0.1231094272 | K68: =+[1]Abastecimiento!AP68 -> 0.00383 | L68: =+[1]Abastecimiento!AQ68 -> 0.0034 | M68: =+[1]Abastecimiento!AR68 -> 0.0004284208065 | P68: =+'Ajuste Generación-500 (2)'!F90 -> 0.1458865705 | Q68: 0.00317 | R68: =+[1]Abastecimiento!AW68 -> 0.002765191697 | S68: 0.0004034043335
A69: BTS (750-más) | C69: =+[1]Abastecimiento!AH69 -> 0.9743872821 | D69: =+[1]Abastecimiento!AI69 -> 0.1184107533 | E69: =+[1]Abastecimiento!AJ69 -> 0.0039 | F69: =+[1]Abastecimiento!AK69 -> 0.00348 | G69: =+[1]Abastecimiento!AL69 -> 0.0004227263892 | I69: =+[1]Abastecimiento!AN69 -> 0.9765615876 | J69: =+[1]Abastecimiento!AO69 -> 0.1231094272 | K69: =+[1]Abastecimiento!AP69 -> 0.00383 | L69: =+[1]Abastecimiento!AQ69 -> 0.0034 | M69: =+[1]Abastecimiento!AR69 -> 0.0004284208065 | P69: =+'Ajuste Generación-500 (2)'!F90 -> 0.1458865705 | Q69: 0.00317 | R69: =+[1]Abastecimiento!AW69 -> 0.002765191697 | S69: 0.0004034043335
A70: BTD (0-10,000) | C70: =+[1]Abastecimiento!AH70 -> 0.9743872821 | D70: =+[1]Abastecimiento!AI70 -> 0.1184107533 | E70: =+[1]Abastecimiento!AJ70 -> 0.00365 | F70: =+[1]Abastecimiento!AK70 -> 0.00325 | G70: =+[1]Abastecimiento!AL70 -> 0.000395491916 | I70: =+[1]Abastecimiento!AN70 -> 0.9765615876 | J70: =+[1]Abastecimiento!AO70 -> 0.1231094272 | K70: =+[1]Abastecimiento!AP70 -> 0.00357 | L70: =+[1]Abastecimiento!AQ70 -> 0.00317 | M70: =+[1]Abastecimiento!AR70 -> 0.0004001056383 | P70: =+'Ajuste Generación-500 (2)'!F90 -> 0.1458865705 | Q70: 0.00298 | R70: =+[1]Abastecimiento!AW70 -> 0.002604693028 | S70: 0.0003799897331
A71: BTD (10,001-30,000) | C71: =+[1]Abastecimiento!AH71 -> 0.9743872821 | D71: =+[1]Abastecimiento!AI71 -> 0.1184107533 | E71: =+[1]Abastecimiento!AJ71 -> 0.00365 | F71: =+[1]Abastecimiento!AK71 -> 0.00325 | G71: =+[1]Abastecimiento!AL71 -> 0.000395491916 | I71: =+[1]Abastecimiento!AN71 -> 0.9765615876 | J71: =+[1]Abastecimiento!AO71 -> 0.1231094272 | K71: =+[1]Abastecimiento!AP71 -> 0.00357 | L71: =+[1]Abastecimiento!AQ71 -> 0.00317 | M71: =+[1]Abastecimiento!AR71 -> 0.0004001056383 | P71: =+'Ajuste Generación-500 (2)'!F90 -> 0.1458865705 | Q71: 0.00298 | R71: =+[1]Abastecimiento!AW71 -> 0.002604693028 | S71: 0.0003799897331
A72: BTD (30,001-50,000) | C72: =+[1]Abastecimiento!AH72 -> 0.9743872821 | D72: =+[1]Abastecimiento!AI72 -> 0.1184107533 | E72: =+[1]Abastecimiento!AJ72 -> 0.00365 | F72: =+[1]Abastecimiento!AK72 -> 0.00325 | G72: =+[1]Abastecimiento!AL72 -> 0.000395491916 | I72: =+[1]Abastecimiento!AN72 -> 0.9765615876 | J72: =+[1]Abastecimiento!AO72 -> 0.1231094272 | K72: =+[1]Abastecimiento!AP72 -> 0.00357 | L72: =+[1]Abastecimiento!AQ72 -> 0.00317 | M72: =+[1]Abastecimiento!AR72 -> 0.0004001056383 | P72: =+'Ajuste Generación-500 (2)'!F90 -> 0.1458865705 | Q72: 0.00298 | R72: =+[1]Abastecimiento!AW72 -> 0.002604693028 | S72: 0.0003799897331
A73: BTD (50,001-más) | C73: =+[1]Abastecimiento!AH73 -> 0.9743872821 | D73: =+[1]Abastecimiento!AI73 -> 0.1184107533 | E73: =+[1]Abastecimiento!AJ73 -> 0.00365 | F73: =+[1]Abastecimiento!AK73 -> 0.00325 | G73: =+[1]Abastecimiento!AL73 -> 0.000395491916 | I73: =+[1]Abastecimiento!AN73 -> 0.9765615876 | J73: =+[1]Abastecimiento!AO73 -> 0.1231094272 | K73: =+[1]Abastecimiento!AP73 -> 0.00357 | L73: =+[1]Abastecimiento!AQ73 -> 0.00317 | M73: =+[1]Abastecimiento!AR73 -> 0.0004001056383 | P73: =+'Ajuste Generación-500 (2)'!F90 -> 0.1458865705 | Q73: 0.00298 | R73: =+[1]Abastecimiento!AW73 -> 0.002604693028 | S73: 0.0003799897331
A74: BTH | C74: =+[1]Abastecimiento!AH74 -> 0.9743872821 | D74: =+[1]Abastecimiento!AI74 -> 0.1184107533 | E74: =+[1]Abastecimiento!AJ74 -> 0.00363 | F74: =+[1]Abastecimiento!AK74 -> 0.00324 | G74: =+[1]Abastecimiento!AL74 -> 0.0003943078084 | I74: =+[1]Abastecimiento!AN74 -> 0.9765615876 | J74: =+[1]Abastecimiento!AO74 -> 0.1231094272 | K74: =+[1]Abastecimiento!AP74 -> 0.00356 | L74: =+[1]Abastecimiento!AQ74 -> 0.00316 | M74: =+[1]Abastecimiento!AR74 -> 0.000398874544 | P74: =+'Ajuste Generación-500 (2)'!F90 -> 0.1458865705 | Q74: 0.00298 | R74: =+[1]Abastecimiento!AW74 -> 0.002596476331 | S74: 0.0003787910273
A75: MTD (0-10,000) | C75: =+[1]Abastecimiento!AH75 -> 0.9743872821 | D75: =+[1]Abastecimiento!AI75 -> 0.1184107533 | E75: =+[1]Abastecimiento!AJ75 -> 0.00363 | F75: =+[1]Abastecimiento!AK75 -> 0.00324 | G75: =+[1]Abastecimiento!AL75 -> 0.0003943078084 | I75: =+[1]Abastecimiento!AN75 -> 0.9765615876 | J75: =+[1]Abastecimiento!AO75 -> 0.1231094272 | K75: =+[1]Abastecimiento!AP75 -> 0.00356 | L75: =+[1]Abastecimiento!AQ75 -> 0.00316 | M75: =+[1]Abastecimiento!AR75 -> 0.000398874544 | P75: =+'Ajuste Generación-500 (2)'!F90 -> 0.1458865705 | Q75: 0.00298 | R75: =+[1]Abastecimiento!AW75 -> 0.002596476331 | S75: 0.0003787910273
A76: MTD (10,001-30,000) | C76: =+[1]Abastecimiento!AH76 -> 0.9743872821 | D76: =+[1]Abastecimiento!AI76 -> 0.1184107533 | E76: =+[1]Abastecimiento!AJ76 -> 0.00363 | F76: =+[1]Abastecimiento!AK76 -> 0.00324 | G76: =+[1]Abastecimiento!AL76 -> 0.0003943078084 | I76: =+[1]Abastecimiento!AN76 -> 0.9765615876 | J76: =+[1]Abastecimiento!AO76 -> 0.1231094272 | K76: =+[1]Abastecimiento!AP76 -> 0.00356 | L76: =+[1]Abastecimiento!AQ76 -> 0.00316 | M76: =+[1]Abastecimiento!AR76 -> 0.000398874544 | P76: =+'Ajuste Generación-500 (2)'!F90 -> 0.1458865705 | Q76: 0.00298 | R76: =+[1]Abastecimiento!AW76 -> 0.002596476331 | S76: 0.0003787910273
A77: MTD (30,001-50,000) | C77: =+[1]Abastecimiento!AH77 -> 0.9743872821 | D77: =+[1]Abastecimiento!AI77 -> 0.1184107533 | E77: =+[1]Abastecimiento!AJ77 -> 0.00363 | F77: =+[1]Abastecimiento!AK77 -> 0.00324 | G77: =+[1]Abastecimiento!AL77 -> 0.0003943078084 | I77: =+[1]Abastecimiento!AN77 -> 0.9765615876 | J77: =+[1]Abastecimiento!AO77 -> 0.1231094272 | K77: =+[1]Abastecimiento!AP77 -> 0.00356 | L77: =+[1]Abastecimiento!AQ77 -> 0.00316 | M77: =+[1]Abastecimiento!AR77 -> 0.000398874544 | P77: =+'Ajuste Generación-500 (2)'!F90 -> 0.1458865705 | Q77: 0.00298 | R77: =+[1]Abastecimiento!AW77 -> 0.002596476331 | S77: 0.0003787910273
A78: MTD (50,001-más) | C78: =+[1]Abastecimiento!AH78 -> 0.9743872821 | D78: =+[1]Abastecimiento!AI78 -> 0.1184107533 | E78: =+[1]Abastecimiento!AJ78 -> 0.00363 | F78: =+[1]Abastecimiento!AK78 -> 0.00324 | G78: =+[1]Abastecimiento!AL78 -> 0.0003943078084 | I78: =+[1]Abastecimiento!AN78 -> 0.9765615876 | J78: =+[1]Abastecimiento!AO78 -> 0.1231094272 | K78: =+[1]Abastecimiento!AP78 -> 0.00356 | L78: =+[1]Abastecimiento!AQ78 -> 0.00316 | M78: =+[1]Abastecimiento!AR78 -> 0.000398874544 | P78: =+'Ajuste Generación-500 (2)'!F90 -> 0.1458865705 | Q78: 0.00298 | R78: =+[1]Abastecimiento!AW78 -> 0.002596476331 | S78: 0.0003787910273
A79: MTH | C79: =+[1]Abastecimiento!AH79 -> 0.9743872821 | D79: =+[1]Abastecimiento!AI79 -> 0.1184107533 | E79: =+[1]Abastecimiento!AJ79 -> 0.00363 | F79: =+[1]Abastecimiento!AK79 -> 0.00324 | G79: =+[1]Abastecimiento!AL79 -> 0.0003943078084 | I79: =+[1]Abastecimiento!AN79 -> 0.9765615876 | J79: =+[1]Abastecimiento!AO79 -> 0.1231094272 | K79: =+[1]Abastecimiento!AP79 -> 0.00356 | L79: =+[1]Abastecimiento!AQ79 -> 0.00316 | M79: =+[1]Abastecimiento!AR79 -> 0.000398874544 | P79: =+'Ajuste Generación-500 (2)'!F90 -> 0.1458865705 | Q79: 0.00298 | R79: =+[1]Abastecimiento!AW79 -> 0.002596476331 | S79: 0.0003787910273
A80: ATD | C80: =+[1]Abastecimiento!AH80 -> 0.9743872821 | D80: =+[1]Abastecimiento!AI80 -> 0.1184107533 | E80: =+[1]Abastecimiento!AJ80 -> 0.00363 | F80: =+[1]Abastecimiento!AK80 -> 0.00324 | G80: =+[1]Abastecimiento!AL80 -> 0.0003943078084 | I80: =+[1]Abastecimiento!AN80 -> 0.9765615876 | J80: =+[1]Abastecimiento!AO80 -> 0.1231094272 | K80: =+[1]Abastecimiento!AP80 -> 0.00356 | L80: =+[1]Abastecimiento!AQ80 -> 0.00316 | M80: =+[1]Abastecimiento!AR80 -> 0.000398874544 | P80: =+'Ajuste Generación-500 (2)'!F90 -> 0.1458865705 | Q80: 0.00298 | R80: =+[1]Abastecimiento!AW80 -> 0.002596476331 | S80: 0.0003787910273
A81: ATH | C81: =+[1]Abastecimiento!AH81 -> 0.9743872821 | D81: =+[1]Abastecimiento!AI81 -> 0.1184107533 | E81: =+[1]Abastecimiento!AJ81 -> 0.00363 | F81: =+[1]Abastecimiento!AK81 -> 0.00324 | G81: =+[1]Abastecimiento!AL81 -> 0.0003943078084 | I81: =+[1]Abastecimiento!AN81 -> 0.9765615876 | J81: =+[1]Abastecimiento!AO81 -> 0.1231094272 | K81: =+[1]Abastecimiento!AP81 -> 0.00356 | L81: =+[1]Abastecimiento!AQ81 -> 0.00316 | M81: =+[1]Abastecimiento!AR81 -> 0.000398874544 | P81: =+'Ajuste Generación-500 (2)'!F90 -> 0.1458865705 | Q81: 0.00298 | R81: =+[1]Abastecimiento!AW81 -> 0.002596476331 | S81: 0.0003787910273
A82: Transmisión | C82: =+[1]Abastecimiento!AH82 -> MODELO AT302 | D82: =+[1]Abastecimiento!AI82 -> 0 | E82: =+[1]Abastecimiento!AJ82 -> 0 | F82: =+[1]Abastecimiento!AK82 -> 0 | G82: =+[1]Abastecimiento!AL82 -> 0 | I82: =+[1]Abastecimiento!AN82 -> MODELO AT302 | J82: =+[1]Abastecimiento!AO82 -> 0 | K82: =+[1]Abastecimiento!AP82 -> 0 | L82: =+[1]Abastecimiento!AQ82 -> 0 | M82: =+[1]Abastecimiento!AR82 -> 0
A83: CPT (energía) | B83: B/./kWh | C83: =+[1]Abastecimiento!AH83 -> # 23 | D83: =+[1]Abastecimiento!AI83 -> # 24 | E83: =+[1]Abastecimiento!AJ83 -> 0 | F83: =+[1]Abastecimiento!AK83 -> 0 | G83: =+[1]Abastecimiento!AL83 -> 0 | I83: =+[1]Abastecimiento!AN83 -> # 23 | J83: =+[1]Abastecimiento!AO83 -> # 24 | K83: =+[1]Abastecimiento!AP83 -> 0 | L83: =+[1]Abastecimiento!AQ83 -> 0 | M83: =+[1]Abastecimiento!AR83 -> 0 | P83: # 24
A84: BTS (0-300) | C84: =+[1]Abastecimiento!AH84 -> 0.946660059 | D84: =+[1]Abastecimiento!AI84 -> 0.1086990945 | E84: =+[1]Abastecimiento!AJ84 -> 0.0082 | F84: =+[1]Abastecimiento!AK84 -> 0.00736 | G84: =+[1]Abastecimiento!AL84 -> 0.000844591964 | I84: =+[1]Abastecimiento!AN84 -> 0.8894600029 | J84: =+[1]Abastecimiento!AO84 -> 0.02884342581 | K84: =+[1]Abastecimiento!AP84 -> 0.00676 | L84: =+[1]Abastecimiento!AQ84 -> 0.00655 | M84: =+[1]Abastecimiento!AR84 -> 0.0002122876139 | P84: =+'Ajuste Transmisión-300'!D$47 -> 0.1098297918 | Q84: =+ROUND(R84+S84,5) -> 0.01043 | R84: =+[1]Abastecimiento!AW84 -> 0.009394115338 | S84: =+R84*P84 -> 0.001031753732
A85: BTS (301-750) | C85: =+[1]Abastecimiento!AH85 -> 0.946660059 | D85: =+[1]Abastecimiento!AI85 -> 0.1086990945 | E85: =+[1]Abastecimiento!AJ85 -> 0.0082 | F85: =+[1]Abastecimiento!AK85 -> 0.00736 | G85: =+[1]Abastecimiento!AL85 -> 0.000844591964 | I85: =+[1]Abastecimiento!AN85 -> 0.8894600029 | J85: =+[1]Abastecimiento!AO85 -> 0.02884342581 | K85: =+[1]Abastecimiento!AP85 -> 0.00676 | L85: =+[1]Abastecimiento!AQ85 -> 0.00655 | M85: =+[1]Abastecimiento!AR85 -> 0.0002122876139 | P85: =+'Ajuste Transmisión-300'!D$47 -> 0.1098297918 | Q85: =+ROUND(R85+S85,5) -> 0.01043 | R85: =+[1]Abastecimiento!AW85 -> 0.009394115338 | S85: 0.001031753732
A86: BTS (750-más) | C86: =+[1]Abastecimiento!AH86 -> 0.946660059 | D86: =+[1]Abastecimiento!AI86 -> 0.1086990945 | E86: =+[1]Abastecimiento!AJ86 -> 0.0082 | F86: =+[1]Abastecimiento!AK86 -> 0.00736 | G86: =+[1]Abastecimiento!AL86 -> 0.000844591964 | I86: =+[1]Abastecimiento!AN86 -> 0.8894600029 | J86: =+[1]Abastecimiento!AO86 -> 0.02884342581 | K86: =+[1]Abastecimiento!AP86 -> 0.00676 | L86: =+[1]Abastecimiento!AQ86 -> 0.00655 | M86: =+[1]Abastecimiento!AR86 -> 0.0002122876139 | P86: =+'Ajuste Transmisión-300'!D$47 -> 0.1098297918 | Q86: =+ROUND(R86+S86,5) -> 0.01043 | R86: =+[1]Abastecimiento!AW86 -> 0.009394115338 | S86: 0.001031753732
A87: BTD (0-10,000) | C87: =+[1]Abastecimiento!AH87 -> 0.946660059 | D87: =+[1]Abastecimiento!AI87 -> 0.1086990945 | E87: =+[1]Abastecimiento!AJ87 -> 0 | F87: =+[1]Abastecimiento!AK87 -> 0 | G87: =+[1]Abastecimiento!AL87 -> 0 | I87: =+[1]Abastecimiento!AN87 -> 0.8894600029 | J87: =+[1]Abastecimiento!AO87 -> 0.02884342581 | K87: =+[1]Abastecimiento!AP87 -> 0 | L87: =+[1]Abastecimiento!AQ87 -> 0 | M87: =+[1]Abastecimiento!AR87 -> 0 | P87: =+'Ajuste Transmisión-300'!D$47 -> 0.1098297918 | R87: =+[1]Abastecimiento!AW87 -> 0 | S87: 0
A88: BTD (10,001-30,000) | C88: =+[1]Abastecimiento!AH88 -> 0.946660059 | D88: =+[1]Abastecimiento!AI88 -> 0.1086990945 | E88: =+[1]Abastecimiento!AJ88 -> 0 | F88: =+[1]Abastecimiento!AK88 -> 0 | G88: =+[1]Abastecimiento!AL88 -> 0 | I88: =+[1]Abastecimiento!AN88 -> 0.8894600029 | J88: =+[1]Abastecimiento!AO88 -> 0.02884342581 | K88: =+[1]Abastecimiento!AP88 -> 0 | L88: =+[1]Abastecimiento!AQ88 -> 0 | M88: =+[1]Abastecimiento!AR88 -> 0 | P88: =+'Ajuste Transmisión-300'!D$47 -> 0.1098297918 | R88: =+[1]Abastecimiento!AW88 -> 0 | S88: 0
A89: BTD (30,001-50,000) | C89: =+[1]Abastecimiento!AH89 -> 0.946660059 | D89: =+[1]Abastecimiento!AI89 -> 0.1086990945 | E89: =+[1]Abastecimiento!AJ89 -> 0 | F89: =+[1]Abastecimiento!AK89 -> 0 | G89: =+[1]Abastecimiento!AL89 -> 0 | I89: =+[1]Abastecimiento!AN89 -> 0.8894600029 | J89: =+[1]Abastecimiento!AO89 -> 0.02884342581 | K89: =+[1]Abastecimiento!AP89 -> 0 | L89: =+[1]Abastecimiento!AQ89 -> 0 | M89: =+[1]Abastecimiento!AR89 -> 0 | P89: =+'Ajuste Transmisión-300'!D$47 -> 0.1098297918 | R89: =+[1]Abastecimiento!AW89 -> 0 | S89: 0
A90: BTD (50,001-más) | C90: =+[1]Abastecimiento!AH90 -> 0.946660059 | D90: =+[1]Abastecimiento!AI90 -> 0.1086990945 | E90: =+[1]Abastecimiento!AJ90 -> 0 | F90: =+[1]Abastecimiento!AK90 -> 0 | G90: =+[1]Abastecimiento!AL90 -> 0 | I90: =+[1]Abastecimiento!AN90 -> 0.8894600029 | J90: =+[1]Abastecimiento!AO90 -> 0.02884342581 | K90: =+[1]Abastecimiento!AP90 -> 0 | L90: =+[1]Abastecimiento!AQ90 -> 0 | M90: =+[1]Abastecimiento!AR90 -> 0 | P90: =+'Ajuste Transmisión-300'!D$47 -> 0.1098297918 | R90: =+[1]Abastecimiento!AW90 -> 0 | S90: 0
A91: BTD (0-10,000) | C91: =+[1]Abastecimiento!AH91 -> 0.946660059 | D91: =+[1]Abastecimiento!AI91 -> 0.1086990945 | E91: =+[1]Abastecimiento!AJ91 -> 0.00329 | F91: =+[1]Abastecimiento!AK91 -> 0.00295 | G91: =+[1]Abastecimiento!AL91 -> 0.0003391411747 | I91: =+[1]Abastecimiento!AN91 -> 0.8894600029 | J91: =+[1]Abastecimiento!AO91 -> 0.02884342581 | K91: =+[1]Abastecimiento!AP91 -> 0.00271 | L91: =+[1]Abastecimiento!AQ91 -> 0.00262 | M91: =+[1]Abastecimiento!AR91 -> 8.508810613e-05 | P91: =+'Ajuste Transmisión-300'!D$47 -> 0.1098297918 | Q91: =+ROUND(R91+S91,5) -> 0.00419 | R91: =+[1]Abastecimiento!AW91 -> 0.003774632375 | S91: 0.0004145670881
A92: BTD (10,001-30,000) | C92: =+[1]Abastecimiento!AH92 -> 0.946660059 | D92: =+[1]Abastecimiento!AI92 -> 0.1086990945 | E92: =+[1]Abastecimiento!AJ92 -> 0.00329 | F92: =+[1]Abastecimiento!AK92 -> 0.00295 | G92: =+[1]Abastecimiento!AL92 -> 0.0003391411747 | I92: =+[1]Abastecimiento!AN92 -> 0.8894600029 | J92: =+[1]Abastecimiento!AO92 -> 0.02884342581 | K92: =+[1]Abastecimiento!AP92 -> 0.00271 | L92: =+[1]Abastecimiento!AQ92 -> 0.00262 | M92: =+[1]Abastecimiento!AR92 -> 8.508810613e-05 | P92: =+'Ajuste Transmisión-300'!D$47 -> 0.1098297918 | Q92: =+ROUND(R92+S92,5) -> 0.00419 | R92: =+[1]Abastecimiento!AW92 -> 0.003774632375 | S92: 0.0004145670881
A93: BTD (30,001-50,000) | C93: =+[1]Abastecimiento!AH93 -> 0.946660059 | D93: =+[1]Abastecimiento!AI93 -> 0.1086990945 | E93: =+[1]Abastecimiento!AJ93 -> 0.00329 | F93: =+[1]Abastecimiento!AK93 -> 0.00295 | G93: =+[1]Abastecimiento!AL93 -> 0.0003391411747 | I93: =+[1]Abastecimiento!AN93 -> 0.8894600029 | J93: =+[1]Abastecimiento!AO93 -> 0.02884342581 | K93: =+[1]Abastecimiento!AP93 -> 0.00271 | L93: =+[1]Abastecimiento!AQ93 -> 0.00262 | M93: =+[1]Abastecimiento!AR93 -> 8.508810613e-05 | P93: =+'Ajuste Transmisión-300'!D$47 -> 0.1098297918 | Q93: =+ROUND(R93+S93,5) -> 0.00419 | R93: =+[1]Abastecimiento!AW93 -> 0.003774632375 | S93: 0.0004145670881
A94: BTD (50,001-más) | C94: =+[1]Abastecimiento!AH94 -> 0.946660059 | D94: =+[1]Abastecimiento!AI94 -> 0.1086990945 | E94: =+[1]Abastecimiento!AJ94 -> 0.00329 | F94: =+[1]Abastecimiento!AK94 -> 0.00295 | G94: =+[1]Abastecimiento!AL94 -> 0.0003391411747 | I94: =+[1]Abastecimiento!AN94 -> 0.8894600029 | J94: =+[1]Abastecimiento!AO94 -> 0.02884342581 | K94: =+[1]Abastecimiento!AP94 -> 0.00271 | L94: =+[1]Abastecimiento!AQ94 -> 0.00262 | M94: =+[1]Abastecimiento!AR94 -> 8.508810613e-05 | P94: =+'Ajuste Transmisión-300'!D$47 -> 0.1098297918 | Q94: 0.00419 | R94: =+[1]Abastecimiento!AW94 -> 0.003774632375 | S94: 0.0004145670881
A95: BTH | C95: =+[1]Abastecimiento!AH95 -> 0.946660059 | D95: =+[1]Abastecimiento!AI95 -> 0.1086990945 | E95: =+[1]Abastecimiento!AJ95 -> 0.03763 | F95: =+[1]Abastecimiento!AK95 -> 0.03375 | G95: =+[1]Abastecimiento!AL95 -> 0.003875122718 | I95: =+[1]Abastecimiento!AN95 -> 0.8894600029 | J95: =+[1]Abastecimiento!AO95 -> 0.02884342581 | K95: =+[1]Abastecimiento!AP95 -> 0.03099 | L95: =+[1]Abastecimiento!AQ95 -> 0.03002 | M95: =+[1]Abastecimiento!AR95 -> 0.000973465621 | P95: =+'Ajuste Transmisión-300'!D$47 -> 0.1098297918 | Q95: 0.00334 | R95: =+[1]Abastecimiento!AW95 -> 0.003006089351 | S95: 0.0003301581677
A96: MTD (0-10,000) | C96: =+[1]Abastecimiento!AH96 -> 0.946660059 | D96: =+[1]Abastecimiento!AI96 -> 0.1086990945 | E96: =+[1]Abastecimiento!AJ96 -> 0.00431 | F96: =+[1]Abastecimiento!AK96 -> 0.00387 | G96: =+[1]Abastecimiento!AL96 -> 0.0004445792963 | I96: =+[1]Abastecimiento!AN96 -> 0.8894600029 | J96: =+[1]Abastecimiento!AO96 -> 0.02884342581 | K96: =+[1]Abastecimiento!AP96 -> 0.00355 | L96: =+[1]Abastecimiento!AQ96 -> 0.00344 | M96: =+[1]Abastecimiento!AR96 -> 0.0001116240579 | P96: =+'Ajuste Transmisión-300'!D$47 -> 0.1098297918 | Q96: 0.00548 | R96: =+[1]Abastecimiento!AW96 -> 0.004935228521 | S96: 0.0005420351212
A97: MTD (10,001-30,000) | C97: =+[1]Abastecimiento!AH97 -> 0.946660059 | D97: =+[1]Abastecimiento!AI97 -> 0.1086990945 | E97: =+[1]Abastecimiento!AJ97 -> 0.00431 | F97: =+[1]Abastecimiento!AK97 -> 0.00387 | G97: =+[1]Abastecimiento!AL97 -> 0.0004445792963 | I97: =+[1]Abastecimiento!AN97 -> 0.8894600029 | J97: =+[1]Abastecimiento!AO97 -> 0.02884342581 | K97: =+[1]Abastecimiento!AP97 -> 0.00355 | L97: =+[1]Abastecimiento!AQ97 -> 0.00344 | M97: =+[1]Abastecimiento!AR97 -> 0.0001116240579 | P97: =+'Ajuste Transmisión-300'!D$47 -> 0.1098297918 | Q97: 0.00548 | R97: =+[1]Abastecimiento!AW97 -> 0.004935228521 | S97: 0.0005420351212
A98: MTD (30,001-50,000) | C98: =+[1]Abastecimiento!AH98 -> 0.946660059 | D98: =+[1]Abastecimiento!AI98 -> 0.1086990945 | E98: =+[1]Abastecimiento!AJ98 -> 0.00431 | F98: =+[1]Abastecimiento!AK98 -> 0.00387 | G98: =+[1]Abastecimiento!AL98 -> 0.0004445792963 | I98: =+[1]Abastecimiento!AN98 -> 0.8894600029 | J98: =+[1]Abastecimiento!AO98 -> 0.02884342581 | K98: =+[1]Abastecimiento!AP98 -> 0.00355 | L98: =+[1]Abastecimiento!AQ98 -> 0.00344 | M98: =+[1]Abastecimiento!AR98 -> 0.0001116240579 | P98: =+'Ajuste Transmisión-300'!D$47 -> 0.1098297918 | Q98: 0.00548 | R98: =+[1]Abastecimiento!AW98 -> 0.004935228521 | S98: 0.0005420351212
A99: MTD (50,001-más) | C99: =+[1]Abastecimiento!AH99 -> 0.946660059 | D99: =+[1]Abastecimiento!AI99 -> 0.1086990945 | E99: =+[1]Abastecimiento!AJ99 -> 0.00431 | F99: =+[1]Abastecimiento!AK99 -> 0.00387 | G99: =+[1]Abastecimiento!AL99 -> 0.0004445792963 | I99: =+[1]Abastecimiento!AN99 -> 0.8894600029 | J99: =+[1]Abastecimiento!AO99 -> 0.02884342581 | K99: =+[1]Abastecimiento!AP99 -> 0.00355 | L99: =+[1]Abastecimiento!AQ99 -> 0.00344 | M99: =+[1]Abastecimiento!AR99 -> 0.0001116240579 | P99: =+'Ajuste Transmisión-300'!D$47 -> 0.1098297918 | Q99: 0.00548 | R99: =+[1]Abastecimiento!AW99 -> 0.004935228521 | S99: 0.0005420351212
A100: MTH | C100: =+[1]Abastecimiento!AH100 -> 0.946660059 | D100: =+[1]Abastecimiento!AI100 -> 0.1086990945 | E100: =+[1]Abastecimiento!AJ100 -> 0.00085 | F100: =+[1]Abastecimiento!AK100 -> 0.00076 | G100: =+[1]Abastecimiento!AL100 -> 8.695927557e-05 | I100: =+[1]Abastecimiento!AN100 -> 0.8894600029 | J100: =+[1]Abastecimiento!AO100 -> 0.02884342581 | K100: =+[1]Abastecimiento!AP100 -> 0.0007 | L100: =+[1]Abastecimiento!AQ100 -> 0.00068 | M100: =+[1]Abastecimiento!AR100 -> 2.192100361e-05 | P100: =+'Ajuste Transmisión-300'!D$47 -> 0.1098297918 | Q100: 0.00159 | R100: =+[1]Abastecimiento!AW100 -> 0.001430085673 | S100: 0.0001570660118
A101: ATD | C101: =+[1]Abastecimiento!AH101 -> 0.946660059 | D101: =+[1]Abastecimiento!AI101 -> 0.1086990945 | E101: =+[1]Abastecimiento!AJ101 -> 0.01261 | F101: =+[1]Abastecimiento!AK101 -> 0.01131 | G101: =+[1]Abastecimiento!AL101 -> 0.001298954179 | I101: =+[1]Abastecimiento!AN101 -> 0.8894600029 | J101: =+[1]Abastecimiento!AO101 -> 0.02884342581 | K101: =+[1]Abastecimiento!AP101 -> 0.01039 | L101: =+[1]Abastecimiento!AQ101 -> 0.01006 | M101: =+[1]Abastecimiento!AR101 -> 0.0003262191459 | P101: =+'Ajuste Transmisión-300'!D$47 -> 0.1098297918 | Q101: 0.01601 | R101: =+[1]Abastecimiento!AW101 -> 0.0144224094 | S101: 0.001584010223
A102: ATH | C102: =+[1]Abastecimiento!AH102 -> 0.946660059 | D102: =+[1]Abastecimiento!AI102 -> 0.1086990945 | E102: =+[1]Abastecimiento!AJ102 -> 0.00341 | F102: =+[1]Abastecimiento!AK102 -> 0.00306 | G102: =+[1]Abastecimiento!AL102 -> 0.0003510980751 | I102: =+[1]Abastecimiento!AN102 -> 0.8894600029 | J102: =+[1]Abastecimiento!AO102 -> 0.02884342581 | K102: =+[1]Abastecimiento!AP102 -> 0.00281 | L102: =+[1]Abastecimiento!AQ102 -> 0.00272 | M102: =+[1]Abastecimiento!AR102 -> 8.826088297e-05 | P102: =+'Ajuste Transmisión-300'!D$47 -> 0.1098297918 | Q102: 0.00409 | R102: =+[1]Abastecimiento!AW102 -> 0.003686398543 | S102: 0.0004048763847
A103: CPT (potencia) | B103: B/./kW | C103: =+[1]Abastecimiento!AH103 -> # 23 | D103: =+[1]Abastecimiento!AI103 -> # 24 | E103: =+[1]Abastecimiento!AJ103 -> 0 | F103: =+[1]Abastecimiento!AK103 -> 0 | G103: =+[1]Abastecimiento!AL103 -> 0 | I103: =+[1]Abastecimiento!AN103 -> # 23 | J103: =+[1]Abastecimiento!AO103 -> # 24 | K103: =+[1]Abastecimiento!AP103 -> 0 | L103: =+[1]Abastecimiento!AQ103 -> 0 | M103: =+[1]Abastecimiento!AR103 -> 0 | P103: # 24
A104: BTS | C104: =+[1]Abastecimiento!AH104 -> 0 | D104: =+[1]Abastecimiento!AI104 -> 0 | E104: =+[1]Abastecimiento!AJ104 -> 0 | F104: =+[1]Abastecimiento!AK104 -> 0 | G104: =+[1]Abastecimiento!AL104 -> 0 | I104: =+[1]Abastecimiento!AN104 -> 0 | J104: =+[1]Abastecimiento!AO104 -> 0 | K104: =+[1]Abastecimiento!AP104 -> 0 | L104: =+[1]Abastecimiento!AQ104 -> 0 | M104: =+[1]Abastecimiento!AR104 -> 0
A105: BTD (0-10,000) | C105: =+[1]Abastecimiento!AH105 -> 0 | D105: =+[1]Abastecimiento!AI105 -> 0 | E105: =+[1]Abastecimiento!AJ105 -> 0 | F105: =+[1]Abastecimiento!AK105 -> 0 | G105: =+[1]Abastecimiento!AL105 -> 0 | I105: =+[1]Abastecimiento!AN105 -> 0 | J105: =+[1]Abastecimiento!AO105 -> 0 | K105: =+[1]Abastecimiento!AP105 -> 0 | L105: =+[1]Abastecimiento!AQ105 -> 0 | M105: =+[1]Abastecimiento!AR105 -> 0
A106: BTD (10,001-30,000) | C106: =+[1]Abastecimiento!AH106 -> 0 | D106: =+[1]Abastecimiento!AI106 -> 0 | E106: =+[1]Abastecimiento!AJ106 -> 0 | F106: =+[1]Abastecimiento!AK106 -> 0 | G106: =+[1]Abastecimiento!AL106 -> 0 | I106: =+[1]Abastecimiento!AN106 -> 0 | J106: =+[1]Abastecimiento!AO106 -> 0 | K106: =+[1]Abastecimiento!AP106 -> 0 | L106: =+[1]Abastecimiento!AQ106 -> 0 | M106: =+[1]Abastecimiento!AR106 -> 0
A107: BTD (30,001-50,000) | C107: =+[1]Abastecimiento!AH107 -> 0 | D107: =+[1]Abastecimiento!AI107 -> 0 | E107: =+[1]Abastecimiento!AJ107 -> 0 | F107: =+[1]Abastecimiento!AK107 -> 0 | G107: =+[1]Abastecimiento!AL107 -> 0 | I107: =+[1]Abastecimiento!AN107 -> 0 | J107: =+[1]Abastecimiento!AO107 -> 0 | K107: =+[1]Abastecimiento!AP107 -> 0 | L107: =+[1]Abastecimiento!AQ107 -> 0 | M107: =+[1]Abastecimiento!AR107 -> 0
A108: BTD (50,001-más) | C108: =+[1]Abastecimiento!AH108 -> 0 | D108: =+[1]Abastecimiento!AI108 -> 0 | E108: =+[1]Abastecimiento!AJ108 -> 0 | F108: =+[1]Abastecimiento!AK108 -> 0 | G108: =+[1]Abastecimiento!AL108 -> 0 | I108: =+[1]Abastecimiento!AN108 -> 0 | J108: =+[1]Abastecimiento!AO108 -> 0 | K108: =+[1]Abastecimiento!AP108 -> 0 | L108: =+[1]Abastecimiento!AQ108 -> 0 | M108: =+[1]Abastecimiento!AR108 -> 0
A109: BTD (0-10,000) | C109: =+[1]Abastecimiento!AH109 -> 0.946660059 | D109: =+[1]Abastecimiento!AI109 -> 0.1086990945 | E109: =+[1]Abastecimiento!AJ109 -> 0.94 | F109: =+[1]Abastecimiento!AK109 -> 0.84 | G109: =+[1]Abastecimiento!AL109 -> 0.09674219407 | I109: =+[1]Abastecimiento!AN109 -> 0.8894600029 | J109: =+[1]Abastecimiento!AO109 -> 0.02884342581 | K109: =+[1]Abastecimiento!AP109 -> 0.77 | L109: =+[1]Abastecimiento!AQ109 -> 0.75 | M109: =+[1]Abastecimiento!AR109 -> 0.02422847768 | P109: =+'Ajuste Transmisión-300'!D$47 -> 0.1098297918 | Q109: =+ROUND(R109+S109,2) -> 1.24 | R109: =+[1]Abastecimiento!AW109 -> 1.121008231 | S109: =+R109*P109 -> 0.1231201006
A110: BTD (10,001-30,000) | C110: =+[1]Abastecimiento!AH110 -> 0.946660059 | D110: =+[1]Abastecimiento!AI110 -> 0.1086990945 | E110: =+[1]Abastecimiento!AJ110 -> 0.94 | F110: =+[1]Abastecimiento!AK110 -> 0.84 | G110: =+[1]Abastecimiento!AL110 -> 0.09674219407 | I110: =+[1]Abastecimiento!AN110 -> 0.8894600029 | J110: =+[1]Abastecimiento!AO110 -> 0.02884342581 | K110: =+[1]Abastecimiento!AP110 -> 0.77 | L110: =+[1]Abastecimiento!AQ110 -> 0.75 | M110: =+[1]Abastecimiento!AR110 -> 0.02422847768 | P110: =+'Ajuste Transmisión-300'!D$47 -> 0.1098297918 | Q110: 1.24 | R110: =+[1]Abastecimiento!AW110 -> 1.121008231 | S110: 0.1231201006
A111: BTD (30,001-50,000) | C111: =+[1]Abastecimiento!AH111 -> 0.946660059 | D111: =+[1]Abastecimiento!AI111 -> 0.1086990945 | E111: =+[1]Abastecimiento!AJ111 -> 0.94 | F111: =+[1]Abastecimiento!AK111 -> 0.84 | G111: =+[1]Abastecimiento!AL111 -> 0.09674219407 | I111: =+[1]Abastecimiento!AN111 -> 0.8894600029 | J111: =+[1]Abastecimiento!AO111 -> 0.02884342581 | K111: =+[1]Abastecimiento!AP111 -> 0.77 | L111: =+[1]Abastecimiento!AQ111 -> 0.75 | M111: =+[1]Abastecimiento!AR111 -> 0.02422847768 | P111: =+'Ajuste Transmisión-300'!D$47 -> 0.1098297918 | Q111: 1.24 | R111: =+[1]Abastecimiento!AW111 -> 1.121008231 | S111: 0.1231201006
A112: BTD (50,001-más) | C112: =+[1]Abastecimiento!AH112 -> 0.946660059 | D112: =+[1]Abastecimiento!AI112 -> 0.1086990945 | E112: =+[1]Abastecimiento!AJ112 -> 0.94 | F112: =+[1]Abastecimiento!AK112 -> 0.84 | G112: =+[1]Abastecimiento!AL112 -> 0.09674219407 | I112: =+[1]Abastecimiento!AN112 -> 0.8894600029 | J112: =+[1]Abastecimiento!AO112 -> 0.02884342581 | K112: =+[1]Abastecimiento!AP112 -> 0.77 | L112: =+[1]Abastecimiento!AQ112 -> 0.75 | M112: =+[1]Abastecimiento!AR112 -> 0.02422847768 | P112: =+'Ajuste Transmisión-300'!D$47 -> 0.1098297918 | Q112: 1.24 | R112: =+[1]Abastecimiento!AW112 -> 1.121008231 | S112: 0.1231201006
A113: BTH Punta | C113: =+[1]Abastecimiento!AH113 -> 0.946660059 | D113: =+[1]Abastecimiento!AI113 -> 0.1086990945 | E113: =+[1]Abastecimiento!AJ113 -> 7.7 | F113: =+[1]Abastecimiento!AK113 -> 6.91 | G113: =+[1]Abastecimiento!AL113 -> 0.7935033896 | I113: =+[1]Abastecimiento!AN113 -> 0.8894600029 | J113: =+[1]Abastecimiento!AO113 -> 0.02884342581 | K113: =+[1]Abastecimiento!AP113 -> 6.35 | L113: =+[1]Abastecimiento!AQ113 -> 6.15 | M113: =+[1]Abastecimiento!AR113 -> 0.1993080723 | P113: =+'Ajuste Transmisión-300'!D$47 -> 0.1098297918 | Q113: 1.16 | R113: =+[1]Abastecimiento!AW113 -> 1.044299971 | S113: 0.1146952484
A114: BTH Fuera de Punta Medio | C114: =+[1]Abastecimiento!AH114 -> 0.946660059 | D114: =+[1]Abastecimiento!AI114 -> 0.1086990945 | E114: =+[1]Abastecimiento!AJ114 -> 7.7 | F114: =+[1]Abastecimiento!AK114 -> 6.91 | G114: =+[1]Abastecimiento!AL114 -> 0.7935033896 | I114: =+[1]Abastecimiento!AN114 -> 0.8894600029 | J114: =+[1]Abastecimiento!AO114 -> 0.02884342581 | K114: =+[1]Abastecimiento!AP114 -> 6.35 | L114: =+[1]Abastecimiento!AQ114 -> 6.15 | M114: =+[1]Abastecimiento!AR114 -> 0.1993080723 | P114: =+'Ajuste Transmisión-300'!D$47 -> 0.1098297918 | Q114: 0.06 | R114: =+[1]Abastecimiento!AW114 -> 0.05355384467 | S114: 0.005881807613
A115: BTH Fuera de Punta Bajo | C115: =+[1]Abastecimiento!AH115 -> 0.946660059 | D115: =+[1]Abastecimiento!AI115 -> 0.1086990945 | E115: =+[1]Abastecimiento!AJ115 -> 7.7 | F115: =+[1]Abastecimiento!AK115 -> 6.91 | G115: =+[1]Abastecimiento!AL115 -> 0.7935033896 | I115: =+[1]Abastecimiento!AN115 -> 0.8894600029 | J115: =+[1]Abastecimiento!AO115 -> 0.02884342581 | K115: =+[1]Abastecimiento!AP115 -> 6.35 | L115: =+[1]Abastecimiento!AQ115 -> 6.15 | M115: =+[1]Abastecimiento!AR115 -> 0.1993080723 | P115: =+'Ajuste Transmisión-300'!D$47 -> 0.1098297918 | Q115: 0.06 | R115: =+[1]Abastecimiento!AW115 -> 0.05355384467 | S115: 0.005881807613
A116: MTD | C116: =+[1]Abastecimiento!AH116 -> 0.946660059 | D116: =+[1]Abastecimiento!AI116 -> 0.1086990945 | E116: =+[1]Abastecimiento!AJ116 -> 1.51 | F116: =+[1]Abastecimiento!AK116 -> 1.35 | G116: =+[1]Abastecimiento!AL116 -> 0.1554397051 | I116: =+[1]Abastecimiento!AN116 -> 0.8894600029 | J116: =+[1]Abastecimiento!AO116 -> 0.02884342581 | K116: =+[1]Abastecimiento!AP116 -> 1.24 | L116: =+[1]Abastecimiento!AQ116 -> 1.2 | M116: =+[1]Abastecimiento!AR116 -> 0.03893862484 | P116: =+'Ajuste Transmisión-300'!D$47 -> 0.1098297918 | Q116: =+ROUND(R116+S116,2) -> 2 | R116: =+[1]Abastecimiento!AW116 -> 1.801249488 | S116: 0.1978308563
C117: =+[1]Abastecimiento!AH117 -> 0 | D117: =+[1]Abastecimiento!AI117 -> 0 | E117: =+[1]Abastecimiento!AJ117 -> 0 | F117: =+[1]Abastecimiento!AK117 -> 0 | G117: =+[1]Abastecimiento!AL117 -> 0 | I117: =+[1]Abastecimiento!AN117 -> 0 | J117: =+[1]Abastecimiento!AO117 -> 0 | K117: =+[1]Abastecimiento!AP117 -> 0 | L117: =+[1]Abastecimiento!AQ117 -> 0 | M117: =+[1]Abastecimiento!AR117 -> 0 | R117: =+[1]Abastecimiento!AW117 -> 0 | S117: 0
C118: =+[1]Abastecimiento!AH118 -> 0 | D118: =+[1]Abastecimiento!AI118 -> 0 | E118: =+[1]Abastecimiento!AJ118 -> 0 | F118: =+[1]Abastecimiento!AK118 -> 0 | G118: =+[1]Abastecimiento!AL118 -> 0 | I118: =+[1]Abastecimiento!AN118 -> 0 | J118: =+[1]Abastecimiento!AO118 -> 0 | K118: =+[1]Abastecimiento!AP118 -> 0 | L118: =+[1]Abastecimiento!AQ118 -> 0 | M118: =+[1]Abastecimiento!AR118 -> 0 | R118: =+[1]Abastecimiento!AW118 -> 0 | S118: 0
C119: =+[1]Abastecimiento!AH119 -> 0 | D119: =+[1]Abastecimiento!AI119 -> 0 | E119: =+[1]Abastecimiento!AJ119 -> 0 | F119: =+[1]Abastecimiento!AK119 -> 0 | G119: =+[1]Abastecimiento!AL119 -> 0 | I119: =+[1]Abastecimiento!AN119 -> 0 | J119: =+[1]Abastecimiento!AO119 -> 0 | K119: =+[1]Abastecimiento!AP119 -> 0 | L119: =+[1]Abastecimiento!AQ119 -> 0 | M119: =+[1]Abastecimiento!AR119 -> 0 | R119: =+[1]Abastecimiento!AW119 -> 0 | S119: 0
A120: MTH punta | C120: =+[1]Abastecimiento!AH120 -> 0.946660059 | D120: =+[1]Abastecimiento!AI120 -> 0.1086990945 | E120: =+[1]Abastecimiento!AJ120 -> 2.44 | F120: =+[1]Abastecimiento!AK120 -> 2.19 | G120: =+[1]Abastecimiento!AL120 -> 0.2510949082 | I120: =+[1]Abastecimiento!AN120 -> 0.8894600029 | J120: =+[1]Abastecimiento!AO120 -> 0.02884342581 | K120: =+[1]Abastecimiento!AP120 -> 2.01 | L120: =+[1]Abastecimiento!AQ120 -> 1.95 | M120: =+[1]Abastecimiento!AR120 -> 0.06316710252 | P120: =+'Ajuste Transmisión-300'!D$47 -> 0.1098297918 | Q120: =+ROUND(R120+S120,2) -> 2.45 | R120: =+[1]Abastecimiento!AW120 -> 2.210472106 | S120: 0.2427756913
A121: MTH fuera de punta Medio | C121: =+[1]Abastecimiento!AH121 -> 0.946660059 | D121: =+[1]Abastecimiento!AI121 -> 0.1086990945 | E121: =+[1]Abastecimiento!AJ121 -> 0.12 | F121: =+[1]Abastecimiento!AK121 -> 0.11 | G121: =+[1]Abastecimiento!AL121 -> 0.01304389134 | I121: =+[1]Abastecimiento!AN121 -> 0.8894600029 | J121: =+[1]Abastecimiento!AO121 -> 0.02884342581 | K121: =+[1]Abastecimiento!AP121 -> 0.1 | L121: =+[1]Abastecimiento!AQ121 -> 0.1 | M121: =+[1]Abastecimiento!AR121 -> 0.003172776839 | P121: =+'Ajuste Transmisión-300'!D$47 -> 0.1098297918 | Q121: 0.13 | R121: =+[1]Abastecimiento!AW121 -> 0.1133575439 | S121: 0.01245003545
A122: MTH fuera de punta Bajo | C122: =+[1]Abastecimiento!AH122 -> 0.946660059 | D122: =+[1]Abastecimiento!AI122 -> 0.1086990945 | E122: =+[1]Abastecimiento!AJ122 -> 0.12 | F122: =+[1]Abastecimiento!AK122 -> 0.11 | G122: =+[1]Abastecimiento!AL122 -> 0.01304389134 | I122: =+[1]Abastecimiento!AN122 -> 0.8894600029 | J122: =+[1]Abastecimiento!AO122 -> 0.02884342581 | K122: =+[1]Abastecimiento!AP122 -> 0.1 | L122: =+[1]Abastecimiento!AQ122 -> 0.1 | M122: =+[1]Abastecimiento!AR122 -> 0.003172776839 | P122: =+'Ajuste Transmisión-300'!D$47 -> 0.1098297918 | Q122: 0.13 | R122: =+[1]Abastecimiento!AW122 -> 0.1133575439 | S122: 0.01245003545
A123: ATD | C123: =+[1]Abastecimiento!AH123 -> 0.946660059 | D123: =+[1]Abastecimiento!AI123 -> 0.1086990945 | E123: =+[1]Abastecimiento!AJ123 -> 2.31 | F123: =+[1]Abastecimiento!AK123 -> 2.07 | G123: =+[1]Abastecimiento!AL123 -> 0.2380510169 | I123: =+[1]Abastecimiento!AN123 -> 0.8894600029 | J123: =+[1]Abastecimiento!AO123 -> 0.02884342581 | K123: =+[1]Abastecimiento!AP123 -> 1.9 | L123: =+[1]Abastecimiento!AQ123 -> 1.84 | M123: =+[1]Abastecimiento!AR123 -> 0.05970589142 | P123: =+'Ajuste Transmisión-300'!D$47 -> 0.1098297918 | Q123: =+ROUND(R123+S123,2) -> 3.07 | R123: =+[1]Abastecimiento!AW123 -> 2.764076336 | S123: 0.3035779287
A124: ATH punta | C124: =+[1]Abastecimiento!AH124 -> 0.946660059 | D124: =+[1]Abastecimiento!AI124 -> 0.1086990945 | E124: =+[1]Abastecimiento!AJ124 -> 1.04 | F124: =+[1]Abastecimiento!AK124 -> 0.93 | G124: =+[1]Abastecimiento!AL124 -> 0.1065251126 | I124: =+[1]Abastecimiento!AN124 -> 0.8894600029 | J124: =+[1]Abastecimiento!AO124 -> 0.02884342581 | K124: =+[1]Abastecimiento!AP124 -> 0.86 | L124: =+[1]Abastecimiento!AQ124 -> 0.83 | M124: =+[1]Abastecimiento!AR124 -> 0.026824386 | P124: =+'Ajuste Transmisión-300'!D$47 -> 0.1098297918 | Q124: =+ROUND(R124+S124,2) -> 1.47 | R124: =+[1]Abastecimiento!AW124 -> 1.32509695 | S124: 0.1455351222
A125: ATH fuera de punta Medio | C125: =+[1]Abastecimiento!AH125 -> 0.946660059 | D125: =+[1]Abastecimiento!AI125 -> 0.1086990945 | E125: =+[1]Abastecimiento!AJ125 -> 0.06 | F125: =+[1]Abastecimiento!AK125 -> 0.05 | G125: =+[1]Abastecimiento!AL125 -> 0.005434954723 | I125: =+[1]Abastecimiento!AN125 -> 0.8894600029 | J125: =+[1]Abastecimiento!AO125 -> 0.02884342581 | K125: =+[1]Abastecimiento!AP125 -> 0.04 | L125: =+[1]Abastecimiento!AQ125 -> 0.04 | M125: =+[1]Abastecimiento!AR125 -> 0.00144217129 | P125: =+'Ajuste Transmisión-300'!D$47 -> 0.1098297918 | Q125: =+ROUND(R125+S125,2) -> 0.07 | R125: =+[1]Abastecimiento!AW125 -> 0.06386009396 | S125: 0.007013740827
A126: ATH fuera de punta Bajo | C126: =+[1]Abastecimiento!AH126 -> 0.946660059 | D126: =+[1]Abastecimiento!AI126 -> 0.1086990945 | E126: =+[1]Abastecimiento!AJ126 -> 0.06 | F126: =+[1]Abastecimiento!AK126 -> 0.05 | G126: =+[1]Abastecimiento!AL126 -> 0.005434954723 | I126: =+[1]Abastecimiento!AN126 -> 0.8894600029 | J126: =+[1]Abastecimiento!AO126 -> 0.02884342581 | K126: =+[1]Abastecimiento!AP126 -> 0.04 | L126: =+[1]Abastecimiento!AQ126 -> 0.04 | M126: =+[1]Abastecimiento!AR126 -> 0.00144217129 | P126: =+'Ajuste Transmisión-300'!D$47 -> 0.1098297918 | Q126: =+ROUND(R126+S126,2) -> 0.07 | R126: =+[1]Abastecimiento!AW126 -> 0.06386009396 | S126: 0.007013740827
A127: Pérdidas en Transmisión | C127: =+[1]Abastecimiento!AH127 -> MODELO AT402 | D127: =+[1]Abastecimiento!AI127 -> 0 | E127: =+[1]Abastecimiento!AJ127 -> 0 | F127: =+[1]Abastecimiento!AK127 -> 0 | G127: =+[1]Abastecimiento!AL127 -> 0 | I127: =+[1]Abastecimiento!AN127 -> MODELO AT402 | J127: =+[1]Abastecimiento!AO127 -> 0 | K127: =+[1]Abastecimiento!AP127 -> 0 | L127: =+[1]Abastecimiento!AQ127 -> 0 | M127: =+[1]Abastecimiento!AR127 -> 0
A128: CPET | B128: B/./kWh | C128: =+[1]Abastecimiento!AH128 -> # 18 | D128: =+[1]Abastecimiento!AI128 -> # 19 | E128: =+[1]Abastecimiento!AJ128 -> 0 | F128: =+[1]Abastecimiento!AK128 -> 0 | G128: =+[1]Abastecimiento!AL128 -> 0 | I128: =+[1]Abastecimiento!AN128 -> # 18 | J128: =+[1]Abastecimiento!AO128 -> # 19 | K128: =+[1]Abastecimiento!AP128 -> 0 | L128: =+[1]Abastecimiento!AQ128 -> 0 | M128: =+[1]Abastecimiento!AR128 -> 0 | P128: # 19
A129: BTS (0-300) | C129: =+[1]Abastecimiento!AH129 -> 1.445647709 | D129: =+[1]Abastecimiento!AI129 -> -0.3651490755 | E129: =+[1]Abastecimiento!AJ129 -> 0.0001 | F129: =+[1]Abastecimiento!AK129 -> 0.00014 | G129: =+[1]Abastecimiento!AL129 -> -3.651490755e-05 | I129: =+[1]Abastecimiento!AN129 -> 0.5611310043 | J129: =+[1]Abastecimiento!AO129 -> -0.08167195381 | K129: =+[1]Abastecimiento!AP129 -> 7e-05 | L129: =+[1]Abastecimiento!AQ129 -> 8e-05 | M129: =+[1]Abastecimiento!AR129 -> -1.143407353e-05 | P129: =+'AjustePérd de Trans-400'!D$40 -> -0.2613877638 | Q129: =+ROUND(R129+S129,5) -> 8e-05 | R129: =+[1]Abastecimiento!AW129 -> 0.0001105084051 | S129: =+R129*P129 -> -2.888554488e-05
A130: BTS (301-750) | C130: =+[1]Abastecimiento!AH130 -> 1.445647709 | D130: =+[1]Abastecimiento!AI130 -> -0.3651490755 | E130: =+[1]Abastecimiento!AJ130 -> 0.0001 | F130: =+[1]Abastecimiento!AK130 -> 0.00014 | G130: =+[1]Abastecimiento!AL130 -> -3.651490755e-05 | I130: =+[1]Abastecimiento!AN130 -> 0.5611310043 | J130: =+[1]Abastecimiento!AO130 -> -0.08167195381 | K130: =+[1]Abastecimiento!AP130 -> 7e-05 | L130: =+[1]Abastecimiento!AQ130 -> 8e-05 | M130: =+[1]Abastecimiento!AR130 -> -1.143407353e-05 | P130: =+'AjustePérd de Trans-400'!D$40 -> -0.2613877638 | Q130: 8e-05 | R130: =+[1]Abastecimiento!AW130 -> 0.0001105084051 | S130: -2.888554488e-05
A131: BTS (750-más) | C131: =+[1]Abastecimiento!AH131 -> 1.445647709 | D131: =+[1]Abastecimiento!AI131 -> -0.3651490755 | E131: =+[1]Abastecimiento!AJ131 -> 0.0001 | F131: =+[1]Abastecimiento!AK131 -> 0.00014 | G131: =+[1]Abastecimiento!AL131 -> -3.651490755e-05 | I131: =+[1]Abastecimiento!AN131 -> 0.5611310043 | J131: =+[1]Abastecimiento!AO131 -> -0.08167195381 | K131: =+[1]Abastecimiento!AP131 -> 7e-05 | L131: =+[1]Abastecimiento!AQ131 -> 8e-05 | M131: =+[1]Abastecimiento!AR131 -> -1.143407353e-05 | P131: =+'AjustePérd de Trans-400'!D$40 -> -0.2613877638 | Q131: 8e-05 | R131: =+[1]Abastecimiento!AW131 -> 0.0001105084051 | S131: -2.888554488e-05
A132: BTD (0-10,000) | C132: =+[1]Abastecimiento!AH132 -> 1.445647709 | D132: =+[1]Abastecimiento!AI132 -> -0.3651490755 | E132: =+[1]Abastecimiento!AJ132 -> 0.0001 | F132: =+[1]Abastecimiento!AK132 -> 0.00014 | G132: =+[1]Abastecimiento!AL132 -> -3.651490755e-05 | I132: =+[1]Abastecimiento!AN132 -> 0.5611310043 | J132: =+[1]Abastecimiento!AO132 -> -0.08167195381 | K132: =+[1]Abastecimiento!AP132 -> 7e-05 | L132: =+[1]Abastecimiento!AQ132 -> 8e-05 | M132: =+[1]Abastecimiento!AR132 -> -1.143407353e-05 | P132: =+'AjustePérd de Trans-400'!D$40 -> -0.2613877638 | Q132: 8e-05 | R132: =+[1]Abastecimiento!AW132 -> 0.0001116467972 | S132: -2.918310666e-05
A133: BTD (10,001-30,000) | C133: =+[1]Abastecimiento!AH133 -> 1.445647709 | D133: =+[1]Abastecimiento!AI133 -> -0.3651490755 | E133: =+[1]Abastecimiento!AJ133 -> 0.0001 | F133: =+[1]Abastecimiento!AK133 -> 0.00014 | G133: =+[1]Abastecimiento!AL133 -> -3.651490755e-05 | I133: =+[1]Abastecimiento!AN133 -> 0.5611310043 | J133: =+[1]Abastecimiento!AO133 -> -0.08167195381 | K133: =+[1]Abastecimiento!AP133 -> 7e-05 | L133: =+[1]Abastecimiento!AQ133 -> 8e-05 | M133: =+[1]Abastecimiento!AR133 -> -1.143407353e-05 | P133: =+'AjustePérd de Trans-400'!D$40 -> -0.2613877638 | Q133: 8e-05 | R133: =+[1]Abastecimiento!AW133 -> 0.0001116467972 | S133: -2.918310666e-05
A134: BTD (30,001-50,000) | C134: =+[1]Abastecimiento!AH134 -> 1.445647709 | D134: =+[1]Abastecimiento!AI134 -> -0.3651490755 | E134: =+[1]Abastecimiento!AJ134 -> 0.0001 | F134: =+[1]Abastecimiento!AK134 -> 0.00014 | G134: =+[1]Abastecimiento!AL134 -> -3.651490755e-05 | I134: =+[1]Abastecimiento!AN134 -> 0.5611310043 | J134: =+[1]Abastecimiento!AO134 -> -0.08167195381 | K134: =+[1]Abastecimiento!AP134 -> 7e-05 | L134: =+[1]Abastecimiento!AQ134 -> 8e-05 | M134: =+[1]Abastecimiento!AR134 -> -1.143407353e-05 | P134: =+'AjustePérd de Trans-400'!D$40 -> -0.2613877638 | Q134: 8e-05 | R134: =+[1]Abastecimiento!AW134 -> 0.0001116467972 | S134: -2.918310666e-05
A135: BTD (50,001-más) | C135: =+[1]Abastecimiento!AH135 -> 1.445647709 | D135: =+[1]Abastecimiento!AI135 -> -0.3651490755 | E135: =+[1]Abastecimiento!AJ135 -> 0.0001 | F135: =+[1]Abastecimiento!AK135 -> 0.00014 | G135: =+[1]Abastecimiento!AL135 -> -3.651490755e-05 | I135: =+[1]Abastecimiento!AN135 -> 0.5611310043 | J135: =+[1]Abastecimiento!AO135 -> -0.08167195381 | K135: =+[1]Abastecimiento!AP135 -> 7e-05 | L135: =+[1]Abastecimiento!AQ135 -> 8e-05 | M135: =+[1]Abastecimiento!AR135 -> -1.143407353e-05 | P135: =+'AjustePérd de Trans-400'!D$40 -> -0.2613877638 | Q135: 8e-05 | R135: =+[1]Abastecimiento!AW135 -> 0.0001116467972 | S135: -2.918310666e-05
A136: BTH | C136: =+[1]Abastecimiento!AH136 -> 1.445647709 | D136: =+[1]Abastecimiento!AI136 -> -0.3651490755 | E136: =+[1]Abastecimiento!AJ136 -> 0.0001 | F136: =+[1]Abastecimiento!AK136 -> 0.00014 | G136: =+[1]Abastecimiento!AL136 -> -3.651490755e-05 | I136: =+[1]Abastecimiento!AN136 -> 0.5611310043 | J136: =+[1]Abastecimiento!AO136 -> -0.08167195381 | K136: =+[1]Abastecimiento!AP136 -> 7e-05 | L136: =+[1]Abastecimiento!AQ136 -> 8e-05 | M136: =+[1]Abastecimiento!AR136 -> -1.143407353e-05 | P136: =+'AjustePérd de Trans-400'!D$40 -> -0.2613877638 | Q136: 8e-05 | R136: =+[1]Abastecimiento!AW136 -> 0.0001116467972 | S136: -2.918310666e-05
A137: MTD | C137: =+[1]Abastecimiento!AH137 -> 1.445647709 | D137: =+[1]Abastecimiento!AI137 -> -0.3651490755 | E137: =+[1]Abastecimiento!AJ137 -> 0.0001 | F137: =+[1]Abastecimiento!AK137 -> 0.00014 | G137: =+[1]Abastecimiento!AL137 -> -3.651490755e-05 | I137: =+[1]Abastecimiento!AN137 -> 0.5611310043 | J137: =+[1]Abastecimiento!AO137 -> -0.08167195381 | K137: =+[1]Abastecimiento!AP137 -> 7e-05 | L137: =+[1]Abastecimiento!AQ137 -> 8e-05 | M137: =+[1]Abastecimiento!AR137 -> -1.143407353e-05 | P137: =+'AjustePérd de Trans-400'!D$40 -> -0.2613877638 | Q137: 8e-05 | R137: =+[1]Abastecimiento!AW137 -> 0.0001116467972 | S137: -2.918310666e-05
A138: MTD | C138: =+[1]Abastecimiento!AH138 -> 0 | D138: =+[1]Abastecimiento!AI138 -> 0 | E138: =+[1]Abastecimiento!AJ138 -> 0 | F138: =+[1]Abastecimiento!AK138 -> 0 | G138: =+[1]Abastecimiento!AL138 -> 0 | I138: =+[1]Abastecimiento!AN138 -> 0 | J138: =+[1]Abastecimiento!AO138 -> 0 | K138: =+[1]Abastecimiento!AP138 -> 0 | L138: =+[1]Abastecimiento!AQ138 -> 0 | M138: =+[1]Abastecimiento!AR138 -> 0 | R138: =+[1]Abastecimiento!AW138 -> 0.0001116467972 | S138: 0
A139: MTD | C139: =+[1]Abastecimiento!AH139 -> 0 | D139: =+[1]Abastecimiento!AI139 -> 0 | E139: =+[1]Abastecimiento!AJ139 -> 0 | F139: =+[1]Abastecimiento!AK139 -> 0 | G139: =+[1]Abastecimiento!AL139 -> 0 | I139: =+[1]Abastecimiento!AN139 -> 0 | J139: =+[1]Abastecimiento!AO139 -> 0 | K139: =+[1]Abastecimiento!AP139 -> 0 | L139: =+[1]Abastecimiento!AQ139 -> 0 | M139: =+[1]Abastecimiento!AR139 -> 0 | R139: =+[1]Abastecimiento!AW139 -> 0.0001116467972 | S139: 0
A140: MTD | C140: =+[1]Abastecimiento!AH140 -> 0 | D140: =+[1]Abastecimiento!AI140 -> 0 | E140: =+[1]Abastecimiento!AJ140 -> 0 | F140: =+[1]Abastecimiento!AK140 -> 0 | G140: =+[1]Abastecimiento!AL140 -> 0 | I140: =+[1]Abastecimiento!AN140 -> 0 | J140: =+[1]Abastecimiento!AO140 -> 0 | K140: =+[1]Abastecimiento!AP140 -> 0 | L140: =+[1]Abastecimiento!AQ140 -> 0 | M140: =+[1]Abastecimiento!AR140 -> 0 | R140: =+[1]Abastecimiento!AW140 -> 0.0001116467972 | S140: 0
A141: MTH | C141: =+[1]Abastecimiento!AH141 -> 1.445647709 | D141: =+[1]Abastecimiento!AI141 -> -0.3651490755 | E141: =+[1]Abastecimiento!AJ141 -> 0.0001 | F141: =+[1]Abastecimiento!AK141 -> 0.00014 | G141: =+[1]Abastecimiento!AL141 -> -3.651490755e-05 | I141: =+[1]Abastecimiento!AN141 -> 0.5611310043 | J141: =+[1]Abastecimiento!AO141 -> -0.08167195381 | K141: =+[1]Abastecimiento!AP141 -> 7e-05 | L141: =+[1]Abastecimiento!AQ141 -> 8e-05 | M141: =+[1]Abastecimiento!AR141 -> -1.143407353e-05 | P141: =+'AjustePérd de Trans-400'!D$40 -> -0.2613877638 | Q141: =+ROUND(R141+S141,5) -> 8e-05 | R141: =+[1]Abastecimiento!AW141 -> 0.0001116467972 | S141: -2.918310666e-05
A142: ATD | C142: =+[1]Abastecimiento!AH142 -> 1.445647709 | D142: =+[1]Abastecimiento!AI142 -> -0.3651490755 | E142: =+[1]Abastecimiento!AJ142 -> 0.0001 | F142: =+[1]Abastecimiento!AK142 -> 0.00014 | G142: =+[1]Abastecimiento!AL142 -> -3.651490755e-05 | I142: =+[1]Abastecimiento!AN142 -> 0.5611310043 | J142: =+[1]Abastecimiento!AO142 -> -0.08167195381 | K142: =+[1]Abastecimiento!AP142 -> 7e-05 | L142: =+[1]Abastecimiento!AQ142 -> 8e-05 | M142: =+[1]Abastecimiento!AR142 -> -1.143407353e-05 | P142: =+'AjustePérd de Trans-400'!D$40 -> -0.2613877638 | Q142: 8e-05 | R142: =+[1]Abastecimiento!AW142 -> 0.0001116467972 | S142: -2.918310666e-05
A143: ATH | C143: =+[1]Abastecimiento!AH143 -> 1.445647709 | D143: =+[1]Abastecimiento!AI143 -> -0.3651490755 | E143: =+[1]Abastecimiento!AJ143 -> 0.0001 | F143: =+[1]Abastecimiento!AK143 -> 0.00014 | G143: =+[1]Abastecimiento!AL143 -> -3.651490755e-05 | I143: =+[1]Abastecimiento!AN143 -> 0.5611310043 | J143: =+[1]Abastecimiento!AO143 -> -0.08167195381 | K143: =+[1]Abastecimiento!AP143 -> 7e-05 | L143: =+[1]Abastecimiento!AQ143 -> 8e-05 | M143: =+[1]Abastecimiento!AR143 -> -1.143407353e-05 | P143: =+'AjustePérd de Trans-400'!D$40 -> -0.2613877638 | Q143: 8e-05 | R143: =+[1]Abastecimiento!AW143 -> 0.0001116467972 | S143: -2.918310666e-05
A144: Generación | C144: =+[1]Abastecimiento!AH144 -> MODELO AT502 | D144: =+[1]Abastecimiento!AI144 -> 0 | E144: =+[1]Abastecimiento!AJ144 -> 0 | F144: =+[1]Abastecimiento!AK144 -> 0 | G144: =+[1]Abastecimiento!AL144 -> 0 | I144: =+[1]Abastecimiento!AN144 -> MODELO AT502 | J144: =+[1]Abastecimiento!AO144 -> 0 | K144: =+[1]Abastecimiento!AP144 -> 0 | L144: =+[1]Abastecimiento!AQ144 -> 0 | M144: =+[1]Abastecimiento!AR144 -> 0
A145: CPGENGC | B145: B/./Kw | C145: =+[1]Abastecimiento!AH145 -> 0 | D145: =+[1]Abastecimiento!AI145 -> 0 | E145: =+[1]Abastecimiento!AJ145 -> 0 | F145: =+[1]Abastecimiento!AK145 -> 0 | G145: =+[1]Abastecimiento!AL145 -> 0 | I145: =+[1]Abastecimiento!AN145 -> 0 | J145: =+[1]Abastecimiento!AO145 -> 0 | K145: =+[1]Abastecimiento!AP145 -> 0 | L145: =+[1]Abastecimiento!AQ145 -> 0 | M145: =+[1]Abastecimiento!AR145 -> 0
A146: BTD | C146: =+[1]Abastecimiento!AH146 -> 0 | D146: =+[1]Abastecimiento!AI146 -> 0 | E146: =+[1]Abastecimiento!AJ146 -> 12 | F146: =+[1]Abastecimiento!AK146 -> 12 | G146: =+[1]Abastecimiento!AL146 -> 0 | I146: =+[1]Abastecimiento!AN146 -> 0 | J146: =+[1]Abastecimiento!AO146 -> 0 | K146: =+[1]Abastecimiento!AP146 -> 12 | L146: =+[1]Abastecimiento!AQ146 -> 12 | M146: =+[1]Abastecimiento!AR146 -> 0 | Q146: 16 | R146: =+[1]Abastecimiento!AW146 -> 16
A147: BTH | C147: =+[1]Abastecimiento!AH147 -> 0 | D147: =+[1]Abastecimiento!AI147 -> 0 | E147: =+[1]Abastecimiento!AJ147 -> 12 | F147: =+[1]Abastecimiento!AK147 -> 12 | G147: =+[1]Abastecimiento!AL147 -> 0 | I147: =+[1]Abastecimiento!AN147 -> 0 | J147: =+[1]Abastecimiento!AO147 -> 0 | K147: =+[1]Abastecimiento!AP147 -> 12 | L147: =+[1]Abastecimiento!AQ147 -> 12 | M147: =+[1]Abastecimiento!AR147 -> 0 | Q147: 16 | R147: =+[1]Abastecimiento!AW147 -> 16
A148: MTD | C148: =+[1]Abastecimiento!AH148 -> 0 | D148: =+[1]Abastecimiento!AI148 -> 0 | E148: =+[1]Abastecimiento!AJ148 -> 12 | F148: =+[1]Abastecimiento!AK148 -> 12 | G148: =+[1]Abastecimiento!AL148 -> 0 | I148: =+[1]Abastecimiento!AN148 -> 0 | J148: =+[1]Abastecimiento!AO148 -> 0 | K148: =+[1]Abastecimiento!AP148 -> 12 | L148: =+[1]Abastecimiento!AQ148 -> 12 | M148: =+[1]Abastecimiento!AR148 -> 0 | Q148: 16 | R148: =+[1]Abastecimiento!AW148 -> 16
A149: MTH | C149: =+[1]Abastecimiento!AH149 -> 0 | D149: =+[1]Abastecimiento!AI149 -> 0 | E149: =+[1]Abastecimiento!AJ149 -> 12 | F149: =+[1]Abastecimiento!AK149 -> 12 | G149: =+[1]Abastecimiento!AL149 -> 0 | I149: =+[1]Abastecimiento!AN149 -> 0 | J149: =+[1]Abastecimiento!AO149 -> 0 | K149: =+[1]Abastecimiento!AP149 -> 12 | L149: =+[1]Abastecimiento!AQ149 -> 12 | M149: =+[1]Abastecimiento!AR149 -> 0 | Q149: 16 | R149: =+[1]Abastecimiento!AW149 -> 16
A150: ATD | C150: =+[1]Abastecimiento!AH150 -> 0 | D150: =+[1]Abastecimiento!AI150 -> 0 | E150: =+[1]Abastecimiento!AJ150 -> 12 | F150: =+[1]Abastecimiento!AK150 -> 12 | G150: =+[1]Abastecimiento!AL150 -> 0 | I150: =+[1]Abastecimiento!AN150 -> 0 | J150: =+[1]Abastecimiento!AO150 -> 0 | K150: =+[1]Abastecimiento!AP150 -> 12 | L150: =+[1]Abastecimiento!AQ150 -> 12 | M150: =+[1]Abastecimiento!AR150 -> 0 | Q150: 16 | R150: =+[1]Abastecimiento!AW150 -> 16
A151: ATH | C151: =+[1]Abastecimiento!AH151 -> 0 | D151: =+[1]Abastecimiento!AI151 -> 0 | E151: =+[1]Abastecimiento!AJ151 -> 12 | F151: =+[1]Abastecimiento!AK151 -> 12 | G151: =+[1]Abastecimiento!AL151 -> 0 | I151: =+[1]Abastecimiento!AN151 -> 0 | J151: =+[1]Abastecimiento!AO151 -> 0 | K151: =+[1]Abastecimiento!AP151 -> 12 | L151: =+[1]Abastecimiento!AQ151 -> 12 | M151: =+[1]Abastecimiento!AR151 -> 0 | Q151: 16 | R151: =+[1]Abastecimiento!AW151 -> 16
C152: =+[1]Abastecimiento!AH152 -> 0 | D152: =+[1]Abastecimiento!AI152 -> 0 | E152: =+[1]Abastecimiento!AJ152 -> 0 | F152: =+[1]Abastecimiento!AK152 -> 0 | G152: =+[1]Abastecimiento!AL152 -> 0 | I152: =+[1]Abastecimiento!AN152 -> 0 | J152: =+[1]Abastecimiento!AO152 -> 0 | K152: =+[1]Abastecimiento!AP152 -> 0 | L152: =+[1]Abastecimiento!AQ152 -> 0 | M152: =+[1]Abastecimiento!AR152 -> 0
A153: CPOTGEN | B153: B/./kWh o B/./kW | C153: =+[1]Abastecimiento!AH153 -> # 28 | D153: =+[1]Abastecimiento!AI153 -> 0 | E153: =+[1]Abastecimiento!AJ153 -> 0 | F153: =+[1]Abastecimiento!AK153 -> 0 | G153: =+[1]Abastecimiento!AL153 -> 0 | I153: =+[1]Abastecimiento!AN153 -> # 28 | J153: =+[1]Abastecimiento!AO153 -> 0 | K153: =+[1]Abastecimiento!AP153 -> 0 | L153: =+[1]Abastecimiento!AQ153 -> 0 | M153: =+[1]Abastecimiento!AR153 -> 0
A154: BTS (0-300) | C154: =+[1]Abastecimiento!AH154 -> 1 | D154: =+[1]Abastecimiento!AI154 -> 0 | E154: =+[1]Abastecimiento!AJ154 -> 0.02777 | F154: =+[1]Abastecimiento!AK154 -> 0.02777 | G154: =+[1]Abastecimiento!AL154 -> 0 | I154: =+[1]Abastecimiento!AN154 -> 1 | J154: =+[1]Abastecimiento!AO154 -> 0 | K154: =+[1]Abastecimiento!AP154 -> 0.02777 | L154: =+[1]Abastecimiento!AQ154 -> 0.02777 | M154: =+[1]Abastecimiento!AR154 -> 0 | P154: 0 | Q154: =+ROUND(R154+S154,5) -> 0.01765 | R154: =+[1]Abastecimiento!AW154 -> 0.01764814389 | S154: =+ROUND(R154*P154,5) -> 0
A155: BTS (301-750) | C155: =+[1]Abastecimiento!AH155 -> 1 | D155: =+[1]Abastecimiento!AI155 -> 0 | E155: =+[1]Abastecimiento!AJ155 -> 0.03699 | F155: =+[1]Abastecimiento!AK155 -> 0.03699 | G155: =+[1]Abastecimiento!AL155 -> 0 | I155: =+[1]Abastecimiento!AN155 -> 1 | J155: =+[1]Abastecimiento!AO155 -> 0 | K155: =+[1]Abastecimiento!AP155 -> 0.03699 | L155: =+[1]Abastecimiento!AQ155 -> 0.03699 | M155: =+[1]Abastecimiento!AR155 -> 0 | P155: 0 | Q155: 0.02975 | R155: =+[1]Abastecimiento!AW155 -> 0.0297548665 | S155: 0
A156: BTS (750-más) | C156: =+[1]Abastecimiento!AH156 -> 1 | D156: =+[1]Abastecimiento!AI156 -> 0 | E156: =+[1]Abastecimiento!AJ156 -> 0.04724 | F156: =+[1]Abastecimiento!AK156 -> 0.04724 | G156: =+[1]Abastecimiento!AL156 -> 0 | I156: =+[1]Abastecimiento!AN156 -> 1 | J156: =+[1]Abastecimiento!AO156 -> 0 | K156: =+[1]Abastecimiento!AP156 -> 0.04724 | L156: =+[1]Abastecimiento!AQ156 -> 0.04724 | M156: =+[1]Abastecimiento!AR156 -> 0 | P156: 0 | Q156: 0.0531 | R156: =+[1]Abastecimiento!AW156 -> 0.05310029162 | S156: 0
A157: BTD (0-10,000) | C157: =+[1]Abastecimiento!AH157 -> 1 | D157: =+[1]Abastecimiento!AI157 -> 0 | E157: =+[1]Abastecimiento!AJ157 -> 0.01655 | F157: =+[1]Abastecimiento!AK157 -> 0.01655 | G157: =+[1]Abastecimiento!AL157 -> 0 | I157: =+[1]Abastecimiento!AN157 -> 1 | J157: =+[1]Abastecimiento!AO157 -> 0 | K157: =+[1]Abastecimiento!AP157 -> 0.01655 | L157: =+[1]Abastecimiento!AQ157 -> 0.01655 | M157: =+[1]Abastecimiento!AR157 -> 0 | P157: 0 | Q157: 0.04251 | R157: =+[1]Abastecimiento!AW157 -> 0.04250882819 | S157: 0
A158: BTD (10,001-30,000) | C158: =+[1]Abastecimiento!AH158 -> 1 | D158: =+[1]Abastecimiento!AI158 -> 0 | E158: =+[1]Abastecimiento!AJ158 -> 0.01782 | F158: =+[1]Abastecimiento!AK158 -> 0.01782 | G158: =+[1]Abastecimiento!AL158 -> 0 | I158: =+[1]Abastecimiento!AN158 -> 1 | J158: =+[1]Abastecimiento!AO158 -> 0 | K158: =+[1]Abastecimiento!AP158 -> 0.01782 | L158: =+[1]Abastecimiento!AQ158 -> 0.01782 | M158: =+[1]Abastecimiento!AR158 -> 0 | P158: 0 | Q158: 0.04577 | R158: =+[1]Abastecimiento!AW158 -> 0.04577083494 | S158: 0
A159: BTD (30,001-50,000) | C159: =+[1]Abastecimiento!AH159 -> 1 | D159: =+[1]Abastecimiento!AI159 -> 0 | E159: =+[1]Abastecimiento!AJ159 -> 0.01869 | F159: =+[1]Abastecimiento!AK159 -> 0.01869 | G159: =+[1]Abastecimiento!AL159 -> 0 | I159: =+[1]Abastecimiento!AN159 -> 1 | J159: =+[1]Abastecimiento!AO159 -> 0 | K159: =+[1]Abastecimiento!AP159 -> 0.01869 | L159: =+[1]Abastecimiento!AQ159 -> 0.01869 | M159: =+[1]Abastecimiento!AR159 -> 0 | P159: 0 | Q159: 0.04801 | R159: =+[1]Abastecimiento!AW159 -> 0.04800543799 | S159: 0
A160: BTD (50,001-más) | C160: =+[1]Abastecimiento!AH160 -> 1 | D160: =+[1]Abastecimiento!AI160 -> 0 | E160: =+[1]Abastecimiento!AJ160 -> 0.02274 | F160: =+[1]Abastecimiento!AK160 -> 0.02274 | G160: =+[1]Abastecimiento!AL160 -> 0 | I160: =+[1]Abastecimiento!AN160 -> 1 | J160: =+[1]Abastecimiento!AO160 -> 0 | K160: =+[1]Abastecimiento!AP160 -> 0.02274 | L160: =+[1]Abastecimiento!AQ160 -> 0.02274 | M160: =+[1]Abastecimiento!AR160 -> 0 | P160: 0 | Q160: 0.05841 | R160: =+[1]Abastecimiento!AW160 -> 0.05840790048 | S160: 0
A161: BTD | C161: =+[1]Abastecimiento!AH161 -> 1 | D161: =+[1]Abastecimiento!AI161 -> 0 | E161: =+[1]Abastecimiento!AJ161 -> 0.92 | F161: =+[1]Abastecimiento!AK161 -> 0.92 | G161: =+[1]Abastecimiento!AL161 -> 0 | I161: =+[1]Abastecimiento!AN161 -> 1 | J161: =+[1]Abastecimiento!AO161 -> 0 | K161: =+[1]Abastecimiento!AP161 -> 0.92 | L161: =+[1]Abastecimiento!AQ161 -> 0.92 | M161: =+[1]Abastecimiento!AR161 -> 0 | P161: 0 | Q161: =+ROUND(R161+S161,2) -> 2.47 | R161: =+[1]Abastecimiento!AW161 -> 2.471294015 | S161: 0
A162: BTH | C162: =+[1]Abastecimiento!AH162 -> 1 | D162: =+[1]Abastecimiento!AI162 -> 0 | E162: =+[1]Abastecimiento!AJ162 -> 0.00051 | F162: =+[1]Abastecimiento!AK162 -> 0.00051 | G162: =+[1]Abastecimiento!AL162 -> 0 | I162: =+[1]Abastecimiento!AN162 -> 1 | J162: =+[1]Abastecimiento!AO162 -> 0 | K162: =+[1]Abastecimiento!AP162 -> 0.00051 | L162: =+[1]Abastecimiento!AQ162 -> 0.00051 | M162: =+[1]Abastecimiento!AR162 -> 0 | P162: 0 | Q162: =+ROUND(R162+S162,5) -> 0.03802 | R162: =+[1]Abastecimiento!AW162 -> 0.0380152724 | S162: =+R162*P162 -> 0
C163: =+[1]Abastecimiento!AH163 -> 1 | D163: =+[1]Abastecimiento!AI163 -> 0 | E163: =+[1]Abastecimiento!AJ163 -> 0.00051 | F163: =+[1]Abastecimiento!AK163 -> 0.00051 | G163: =+[1]Abastecimiento!AL163 -> 0 | I163: =+[1]Abastecimiento!AN163 -> 1 | J163: =+[1]Abastecimiento!AO163 -> 0 | K163: =+[1]Abastecimiento!AP163 -> 0.00051 | L163: =+[1]Abastecimiento!AQ163 -> 0.00051 | M163: =+[1]Abastecimiento!AR163 -> 0 | P163: 0 | Q163: 0.03802 | R163: =+[1]Abastecimiento!AW163 -> 0.0380152724 | S163: =+R163*P163 -> 0
C164: =+[1]Abastecimiento!AH164 -> 1 | D164: =+[1]Abastecimiento!AI164 -> 0 | E164: =+[1]Abastecimiento!AJ164 -> 0.00051 | F164: =+[1]Abastecimiento!AK164 -> 0.00051 | G164: =+[1]Abastecimiento!AL164 -> 0 | I164: =+[1]Abastecimiento!AN164 -> 1 | J164: =+[1]Abastecimiento!AO164 -> 0 | K164: =+[1]Abastecimiento!AP164 -> 0.00051 | L164: =+[1]Abastecimiento!AQ164 -> 0.00051 | M164: =+[1]Abastecimiento!AR164 -> 0 | P164: 0 | Q164: 0.03802 | R164: =+[1]Abastecimiento!AW164 -> 0.0380152724 | S164: =+R164*P164 -> 0
A165: BTH | C165: =+[1]Abastecimiento!AH165 -> 1 | D165: =+[1]Abastecimiento!AI165 -> 0 | E165: =+[1]Abastecimiento!AJ165 -> 0.04 | F165: =+[1]Abastecimiento!AK165 -> 0.04 | G165: =+[1]Abastecimiento!AL165 -> 0 | I165: =+[1]Abastecimiento!AN165 -> 1 | J165: =+[1]Abastecimiento!AO165 -> 0 | K165: =+[1]Abastecimiento!AP165 -> 0.04 | L165: =+[1]Abastecimiento!AQ165 -> 0.04 | M165: =+[1]Abastecimiento!AR165 -> 0 | P165: 0 | Q165: =+ROUND(R165+S165,2) -> 2.85 | R165: =+[1]Abastecimiento!AW165 -> 2.852297942 | S165: =+ROUND(R165*P165,2) -> 0
C166: =+[1]Abastecimiento!AH166 -> 1 | D166: =+[1]Abastecimiento!AI166 -> 0 | E166: =+[1]Abastecimiento!AJ166 -> 0 | F166: =+[1]Abastecimiento!AK166 -> 0 | G166: =+[1]Abastecimiento!AL166 -> 0 | I166: =+[1]Abastecimiento!AN166 -> 1 | J166: =+[1]Abastecimiento!AO166 -> 0 | K166: =+[1]Abastecimiento!AP166 -> 0 | L166: =+[1]Abastecimiento!AQ166 -> 0 | M166: =+[1]Abastecimiento!AR166 -> 0 | P166: 0 | Q166: =+ROUND(R166+S166,2) -> 0 | R166: =+[1]Abastecimiento!AW166 -> 0 | S166: =+ROUND(R166*P166,2) -> 0
C167: =+[1]Abastecimiento!AH167 -> 1 | D167: =+[1]Abastecimiento!AI167 -> 0 | E167: =+[1]Abastecimiento!AJ167 -> 0 | F167: =+[1]Abastecimiento!AK167 -> 0 | G167: =+[1]Abastecimiento!AL167 -> 0 | I167: =+[1]Abastecimiento!AN167 -> 1 | J167: =+[1]Abastecimiento!AO167 -> 0 | K167: =+[1]Abastecimiento!AP167 -> 0 | L167: =+[1]Abastecimiento!AQ167 -> 0 | M167: =+[1]Abastecimiento!AR167 -> 0 | P167: 0 | Q167: =+ROUND(R167+S167,2) -> 0 | R167: =+[1]Abastecimiento!AW167 -> 0 | S167: =+ROUND(R167*P167,2) -> 0
A168: MTD | C168: =+[1]Abastecimiento!AH168 -> 1 | D168: =+[1]Abastecimiento!AI168 -> 0 | E168: =+[1]Abastecimiento!AJ168 -> 0.0158 | F168: =+[1]Abastecimiento!AK168 -> 0.0158 | G168: =+[1]Abastecimiento!AL168 -> 0 | I168: =+[1]Abastecimiento!AN168 -> 1 | J168: =+[1]Abastecimiento!AO168 -> 0 | K168: =+[1]Abastecimiento!AP168 -> 0.0158 | L168: =+[1]Abastecimiento!AQ168 -> 0.0158 | M168: =+[1]Abastecimiento!AR168 -> 0 | P168: 0 | Q168: =+ROUND(R168+S168,5) -> 0.0532 | R168: =+[1]Abastecimiento!AW168 -> 0.05319904436 | S168: =+ROUND(R168*P168,5) -> 0
A169: MTD | C169: =+[1]Abastecimiento!AH169 -> 1 | D169: =+[1]Abastecimiento!AI169 -> 0 | E169: =+[1]Abastecimiento!AJ169 -> 0.0158 | F169: =+[1]Abastecimiento!AK169 -> 0.0158 | G169: =+[1]Abastecimiento!AL169 -> 0 | I169: =+[1]Abastecimiento!AN169 -> 1 | J169: =+[1]Abastecimiento!AO169 -> 0 | K169: =+[1]Abastecimiento!AP169 -> 0.0158 | L169: =+[1]Abastecimiento!AQ169 -> 0.0158 | M169: =+[1]Abastecimiento!AR169 -> 0 | P169: 0 | Q169: =+ROUND(R169+S169,5) -> 0 | R169: =+[1]Abastecimiento!AW169 -> 0 | S169: =+ROUND(R169*P169,5) -> 0
A170: MTD | C170: =+[1]Abastecimiento!AH170 -> 1 | D170: =+[1]Abastecimiento!AI170 -> 0 | E170: =+[1]Abastecimiento!AJ170 -> 0.0158 | F170: =+[1]Abastecimiento!AK170 -> 0.0158 | G170: =+[1]Abastecimiento!AL170 -> 0 | I170: =+[1]Abastecimiento!AN170 -> 1 | J170: =+[1]Abastecimiento!AO170 -> 0 | K170: =+[1]Abastecimiento!AP170 -> 0.0158 | L170: =+[1]Abastecimiento!AQ170 -> 0.0158 | M170: =+[1]Abastecimiento!AR170 -> 0 | P170: 0 | Q170: =+ROUND(R170+S170,5) -> 0 | R170: =+[1]Abastecimiento!AW170 -> 0 | S170: =+ROUND(R170*P170,5) -> 0
A171: MTD | C171: =+[1]Abastecimiento!AH171 -> 1 | D171: =+[1]Abastecimiento!AI171 -> 0 | E171: =+[1]Abastecimiento!AJ171 -> 0.0158 | F171: =+[1]Abastecimiento!AK171 -> 0.0158 | G171: =+[1]Abastecimiento!AL171 -> 0 | I171: =+[1]Abastecimiento!AN171 -> 1 | J171: =+[1]Abastecimiento!AO171 -> 0 | K171: =+[1]Abastecimiento!AP171 -> 0.0158 | L171: =+[1]Abastecimiento!AQ171 -> 0.0158 | M171: =+[1]Abastecimiento!AR171 -> 0 | P171: 0 | Q171: =+ROUND(R171+S171,5) -> 0 | R171: =+[1]Abastecimiento!AW171 -> 0 | S171: =+ROUND(R171*P171,5) -> 0
A172: MTD | C172: =+[1]Abastecimiento!AH172 -> 1 | D172: =+[1]Abastecimiento!AI172 -> 0 | E172: =+[1]Abastecimiento!AJ172 -> 0.98 | F172: =+[1]Abastecimiento!AK172 -> 0.98 | G172: =+[1]Abastecimiento!AL172 -> 0 | I172: =+[1]Abastecimiento!AN172 -> 1 | J172: =+[1]Abastecimiento!AO172 -> 0 | K172: =+[1]Abastecimiento!AP172 -> 0.98 | L172: =+[1]Abastecimiento!AQ172 -> 0.98 | M172: =+[1]Abastecimiento!AR172 -> 0 | P172: 0 | Q172: =+ROUND(R172+S172,2) -> 3.43 | R172: =+[1]Abastecimiento!AW172 -> 3.426437129 | S172: =+ROUND(R172*P172,2) -> 0
A173: MTH | C173: =+[1]Abastecimiento!AH173 -> 1 | D173: =+[1]Abastecimiento!AI173 -> 0 | E173: =+[1]Abastecimiento!AJ173 -> 1e-05 | F173: =+[1]Abastecimiento!AK173 -> 1e-05 | G173: =+[1]Abastecimiento!AL173 -> 0 | I173: =+[1]Abastecimiento!AN173 -> 1 | J173: =+[1]Abastecimiento!AO173 -> 0 | K173: =+[1]Abastecimiento!AP173 -> 1e-05 | L173: =+[1]Abastecimiento!AQ173 -> 1e-05 | M173: =+[1]Abastecimiento!AR173 -> 0 | P173: 0 | Q173: =+ROUND(R173+S173,5) -> 0.0167 | R173: =+[1]Abastecimiento!AW173 -> 0.01669920665 | S173: =+ROUND(R173*P173,5) -> 0
C174: =+[1]Abastecimiento!AH174 -> 1 | D174: =+[1]Abastecimiento!AI174 -> 0 | E174: =+[1]Abastecimiento!AJ174 -> 1e-05 | F174: =+[1]Abastecimiento!AK174 -> 1e-05 | G174: =+[1]Abastecimiento!AL174 -> 0 | I174: =+[1]Abastecimiento!AN174 -> 1 | J174: =+[1]Abastecimiento!AO174 -> 0 | K174: =+[1]Abastecimiento!AP174 -> 1e-05 | L174: =+[1]Abastecimiento!AQ174 -> 1e-05 | M174: =+[1]Abastecimiento!AR174 -> 0 | P174: 0 | Q174: =+ROUND(R174+S174,5) -> 0.0167 | R174: =+[1]Abastecimiento!AW174 -> 0.01669920665 | S174: =+ROUND(R174*P174,5) -> 0
C175: =+[1]Abastecimiento!AH175 -> 1 | D175: =+[1]Abastecimiento!AI175 -> 0 | E175: =+[1]Abastecimiento!AJ175 -> 1e-05 | F175: =+[1]Abastecimiento!AK175 -> 1e-05 | G175: =+[1]Abastecimiento!AL175 -> 0 | I175: =+[1]Abastecimiento!AN175 -> 1 | J175: =+[1]Abastecimiento!AO175 -> 0 | K175: =+[1]Abastecimiento!AP175 -> 1e-05 | L175: =+[1]Abastecimiento!AQ175 -> 1e-05 | M175: =+[1]Abastecimiento!AR175 -> 0 | P175: 0 | Q175: =+ROUND(R175+S175,5) -> 0.0167 | R175: =+[1]Abastecimiento!AW175 -> 0.01669920665 | S175: =+ROUND(R175*P175,5) -> 0
A176: MTH | C176: =+[1]Abastecimiento!AH176 -> 1 | D176: =+[1]Abastecimiento!AI176 -> 0 | E176: =+[1]Abastecimiento!AJ176 -> 0.01 | F176: =+[1]Abastecimiento!AK176 -> 0.01 | G176: =+[1]Abastecimiento!AL176 -> 0 | I176: =+[1]Abastecimiento!AN176 -> 1 | J176: =+[1]Abastecimiento!AO176 -> 0 | K176: =+[1]Abastecimiento!AP176 -> 0.01 | L176: =+[1]Abastecimiento!AQ176 -> 0.01 | M176: =+[1]Abastecimiento!AR176 -> 0 | P176: 0 | Q176: =+ROUND(R176+S176,2) -> 6.52 | R176: =+[1]Abastecimiento!AW176 -> 6.522910802 | S176: =+ROUND(R176*P176,2) -> 0
C177: =+[1]Abastecimiento!AH177 -> 1 | D177: =+[1]Abastecimiento!AI177 -> 0 | E177: =+[1]Abastecimiento!AJ177 -> 0 | F177: =+[1]Abastecimiento!AK177 -> 0 | G177: =+[1]Abastecimiento!AL177 -> 0 | I177: =+[1]Abastecimiento!AN177 -> 1 | J177: =+[1]Abastecimiento!AO177 -> 0 | K177: =+[1]Abastecimiento!AP177 -> 0 | L177: =+[1]Abastecimiento!AQ177 -> 0 | M177: =+[1]Abastecimiento!AR177 -> 0 | P177: 0 | Q177: =+ROUND(R177+S177,2) -> 0 | R177: =+[1]Abastecimiento!AW177 -> 0 | S177: =+ROUND(R177*P177,2) -> 0
C178: =+[1]Abastecimiento!AH178 -> 1 | D178: =+[1]Abastecimiento!AI178 -> 0 | E178: =+[1]Abastecimiento!AJ178 -> 0 | F178: =+[1]Abastecimiento!AK178 -> 0 | G178: =+[1]Abastecimiento!AL178 -> 0 | I178: =+[1]Abastecimiento!AN178 -> 1 | J178: =+[1]Abastecimiento!AO178 -> 0 | K178: =+[1]Abastecimiento!AP178 -> 0 | L178: =+[1]Abastecimiento!AQ178 -> 0 | M178: =+[1]Abastecimiento!AR178 -> 0 | P178: 0 | Q178: =+ROUND(R178+S178,2) -> 0 | R178: =+[1]Abastecimiento!AW178 -> 0 | S178: =+ROUND(R178*P178,2) -> 0
A179: ATD | C179: =+[1]Abastecimiento!AH179 -> 1 | D179: =+[1]Abastecimiento!AI179 -> 0 | E179: =+[1]Abastecimiento!AJ179 -> 1.97 | F179: =+[1]Abastecimiento!AK179 -> 1.97 | G179: =+[1]Abastecimiento!AL179 -> 0 | I179: =+[1]Abastecimiento!AN179 -> 1 | J179: =+[1]Abastecimiento!AO179 -> 0 | K179: =+[1]Abastecimiento!AP179 -> 1.97 | L179: =+[1]Abastecimiento!AQ179 -> 1.97 | M179: =+[1]Abastecimiento!AR179 -> 0 | P179: 0 | Q179: =+ROUND(R179+S179,2) -> 1.18 | R179: =+[1]Abastecimiento!AW179 -> 1.179008228 | S179: =+ROUND(R179*P179,2) -> 0
A180: ATD | C180: =+[1]Abastecimiento!AH180 -> 1 | D180: =+[1]Abastecimiento!AI180 -> 0 | E180: =+[1]Abastecimiento!AJ180 -> 0.06074 | F180: =+[1]Abastecimiento!AK180 -> 0.06074 | G180: =+[1]Abastecimiento!AL180 -> 0 | I180: =+[1]Abastecimiento!AN180 -> 1 | J180: =+[1]Abastecimiento!AO180 -> 0 | K180: =+[1]Abastecimiento!AP180 -> 0.06074 | L180: =+[1]Abastecimiento!AQ180 -> 0.06074 | M180: =+[1]Abastecimiento!AR180 -> 0 | P180: 0 | Q180: =+ROUND(R180+S180,5) -> 0.03486 | R180: =+[1]Abastecimiento!AW180 -> 0.03486039382 | S180: =+ROUND(R180*P180,5) -> 0
A181: ATH | C181: =+[1]Abastecimiento!AH181 -> 1 | D181: =+[1]Abastecimiento!AI181 -> 0 | E181: =+[1]Abastecimiento!AJ181 -> 2.19 | F181: =+[1]Abastecimiento!AK181 -> 2.19 | G181: =+[1]Abastecimiento!AL181 -> 0 | I181: =+[1]Abastecimiento!AN181 -> 1 | J181: =+[1]Abastecimiento!AO181 -> 0 | K181: =+[1]Abastecimiento!AP181 -> 2.19 | L181: =+[1]Abastecimiento!AQ181 -> 2.19 | M181: =+[1]Abastecimiento!AR181 -> 0 | P181: 0 | Q181: =+ROUND(R181+S181,2) -> 4.35 | R181: =+[1]Abastecimiento!AW181 -> 4.352813001 | S181: =+ROUND(R181*P181,2) -> 0
A182: ATH punta | C182: =+[1]Abastecimiento!AH182 -> 1 | D182: =+[1]Abastecimiento!AI182 -> 0 | E182: =+[1]Abastecimiento!AJ182 -> 0.03775 | F182: =+[1]Abastecimiento!AK182 -> 0.03775 | G182: =+[1]Abastecimiento!AL182 -> 0 | I182: =+[1]Abastecimiento!AN182 -> 1 | J182: =+[1]Abastecimiento!AO182 -> 0 | K182: =+[1]Abastecimiento!AP182 -> 0.03775 | L182: =+[1]Abastecimiento!AQ182 -> 0.03775 | M182: =+[1]Abastecimiento!AR182 -> 0 | P182: 0 | Q182: =+ROUND(R182+S182,5) -> 0.06453 | R182: =+[1]Abastecimiento!AW182 -> 0.06453234042 | S182: =+ROUND(R182*P182,5) -> 0
A183: ATH Fpunta | C183: =+[1]Abastecimiento!AH183 -> 1 | D183: =+[1]Abastecimiento!AI183 -> 0 | E183: =+[1]Abastecimiento!AJ183 -> 0.03775 | F183: =+[1]Abastecimiento!AK183 -> 0.03775 | G183: =+[1]Abastecimiento!AL183 -> 0 | I183: =+[1]Abastecimiento!AN183 -> 1 | J183: =+[1]Abastecimiento!AO183 -> 0 | K183: =+[1]Abastecimiento!AP183 -> 0.03775 | L183: =+[1]Abastecimiento!AQ183 -> 0.03775 | M183: =+[1]Abastecimiento!AR183 -> 0 | P183: 0 | Q183: =+ROUND(R183+S183,5) -> 0.06453 | R183: =+[1]Abastecimiento!AW183 -> 0.06453234042 | S183: =+ROUND(R183*P183,5) -> 0
C184: =+[1]Abastecimiento!AH184 -> 1 | D184: =+[1]Abastecimiento!AI184 -> 0 | E184: =+[1]Abastecimiento!AJ184 -> 0.03775 | F184: =+[1]Abastecimiento!AK184 -> 0.03775 | G184: =+[1]Abastecimiento!AL184 -> 0 | I184: =+[1]Abastecimiento!AN184 -> 1 | J184: =+[1]Abastecimiento!AO184 -> 0 | K184: =+[1]Abastecimiento!AP184 -> 0.03775 | L184: =+[1]Abastecimiento!AQ184 -> 0.03775 | M184: =+[1]Abastecimiento!AR184 -> 0 | P184: 0 | Q184: 0.06453 | R184: =+[1]Abastecimiento!AW184 -> 0.06453234042 | S184: =+ROUND(R184*P184,5) -> 0
A185: CENEGEN PUNTA | B185: B/./kWh | C185: =+[1]Abastecimiento!AH185 -> 0 | D185: =+[1]Abastecimiento!AI185 -> 0 | E185: =+[1]Abastecimiento!AJ185 -> 0 | F185: =+[1]Abastecimiento!AK185 -> 0 | G185: =+[1]Abastecimiento!AL185 -> 0 | I185: =+[1]Abastecimiento!AN185 -> 0 | J185: =+[1]Abastecimiento!AO185 -> 0 | K185: =+[1]Abastecimiento!AP185 -> 0 | L185: =+[1]Abastecimiento!AQ185 -> 0 | M185: =+[1]Abastecimiento!AR185 -> 0
A186: BTH | C186: =+[1]Abastecimiento!AH186 -> 0.9743872821 | D186: =+[1]Abastecimiento!AI186 -> 0.1184107533 | E186: =+[1]Abastecimiento!AJ186 -> 0.21413 | F186: =+[1]Abastecimiento!AK186 -> 0.19093 | G186: =+[1]Abastecimiento!AL186 -> 0.0232 | I186: =+[1]Abastecimiento!AN186 -> 0.9765615876 | J186: =+[1]Abastecimiento!AO186 -> 0.1231094272 | K186: =+[1]Abastecimiento!AP186 -> 0.20996 | L186: =+[1]Abastecimiento!AQ186 -> 0.18645 | M186: =+[1]Abastecimiento!AR186 -> 0.02351 | P186: =+'Ajuste Generación-500 (2)'!F$90 -> 0.1458865705 | Q186: =+ROUND(R186+S186,5)+Q240 -> 0.22811 | R186: =+[1]Abastecimiento!AW186 -> 0.1990723723 | S186: =+ROUND(R186*P186,5) -> 0.02904
A187: MTH | C187: =+[1]Abastecimiento!AH187 -> 0.9743872821 | D187: =+[1]Abastecimiento!AI187 -> 0.1184107533 | E187: =+[1]Abastecimiento!AJ187 -> 0.26129 | F187: =+[1]Abastecimiento!AK187 -> 0.23298 | G187: =+[1]Abastecimiento!AL187 -> 0.02831 | I187: =+[1]Abastecimiento!AN187 -> 0.9765615876 | J187: =+[1]Abastecimiento!AO187 -> 0.1231094272 | K187: =+[1]Abastecimiento!AP187 -> 0.2562 | L187: =+[1]Abastecimiento!AQ187 -> 0.22752 | M187: =+[1]Abastecimiento!AR187 -> 0.02868 | P187: =+'Ajuste Generación-500 (2)'!F$90 -> 0.1458865705 | Q187: =+ROUND(R187+S187,5)+Q235 -> 0.20524 | R187: =+[1]Abastecimiento!AW187 -> 0.1791100557 | S187: =+ROUND(R187*P187,5) -> 0.02613
A188: ATH | C188: =+[1]Abastecimiento!AH188 -> 0.9743872821 | D188: =+[1]Abastecimiento!AI188 -> 0.1184107533 | E188: =+[1]Abastecimiento!AJ188 -> 0.23351 | F188: =+[1]Abastecimiento!AK188 -> 0.20821 | G188: =+[1]Abastecimiento!AL188 -> 0.0253 | I188: =+[1]Abastecimiento!AN188 -> 0.9765615876 | J188: =+[1]Abastecimiento!AO188 -> 0.1231094272 | K188: =+[1]Abastecimiento!AP188 -> 0.22896 | L188: =+[1]Abastecimiento!AQ188 -> 0.20333 | M188: =+[1]Abastecimiento!AR188 -> 0.02563 | P188: =+'Ajuste Generación-500 (2)'!F$90 -> 0.1458865705 | Q188: =+ROUND(R188+S188,5)+Q233 -> 0.18244 | R188: =+[1]Abastecimiento!AW188 -> 0.1592050998 | S188: =+ROUND(R188*P188,5) -> 0.02323
A189: CENEGEN FP MEDIO | B189: B/./kWh | C189: =+[1]Abastecimiento!AH189 -> 0 | D189: =+[1]Abastecimiento!AI189 -> 0 | E189: =+[1]Abastecimiento!AJ189 -> 0 | F189: =+[1]Abastecimiento!AK189 -> 0 | G189: =+[1]Abastecimiento!AL189 -> 0 | I189: =+[1]Abastecimiento!AN189 -> 0 | J189: =+[1]Abastecimiento!AO189 -> 0 | K189: =+[1]Abastecimiento!AP189 -> 0 | L189: =+[1]Abastecimiento!AQ189 -> 0 | M189: =+[1]Abastecimiento!AR189 -> 0
A190: BTH | C190: =+[1]Abastecimiento!AH190 -> 0.9743872821 | D190: =+[1]Abastecimiento!AI190 -> 0.1184107533 | E190: =+[1]Abastecimiento!AJ190 -> 0.08801 | F190: =+[1]Abastecimiento!AK190 -> 0.07847 | G190: =+[1]Abastecimiento!AL190 -> 0.00954 | I190: =+[1]Abastecimiento!AN190 -> 0.9765615876 | J190: =+[1]Abastecimiento!AO190 -> 0.1231094272 | K190: =+[1]Abastecimiento!AP190 -> 0.08629 | L190: =+[1]Abastecimiento!AQ190 -> 0.07663 | M190: =+[1]Abastecimiento!AR190 -> 0.00966 | P190: =+'Ajuste Generación-500 (2)'!F$90 -> 0.1458865705 | Q190: =+ROUND(R190+S190,5)+Q240 -> 0.09046 | R190: =+[1]Abastecimiento!AW190 -> 0.07894249247 | S190: =+ROUND(R190*P190,5) -> 0.01152
A191: MTH | C191: =+[1]Abastecimiento!AH191 -> 0.9743872821 | D191: =+[1]Abastecimiento!AI191 -> 0.1184107533 | E191: =+[1]Abastecimiento!AJ191 -> 0.13063 | F191: =+[1]Abastecimiento!AK191 -> 0.11648 | G191: =+[1]Abastecimiento!AL191 -> 0.01415 | I191: =+[1]Abastecimiento!AN191 -> 0.9765615876 | J191: =+[1]Abastecimiento!AO191 -> 0.1231094272 | K191: =+[1]Abastecimiento!AP191 -> 0.12809 | L191: =+[1]Abastecimiento!AQ191 -> 0.11375 | M191: =+[1]Abastecimiento!AR191 -> 0.01434 | P191: =+'Ajuste Generación-500 (2)'!F$90 -> 0.1458865705 | Q191: =+ROUND(R191+S191,5)+Q235 -> 0.08978 | R191: =+[1]Abastecimiento!AW191 -> 0.07835376114 | S191: =+ROUND(R191*P191,5) -> 0.01143
A192: ATH | C192: =+[1]Abastecimiento!AH192 -> 0.9743872821 | D192: =+[1]Abastecimiento!AI192 -> 0.1184107533 | E192: =+[1]Abastecimiento!AJ192 -> 0.1024 | F192: =+[1]Abastecimiento!AK192 -> 0.0913 | G192: =+[1]Abastecimiento!AL192 -> 0.0111 | I192: =+[1]Abastecimiento!AN192 -> 0.9765615876 | J192: =+[1]Abastecimiento!AO192 -> 0.1231094272 | K192: =+[1]Abastecimiento!AP192 -> 0.1004 | L192: =+[1]Abastecimiento!AQ192 -> 0.08916 | M192: =+[1]Abastecimiento!AR192 -> 0.01124 | P192: =+'Ajuste Generación-500 (2)'!F$90 -> 0.1458865705 | Q192: =+ROUND(R192+S192,5)+Q233 -> 0.07999 | R192: =+[1]Abastecimiento!AW192 -> 0.06981127577 | S192: =+ROUND(R192*P192,5) -> 0.01018
A193: CENEGEN FP BAJO | C193: =+[1]Abastecimiento!AH193 -> 0 | D193: =+[1]Abastecimiento!AI193 -> 0 | E193: =+[1]Abastecimiento!AJ193 -> 0 | F193: =+[1]Abastecimiento!AK193 -> 0 | G193: =+[1]Abastecimiento!AL193 -> 0 | I193: =+[1]Abastecimiento!AN193 -> 0 | J193: =+[1]Abastecimiento!AO193 -> 0 | K193: =+[1]Abastecimiento!AP193 -> 0 | L193: =+[1]Abastecimiento!AQ193 -> 0 | M193: =+[1]Abastecimiento!AR193 -> 0
A194: BTH | C194: =+[1]Abastecimiento!AH194 -> 0.9743872821 | D194: =+[1]Abastecimiento!AI194 -> 0.1184107533 | E194: =+[1]Abastecimiento!AJ194 -> 0.02933 | F194: =+[1]Abastecimiento!AK194 -> 0.02615 | G194: =+[1]Abastecimiento!AL194 -> 0.00318 | I194: =+[1]Abastecimiento!AN194 -> 0.9765615876 | J194: =+[1]Abastecimiento!AO194 -> 0.1231094272 | K194: =+[1]Abastecimiento!AP194 -> 0.02876 | L194: =+[1]Abastecimiento!AQ194 -> 0.02554 | M194: =+[1]Abastecimiento!AR194 -> 0.00322 | P194: =+'Ajuste Generación-500 (2)'!F$90 -> 0.1458865705 | Q194: =+ROUND(R194+S194,5)+Q235 -> 0.03933 | R194: =+[1]Abastecimiento!AW194 -> 0.03432282281 | S194: =+ROUND(R194*P194,5) -> 0.00501
A195: MTH | C195: =+[1]Abastecimiento!AH195 -> 0.9743872821 | D195: =+[1]Abastecimiento!AI195 -> 0.1184107533 | E195: =+[1]Abastecimiento!AJ195 -> 0.06876 | F195: =+[1]Abastecimiento!AK195 -> 0.06131 | G195: =+[1]Abastecimiento!AL195 -> 0.00745 | I195: =+[1]Abastecimiento!AN195 -> 0.9765615876 | J195: =+[1]Abastecimiento!AO195 -> 0.1231094272 | K195: =+[1]Abastecimiento!AP195 -> 0.06742 | L195: =+[1]Abastecimiento!AQ195 -> 0.05987 | M195: =+[1]Abastecimiento!AR195 -> 0.00755 | P195: =+'Ajuste Generación-500 (2)'!F$90 -> 0.1458865705 | Q195: 0.04501 | R195: =+[1]Abastecimiento!AW195 -> 0.03927610406 | S195: =+ROUND(R195*P195,5) -> 0.00573
A196: ATH | C196: =+[1]Abastecimiento!AH196 -> 0.9743872821 | D196: =+[1]Abastecimiento!AI196 -> 0.1184107533 | E196: =+[1]Abastecimiento!AJ196 -> 0.03593 | F196: =+[1]Abastecimiento!AK196 -> 0.03204 | G196: =+[1]Abastecimiento!AL196 -> 0.00389 | I196: =+[1]Abastecimiento!AN196 -> 0.9765615876 | J196: =+[1]Abastecimiento!AO196 -> 0.1231094272 | K196: =+[1]Abastecimiento!AP196 -> 0.03523 | L196: =+[1]Abastecimiento!AQ196 -> 0.03129 | M196: =+[1]Abastecimiento!AR196 -> 0.00394 | P196: =+'Ajuste Generación-500 (2)'!F$90 -> 0.1458865705 | Q196: 0.02807 | R196: =+[1]Abastecimiento!AW196 -> 0.02449971757 | S196: =+ROUND(R196*P196,5) -> 0.00357
A197: CENEGEN SM | B197: B/./kWh | C197: =+[1]Abastecimiento!AH197 -> # 48 | D197: =+[1]Abastecimiento!AI197 -> # 49 | E197: =+[1]Abastecimiento!AJ197 -> 0 | F197: =+[1]Abastecimiento!AK197 -> 0 | G197: =+[1]Abastecimiento!AL197 -> 0 | I197: =+[1]Abastecimiento!AN197 -> # 48 | J197: =+[1]Abastecimiento!AO197 -> # 49 | K197: =+[1]Abastecimiento!AP197 -> 0 | L197: =+[1]Abastecimiento!AQ197 -> 0 | M197: =+[1]Abastecimiento!AR197 -> 0 | P197: # 49
A198: BTS (0-300) | C198: =+[1]Abastecimiento!AH198 -> 0.9743872821 | D198: =+[1]Abastecimiento!AI198 -> 0.1184107533 | E198: =+[1]Abastecimiento!AJ198 -> 0.04675 | F198: =+[1]Abastecimiento!AK198 -> 0.04168 | G198: =+[1]Abastecimiento!AL198 -> 0.00507 | I198: =+[1]Abastecimiento!AN198 -> 0.9765615876 | J198: =+[1]Abastecimiento!AO198 -> 0.1231094272 | K198: =+[1]Abastecimiento!AP198 -> 0.04583 | L198: =+[1]Abastecimiento!AQ198 -> 0.0407 | M198: =+[1]Abastecimiento!AR198 -> 0.00513 | P198: =+'Ajuste Generación-500 (2)'!F$90 -> 0.1458865705 | Q198: =+ROUND(R198+S198,5)+Q245 -> 0.05694 | R198: =+[1]Abastecimiento!AW198 -> 0.0496889763 | S198: =+ROUND(R198*P198,5) -> 0.00725
A199: BTS (301-750) | C199: =+[1]Abastecimiento!AH199 -> 0.9743872821 | D199: =+[1]Abastecimiento!AI199 -> 0.1184107533 | E199: =+[1]Abastecimiento!AJ199 -> 0.08884 | F199: =+[1]Abastecimiento!AK199 -> 0.07921 | G199: =+[1]Abastecimiento!AL199 -> 0.00963 | I199: =+[1]Abastecimiento!AN199 -> 0.9765615876 | J199: =+[1]Abastecimiento!AO199 -> 0.1231094272 | K199: =+[1]Abastecimiento!AP199 -> 0.0871 | L199: =+[1]Abastecimiento!AQ199 -> 0.07735 | M199: =+[1]Abastecimiento!AR199 -> 0.00975 | P199: =+'Ajuste Generación-500 (2)'!F$90 -> 0.1458865705 | Q199: =+ROUND(R199+S199,5)+Q246 -> 0.096 | R199: =+[1]Abastecimiento!AW199 -> 0.08377588409 | S199: 0.01222
A200: BTS (750-más) | C200: =+[1]Abastecimiento!AH200 -> 0.9743872821 | D200: =+[1]Abastecimiento!AI200 -> 0.1184107533 | E200: =+[1]Abastecimiento!AJ200 -> 0.17767 | F200: =+[1]Abastecimiento!AK200 -> 0.15842 | G200: =+[1]Abastecimiento!AL200 -> 0.01925 | I200: =+[1]Abastecimiento!AN200 -> 0.9765615876 | J200: =+[1]Abastecimiento!AO200 -> 0.1231094272 | K200: =+[1]Abastecimiento!AP200 -> 0.17421 | L200: =+[1]Abastecimiento!AQ200 -> 0.15471 | M200: =+[1]Abastecimiento!AR200 -> 0.0195 | P200: =+'Ajuste Generación-500 (2)'!F$90 -> 0.1458865705 | Q200: =+ROUND(R200+S200,5)+Q247 -> 0.17132 | R200: =+[1]Abastecimiento!AW200 -> 0.1495057582 | S200: 0.02181
... 141 more rows

Sheet RES DE ACT TARIFARIA-1000-T (2)
A1: =+"TARIFAS: "&[1]Fecha!$A$1 -> TARIFAS: EDECHI
A3: CARGOS | B3: Jul-Sep23 Ajustado para aplicar en Ene-Jun2025 2024 | C3: =+[1]Fecha!CZ4 -> Jul-Dic/2025 | E3: Jul-Sep23 Ajustado para aplicar en Ene-Jun2025 2024 | F3: Jul-Dic25 ajustado | H3: Jul-Sep23 Ajustado para aplicar en jul-dic25 | I3: Jul-Sep23 Ajustado para aplicar en Ene-Jun2025 2024 | K3: Jul-Sep23 Ajustado para aplicar en Ene-Jun2025 2024 | L3: Jul-Sep23 Ajustado para aplicar en Ene-Jun2025 2024 | O3: Nuevo Régimen dic2025 | P3: Factor de Ajuste ene-jun2026 | Q3: Factor de Ajuste jul-dic2026 | R3: Jul-Dic/2026
B4: Cargo Actualizado | C4: Cargo Actualizado | E4: Cargo Actualizado | F4: Cargo Actualizado | H4: Cargo Actualizado | I4: Cargo Actualizado | K4: Cargo Actualizado | L4: Cargo Actualizado
A5: Comercialización
A6: CCOMF | Q6: MODELO AT100 # 8
A7: BTS (0-300) | B7: =+[1]VAD!AD7 -> 0.9932327361 | C7: =+[1]VAD!AE7 -> 3.03 | E7: =+[1]VAD!AG7 -> 0 | F7: =+[1]VAD!AH7 -> 3.03 | H7: =+[1]VAD!AJ7 -> 1.002565235 | I7: =+[1]VAD!AK7 -> 3.04 | K7: =+[1]VAD!AM7 -> 0 | L7: =+[1]VAD!AN7 -> 3.04 | O7: =+[1]VAD!AQ7 -> 3.04 | P7: =+'Ajuste COMER DISTR Y AP-100'!D32 -> 1.002431295 | Q7: =+'Ajuste COMER DISTR Y AP-100'!J32 -> 0.9975635644 | R7: =+ROUND(O7*P7*Q7, 2) -> 3.04
A8: BTS (301-750) | B8: =+[1]VAD!AD8 -> 0.9932327361 | C8: =+[1]VAD!AE8 -> 3.03 | E8: =+[1]VAD!AG8 -> 0 | F8: =+[1]VAD!AH8 -> 3.03 | H8: =+[1]VAD!AJ8 -> 1.002565235 | I8: =+[1]VAD!AK8 -> 3.04 | K8: =+[1]VAD!AM8 -> 0 | L8: =+[1]VAD!AN8 -> 3.04 | O8: =+[1]VAD!AQ8 -> 3.04 | P8: =+$P$7 -> 1.002431295 | Q8: =+Q7 -> 0.9975635644 | R8: =+ROUND(O8*P8*Q8, 2) -> 3.04
A9: BTS (750-más) | B9: =+[1]VAD!AD9 -> 0.9932327361 | C9: =+[1]VAD!AE9 -> 3.03 | E9: =+[1]VAD!AG9 -> 0 | F9: =+[1]VAD!AH9 -> 3.03 | H9: =+[1]VAD!AJ9 -> 1.002565235 | I9: =+[1]VAD!AK9 -> 3.04 | K9: =+[1]VAD!AM9 -> 0 | L9: =+[1]VAD!AN9 -> 3.04 | O9: =+[1]VAD!AQ9 -> 3.04 | P9: =+$P$7 -> 1.002431295 | Q9: =+Q8 -> 0.9975635644 | R9: 3.04
A10: BTD (0-10,000) | B10: =+[1]VAD!AD10 -> 0.9932327361 | C10: =+[1]VAD!AE10 -> 5.64 | E10: =+[1]VAD!AG10 -> 0 | F10: =+[1]VAD!AH10 -> 5.64 | H10: =+[1]VAD!AJ10 -> 1.002565235 | I10: =+[1]VAD!AK10 -> 5.65 | K10: =+[1]VAD!AM10 -> 0 | L10: =+[1]VAD!AN10 -> 5.65 | O10: =+[1]VAD!AQ10 -> 5.65 | P10: 1.002431295 | Q10: =+'Ajuste COMER DISTR Y AP-100'!J32 -> 0.9975635644 | R10: 5.65
A11: BTD (10,001-30,000) | B11: =+[1]VAD!AD11 -> 0.9932327361 | C11: =+[1]VAD!AE11 -> 5.64 | E11: =+[1]VAD!AG11 -> 0 | F11: =+[1]VAD!AH11 -> 5.64 | H11: =+[1]VAD!AJ11 -> 1.002565235 | I11: =+[1]VAD!AK11 -> 5.65 | K11: =+[1]VAD!AM11 -> 0 | L11: =+[1]VAD!AN11 -> 5.65 | O11: =+[1]VAD!AQ11 -> 5.65 | P11: 1.002431295 | Q11: =+Q10 -> 0.9975635644 | R11: 5.65
A12: BTD (30,001-50,000) | B12: =+[1]VAD!AD12 -> 0.9932327361 | C12: =+[1]VAD!AE12 -> 5.64 | E12: =+[1]VAD!AG12 -> 0 | F12: =+[1]VAD!AH12 -> 5.64 | H12: =+[1]VAD!AJ12 -> 1.002565235 | I12: =+[1]VAD!AK12 -> 5.65 | K12: =+[1]VAD!AM12 -> 0 | L12: =+[1]VAD!AN12 -> 5.65 | O12: =+[1]VAD!AQ12 -> 5.65 | P12: 1.002431295 | Q12: =+Q11 -> 0.9975635644 | R12: 5.65
A13: BTD (50,001-más) | B13: =+[1]VAD!AD13 -> 0.9932327361 | C13: =+[1]VAD!AE13 -> 5.64 | E13: =+[1]VAD!AG13 -> 0 | F13: =+[1]VAD!AH13 -> 5.64 | H13: =+[1]VAD!AJ13 -> 1.002565235 | I13: =+[1]VAD!AK13 -> 5.65 | K13: =+[1]VAD!AM13 -> 0 | L13: =+[1]VAD!AN13 -> 5.65 | O13: =+[1]VAD!AQ13 -> 5.65 | P13: 1.002431295 | Q13: =+Q12 -> 0.9975635644 | R13: 5.65
A14: BTH | B14: =+[1]VAD!AD14 -> 0.9932327361 | C14: =+[1]VAD!AE14 -> 5.64 | E14: =+[1]VAD!AG14 -> 0 | F14: =+[1]VAD!AH14 -> 5.64 | H14: =+[1]VAD!AJ14 -> 1.002565235 | I14: =+[1]VAD!AK14 -> 5.65 | K14: =+[1]VAD!AM14 -> 0 | L14: =+[1]VAD!AN14 -> 5.65 | O14: =+[1]VAD!AQ14 -> 5.65 | P14: 1.002431295 | Q14: =+'Ajuste COMER DISTR Y AP-100'!J32 -> 0.9975635644 | R14: 5.65
A15: MTD (0-10,000) | B15: =+[1]VAD!AD15 -> 0.9932327361 | C15: =+[1]VAD!AE15 -> 14.17 | E15: =+[1]VAD!AG15 -> 0 | F15: =+[1]VAD!AH15 -> 14.17 | H15: =+[1]VAD!AJ15 -> 1.002565235 | I15: =+[1]VAD!AK15 -> 14.21 | K15: =+[1]VAD!AM15 -> 0 | L15: =+[1]VAD!AN15 -> 14.21 | O15: =+[1]VAD!AQ15 -> 14.21 | P15: 1.002431295 | Q15: =+'Ajuste COMER DISTR Y AP-100'!J32 -> 0.9975635644 | R15: 14.21
A16: MTD (10,001-30,000) | B16: =+[1]VAD!AD16 -> 0.9932327361 | C16: =+[1]VAD!AE16 -> 14.17 | E16: =+[1]VAD!AG16 -> 0 | F16: =+[1]VAD!AH16 -> 14.17 | H16: =+[1]VAD!AJ16 -> 1.002565235 | I16: =+[1]VAD!AK16 -> 14.21 | K16: =+[1]VAD!AM16 -> 0 | L16: =+[1]VAD!AN16 -> 14.21 | O16: =+[1]VAD!AQ16 -> 14.21 | P16: 1.002431295 | Q16: =+Q15 -> 0.9975635644 | R16: 14.21
A17: MTD (30,001-50,000) | B17: =+[1]VAD!AD17 -> 0.9932327361 | C17: =+[1]VAD!AE17 -> 14.17 | E17: =+[1]VAD!AG17 -> 0 | F17: =+[1]VAD!AH17 -> 14.17 | H17: =+[1]VAD!AJ17 -> 1.002565235 | I17: =+[1]VAD!AK17 -> 14.21 | K17: =+[1]VAD!AM17 -> 0 | L17: =+[1]VAD!AN17 -> 14.21 | O17: =+[1]VAD!AQ17 -> 14.21 | P17: 1.002431295 | Q17: =+Q16 -> 0.9975635644 | R17: 14.21
A18: MTD (50,001-más) | B18: =+[1]VAD!AD18 -> 0.9932327361 | C18: =+[1]VAD!AE18 -> 14.17 | E18: =+[1]VAD!AG18 -> 0 | F18: =+[1]VAD!AH18 -> 14.17 | H18: =+[1]VAD!AJ18 -> 1.002565235 | I18: =+[1]VAD!AK18 -> 14.21 | K18: =+[1]VAD!AM18 -> 0 | L18: =+[1]VAD!AN18 -> 14.21 | O18: =+[1]VAD!AQ18 -> 14.21 | P18: 1.002431295 | Q18: =+Q17 -> 0.9975635644 | R18: 14.21
A19: MTH | B19: =+[1]VAD!AD19 -> 0.9932327361 | C19: =+[1]VAD!AE19 -> 14.15 | E19: =+[1]VAD!AG19 -> 0 | F19: =+[1]VAD!AH19 -> 14.15 | H19: =+[1]VAD!AJ19 -> 1.002565235 | I19: =+[1]VAD!AK19 -> 14.19 | K19: =+[1]VAD!AM19 -> 0 | L19: =+[1]VAD!AN19 -> 14.19 | O19: =+[1]VAD!AQ19 -> 14.19 | P19: 1.002431295 | Q19: =+'Ajuste COMER DISTR Y AP-100'!J32 -> 0.9975635644 | R19: 14.19
A20: ATD | B20: =+[1]VAD!AD20 -> 0.9932327361 | C20: =+[1]VAD!AE20 -> 14.15 | E20: =+[1]VAD!AG20 -> 0 | F20: =+[1]VAD!AH20 -> 14.15 | H20: =+[1]VAD!AJ20 -> 1.002565235 | I20: =+[1]VAD!AK20 -> 14.19 | K20: =+[1]VAD!AM20 -> 0 | L20: =+[1]VAD!AN20 -> 14.19 | O20: =+[1]VAD!AQ20 -> 14.19 | P20: 1.002431295 | Q20: =+'Ajuste COMER DISTR Y AP-100'!J32 -> 0.9975635644 | R20: 14.19
A21: ATH | B21: =+[1]VAD!AD21 -> 0.9932327361 | C21: =+[1]VAD!AE21 -> 14.15 | E21: =+[1]VAD!AG21 -> 0 | F21: =+[1]VAD!AH21 -> 14.15 | H21: =+[1]VAD!AJ21 -> 1.002565235 | I21: =+[1]VAD!AK21 -> 14.19 | K21: =+[1]VAD!AM21 -> 0 | L21: =+[1]VAD!AN21 -> 14.19 | O21: =+[1]VAD!AQ21 -> 14.19 | P21: 1.002431295 | Q21: =+'Ajuste COMER DISTR Y AP-100'!J32 -> 0.9975635644 | R21: 14.19
A22: CCOMV | Q22: MODELO AT100 # 8
A23: BTS (0-300) | B23: =+[1]VAD!AD23 -> 0.9932327361 | C23: =+[1]VAD!AE23 -> 0.01202 | E23: =+[1]VAD!AG23 -> 0 | F23: =+[1]VAD!AH23 -> 0.01202 | H23: =+[1]VAD!AJ23 -> 1.002565235 | I23: =+[1]VAD!AK23 -> 0.01205 | K23: =+[1]VAD!AM23 -> 0 | L23: =+[1]VAD!AN23 -> 0.01205 | O23: =+[1]VAD!AQ23 -> 0.009351855547 | P23: =+$P$7 -> 1.002431295 | Q23: =+'Ajuste COMER DISTR Y AP-100'!J32 -> 0.9975635644 | R23: =+ROUND(O23*P23*Q23, 5) -> 0.00935
A24: BTS (301-750) | B24: =+[1]VAD!AD24 -> 0.9932327361 | C24: =+[1]VAD!AE24 -> 0.01202 | E24: =+[1]VAD!AG24 -> 0 | F24: =+[1]VAD!AH24 -> 0.01202 | H24: =+[1]VAD!AJ24 -> 1.002565235 | I24: =+[1]VAD!AK24 -> 0.01205 | K24: =+[1]VAD!AM24 -> 0 | L24: =+[1]VAD!AN24 -> 0.01205 | O24: =+[1]VAD!AQ24 -> 0.009351855547 | P24: 1.002431295 | Q24: =+'Ajuste COMER DISTR Y AP-100'!J32 -> 0.9975635644 | R24: =+ROUND(O24*P24*Q24, 5) -> 0.00935
A25: BTS (750-más) | B25: =+[1]VAD!AD25 -> 0.9932327361 | C25: =+[1]VAD!AE25 -> 0.01202 | E25: =+[1]VAD!AG25 -> 0 | F25: =+[1]VAD!AH25 -> 0.01202 | H25: =+[1]VAD!AJ25 -> 1.002565235 | I25: =+[1]VAD!AK25 -> 0.01205 | K25: =+[1]VAD!AM25 -> 0 | L25: =+[1]VAD!AN25 -> 0.01205 | O25: =+[1]VAD!AQ25 -> 0.009351855547 | P25: 1.002431295 | Q25: =+'Ajuste COMER DISTR Y AP-100'!J32 -> 0.9975635644 | R25: 0.00935
A26: BTD (0-10,000) | B26: =+[1]VAD!AD26 -> 0.9932327361 | C26: =+[1]VAD!AE26 -> 0.01121 | E26: =+[1]VAD!AG26 -> 0 | F26: =+[1]VAD!AH26 -> 0.01121 | H26: =+[1]VAD!AJ26 -> 1.002565235 | I26: =+[1]VAD!AK26 -> 0.01124 | K26: =+[1]VAD!AM26 -> 0 | L26: =+[1]VAD!AN26 -> 0.01124 | O26: =+[1]VAD!AQ26 -> 0.008820976649 | P26: 1.002431295 | Q26: =+'Ajuste COMER DISTR Y AP-100'!J32 -> 0.9975635644 | R26: 0.00882
A27: BTD (10,001-30,000) | B27: =+[1]VAD!AD27 -> 0.9932327361 | C27: =+[1]VAD!AE27 -> 0.01121 | E27: =+[1]VAD!AG27 -> 0 | F27: =+[1]VAD!AH27 -> 0.01121 | H27: =+[1]VAD!AJ27 -> 1.002565235 | I27: =+[1]VAD!AK27 -> 0.01124 | K27: =+[1]VAD!AM27 -> 0 | L27: =+[1]VAD!AN27 -> 0.01124 | O27: =+[1]VAD!AQ27 -> 0.008820976649 | P27: 1.002431295 | Q27: =+Q26 -> 0.9975635644 | R27: 0.00882
A28: BTD (30,001-50,000) | B28: =+[1]VAD!AD28 -> 0.9932327361 | C28: =+[1]VAD!AE28 -> 0.01121 | E28: =+[1]VAD!AG28 -> 0 | F28: =+[1]VAD!AH28 -> 0.01121 | H28: =+[1]VAD!AJ28 -> 1.002565235 | I28: =+[1]VAD!AK28 -> 0.01124 | K28: =+[1]VAD!AM28 -> 0 | L28: =+[1]VAD!AN28 -> 0.01124 | O28: =+[1]VAD!AQ28 -> 0.008820976649 | P28: 1.002431295 | Q28: =+Q27 -> 0.9975635644 | R28: 0.00882
A29: BTD (50,001-más) | B29: =+[1]VAD!AD29 -> 0.9932327361 | C29: =+[1]VAD!AE29 -> 0.01121 | E29: =+[1]VAD!AG29 -> 0 | F29: =+[1]VAD!AH29 -> 0.01121 | H29: =+[1]VAD!AJ29 -> 1.002565235 | I29: =+[1]VAD!AK29 -> 0.01124 | K29: =+[1]VAD!AM29 -> 0 | L29: =+[1]VAD!AN29 -> 0.01124 | O29: =+[1]VAD!AQ29 -> 0.008820976649 | P29: 1.002431295 | Q29: =+Q28 -> 0.9975635644 | R29: 0.00882
A30: BTH | B30: =+[1]VAD!AD30 -> 0.9932327361 | C30: =+[1]VAD!AE30 -> 0.01118 | E30: =+[1]VAD!AG30 -> 0 | F30: =+[1]VAD!AH30 -> 0.01118 | H30: =+[1]VAD!AJ30 -> 1.002565235 | I30: =+[1]VAD!AK30 -> 0.01121 | K30: =+[1]VAD!AM30 -> 0 | L30: =+[1]VAD!AN30 -> 0.01121 | O30: =+[1]VAD!AQ30 -> 0.008797433117 | P30: 1.002431295 | Q30: =+'Ajuste COMER DISTR Y AP-100'!J32 -> 0.9975635644 | R30: 0.0088
A31: MTD (0-10,000) | B31: =+[1]VAD!AD31 -> 0.9932327361 | C31: =+[1]VAD!AE31 -> 0.01118 | E31: =+[1]VAD!AG31 -> 0 | F31: =+[1]VAD!AH31 -> 0.01118 | H31: =+[1]VAD!AJ31 -> 1.002565235 | I31: =+[1]VAD!AK31 -> 0.01121 | K31: =+[1]VAD!AM31 -> 0 | L31: =+[1]VAD!AN31 -> 0.01121 | O31: =+[1]VAD!AQ31 -> 0.008797437133 | P31: 1.002431295 | Q31: =+'Ajuste COMER DISTR Y AP-100'!J32 -> 0.9975635644 | R31: 0.0088
A32: MTD (10,001-30,000) | B32: =+[1]VAD!AD32 -> 0.9932327361 | C32: =+[1]VAD!AE32 -> 0.01118 | E32: =+[1]VAD!AG32 -> 0 | F32: =+[1]VAD!AH32 -> 0.01118 | H32: =+[1]VAD!AJ32 -> 1.002565235 | I32: =+[1]VAD!AK32 -> 0.01121 | K32: =+[1]VAD!AM32 -> 0 | L32: =+[1]VAD!AN32 -> 0.01121 | O32: =+[1]VAD!AQ32 -> 0.008797437133 | P32: 1.002431295 | Q32: =+Q31 -> 0.9975635644 | R32: 0.0088
A33: MTD (30,001-50,000) | B33: =+[1]VAD!AD33 -> 0.9932327361 | C33: =+[1]VAD!AE33 -> 0.01118 | E33: =+[1]VAD!AG33 -> 0 | F33: =+[1]VAD!AH33 -> 0.01118 | H33: =+[1]VAD!AJ33 -> 1.002565235 | I33: =+[1]VAD!AK33 -> 0.01121 | K33: =+[1]VAD!AM33 -> 0 | L33: =+[1]VAD!AN33 -> 0.01121 | O33: =+[1]VAD!AQ33 -> 0.008797437133 | P33: 1.002431295 | Q33: =+Q32 -> 0.9975635644 | R33: 0.0088
A34: MTD (50,001-más) | B34: =+[1]VAD!AD34 -> 0.9932327361 | C34: =+[1]VAD!AE34 -> 0.01118 | E34: =+[1]VAD!AG34 -> 0 | F34: =+[1]VAD!AH34 -> 0.01118 | H34: =+[1]VAD!AJ34 -> 1.002565235 | I34: =+[1]VAD!AK34 -> 0.01121 | K34: =+[1]VAD!AM34 -> 0 | L34: =+[1]VAD!AN34 -> 0.01121 | O34: =+[1]VAD!AQ34 -> 0.008797437133 | P34: 1.002431295 | Q34: =+Q33 -> 0.9975635644 | R34: 0.0088
A35: MTH | B35: =+[1]VAD!AD35 -> 0.9932327361 | C35: =+[1]VAD!AE35 -> 0.01118 | E35: =+[1]VAD!AG35 -> 0 | F35: =+[1]VAD!AH35 -> 0.01118 | H35: =+[1]VAD!AJ35 -> 1.002565235 | I35: =+[1]VAD!AK35 -> 0.01121 | K35: =+[1]VAD!AM35 -> 0 | L35: =+[1]VAD!AN35 -> 0.01121 | O35: =+[1]VAD!AQ35 -> 0.008797433117 | P35: 1.002431295 | Q35: =+'Ajuste COMER DISTR Y AP-100'!J32 -> 0.9975635644 | R35: 0.0088
A36: ATD | B36: =+[1]VAD!AD36 -> 0.9932327361 | C36: =+[1]VAD!AE36 -> 0.01118 | E36: =+[1]VAD!AG36 -> 0 | F36: =+[1]VAD!AH36 -> 0.01118 | H36: =+[1]VAD!AJ36 -> 1.002565235 | I36: =+[1]VAD!AK36 -> 0.01121 | K36: =+[1]VAD!AM36 -> 0 | L36: =+[1]VAD!AN36 -> 0.01121 | O36: =+[1]VAD!AQ36 -> 0.008797433117 | P36: 1.002431295 | Q36: =+'Ajuste COMER DISTR Y AP-100'!J32 -> 0.9975635644 | R36: 0.0088
A37: ATH | B37: =+[1]VAD!AD37 -> 0.9932327361 | C37: =+[1]VAD!AE37 -> 0.01118 | E37: =+[1]VAD!AG37 -> 0 | F37: =+[1]VAD!AH37 -> 0.01118 | H37: =+[1]VAD!AJ37 -> 1.002565235 | I37: =+[1]VAD!AK37 -> 0.01121 | K37: =+[1]VAD!AM37 -> 0 | L37: =+[1]VAD!AN37 -> 0.01121 | O37: =+[1]VAD!AQ37 -> 0.008797433117 | P37: 1.002431295 | Q37: =+'Ajuste COMER DISTR Y AP-100'!J32 -> 0.9975635644 | R37: 0.0088
A38: Distribución
A39: CD | Q39: MODELO AT100 # 9
A40: BTS (0-300) | B40: =+[1]VAD!AD40 -> 0.9960749569 | C40: =+[1]VAD!AE40 -> 0.05926 | E40: =+[1]VAD!AG40 -> 0 | F40: =+[1]VAD!AH40 -> 0.05926 | H40: =+[1]VAD!AJ40 -> 1.001487847 | I40: =+[1]VAD!AK40 -> 0.05935 | K40: =+[1]VAD!AM40 -> 0 | L40: =+[1]VAD!AN40 -> 0.05935 | O40: =+[1]VAD!AQ40 -> 0.05528921877 | P40: =+'Ajuste COMER DISTR Y AP-100'!D33 -> 1.001410162 | Q40: =+'Ajuste COMER DISTR Y AP-100'!J33 -> 0.9985868565 | R40: =+ROUND(O40*P40*Q40, 5) -> 0.05529
A41: BTS (301-750) | B41: =+[1]VAD!AD41 -> 0.9960749569 | C41: =+[1]VAD!AE41 -> 0.05926 | E41: =+[1]VAD!AG41 -> 0 | F41: =+[1]VAD!AH41 -> 0.05926 | H41: =+[1]VAD!AJ41 -> 1.001487847 | I41: =+[1]VAD!AK41 -> 0.05935 | K41: =+[1]VAD!AM41 -> 0 | L41: =+[1]VAD!AN41 -> 0.05935 | O41: =+[1]VAD!AQ41 -> 0.05528921877 | P41: =+$P$40 -> 1.001410162 | Q41: =+'Ajuste COMER DISTR Y AP-100'!J33 -> 0.9985868565 | R41: 0.05529
A42: BTS (750-más) | B42: =+[1]VAD!AD42 -> 0.9960749569 | C42: =+[1]VAD!AE42 -> 0.05926 | E42: =+[1]VAD!AG42 -> 0 | F42: =+[1]VAD!AH42 -> 0.05926 | H42: =+[1]VAD!AJ42 -> 1.001487847 | I42: =+[1]VAD!AK42 -> 0.05935 | K42: =+[1]VAD!AM42 -> 0 | L42: =+[1]VAD!AN42 -> 0.05935 | O42: =+[1]VAD!AQ42 -> 0.05528921877 | P42: =+$P$40 -> 1.001410162 | Q42: =+'Ajuste COMER DISTR Y AP-100'!J33 -> 0.9985868565 | R42: 0.05529
A43: BTD (0-10,000) | B43: =+[1]VAD!AD43 -> 0.9960749569 | C43: =+[1]VAD!AE43 -> 0 | E43: =+[1]VAD!AG43 -> 0 | F43: =+[1]VAD!AH43 -> 0 | H43: =+[1]VAD!AJ43 -> 1.001487847 | I43: =+[1]VAD!AK43 -> 0 | K43: =+[1]VAD!AM43 -> 0 | L43: =+[1]VAD!AN43 -> 0 | O43: =+[1]VAD!AQ43 -> 0 | P43: 1.001410162 | Q43: =+'Ajuste COMER DISTR Y AP-100'!J33 -> 0.9985868565 | R43: 0
A44: BTD (10,001-30,000) | B44: =+[1]VAD!AD44 -> 0.9960749569 | C44: =+[1]VAD!AE44 -> 0 | E44: =+[1]VAD!AG44 -> 0 | F44: =+[1]VAD!AH44 -> 0 | H44: =+[1]VAD!AJ44 -> 1.001487847 | I44: =+[1]VAD!AK44 -> 0 | K44: =+[1]VAD!AM44 -> 0 | L44: =+[1]VAD!AN44 -> 0 | O44: =+[1]VAD!AQ44 -> 0 | P44: 1.001410162 | Q44: =+Q43 -> 0.9985868565 | R44: 0
A45: BTD (30,001-50,000) | B45: =+[1]VAD!AD45 -> 0.9960749569 | C45: =+[1]VAD!AE45 -> 0 | E45: =+[1]VAD!AG45 -> 0 | F45: =+[1]VAD!AH45 -> 0 | H45: =+[1]VAD!AJ45 -> 1.001487847 | I45: =+[1]VAD!AK45 -> 0 | K45: =+[1]VAD!AM45 -> 0 | L45: =+[1]VAD!AN45 -> 0 | O45: =+[1]VAD!AQ45 -> 0 | P45: 1.001410162 | Q45: =+Q44 -> 0.9985868565 | R45: 0
A46: BTD (50,001-más) | B46: =+[1]VAD!AD46 -> 0.9960749569 | C46: =+[1]VAD!AE46 -> 0 | E46: =+[1]VAD!AG46 -> 0 | F46: =+[1]VAD!AH46 -> 0 | H46: =+[1]VAD!AJ46 -> 1.001487847 | I46: =+[1]VAD!AK46 -> 0 | K46: =+[1]VAD!AM46 -> 0 | L46: =+[1]VAD!AN46 -> 0 | O46: =+[1]VAD!AQ46 -> 0 | P46: 1.001410162 | Q46: =+Q45 -> 0.9985868565 | R46: 0
A47: BTD (0-10,000) | B47: =+[1]VAD!AD47 -> 0.9960749569 | C47: =+[1]VAD!AE47 -> 23.33 | E47: =+[1]VAD!AG47 -> 0 | F47: =+[1]VAD!AH47 -> 23.33 | H47: =+[1]VAD!AJ47 -> 1.001487847 | I47: =+[1]VAD!AK47 -> 23.36 | K47: =+[1]VAD!AM47 -> 0 | L47: =+[1]VAD!AN47 -> 23.36 | O47: =+[1]VAD!AQ47 -> 22.00554793 | P47: 1.001410162 | Q47: =+'Ajuste COMER DISTR Y AP-100'!J33 -> 0.9985868565 | R47: =+ROUND(O47*P47*Q47, 2) -> 22.01
A48: BTD (10,001-30,000) | B48: =+[1]VAD!AD48 -> 0.9960749569 | C48: =+[1]VAD!AE48 -> 23.33 | E48: =+[1]VAD!AG48 -> 0 | F48: =+[1]VAD!AH48 -> 23.33 | H48: =+[1]VAD!AJ48 -> 1.001487847 | I48: =+[1]VAD!AK48 -> 23.36 | K48: =+[1]VAD!AM48 -> 0 | L48: =+[1]VAD!AN48 -> 23.36 | O48: =+[1]VAD!AQ48 -> 22.00554793 | P48: 1.001410162 | Q48: =+Q47 -> 0.9985868565 | R48: 22.01
A49: BTD (30,001-50,000) | B49: =+[1]VAD!AD49 -> 0.9960749569 | C49: =+[1]VAD!AE49 -> 23.33 | E49: =+[1]VAD!AG49 -> 0 | F49: =+[1]VAD!AH49 -> 23.33 | H49: =+[1]VAD!AJ49 -> 1.001487847 | I49: =+[1]VAD!AK49 -> 23.36 | K49: =+[1]VAD!AM49 -> 0 | L49: =+[1]VAD!AN49 -> 23.36 | O49: =+[1]VAD!AQ49 -> 22.00554793 | P49: 1.001410162 | Q49: =+Q48 -> 0.9985868565 | R49: 22.01
A50: BTD (50,001-más) | B50: =+[1]VAD!AD50 -> 0.9960749569 | C50: =+[1]VAD!AE50 -> 23.33 | E50: =+[1]VAD!AG50 -> 0 | F50: =+[1]VAD!AH50 -> 23.33 | H50: =+[1]VAD!AJ50 -> 1.001487847 | I50: =+[1]VAD!AK50 -> 23.36 | K50: =+[1]VAD!AM50 -> 0 | L50: =+[1]VAD!AN50 -> 23.36 | O50: =+[1]VAD!AQ50 -> 22.00554793 | P50: 1.001410162 | Q50: =+Q49 -> 0.9985868565 | R50: 22.01
A51: MTD (0-10,000) | B51: =+[1]VAD!AD51 -> 0.9960749569 | C51: =+[1]VAD!AE51 -> 22.09 | E51: =+[1]VAD!AG51 -> 0 | F51: =+[1]VAD!AH51 -> 22.09 | H51: =+[1]VAD!AJ51 -> 1.001487847 | I51: =+[1]VAD!AK51 -> 22.12 | K51: =+[1]VAD!AM51 -> 0 | L51: =+[1]VAD!AN51 -> 22.12 | O51: =+[1]VAD!AQ51 -> 20.83744521 | P51: 1.001410162 | Q51: =+'Ajuste COMER DISTR Y AP-100'!J33 -> 0.9985868565 | R51: 20.84
A52: MTD (10,001-30,000) | B52: =+[1]VAD!AD52 -> 0.9960749569 | C52: =+[1]VAD!AE52 -> 22.09 | E52: =+[1]VAD!AG52 -> 0 | F52: =+[1]VAD!AH52 -> 22.09 | H52: =+[1]VAD!AJ52 -> 1.001487847 | I52: =+[1]VAD!AK52 -> 22.12 | K52: =+[1]VAD!AM52 -> 0 | L52: =+[1]VAD!AN52 -> 22.12 | O52: =+[1]VAD!AQ52 -> 20.83744521 | P52: 1.001410162 | Q52: =+Q51 -> 0.9985868565 | R52: 20.84
A53: MTD (30,001-50,000) | B53: =+[1]VAD!AD53 -> 0.9960749569 | C53: =+[1]VAD!AE53 -> 22.09 | E53: =+[1]VAD!AG53 -> 0 | F53: =+[1]VAD!AH53 -> 22.09 | H53: =+[1]VAD!AJ53 -> 1.001487847 | I53: =+[1]VAD!AK53 -> 22.12 | K53: =+[1]VAD!AM53 -> 0 | L53: =+[1]VAD!AN53 -> 22.12 | O53: =+[1]VAD!AQ53 -> 20.83744521 | P53: 1.001410162 | Q53: =+Q52 -> 0.9985868565 | R53: 20.84
A54: MTD (50,001-más) | B54: =+[1]VAD!AD54 -> 0.9960749569 | C54: =+[1]VAD!AE54 -> 22.09 | E54: =+[1]VAD!AG54 -> 0 | F54: =+[1]VAD!AH54 -> 22.09 | H54: =+[1]VAD!AJ54 -> 1.001487847 | I54: =+[1]VAD!AK54 -> 22.12 | K54: =+[1]VAD!AM54 -> 0 | L54: =+[1]VAD!AN54 -> 22.12 | O54: =+[1]VAD!AQ54 -> 20.83744521 | P54: 1.001410162 | Q54: =+Q53 -> 0.9985868565 | R54: 20.84
A55: ATD | B55: =+[1]VAD!AD55 -> 0.9960749569 | C55: =+[1]VAD!AE55 -> 16.76 | E55: =+[1]VAD!AG55 -> 0 | F55: =+[1]VAD!AH55 -> 16.76 | H55: =+[1]VAD!AJ55 -> 1.001487847 | I55: =+[1]VAD!AK55 -> 16.78 | K55: =+[1]VAD!AM55 -> 0 | L55: =+[1]VAD!AN55 -> 16.78 | O55: =+[1]VAD!AQ55 -> 15.80706739 | P55: 1.001410162 | Q55: =+'Ajuste COMER DISTR Y AP-100'!J33 -> 0.9985868565 | R55: 15.81
A56: CDPUNTA | Q56: MODELO AT100 # 9
A57: BTH | B57: =+[1]VAD!AD57 -> 0.9960749569 | C57: =+[1]VAD!AE57 -> 23.84 | E57: =+[1]VAD!AG57 -> 0 | F57: =+[1]VAD!AH57 -> 23.84 | H57: =+[1]VAD!AJ57 -> 1.001487847 | I57: =+[1]VAD!AK57 -> 23.88 | K57: =+[1]VAD!AM57 -> 0 | L57: =+[1]VAD!AN57 -> 23.88 | O57: =+[1]VAD!AQ57 -> 22.49539746 | P57: =+$P$40 -> 1.001410162 | Q57: =+'Ajuste COMER DISTR Y AP-100'!J33 -> 0.9985868565 | R57: =+ROUND(O57*P57*Q57, 2) -> 22.5
A58: MTH | B58: =+[1]VAD!AD58 -> 0.9960749569 | C58: =+[1]VAD!AE58 -> 23.17 | E58: =+[1]VAD!AG58 -> 0 | F58: =+[1]VAD!AH58 -> 23.17 | H58: =+[1]VAD!AJ58 -> 1.001487847 | I58: =+[1]VAD!AK58 -> 23.2 | K58: =+[1]VAD!AM58 -> 0 | L58: =+[1]VAD!AN58 -> 23.2 | O58: =+[1]VAD!AQ58 -> 21.854825 | P58: 1.001410162 | Q58: =+'Ajuste COMER DISTR Y AP-100'!J33 -> 0.9985868565 | R58: 21.85
A59: ATH | B59: =+[1]VAD!AD59 -> 0.9960749569 | C59: =+[1]VAD!AE59 -> 6.09 | E59: =+[1]VAD!AG59 -> 0 | F59: =+[1]VAD!AH59 -> 6.09 | H59: =+[1]VAD!AJ59 -> 1.001487847 | I59: =+[1]VAD!AK59 -> 6.1 | K59: =+[1]VAD!AM59 -> 0 | L59: =+[1]VAD!AN59 -> 6.1 | O59: =+[1]VAD!AQ59 -> 5.746311745 | P59: 1.001410162 | Q59: =+'Ajuste COMER DISTR Y AP-100'!J33 -> 0.9985868565 | R59: 5.75
A60: CDFUERA DE PUNTA MEDIO | Q60: MODELO AT100 # 9
A61: BTH | B61: =+[1]VAD!AD61 -> 0.9960749569 | C61: =+[1]VAD!AE61 -> 2.89 | E61: =+[1]VAD!AG61 -> 0 | F61: =+[1]VAD!AH61 -> 2.89 | H61: =+[1]VAD!AJ61 -> 1.001487847 | I61: =+[1]VAD!AK61 -> 2.89 | K61: =+[1]VAD!AM61 -> 0 | L61: =+[1]VAD!AN61 -> 2.89 | O61: =+[1]VAD!AQ61 -> 2.722432942 | P61: =+$P$40 -> 1.001410162 | Q61: =+'Ajuste COMER DISTR Y AP-100'!J33 -> 0.9985868565 | R61: =+ROUND(O61*P61*Q61, 2) -> 2.72
A62: MTH | B62: =+[1]VAD!AD62 -> 0.9960749569 | C62: =+[1]VAD!AE62 -> 3.39 | E62: =+[1]VAD!AG62 -> 0 | F62: =+[1]VAD!AH62 -> 3.39 | H62: =+[1]VAD!AJ62 -> 1.001487847 | I62: =+[1]VAD!AK62 -> 3.4 | K62: =+[1]VAD!AM62 -> 0 | L62: =+[1]VAD!AN62 -> 3.4 | O62: =+[1]VAD!AQ62 -> 3.202862284 | P62: 1.001410162 | Q62: =+'Ajuste COMER DISTR Y AP-100'!J33 -> 0.9985868565 | R62: 3.2
A63: ATH | B63: =+[1]VAD!AD63 -> 0.9960749569 | C63: =+[1]VAD!AE63 -> 4.12 | E63: =+[1]VAD!AG63 -> 0 | F63: =+[1]VAD!AH63 -> 4.12 | H63: =+[1]VAD!AJ63 -> 1.001487847 | I63: =+[1]VAD!AK63 -> 4.13 | K63: =+[1]VAD!AM63 -> 0 | L63: =+[1]VAD!AN63 -> 4.13 | O63: =+[1]VAD!AQ63 -> 3.890535657 | P63: 1.001410162 | Q63: =+'Ajuste COMER DISTR Y AP-100'!J33 -> 0.9985868565 | R63: 3.89
A64: CDFUERA DE PUNTA BAJO
A65: BTH | B65: =+[1]VAD!AD65 -> 0.9960749569 | C65: =+[1]VAD!AE65 -> 2.89 | E65: =+[1]VAD!AG65 -> 0 | F65: =+[1]VAD!AH65 -> 2.89 | H65: =+[1]VAD!AJ65 -> 1.001487847 | I65: =+[1]VAD!AK65 -> 2.89 | K65: =+[1]VAD!AM65 -> 0 | L65: =+[1]VAD!AN65 -> 2.89 | O65: =+[1]VAD!AQ65 -> 2.722432942 | P65: =+$P$40 -> 1.001410162 | Q65: =+'Ajuste COMER DISTR Y AP-100'!J33 -> 0.9985868565 | R65: =+ROUND(O65*P65*Q65, 2) -> 2.72
A66: MTH | B66: =+[1]VAD!AD66 -> 0.9960749569 | C66: =+[1]VAD!AE66 -> 3.39 | E66: =+[1]VAD!AG66 -> 0 | F66: =+[1]VAD!AH66 -> 3.39 | H66: =+[1]VAD!AJ66 -> 1.001487847 | I66: =+[1]VAD!AK66 -> 3.4 | K66: =+[1]VAD!AM66 -> 0 | L66: =+[1]VAD!AN66 -> 3.4 | O66: =+[1]VAD!AQ66 -> 3.202862284 | P66: 1.001410162 | Q66: =+'Ajuste COMER DISTR Y AP-100'!J33 -> 0.9985868565 | R66: 3.2
A67: ATH | B67: =+[1]VAD!AD67 -> 0.9960749569 | C67: =+[1]VAD!AE67 -> 4.12 | E67: =+[1]VAD!AG67 -> 0 | F67: =+[1]VAD!AH67 -> 4.12 | H67: =+[1]VAD!AJ67 -> 1.001487847 | I67: =+[1]VAD!AK67 -> 4.13 | K67: =+[1]VAD!AM67 -> 0 | L67: =+[1]VAD!AN67 -> 4.13 | O67: =+[1]VAD!AQ67 -> 3.890535657 | P67: 1.001410162 | Q67: =+'Ajuste COMER DISTR Y AP-100'!J33 -> 0.9985868565 | R67: 3.89
A68: Alumbrado Público
A69: CSERAP | Q69: MODELO AT100 # 10
A70: BTS (0-300) | B70: =+[1]VAD!AD70 -> 0.9980078172 | C70: =+[1]VAD!AE70 -> 0.00135 | E70: =+[1]VAD!AG70 -> 0 | F70: =+[1]VAD!AH70 -> 0.00135 | H70: =+[1]VAD!AJ70 -> 1.000755167 | I70: =+[1]VAD!AK70 -> 0.00135 | K70: =+[1]VAD!AM70 -> 0 | L70: =+[1]VAD!AN70 -> 0.00135 | O70: =+[1]VAD!AQ70 -> 0.001242059037 | P70: =+'Ajuste COMER DISTR Y AP-100'!D34 -> 1.000715737 | Q70: =+'Ajuste COMER DISTR Y AP-100'!J34 -> 0.9992827493 | R70: =+ROUND(O70*P70*Q70, 5) -> 0.00124
A71: BTS (301-750) | B71: =+[1]VAD!AD71 -> 0.9980078172 | C71: =+[1]VAD!AE71 -> 0.00135 | E71: =+[1]VAD!AG71 -> 0 | F71: =+[1]VAD!AH71 -> 0.00135 | H71: =+[1]VAD!AJ71 -> 1.000755167 | I71: =+[1]VAD!AK71 -> 0.00135 | K71: =+[1]VAD!AM71 -> 0 | L71: =+[1]VAD!AN71 -> 0.00135 | O71: =+[1]VAD!AQ71 -> 0.001242059037 | P71: =+$P$70 -> 1.000715737 | Q71: =+'Ajuste COMER DISTR Y AP-100'!J34 -> 0.9992827493 | R71: 0.00124
A72: BTS (750-más) | B72: =+[1]VAD!AD72 -> 0.9980078172 | C72: =+[1]VAD!AE72 -> 0.00135 | E72: =+[1]VAD!AG72 -> 0 | F72: =+[1]VAD!AH72 -> 0.00135 | H72: =+[1]VAD!AJ72 -> 1.000755167 | I72: =+[1]VAD!AK72 -> 0.00135 | K72: =+[1]VAD!AM72 -> 0 | L72: =+[1]VAD!AN72 -> 0.00135 | O72: =+[1]VAD!AQ72 -> 0.001242059037 | P72: =+$P$70 -> 1.000715737 | Q72: =+'Ajuste COMER DISTR Y AP-100'!J34 -> 0.9992827493 | R72: 0.00124
A73: BTD (0-10,000) | B73: =+[1]VAD!AD73 -> 0.9980078172 | C73: =+[1]VAD!AE73 -> 0.00125 | E73: =+[1]VAD!AG73 -> 0 | F73: =+[1]VAD!AH73 -> 0.00125 | H73: =+[1]VAD!AJ73 -> 1.000755167 | I73: =+[1]VAD!AK73 -> 0.00125 | K73: =+[1]VAD!AM73 -> 0 | L73: =+[1]VAD!AN73 -> 0.00125 | O73: =+[1]VAD!AQ73 -> 0.001162942124 | P73: 1.000715737 | Q73: =+'Ajuste COMER DISTR Y AP-100'!J34 -> 0.9992827493 | R73: 0.00116
A74: BTD (10,001-30,000) | B74: =+[1]VAD!AD74 -> 0.9980078172 | C74: =+[1]VAD!AE74 -> 0.00125 | E74: =+[1]VAD!AG74 -> 0 | F74: =+[1]VAD!AH74 -> 0.00125 | H74: =+[1]VAD!AJ74 -> 1.000755167 | I74: =+[1]VAD!AK74 -> 0.00125 | K74: =+[1]VAD!AM74 -> 0 | L74: =+[1]VAD!AN74 -> 0.00125 | O74: =+[1]VAD!AQ74 -> 0.001162942124 | P74: 1.000715737 | Q74: =+Q73 -> 0.9992827493 | R74: 0.00116
A75: BTD (30,001-50,000) | B75: =+[1]VAD!AD75 -> 0.9980078172 | C75: =+[1]VAD!AE75 -> 0.00125 | E75: =+[1]VAD!AG75 -> 0 | F75: =+[1]VAD!AH75 -> 0.00125 | H75: =+[1]VAD!AJ75 -> 1.000755167 | I75: =+[1]VAD!AK75 -> 0.00125 | K75: =+[1]VAD!AM75 -> 0 | L75: =+[1]VAD!AN75 -> 0.00125 | O75: =+[1]VAD!AQ75 -> 0.001162942124 | P75: 1.000715737 | Q75: 0.9992827493 | R75: 0.00116
A76: BTD (50,001-más) | B76: =+[1]VAD!AD76 -> 0.9980078172 | C76: =+[1]VAD!AE76 -> 0.00125 | E76: =+[1]VAD!AG76 -> 0 | F76: =+[1]VAD!AH76 -> 0.00125 | H76: =+[1]VAD!AJ76 -> 1.000755167 | I76: =+[1]VAD!AK76 -> 0.00125 | K76: =+[1]VAD!AM76 -> 0 | L76: =+[1]VAD!AN76 -> 0.00125 | O76: =+[1]VAD!AQ76 -> 0.001162942124 | P76: 1.000715737 | Q76: 0.9992827493 | R76: 0.00116
A77: BTH | B77: =+[1]VAD!AD77 -> 0.9980078172 | C77: =+[1]VAD!AE77 -> 0.00124 | E77: =+[1]VAD!AG77 -> 0 | F77: =+[1]VAD!AH77 -> 0.00124 | H77: =+[1]VAD!AJ77 -> 1.000755167 | I77: =+[1]VAD!AK77 -> 0.00124 | K77: =+[1]VAD!AM77 -> 0 | L77: =+[1]VAD!AN77 -> 0.00124 | O77: =+[1]VAD!AQ77 -> 0.001153638587 | P77: 1.000715737 | Q77: =+'Ajuste COMER DISTR Y AP-100'!J34 -> 0.9992827493 | R77: 0.00115
A78: MTD (0-10,000) | B78: =+[1]VAD!AD78 -> 0.9980078172 | C78: =+[1]VAD!AE78 -> 0.00124 | E78: =+[1]VAD!AG78 -> 0 | F78: =+[1]VAD!AH78 -> 0.00124 | H78: =+[1]VAD!AJ78 -> 1.000755167 | I78: =+[1]VAD!AK78 -> 0.00124 | K78: =+[1]VAD!AM78 -> 0 | L78: =+[1]VAD!AN78 -> 0.00124 | O78: =+[1]VAD!AQ78 -> 0.001153639114 | P78: 1.000715737 | Q78: =+'Ajuste COMER DISTR Y AP-100'!J34 -> 0.9992827493 | R78: 0.00115
A79: MTD (10,001-30,000) | B79: =+[1]VAD!AD79 -> 0.9980078172 | C79: =+[1]VAD!AE79 -> 0.00124 | E79: =+[1]VAD!AG79 -> 0 | F79: =+[1]VAD!AH79 -> 0.00124 | H79: =+[1]VAD!AJ79 -> 1.000755167 | I79: =+[1]VAD!AK79 -> 0.00124 | K79: =+[1]VAD!AM79 -> 0 | L79: =+[1]VAD!AN79 -> 0.00124 | O79: =+[1]VAD!AQ79 -> 0.001153639114 | P79: 1.000715737 | Q79: =+Q78 -> 0.9992827493 | R79: 0.00115
A80: MTD (30,001-50,000) | B80: =+[1]VAD!AD80 -> 0.9980078172 | C80: =+[1]VAD!AE80 -> 0.00124 | E80: =+[1]VAD!AG80 -> 0 | F80: =+[1]VAD!AH80 -> 0.00124 | H80: =+[1]VAD!AJ80 -> 1.000755167 | I80: =+[1]VAD!AK80 -> 0.00124 | K80: =+[1]VAD!AM80 -> 0 | L80: =+[1]VAD!AN80 -> 0.00124 | O80: =+[1]VAD!AQ80 -> 0.001153639114 | P80: 1.000715737 | Q80: 0.9992827493 | R80: 0.00115
A81: MTD (50,001-más) | B81: =+[1]VAD!AD81 -> 0.9980078172 | C81: =+[1]VAD!AE81 -> 0.00124 | E81: =+[1]VAD!AG81 -> 0 | F81: =+[1]VAD!AH81 -> 0.00124 | H81: =+[1]VAD!AJ81 -> 1.000755167 | I81: =+[1]VAD!AK81 -> 0.00124 | K81: =+[1]VAD!AM81 -> 0 | L81: =+[1]VAD!AN81 -> 0.00124 | O81: =+[1]VAD!AQ81 -> 0.001153639114 | P81: 1.000715737 | Q81: 0.9992827493 | R81: 0.00115
A82: MTH | B82: =+[1]VAD!AD82 -> 0.9980078172 | C82: =+[1]VAD!AE82 -> 0.00124 | E82: =+[1]VAD!AG82 -> 0 | F82: =+[1]VAD!AH82 -> 0.00124 | H82: =+[1]VAD!AJ82 -> 1.000755167 | I82: =+[1]VAD!AK82 -> 0.00124 | K82: =+[1]VAD!AM82 -> 0 | L82: =+[1]VAD!AN82 -> 0.00124 | O82: =+[1]VAD!AQ82 -> 0.001153638587 | P82: 1.000715737 | Q82: =+'Ajuste COMER DISTR Y AP-100'!J34 -> 0.9992827493 | R82: 0.00115
A83: ATD | B83: =+[1]VAD!AD83 -> 0.9980078172 | C83: =+[1]VAD!AE83 -> 0.00124 | E83: =+[1]VAD!AG83 -> 0 | F83: =+[1]VAD!AH83 -> 0.00124 | H83: =+[1]VAD!AJ83 -> 1.000755167 | I83: =+[1]VAD!AK83 -> 0.00124 | K83: =+[1]VAD!AM83 -> 0 | L83: =+[1]VAD!AN83 -> 0.00124 | O83: =+[1]VAD!AQ83 -> 0.001153638587 | P83: 1.000715737 | Q83: =+'Ajuste COMER DISTR Y AP-100'!J34 -> 0.9992827493 | R83: 0.00115
A84: ATH | B84: =+[1]VAD!AD84 -> 0.9980078172 | C84: =+[1]VAD!AE84 -> 0.00124 | E84: =+[1]VAD!AG84 -> 0 | F84: =+[1]VAD!AH84 -> 0.00124 | H84: =+[1]VAD!AJ84 -> 1.000755167 | I84: =+[1]VAD!AK84 -> 0.00124 | K84: =+[1]VAD!AM84 -> 0 | L84: =+[1]VAD!AN84 -> 0.00124 | O84: =+[1]VAD!AQ84 -> 0.001153638587 | P84: 1.000715737 | Q84: =+'Ajuste COMER DISTR Y AP-100'!J34 -> 0.9992827493 | R84: 0.00115
A86: Cargo por Conexión y Reconexión
Q87: MODELO AT100 # 9
A88: BTS | B88: =+[1]VAD!AD88 -> 0.9960749569 | C88: =+[1]VAD!AE88 -> 16.63 | E88: =+[1]VAD!AG88 -> 0 | F88: =+[1]VAD!AH88 -> 16.63 | H88: =+[1]VAD!AJ88 -> 1.001487847 | I88: =+[1]VAD!AK88 -> 16.65 | K88: =+[1]VAD!AM88 -> 0 | L88: =+[1]VAD!AN88 -> 16.65 | O88: =+[1]VAD!AQ88 -> 16.65 | P88: =+$P$40 -> 1.001410162 | Q88: =+'Ajuste COMER DISTR Y AP-100'!J33 -> 0.9985868565 | R88: =+ROUND(O88*P88*Q88, 2) -> 16.65
A89: BTD | B89: =+[1]VAD!AD89 -> 0.9960749569 | C89: =+[1]VAD!AE89 -> 71.65 | E89: =+[1]VAD!AG89 -> 0 | F89: =+[1]VAD!AH89 -> 71.65 | H89: =+[1]VAD!AJ89 -> 1.001487847 | I89: =+[1]VAD!AK89 -> 71.76 | K89: =+[1]VAD!AM89 -> 0 | L89: =+[1]VAD!AN89 -> 71.76 | O89: =+[1]VAD!AQ89 -> 71.76 | P89: 1.001410162 | Q89: =+'Ajuste COMER DISTR Y AP-100'!J33 -> 0.9985868565 | R89: =+ROUND(O89*P89*Q89, 2) -> 71.76
A90: BTH | B90: =+[1]VAD!AD90 -> 0.9960749569 | C90: =+[1]VAD!AE90 -> 71.65 | E90: =+[1]VAD!AG90 -> 0 | F90: =+[1]VAD!AH90 -> 71.65 | H90: =+[1]VAD!AJ90 -> 1.001487847 | I90: =+[1]VAD!AK90 -> 71.76 | K90: =+[1]VAD!AM90 -> 0 | L90: =+[1]VAD!AN90 -> 71.76 | O90: =+[1]VAD!AQ90 -> 71.76 | P90: 1.001410162 | Q90: =+'Ajuste COMER DISTR Y AP-100'!J33 -> 0.9985868565 | R90: 71.76
A91: MTD | B91: =+[1]VAD!AD91 -> 0.9960749569 | C91: =+[1]VAD!AE91 -> 141.1 | E91: =+[1]VAD!AG91 -> 0 | F91: =+[1]VAD!AH91 -> 141.1 | H91: =+[1]VAD!AJ91 -> 1.001487847 | I91: =+[1]VAD!AK91 -> 141.31 | K91: =+[1]VAD!AM91 -> 0 | L91: =+[1]VAD!AN91 -> 141.31 | O91: =+[1]VAD!AQ91 -> 141.31 | P91: 1.001410162 | Q91: =+'Ajuste COMER DISTR Y AP-100'!J33 -> 0.9985868565 | R91: =+ROUND(O91*P91*Q91, 0) -> 141
A92: MTH | B92: =+[1]VAD!AD92 -> 0.9960749569 | C92: =+[1]VAD!AE92 -> 141.1 | E92: =+[1]VAD!AG92 -> 0 | F92: =+[1]VAD!AH92 -> 141.1 | H92: =+[1]VAD!AJ92 -> 1.001487847 | I92: =+[1]VAD!AK92 -> 141.31 | K92: =+[1]VAD!AM92 -> 0 | L92: =+[1]VAD!AN92 -> 141.31 | O92: =+[1]VAD!AQ92 -> 141.31 | P92: 1.001410162 | Q92: =+'Ajuste COMER DISTR Y AP-100'!J33 -> 0.9985868565 | R92: =+ROUND(O92*P92*Q92, 0) -> 141
A93: ATD | B93: =+[1]VAD!AD93 -> 0.9960749569 | C93: =+[1]VAD!AE93 -> 201.59 | E93: =+[1]VAD!AG93 -> 0 | F93: =+[1]VAD!AH93 -> 201.59 | H93: =+[1]VAD!AJ93 -> 1.001487847 | I93: =+[1]VAD!AK93 -> 201.89 | K93: =+[1]VAD!AM93 -> 0 | L93: =+[1]VAD!AN93 -> 201.89 | O93: =+[1]VAD!AQ93 -> 201.89 | P93: 1.001410162 | Q93: =+'Ajuste COMER DISTR Y AP-100'!J33 -> 0.9985868565 | R93: 201.89
A94: ATH | B94: =+[1]VAD!AD94 -> 0.9960749569 | C94: =+[1]VAD!AE94 -> 201.59 | E94: =+[1]VAD!AG94 -> 0 | F94: =+[1]VAD!AH94 -> 201.59 | H94: =+[1]VAD!AJ94 -> 1.001487847 | I94: =+[1]VAD!AK94 -> 201.89 | K94: =+[1]VAD!AM94 -> 0 | L94: =+[1]VAD!AN94 -> 201.89 | O94: =+[1]VAD!AQ94 -> 201.89 | P94: 1.001410162 | Q94: =+'Ajuste COMER DISTR Y AP-100'!J33 -> 0.9985868565 | R94: 201.89
A95: PREPAGO | B95: =+[1]VAD!AD95 -> 0.9960749569 | C95: =+[1]VAD!AE95 -> 16.63 | E95: =+[1]VAD!AG95 -> 0 | F95: =+[1]VAD!AH95 -> 16.63 | H95: =+[1]VAD!AJ95 -> 1.001487847 | I95: =+[1]VAD!AK95 -> 16.65 | K95: =+[1]VAD!AM95 -> 0 | L95: =+[1]VAD!AN95 -> 16.65 | O95: =+[1]VAD!AQ95 -> 16.65 | P95: 1.001410162 | Q95: =+'Ajuste COMER DISTR Y AP-100'!J33 -> 0.9985868565 | R95: 16.65
A96: BTSH | B96: =+[1]VAD!AD96 -> 0.9960749569 | C96: =+[1]VAD!AE96 -> 16.63 | E96: =+[1]VAD!AG96 -> 0 | F96: =+[1]VAD!AH96 -> 16.63 | H96: =+[1]VAD!AJ96 -> 1.001487847 | I96: =+[1]VAD!AK96 -> 16.65 | K96: =+[1]VAD!AM96 -> 0 | L96: =+[1]VAD!AN96 -> 16.65 | O96: =+[1]VAD!AQ96 -> 16.65 | P96: 1.001410162 | Q96: =+'Ajuste COMER DISTR Y AP-100'!J33 -> 0.9985868565 | R96: 16.65
A97: =+IF('Ajuste Cons AlumPub-600'!B2="EDECHI","CHANGUINOLA","") -> CHANGUINOLA
A99: Comercialización
A100: CCOMF
A101: BTS (0-300) | B101: =+[1]VAD!AD101 -> 0.9932327361 | C101: =+[1]VAD!AE101 -> 3.03 | E101: =+[1]VAD!AG101 -> 0 | F101: =+[1]VAD!AH101 -> 3.03 | H101: =+[1]VAD!AJ101 -> 1.002565235 | I101: =+[1]VAD!AK101 -> 3.04 | K101: =+[1]VAD!AM101 -> 0 | L101: =+[1]VAD!AN101 -> 3.04 | O101: =+[1]VAD!AQ101 -> 3.04 | P101: =+H101 -> 1.002565235 | Q101: =+'Ajuste COMER DISTR Y AP-100'!J32 -> 0.9975635644 | R101: =+ROUND(O101*P101*Q101, 2) -> 3.04
A102: BTS (301-750) | B102: =+[1]VAD!AD102 -> 0.9932327361 | C102: =+[1]VAD!AE102 -> 3.03 | E102: =+[1]VAD!AG102 -> 0 | F102: =+[1]VAD!AH102 -> 3.03 | H102: =+[1]VAD!AJ102 -> 1.002565235 | I102: =+[1]VAD!AK102 -> 3.04 | K102: =+[1]VAD!AM102 -> 0 | L102: =+[1]VAD!AN102 -> 3.04 | O102: =+[1]VAD!AQ102 -> 3.04 | P102: =+H102 -> 1.002565235 | Q102: =+'Ajuste COMER DISTR Y AP-100'!J32 -> 0.9975635644 | R102: 3.04
A103: BTS (750-más) | B103: =+[1]VAD!AD103 -> 0.9932327361 | C103: =+[1]VAD!AE103 -> 3.03 | E103: =+[1]VAD!AG103 -> 0 | F103: =+[1]VAD!AH103 -> 3.03 | H103: =+[1]VAD!AJ103 -> 1.002565235 | I103: =+[1]VAD!AK103 -> 3.04 | K103: =+[1]VAD!AM103 -> 0 | L103: =+[1]VAD!AN103 -> 3.04 | O103: =+[1]VAD!AQ103 -> 3.04 | P103: =+H103 -> 1.002565235 | Q103: =+'Ajuste COMER DISTR Y AP-100'!J32 -> 0.9975635644 | R103: 3.04
A105: CCOMV
A106: BTS (0-300) | B106: =+[1]VAD!AD106 -> 0.9932327361 | C106: =+[1]VAD!AE106 -> 0.01202 | E106: =+[1]VAD!AG106 -> 0 | F106: =+[1]VAD!AH106 -> 0.01202 | H106: =+[1]VAD!AJ106 -> 1.002565235 | I106: =+[1]VAD!AK106 -> 0.01205 | K106: =+[1]VAD!AM106 -> 0 | L106: =+[1]VAD!AN106 -> 0.01205 | O106: =+[1]VAD!AQ106 -> 0.009351855547 | P106: =+$P$7 -> 1.002431295 | Q106: =+'Ajuste COMER DISTR Y AP-100'!J32 -> 0.9975635644 | R106: =+ROUND(O106*P106*Q106, 5) -> 0.00935
A107: BTS (301-750) | B107: =+[1]VAD!AD107 -> 0.9932327361 | C107: =+[1]VAD!AE107 -> 0.01202 | E107: =+[1]VAD!AG107 -> 0 | F107: =+[1]VAD!AH107 -> 0.01202 | H107: =+[1]VAD!AJ107 -> 1.002565235 | I107: =+[1]VAD!AK107 -> 0.01205 | K107: =+[1]VAD!AM107 -> 0 | L107: =+[1]VAD!AN107 -> 0.01205 | O107: =+[1]VAD!AQ107 -> 0.009351855547 | P107: 1.002431295 | Q107: =+'Ajuste COMER DISTR Y AP-100'!J32 -> 0.9975635644 | R107: 0.00935
A108: BTS (750-más) | B108: =+[1]VAD!AD108 -> 0.9932327361 | C108: =+[1]VAD!AE108 -> 0.01202 | E108: =+[1]VAD!AG108 -> 0 | F108: =+[1]VAD!AH108 -> 0.01202 | H108: =+[1]VAD!AJ108 -> 1.002565235 | I108: =+[1]VAD!AK108 -> 0.01205 | K108: =+[1]VAD!AM108 -> 0 | L108: =+[1]VAD!AN108 -> 0.01205 | O108: =+[1]VAD!AQ108 -> 0.009351855547 | P108: 1.002431295 | Q108: =+'Ajuste COMER DISTR Y AP-100'!J32 -> 0.9975635644 | R108: 0.00935
A110: Distribución
A111: CD
A112: BTS (0-300) | B112: =+[1]VAD!AD112 -> 0.9960749569 | C112: =+[1]VAD!AE112 -> 0.05926 | E112: =+[1]VAD!AG112 -> 0 | F112: =+[1]VAD!AH112 -> 0.05926 | H112: =+[1]VAD!AJ112 -> 1.001487847 | I112: =+[1]VAD!AK112 -> 0.05935 | K112: =+[1]VAD!AM112 -> 0 | L112: =+[1]VAD!AN112 -> 0.05935 | O112: =+[1]VAD!AQ112 -> 0.05528921877 | P112: =+$P$40 -> 1.001410162 | Q112: =+'Ajuste COMER DISTR Y AP-100'!J33 -> 0.9985868565 | R112: =+ROUND(O112*P112*Q112, 5) -> 0.05529
A113: BTS (301-750) | B113: =+[1]VAD!AD113 -> 0.9960749569 | C113: =+[1]VAD!AE113 -> 0.05926 | E113: =+[1]VAD!AG113 -> 0 | F113: =+[1]VAD!AH113 -> 0.05926 | H113: =+[1]VAD!AJ113 -> 1.001487847 | I113: =+[1]VAD!AK113 -> 0.05935 | K113: =+[1]VAD!AM113 -> 0 | L113: =+[1]VAD!AN113 -> 0.05935 | O113: =+[1]VAD!AQ113 -> 0.05528921877 | P113: 1.001410162 | Q113: =+'Ajuste COMER DISTR Y AP-100'!J33 -> 0.9985868565 | R113: 0.05529
A114: BTS (750-más) | B114: =+[1]VAD!AD114 -> 0.9960749569 | C114: =+[1]VAD!AE114 -> 0.05926 | E114: =+[1]VAD!AG114 -> 0 | F114: =+[1]VAD!AH114 -> 0.05926 | H114: =+[1]VAD!AJ114 -> 1.001487847 | I114: =+[1]VAD!AK114 -> 0.05935 | K114: =+[1]VAD!AM114 -> 0 | L114: =+[1]VAD!AN114 -> 0.05935 | O114: =+[1]VAD!AQ114 -> 0.05528921877 | P114: 1.001410162 | Q114: =+'Ajuste COMER DISTR Y AP-100'!J33 -> 0.9985868565 | R114: 0.05529
A116: Alumbrado Público
A117: CSERAP
A118: BTS (0-300) | B118: =+[1]VAD!AD118 -> 0.9980078172 | C118: =+[1]VAD!AE118 -> 0.00135 | E118: =+[1]VAD!AG118 -> 0 | F118: =+[1]VAD!AH118 -> 0.00135 | H118: =+[1]VAD!AJ118 -> 1.000755167 | I118: =+[1]VAD!AK118 -> 0.00135 | K118: =+[1]VAD!AM118 -> 0 | L118: =+[1]VAD!AN118 -> 0.00135 | O118: =+[1]VAD!AQ118 -> 0.001242059037 | P118: =+$P$70 -> 1.000715737 | Q118: =+'Ajuste COMER DISTR Y AP-100'!J34 -> 0.9992827493 | R118: =+ROUND(O118*P118*Q118, 5) -> 0.00124
A119: BTS (301-750) | B119: =+[1]VAD!AD119 -> 0.9980078172 | C119: =+[1]VAD!AE119 -> 0.00135 | E119: =+[1]VAD!AG119 -> 0 | F119: =+[1]VAD!AH119 -> 0.00135 | H119: =+[1]VAD!AJ119 -> 1.000755167 | I119: =+[1]VAD!AK119 -> 0.00135 | K119: =+[1]VAD!AM119 -> 0 | L119: =+[1]VAD!AN119 -> 0.00135 | O119: =+[1]VAD!AQ119 -> 0.001242059037 | P119: 1.000715737 | Q119: =+'Ajuste COMER DISTR Y AP-100'!J34 -> 0.9992827493 | R119: 0.00124
A120: BTS (750-más) | B120: =+[1]VAD!AD120 -> 0.9980078172 | C120: =+[1]VAD!AE120 -> 0.00135 | E120: =+[1]VAD!AG120 -> 0 | F120: =+[1]VAD!AH120 -> 0.00135 | H120: =+[1]VAD!AJ120 -> 1.000755167 | I120: =+[1]VAD!AK120 -> 0.00135 | K120: =+[1]VAD!AM120 -> 0 | L120: =+[1]VAD!AN120 -> 0.00135 | O120: =+[1]VAD!AQ120 -> 0.001242059037 | P120: 1.000715737 | Q120: =+'Ajuste COMER DISTR Y AP-100'!J34 -> 0.9992827493 | R120: 0.00124
A123: PREPAGO
A124: CD | B124: =+[1]VAD!AD124 -> 0.9960749569 | C124: =+[1]VAD!AE124 -> 0.05943 | E124: =+[1]VAD!AG124 -> 0 | F124: =+[1]VAD!AH124 -> 0.05943 | H124: =+[1]VAD!AJ124 -> 1.001487847 | I124: =+[1]VAD!AK124 -> 0.05952 | K124: =+[1]VAD!AM124 -> 0 | L124: =+[1]VAD!AN124 -> 0.05952 | O124: =+[1]VAD!AQ124 -> 0.05601321643 | P124: =+$P$40 -> 1.001410162 | Q124: =+'Ajuste COMER DISTR Y AP-100'!J33 -> 0.9985868565 | R124: =+ROUND(O124*P124*Q124, 5) -> 0.05601
A125: CCOMF | B125: =+[1]VAD!AD125 -> 0.9932327361 | C125: =+[1]VAD!AE125 -> 0.0122 | E125: =+[1]VAD!AG125 -> 0 | F125: =+[1]VAD!AH125 -> 0.0122 | H125: =+[1]VAD!AJ125 -> 1.002565235 | I125: =+[1]VAD!AK125 -> 0.01223 | K125: =+[1]VAD!AM125 -> 0 | L125: =+[1]VAD!AN125 -> 0.01223 | O125: =+[1]VAD!AQ125 -> 0.01221784744 | P125: =+H125 -> 1.002565235 | Q125: =+'Ajuste COMER DISTR Y AP-100'!J32 -> 0.9975635644 | R125: =+ROUND(O125*P125*Q125, 5) -> 0.01222
A126: CCOMV | B126: =+[1]VAD!AD126 -> 0.9932327361 | C126: =+[1]VAD!AE126 -> 0.01204 | E126: =+[1]VAD!AG126 -> 0 | F126: =+[1]VAD!AH126 -> 0.01204 | H126: =+[1]VAD!AJ126 -> 1.002565235 | I126: =+[1]VAD!AK126 -> 0.01207 | K126: =+[1]VAD!AM126 -> 0 | L126: =+[1]VAD!AN126 -> 0.01207 | O126: =+[1]VAD!AQ126 -> 0.009462935331 | P126: =+H126 -> 1.002565235 | Q126: =+'Ajuste COMER DISTR Y AP-100'!J32 -> 0.9975635644 | R126: 0.00946
A127: CSERAP | B127: =+[1]VAD!AD127 -> 0.9980078172 | C127: =+[1]VAD!AE127 -> 0.00137 | E127: =+[1]VAD!AG127 -> 0 | F127: =+[1]VAD!AH127 -> 0.00137 | H127: =+[1]VAD!AJ127 -> 1.000755167 | I127: =+[1]VAD!AK127 -> 0.00137 | K127: =+[1]VAD!AM127 -> 0 | L127: =+[1]VAD!AN127 -> 0.00137 | O127: =+[1]VAD!AQ127 -> 0.001273318054 | P127: =+$P$70 -> 1.000715737 | Q127: =+'Ajuste COMER DISTR Y AP-100'!J34 -> 0.9992827493 | R127: 0.00127
A130: BTSH
A131: CCOMF | B131: =+[1]VAD!AD131 -> 0.9932327361 | C131: =+[1]VAD!AE131 -> 3.03 | E131: =+[1]VAD!AG131 -> 0 | F131: =+[1]VAD!AH131 -> 3.03 | H131: =+[1]VAD!AJ131 -> 1.002565235 | I131: =+[1]VAD!AK131 -> 3.04 | K131: =+[1]VAD!AM131 -> 0 | L131: =+[1]VAD!AN131 -> 3.04 | O131: =+[1]VAD!AQ131 -> 3.04 | P131: =+$P$7 -> 1.002431295 | Q131: =+Q$7 -> 0.9975635644 | R131: =+ROUND(O131*P131*Q131, 2) -> 3.04
A132: CCOMV
A133: BTSH_1
A134: BTSH_1 Punta | B134: =+[1]VAD!AD134 -> 0.9932327361 | C134: =+[1]VAD!AE134 -> 0.01148 | E134: =+[1]VAD!AG134 -> 0 | F134: =+[1]VAD!AH134 -> 0.01148 | H134: =+[1]VAD!AJ134 -> 1.002565235 | I134: =+[1]VAD!AK134 -> 0.01151 | K134: =+[1]VAD!AM134 -> 0 | L134: =+[1]VAD!AN134 -> 0.01151 | O134: =+[1]VAD!AQ134 -> 0.009032868437 | P134: =+$P$7 -> 1.002431295 | Q134: =+Q$7 -> 0.9975635644 | R134: =+ROUND(O134*P134*Q134, 5) -> 0.00903
A135: BTSH_1 Fuera de Punta Medio | B135: =+[1]VAD!AD135 -> 0.9932327361 | C135: =+[1]VAD!AE135 -> 0.01148 | E135: =+[1]VAD!AG135 -> 0 | F135: =+[1]VAD!AH135 -> 0.01148 | H135: =+[1]VAD!AJ135 -> 1.002565235 | I135: =+[1]VAD!AK135 -> 0.01151 | K135: =+[1]VAD!AM135 -> 0 | L135: =+[1]VAD!AN135 -> 0.01151 | O135: =+[1]VAD!AQ135 -> 0.009032868437 | P135: 1.002431295 | Q135: =+Q$7 -> 0.9975635644 | R135: =+ROUND(O135*P135*Q135, 5) -> 0.00903
A136: BTSH_1 Fuera de Punta Bajo | B136: =+[1]VAD!AD136 -> 0.9932327361 | C136: =+[1]VAD!AE136 -> 0.01148 | E136: =+[1]VAD!AG136 -> 0 | F136: =+[1]VAD!AH136 -> 0.01148 | H136: =+[1]VAD!AJ136 -> 1.002565235 | I136: =+[1]VAD!AK136 -> 0.01151 | K136: =+[1]VAD!AM136 -> 0 | L136: =+[1]VAD!AN136 -> 0.01151 | O136: =+[1]VAD!AQ136 -> 0.009032868437 | P136: 1.002431295 | Q136: =+Q$7 -> 0.9975635644 | R136: =+ROUND(O136*P136*Q136, 5) -> 0.00903
A137: BTSH_2
A138: BTSH_2 Punta | P138: =+H138 -> 0 | R138: =+ROUND(O138*P138*Q138, 5) -> 0
A139: BTSH_2 Fuera de Punta Medio | P139: =+H139 -> 0 | R139: =+ROUND(O139*P139*Q139, 5) -> 0
A140: BTSH_2 Fuera de Punta Bajo | P140: =+H140 -> 0 | R140: =+ROUND(O140*P140*Q140, 5) -> 0
A141: BTSH_3
A142: BTSH_3 Punta | P142: =+H142 -> 0 | R142: =+ROUND(O142*P142*Q142, 5) -> 0
A143: BTSH_3 Fuera de Punta Medio | P143: =+H143 -> 0 | R143: =+ROUND(O143*P143*Q143, 5) -> 0
A144: BTSH_3 Fuera de Punta Bajo | P144: =+H144 -> 0 | R144: =+ROUND(O144*P144*Q144, 5) -> 0
A145: CD
A146: BTSH_1
A147: BTSH_1 Punta | B147: =+[1]VAD!AD147 -> 0.9960749569 | C147: =+[1]VAD!AE147 -> 0.0643 | E147: =+[1]VAD!AG147 -> 0 | F147: =+[1]VAD!AH147 -> 0.0643 | H147: =+[1]VAD!AJ147 -> 1.001487847 | I147: =+[1]VAD!AK147 -> 0.0644 | K147: =+[1]VAD!AM147 -> 0 | L147: =+[1]VAD!AN147 -> 0.0644 | O147: =+[1]VAD!AQ147 -> 0.06066597974 | P147: =+$P$40 -> 1.001410162 | Q147: =+Q$40 -> 0.9985868565 | R147: =+ROUND(O147*P147*Q147, 5) -> 0.06067
A148: BTSH_1 Fuera de Punta Medio | B148: =+[1]VAD!AD148 -> 0.9960749569 | C148: =+[1]VAD!AE148 -> 0.05741 | E148: =+[1]VAD!AG148 -> 0 | F148: =+[1]VAD!AH148 -> 0.05741 | H148: =+[1]VAD!AJ148 -> 1.001487847 | I148: =+[1]VAD!AK148 -> 0.0575 | K148: =+[1]VAD!AM148 -> 0 | L148: =+[1]VAD!AN148 -> 0.0575 | O148: =+[1]VAD!AQ148 -> 0.05416605334 | P148: 1.001410162 | Q148: =+Q$40 -> 0.9985868565 | R148: =+ROUND(O148*P148*Q148, 5) -> 0.05417
A149: BTSH_1 Fuera de Punta Bajo | B149: =+[1]VAD!AD149 -> 0.9960749569 | C149: =+[1]VAD!AE149 -> 0.05125 | E149: =+[1]VAD!AG149 -> 0 | F149: =+[1]VAD!AH149 -> 0.05125 | H149: =+[1]VAD!AJ149 -> 1.001487847 | I149: =+[1]VAD!AK149 -> 0.05133 | K149: =+[1]VAD!AM149 -> 0 | L149: =+[1]VAD!AN149 -> 0.05133 | O149: =+[1]VAD!AQ149 -> 0.04835380031 | P149: 1.001410162 | Q149: =+Q$40 -> 0.9985868565 | R149: =+ROUND(O149*P149*Q149, 5) -> 0.04835
A150: BTSH_2
A151: BTSH_2 Punta | P151: =+H151 -> 0 | R151: =+ROUND(O151*P151*Q151, 5) -> 0
A152: BTSH_2 Fuera de Punta Medio | P152: =+H152 -> 0 | R152: =+ROUND(O152*P152*Q152, 5) -> 0
A153: BTSH_2 Fuera de Punta Bajo | P153: =+H153 -> 0 | R153: =+ROUND(O153*P153*Q153, 5) -> 0
A154: BTSH_3
A155: BTSH_3 Punta | P155: =+H155 -> 0 | R155: =+ROUND(O155*P155*Q155, 5) -> 0
A156: BTSH_3 Fuera de Punta Medio | P156: =+H156 -> 0 | R156: =+ROUND(O156*P156*Q156, 5) -> 0
A157: BTSH_3 Fuera de Punta Bajo | P157: =+H157 -> 0 | R157: =+ROUND(O157*P157*Q157, 5) -> 0
A158: CSERAP
A159: BTSH_1
A160: BTSH_1 Punta | B160: =+[1]VAD!AD160 -> 0.9980078172 | C160: =+[1]VAD!AE160 -> 0.0013 | E160: =+[1]VAD!AG160 -> 0 | F160: =+[1]VAD!AH160 -> 0.0013 | H160: =+[1]VAD!AJ160 -> 1.000755167 | I160: =+[1]VAD!AK160 -> 0.0013 | K160: =+[1]VAD!AM160 -> 0 | L160: =+[1]VAD!AN160 -> 0.0013 | O160: =+[1]VAD!AQ160 -> 0.001209459809 | P160: =+$P$70 -> 1.000715737 | Q160: =+Q$70 -> 0.9992827493 | R160: =+ROUND(O160*P160*Q160, 5) -> 0.00121
A161: BTSH_1 Fuera de Punta Medio | B161: =+[1]VAD!AD161 -> 0.9980078172 | C161: =+[1]VAD!AE161 -> 0.0013 | E161: =+[1]VAD!AG161 -> 0 | F161: =+[1]VAD!AH161 -> 0.0013 | H161: =+[1]VAD!AJ161 -> 1.000755167 | I161: =+[1]VAD!AK161 -> 0.0013 | K161: =+[1]VAD!AM161 -> 0 | L161: =+[1]VAD!AN161 -> 0.0013 | O161: =+[1]VAD!AQ161 -> 0.001209459809 | P161: 1.000715737 | Q161: =+Q$70 -> 0.9992827493 | R161: =+ROUND(O161*P161*Q161, 5) -> 0.00121
A162: BTSH_1 Fuera de Punta Bajo | B162: =+[1]VAD!AD162 -> 0.9980078172 | C162: =+[1]VAD!AE162 -> 0.0013 | E162: =+[1]VAD!AG162 -> 0 | F162: =+[1]VAD!AH162 -> 0.0013 | H162: =+[1]VAD!AJ162 -> 1.000755167 | I162: =+[1]VAD!AK162 -> 0.0013 | K162: =+[1]VAD!AM162 -> 0 | L162: =+[1]VAD!AN162 -> 0.0013 | O162: =+[1]VAD!AQ162 -> 0.001209459809 | P162: 1.000715737 | Q162: =+Q$70 -> 0.9992827493 | R162: =+ROUND(O162*P162*Q162, 5) -> 0.00121
A163: BTSH_2
A164: BTSH_2 Punta | P164: =+H164 -> 0 | R164: =+ROUND(O164*P164*Q164, 5) -> 0
A165: BTSH_2 Fuera de Punta Medio | P165: =+H165 -> 0 | R165: =+ROUND(O165*P165*Q165, 5) -> 0
A166: BTSH_2 Fuera de Punta Bajo | P166: =+H166 -> 0 | R166: =+ROUND(O166*P166*Q166, 5) -> 0
A167: BTSH_3
A168: BTSH_3 Punta | P168: =+H168 -> 0 | R168: =+ROUND(O168*P168*Q168, 5) -> 0
A169: BTSH_3 Fuera de Punta Medio | P169: =+H169 -> 0 | R169: =+ROUND(O169*P169*Q169, 5) -> 0
A170: BTSH_3 Fuera de Punta Bajo | P170: =+H170 -> 0 | R170: =+ROUND(O170*P170*Q170, 5) -> 0

Sheet RES DE ACT TARIFARIA-1000-T (3) (hidden)
A1: TARIFAS
A3: Cargo Mensual | B3: MES | C3: MES | D3: MES | E3: MES | F3: MES | G3: MES
A4: VARIACION DEL COMBUSTIBLE
A5: BTS
A6: BTD
A7: BTH
A8: MTD
A9: MTH
A10: ATD
A11: ATH
A13: Cargo en la Factura del Cliente | B13: MES | C13: MES | D13: MES | E13: MES | F13: MES | G13: MES
A14: VARIACION DEL COMBUSTIBLE
A15: BTS
A16: BTD
A17: BTH
A18: MTD
A19: MTH
A20: ATD
A21: ATH

Sheet RES DE ACT TARIFARIA-1000-T(4) (hidden)
A1: =+"TARIFAS: "&[1]Fecha!$A$1 -> TARIFAS: EDECHI
A3: Cargo Mensual | B3: 2017-01-01 | C3: 2017-02-01 | D3: 2017-03-01 | E3: 2017-04-01 | F3: 2017-05-01 | G3: 2017-06-01 | H3: 2017-07-01 | I3: 2017-08-01 | J3: 2017-09-01 | K3: 2017-10-01 | L3: 2017-11-01 | M3: 2017-12-01 | N3: 2018-01-01 | O3: 2018-02-01 | P3: 2018-03-01 | Q3: 2018-04-01 | R3: 2018-05-01 | S3: 2018-06-01 | T3: 2018-07-01 | U3: 2018-08-01 | V3: 2018-09-01 | W3: 2018-10-01 | X3: 2018-11-01 | Y3: 2018-12-01 | Z3: 2019-01-01 | AA3: 2019-02-01 | AB3: 2019-03-01 | AC3: 2019-04-01 | AD3: 2019-05-01 | AE3: 2019-06-01 | AF3: 2019-07-01 | AG3: 2019-08-01 | AH3: 2019-09-01 | AI3: 2019-10-01 | AJ3: 2019-11-01 | AK3: 2019-12-01 | AL3: 2020-01-01 | AM3: 2020-02-01 | AN3: 2020-03-01 | AO3: 2020-04-01 | AP3: 2020-05-01 | AQ3: 2020-06-01 | AR3: 2020-07-01 | AS3: 2020-08-01 | AT3: 2020-09-01 | AU3: 2020-10-01 | AV3: 2020-11-01 | AW3: 2020-12-01
A4: VARIACION DEL COMBUSTIBLE
A5: BTS | B5: =+'[1]Cargo Combustible'!#REF! ->  | C5: =+'[1]Cargo Combustible'!#REF! ->  | D5: =+'[1]Cargo Combustible'!#REF! ->  | E5: =+'[1]Cargo Combustible'!#REF! ->  | F5: =+'[1]Cargo Combustible'!#REF! ->  | G5: =+'[1]Cargo Combustible'!#REF! ->  | H5: =+'[1]Cargo Combustible'!#REF! ->  | I5: =+'[1]Cargo Combustible'!#REF! ->  | J5: =+'[1]Cargo Combustible'!#REF! ->  | K5: =+'[1]Cargo Combustible'!#REF! ->  | L5: =+'[1]Cargo Combustible'!#REF! ->  | M5: =+'[1]Cargo Combustible'!#REF! ->  | N5: =+'[1]Cargo Combustible'!#REF! ->  | O5: =+'[1]Cargo Combustible'!#REF! ->  | P5: =+'[1]Cargo Combustible'!#REF! ->  | Q5: =+'[1]Cargo Combustible'!#REF! ->  | R5: =+'[1]Cargo Combustible'!#REF! ->  | S5: =+'[1]Cargo Combustible'!#REF! ->  | T5: =+'[1]Cargo Combustible'!#REF! ->  | U5: =+'[1]Cargo Combustible'!#REF! ->  | V5: =+'[1]Cargo Combustible'!#REF! ->  | W5: =+'[1]Cargo Combustible'!#REF! ->  | X5: =+'[1]Cargo Combustible'!#REF! ->  | Y5: =+'[1]Cargo Combustible'!#REF! ->  | Z5: =+'[1]Cargo Combustible'!#REF! ->  | AA5: =+'[1]Cargo Combustible'!#REF! ->  | AB5: =+'[1]Cargo Combustible'!#REF! ->  | AC5: =+'[1]Cargo Combustible'!#REF! ->  | AD5: =+'[1]Cargo Combustible'!#REF! ->  | AE5: =+'[1]Cargo Combustible'!#REF! ->  | AF5: =+'[1]Cargo Combustible'!#REF! ->  | AG5: =+'[1]Cargo Combustible'!#REF! ->  | AH5: =+'[1]Cargo Combustible'!#REF! ->  | AI5: =+'[1]Cargo Combustible'!#REF! ->  | AJ5: =+'[1]Cargo Combustible'!#REF! ->  | AK5: =+'[1]Cargo Combustible'!#REF! ->  | AL5: =+'[1]Cargo Combustible'!#REF! ->  | AM5: =+'[1]Cargo Combustible'!#REF! ->  | AN5: =+'[1]Cargo Combustible'!#REF! ->  | AO5: =+'[1]Cargo Combustible'!#REF! ->  | AP5: =+'[1]Cargo Combustible'!#REF! ->  | AQ5: =+'[1]Cargo Combustible'!#REF! ->  | AR5: =+'[1]Cargo Combustible'!#REF! ->  | AS5: =+'[1]Cargo Combustible'!#REF! ->  | AT5: =+'[1]Cargo Combustible'!#REF! ->  | AU5: =+'[1]Cargo Combustible'!#REF! ->  | AV5: =+'[1]Cargo Combustible'!#REF! ->  | AW5: =+'[1]Cargo Combustible'!#REF! -> 
A6: BTD | B6: =+'[1]Cargo Combustible'!#REF! ->  | C6: =+'[1]Cargo Combustible'!#REF! ->  | D6: =+'[1]Cargo Combustible'!#REF! ->  | E6: =+'[1]Cargo Combustible'!#REF! ->  | F6: =+'[1]Cargo Combustible'!#REF! ->  | G6: =+'[1]Cargo Combustible'!#REF! ->  | H6: =+'[1]Cargo Combustible'!#REF! ->  | I6: =+'[1]Cargo Combustible'!#REF! ->  | J6: =+'[1]Cargo Combustible'!#REF! ->  | K6: =+'[1]Cargo Combustible'!#REF! ->  | L6: =+'[1]Cargo Combustible'!#REF! ->  | M6: =+'[1]Cargo Combustible'!#REF! ->  | N6: =+'[1]Cargo Combustible'!#REF! ->  | O6: =+'[1]Cargo Combustible'!#REF! ->  | P6: =+'[1]Cargo Combustible'!#REF! ->  | Q6: =+'[1]Cargo Combustible'!#REF! ->  | R6: =+'[1]Cargo Combustible'!#REF! ->  | S6: =+'[1]Cargo Combustible'!#REF! ->  | T6: =+'[1]Cargo Combustible'!#REF! ->  | U6: =+'[1]Cargo Combustible'!#REF! ->  | V6: =+'[1]Cargo Combustible'!#REF! ->  | W6: =+'[1]Cargo Combustible'!#REF! ->  | X6: =+'[1]Cargo Combustible'!#REF! ->  | Y6: =+'[1]Cargo Combustible'!#REF! ->  | Z6: =+'[1]Cargo Combustible'!#REF! ->  | AA6: =+'[1]Cargo Combustible'!#REF! ->  | AB6: =+'[1]Cargo Combustible'!#REF! ->  | AC6: =+'[1]Cargo Combustible'!#REF! ->  | AD6: =+'[1]Cargo Combustible'!#REF! ->  | AE6: =+'[1]Cargo Combustible'!#REF! ->  | AF6: =+'[1]Cargo Combustible'!#REF! ->  | AG6: =+'[1]Cargo Combustible'!#REF! ->  | AH6: =+'[1]Cargo Combustible'!#REF! ->  | AI6: =+'[1]Cargo Combustible'!#REF! ->  | AJ6: =+'[1]Cargo Combustible'!#REF! ->  | AK6: =+'[1]Cargo Combustible'!#REF! ->  | AL6: =+'[1]Cargo Combustible'!#REF! ->  | AM6: =+'[1]Cargo Combustible'!#REF! ->  | AN6: =+'[1]Cargo Combustible'!#REF! ->  | AO6: =+'[1]Cargo Combustible'!#REF! ->  | AP6: =+'[1]Cargo Combustible'!#REF! ->  | AQ6: =+'[1]Cargo Combustible'!#REF! ->  | AR6: =+'[1]Cargo Combustible'!#REF! ->  | AS6: =+'[1]Cargo Combustible'!#REF! ->  | AT6: =+'[1]Cargo Combustible'!#REF! ->  | AU6: =+'[1]Cargo Combustible'!#REF! ->  | AV6: =+'[1]Cargo Combustible'!#REF! ->  | AW6: =+'[1]Cargo Combustible'!#REF! -> 
A7: BTH | B7: =+'[1]Cargo Combustible'!#REF! ->  | C7: =+'[1]Cargo Combustible'!#REF! ->  | D7: =+'[1]Cargo Combustible'!#REF! ->  | E7: =+'[1]Cargo Combustible'!#REF! ->  | F7: =+'[1]Cargo Combustible'!#REF! ->  | G7: =+'[1]Cargo Combustible'!#REF! ->  | H7: =+'[1]Cargo Combustible'!#REF! ->  | I7: =+'[1]Cargo Combustible'!#REF! ->  | J7: =+'[1]Cargo Combustible'!#REF! ->  | K7: =+'[1]Cargo Combustible'!#REF! ->  | L7: =+'[1]Cargo Combustible'!#REF! ->  | M7: =+'[1]Cargo Combustible'!#REF! ->  | N7: =+'[1]Cargo Combustible'!#REF! ->  | O7: =+'[1]Cargo Combustible'!#REF! ->  | P7: =+'[1]Cargo Combustible'!#REF! ->  | Q7: =+'[1]Cargo Combustible'!#REF! ->  | R7: =+'[1]Cargo Combustible'!#REF! ->  | S7: =+'[1]Cargo Combustible'!#REF! ->  | T7: =+'[1]Cargo Combustible'!#REF! ->  | U7: =+'[1]Cargo Combustible'!#REF! ->  | V7: =+'[1]Cargo Combustible'!#REF! ->  | W7: =+'[1]Cargo Combustible'!#REF! ->  | X7: =+'[1]Cargo Combustible'!#REF! ->  | Y7: =+'[1]Cargo Combustible'!#REF! ->  | Z7: =+'[1]Cargo Combustible'!#REF! ->  | AA7: =+'[1]Cargo Combustible'!#REF! ->  | AB7: =+'[1]Cargo Combustible'!#REF! ->  | AC7: =+'[1]Cargo Combustible'!#REF! ->  | AD7: =+'[1]Cargo Combustible'!#REF! ->  | AE7: =+'[1]Cargo Combustible'!#REF! ->  | AF7: =+'[1]Cargo Combustible'!#REF! ->  | AG7: =+'[1]Cargo Combustible'!#REF! ->  | AH7: =+'[1]Cargo Combustible'!#REF! ->  | AI7: =+'[1]Cargo Combustible'!#REF! ->  | AJ7: =+'[1]Cargo Combustible'!#REF! ->  | AK7: =+'[1]Cargo Combustible'!#REF! ->  | AL7: =+'[1]Cargo Combustible'!#REF! ->  | AM7: =+'[1]Cargo Combustible'!#REF! ->  | AN7: =+'[1]Cargo Combustible'!#REF! ->  | AO7: =+'[1]Cargo Combustible'!#REF! ->  | AP7: =+'[1]Cargo Combustible'!#REF! ->  | AQ7: =+'[1]Cargo Combustible'!#REF! ->  | AR7: =+'[1]Cargo Combustible'!#REF! ->  | AS7: =+'[1]Cargo Combustible'!#REF! ->  | AT7: =+'[1]Cargo Combustible'!#REF! ->  | AU7: =+'[1]Cargo Combustible'!#REF! ->  | AV7: =+'[1]Cargo Combustible'!#REF! ->  | AW7: =+'[1]Cargo Combustible'!#REF! -> 
A8: MTD | B8: =+'[1]Cargo Combustible'!#REF! ->  | C8: =+'[1]Cargo Combustible'!#REF! ->  | D8: =+'[1]Cargo Combustible'!#REF! ->  | E8: =+'[1]Cargo Combustible'!#REF! ->  | F8: =+'[1]Cargo Combustible'!#REF! ->  | G8: =+'[1]Cargo Combustible'!#REF! ->  | H8: =+'[1]Cargo Combustible'!#REF! ->  | I8: =+'[1]Cargo Combustible'!#REF! ->  | J8: =+'[1]Cargo Combustible'!#REF! ->  | K8: =+'[1]Cargo Combustible'!#REF! ->  | L8: =+'[1]Cargo Combustible'!#REF! ->  | M8: =+'[1]Cargo Combustible'!#REF! ->  | N8: =+'[1]Cargo Combustible'!#REF! ->  | O8: =+'[1]Cargo Combustible'!#REF! ->  | P8: =+'[1]Cargo Combustible'!#REF! ->  | Q8: =+'[1]Cargo Combustible'!#REF! ->  | R8: =+'[1]Cargo Combustible'!#REF! ->  | S8: =+'[1]Cargo Combustible'!#REF! ->  | T8: =+'[1]Cargo Combustible'!#REF! ->  | U8: =+'[1]Cargo Combustible'!#REF! ->  | V8: =+'[1]Cargo Combustible'!#REF! ->  | W8: =+'[1]Cargo Combustible'!#REF! ->  | X8: =+'[1]Cargo Combustible'!#REF! ->  | Y8: =+'[1]Cargo Combustible'!#REF! ->  | Z8: =+'[1]Cargo Combustible'!#REF! ->  | AA8: =+'[1]Cargo Combustible'!#REF! ->  | AB8: =+'[1]Cargo Combustible'!#REF! ->  | AC8: =+'[1]Cargo Combustible'!#REF! ->  | AD8: =+'[1]Cargo Combustible'!#REF! ->  | AE8: =+'[1]Cargo Combustible'!#REF! ->  | AF8: =+'[1]Cargo Combustible'!#REF! ->  | AG8: =+'[1]Cargo Combustible'!#REF! ->  | AH8: =+'[1]Cargo Combustible'!#REF! ->  | AI8: =+'[1]Cargo Combustible'!#REF! ->  | AJ8: =+'[1]Cargo Combustible'!#REF! ->  | AK8: =+'[1]Cargo Combustible'!#REF! ->  | AL8: =+'[1]Cargo Combustible'!#REF! ->  | AM8: =+'[1]Cargo Combustible'!#REF! ->  | AN8: =+'[1]Cargo Combustible'!#REF! ->  | AO8: =+'[1]Cargo Combustible'!#REF! ->  | AP8: =+'[1]Cargo Combustible'!#REF! ->  | AQ8: =+'[1]Cargo Combustible'!#REF! ->  | AR8: =+'[1]Cargo Combustible'!#REF! ->  | AS8: =+'[1]Cargo Combustible'!#REF! ->  | AT8: =+'[1]Cargo Combustible'!#REF! ->  | AU8: =+'[1]Cargo Combustible'!#REF! ->  | AV8: =+'[1]Cargo Combustible'!#REF! ->  | AW8: =+'[1]Cargo Combustible'!#REF! -> 
A9: MTH | B9: =+'[1]Cargo Combustible'!#REF! ->  | C9: =+'[1]Cargo Combustible'!#REF! ->  | D9: =+'[1]Cargo Combustible'!#REF! ->  | E9: =+'[1]Cargo Combustible'!#REF! ->  | F9: =+'[1]Cargo Combustible'!#REF! ->  | G9: =+'[1]Cargo Combustible'!#REF! ->  | H9: =+'[1]Cargo Combustible'!#REF! ->  | I9: =+'[1]Cargo Combustible'!#REF! ->  | J9: =+'[1]Cargo Combustible'!#REF! ->  | K9: =+'[1]Cargo Combustible'!#REF! ->  | L9: =+'[1]Cargo Combustible'!#REF! ->  | M9: =+'[1]Cargo Combustible'!#REF! ->  | N9: =+'[1]Cargo Combustible'!#REF! ->  | O9: =+'[1]Cargo Combustible'!#REF! ->  | P9: =+'[1]Cargo Combustible'!#REF! ->  | Q9: =+'[1]Cargo Combustible'!#REF! ->  | R9: =+'[1]Cargo Combustible'!#REF! ->  | S9: =+'[1]Cargo Combustible'!#REF! ->  | T9: =+'[1]Cargo Combustible'!#REF! ->  | U9: =+'[1]Cargo Combustible'!#REF! ->  | V9: =+'[1]Cargo Combustible'!#REF! ->  | W9: =+'[1]Cargo Combustible'!#REF! ->  | X9: =+'[1]Cargo Combustible'!#REF! ->  | Y9: =+'[1]Cargo Combustible'!#REF! ->  | Z9: =+'[1]Cargo Combustible'!#REF! ->  | AA9: =+'[1]Cargo Combustible'!#REF! ->  | AB9: =+'[1]Cargo Combustible'!#REF! ->  | AC9: =+'[1]Cargo Combustible'!#REF! ->  | AD9: =+'[1]Cargo Combustible'!#REF! ->  | AE9: =+'[1]Cargo Combustible'!#REF! ->  | AF9: =+'[1]Cargo Combustible'!#REF! ->  | AG9: =+'[1]Cargo Combustible'!#REF! ->  | AH9: =+'[1]Cargo Combustible'!#REF! ->  | AI9: =+'[1]Cargo Combustible'!#REF! ->  | AJ9: =+'[1]Cargo Combustible'!#REF! ->  | AK9: =+'[1]Cargo Combustible'!#REF! ->  | AL9: =+'[1]Cargo Combustible'!#REF! ->  | AM9: =+'[1]Cargo Combustible'!#REF! ->  | AN9: =+'[1]Cargo Combustible'!#REF! ->  | AO9: =+'[1]Cargo Combustible'!#REF! ->  | AP9: =+'[1]Cargo Combustible'!#REF! ->  | AQ9: =+'[1]Cargo Combustible'!#REF! ->  | AR9: =+'[1]Cargo Combustible'!#REF! ->  | AS9: =+'[1]Cargo Combustible'!#REF! ->  | AT9: =+'[1]Cargo Combustible'!#REF! ->  | AU9: =+'[1]Cargo Combustible'!#REF! ->  | AV9: =+'[1]Cargo Combustible'!#REF! ->  | AW9: =+'[1]Cargo Combustible'!#REF! -> 
A10: ATD | B10: =+'[1]Cargo Combustible'!#REF! ->  | C10: =+'[1]Cargo Combustible'!#REF! ->  | D10: =+'[1]Cargo Combustible'!#REF! ->  | E10: =+'[1]Cargo Combustible'!#REF! ->  | F10: =+'[1]Cargo Combustible'!#REF! ->  | G10: =+'[1]Cargo Combustible'!#REF! ->  | H10: =+'[1]Cargo Combustible'!#REF! ->  | I10: =+'[1]Cargo Combustible'!#REF! ->  | J10: =+'[1]Cargo Combustible'!#REF! ->  | K10: =+'[1]Cargo Combustible'!#REF! ->  | L10: =+'[1]Cargo Combustible'!#REF! ->  | M10: =+'[1]Cargo Combustible'!#REF! ->  | N10: =+'[1]Cargo Combustible'!#REF! ->  | O10: =+'[1]Cargo Combustible'!#REF! ->  | P10: =+'[1]Cargo Combustible'!#REF! ->  | Q10: =+'[1]Cargo Combustible'!#REF! ->  | R10: =+'[1]Cargo Combustible'!#REF! ->  | S10: =+'[1]Cargo Combustible'!#REF! ->  | T10: =+'[1]Cargo Combustible'!#REF! ->  | U10: =+'[1]Cargo Combustible'!#REF! ->  | V10: =+'[1]Cargo Combustible'!#REF! ->  | W10: =+'[1]Cargo Combustible'!#REF! ->  | X10: =+'[1]Cargo Combustible'!#REF! ->  | Y10: =+'[1]Cargo Combustible'!#REF! ->  | Z10: =+'[1]Cargo Combustible'!#REF! ->  | AA10: =+'[1]Cargo Combustible'!#REF! ->  | AB10: =+'[1]Cargo Combustible'!#REF! ->  | AC10: =+'[1]Cargo Combustible'!#REF! ->  | AD10: =+'[1]Cargo Combustible'!#REF! ->  | AE10: =+'[1]Cargo Combustible'!#REF! ->  | AF10: =+'[1]Cargo Combustible'!#REF! ->  | AG10: =+'[1]Cargo Combustible'!#REF! ->  | AH10: =+'[1]Cargo Combustible'!#REF! ->  | AI10: =+'[1]Cargo Combustible'!#REF! ->  | AJ10: =+'[1]Cargo Combustible'!#REF! ->  | AK10: =+'[1]Cargo Combustible'!#REF! ->  | AL10: =+'[1]Cargo Combustible'!#REF! ->  | AM10: =+'[1]Cargo Combustible'!#REF! ->  | AN10: =+'[1]Cargo Combustible'!#REF! ->  | AO10: =+'[1]Cargo Combustible'!#REF! ->  | AP10: =+'[1]Cargo Combustible'!#REF! ->  | AQ10: =+'[1]Cargo Combustible'!#REF! ->  | AR10: =+'[1]Cargo Combustible'!#REF! ->  | AS10: =+'[1]Cargo Combustible'!#REF! ->  | AT10: =+'[1]Cargo Combustible'!#REF! ->  | AU10: =+'[1]Cargo Combustible'!#REF! ->  | AV10: =+'[1]Cargo Combustible'!#REF! ->  | AW10: =+'[1]Cargo Combustible'!#REF! -> 
A11: ATH | B11: =+'[1]Cargo Combustible'!#REF! ->  | C11: =+'[1]Cargo Combustible'!#REF! ->  | D11: =+'[1]Cargo Combustible'!#REF! ->  | E11: =+'[1]Cargo Combustible'!#REF! ->  | F11: =+'[1]Cargo Combustible'!#REF! ->  | G11: =+'[1]Cargo Combustible'!#REF! ->  | H11: =+'[1]Cargo Combustible'!#REF! ->  | I11: =+'[1]Cargo Combustible'!#REF! ->  | J11: =+'[1]Cargo Combustible'!#REF! ->  | K11: =+'[1]Cargo Combustible'!#REF! ->  | L11: =+'[1]Cargo Combustible'!#REF! ->  | M11: =+'[1]Cargo Combustible'!#REF! ->  | N11: =+'[1]Cargo Combustible'!#REF! ->  | O11: =+'[1]Cargo Combustible'!#REF! ->  | P11: =+'[1]Cargo Combustible'!#REF! ->  | Q11: =+'[1]Cargo Combustible'!#REF! ->  | R11: =+'[1]Cargo Combustible'!#REF! ->  | S11: =+'[1]Cargo Combustible'!#REF! ->  | T11: =+'[1]Cargo Combustible'!#REF! ->  | U11: =+'[1]Cargo Combustible'!#REF! ->  | V11: =+'[1]Cargo Combustible'!#REF! ->  | W11: =+'[1]Cargo Combustible'!#REF! ->  | X11: =+'[1]Cargo Combustible'!#REF! ->  | Y11: =+'[1]Cargo Combustible'!#REF! ->  | Z11: =+'[1]Cargo Combustible'!#REF! ->  | AA11: =+'[1]Cargo Combustible'!#REF! ->  | AB11: =+'[1]Cargo Combustible'!#REF! ->  | AC11: =+'[1]Cargo Combustible'!#REF! ->  | AD11: =+'[1]Cargo Combustible'!#REF! ->  | AE11: =+'[1]Cargo Combustible'!#REF! ->  | AF11: =+'[1]Cargo Combustible'!#REF! ->  | AG11: =+'[1]Cargo Combustible'!#REF! ->  | AH11: =+'[1]Cargo Combustible'!#REF! ->  | AI11: =+'[1]Cargo Combustible'!#REF! ->  | AJ11: =+'[1]Cargo Combustible'!#REF! ->  | AK11: =+'[1]Cargo Combustible'!#REF! ->  | AL11: =+'[1]Cargo Combustible'!#REF! ->  | AM11: =+'[1]Cargo Combustible'!#REF! ->  | AN11: =+'[1]Cargo Combustible'!#REF! ->  | AO11: =+'[1]Cargo Combustible'!#REF! ->  | AP11: =+'[1]Cargo Combustible'!#REF! ->  | AQ11: =+'[1]Cargo Combustible'!#REF! ->  | AR11: =+'[1]Cargo Combustible'!#REF! ->  | AS11: =+'[1]Cargo Combustible'!#REF! ->  | AT11: =+'[1]Cargo Combustible'!#REF! ->  | AU11: =+'[1]Cargo Combustible'!#REF! ->  | AV11: =+'[1]Cargo Combustible'!#REF! ->  | AW11: =+'[1]Cargo Combustible'!#REF! -> 
A13: Cargo en la Factura del Cliente | B13: 2017-01-01 | C13: 2017-02-01 | D13: 2017-03-01 | E13: 2017-04-01 | F13: 2017-05-01 | G13: 2017-06-01 | H13: 2017-07-01 | I13: 2017-08-01 | J13: 2017-09-01 | K13: 2017-10-01 | L13: 2017-11-01 | M13: 2017-12-01 | N13: 2018-01-01 | O13: 2018-02-01 | P13: 2018-03-01 | Q13: 2018-04-01 | R13: 2018-05-01 | S13: 2018-06-01 | T13: 2018-07-01 | U13: 2018-08-01 | V13: 2018-09-01 | W13: 2018-10-01 | X13: 2018-11-01 | Y13: 2018-12-01 | Z13: 2019-01-01 | AA13: 2019-02-01 | AB13: 2019-03-01 | AC13: 2019-04-01 | AD13: 2019-05-01 | AE13: 2019-06-01 | AF13: 2019-07-01 | AG13: 2019-08-01 | AH13: 2019-09-01 | AI13: 2019-10-01 | AJ13: 2019-11-01 | AK13: 2019-12-01 | AL13: 2020-01-01 | AM13: 2020-02-01 | AN13: 2020-03-01 | AO13: 2020-04-01 | AP13: 2020-05-01 | AQ13: 2020-06-01 | AR13: 2020-07-01 | AS13: 2020-08-01 | AT13: 2020-09-01 | AU13: 2020-10-01 | AV13: 2020-11-01 | AW13: 2020-12-01
A14: VARIACION DEL COMBUSTIBLE
A15: BTS | B15: =+'[1]Cargo Combustible'!#REF! ->  | C15: =+'[1]Cargo Combustible'!#REF! ->  | D15: =+'[1]Cargo Combustible'!#REF! ->  | E15: =+'[1]Cargo Combustible'!#REF! ->  | F15: =+'[1]Cargo Combustible'!#REF! ->  | G15: =+'[1]Cargo Combustible'!#REF! ->  | H15: =+'[1]Cargo Combustible'!#REF! ->  | I15: =+'[1]Cargo Combustible'!#REF! ->  | J15: =+'[1]Cargo Combustible'!#REF! ->  | K15: =+'[1]Cargo Combustible'!#REF! ->  | L15: =+'[1]Cargo Combustible'!#REF! ->  | M15: =+'[1]Cargo Combustible'!#REF! ->  | N15: =+'[1]Cargo Combustible'!#REF! ->  | O15: =+'[1]Cargo Combustible'!#REF! ->  | P15: =+'[1]Cargo Combustible'!#REF! ->  | Q15: =+'[1]Cargo Combustible'!#REF! ->  | R15: =+'[1]Cargo Combustible'!#REF! ->  | S15: =+'[1]Cargo Combustible'!#REF! ->  | T15: =+'[1]Cargo Combustible'!#REF! ->  | U15: =+'[1]Cargo Combustible'!#REF! ->  | V15: =+'[1]Cargo Combustible'!#REF! ->  | W15: =+'[1]Cargo Combustible'!#REF! ->  | X15: =+'[1]Cargo Combustible'!#REF! ->  | Y15: =+'[1]Cargo Combustible'!#REF! ->  | Z15: =+'[1]Cargo Combustible'!#REF! ->  | AA15: =+'[1]Cargo Combustible'!#REF! ->  | AB15: =+'[1]Cargo Combustible'!#REF! ->  | AC15: =+'[1]Cargo Combustible'!#REF! ->  | AD15: =+'[1]Cargo Combustible'!#REF! ->  | AE15: =+'[1]Cargo Combustible'!#REF! ->  | AF15: =+'[1]Cargo Combustible'!#REF! ->  | AG15: =+'[1]Cargo Combustible'!#REF! ->  | AH15: =+'[1]Cargo Combustible'!#REF! ->  | AI15: =+'[1]Cargo Combustible'!#REF! ->  | AJ15: =+'[1]Cargo Combustible'!#REF! ->  | AK15: =+'[1]Cargo Combustible'!#REF! ->  | AL15: =+'[1]Cargo Combustible'!#REF! ->  | AM15: =+'[1]Cargo Combustible'!#REF! ->  | AN15: =+'[1]Cargo Combustible'!#REF! ->  | AO15: =+'[1]Cargo Combustible'!#REF! ->  | AP15: =+'[1]Cargo Combustible'!#REF! ->  | AQ15: =+'[1]Cargo Combustible'!#REF! ->  | AR15: =+'[1]Cargo Combustible'!#REF! ->  | AS15: =+'[1]Cargo Combustible'!#REF! ->  | AT15: =+'[1]Cargo Combustible'!#REF! ->  | AU15: =+'[1]Cargo Combustible'!#REF! ->  | AV15: =+'[1]Cargo Combustible'!#REF! ->  | AW15: =+'[1]Cargo Combustible'!#REF! -> 
A16: BTD | B16: =+'[1]Cargo Combustible'!#REF! ->  | C16: =+'[1]Cargo Combustible'!#REF! ->  | D16: =+'[1]Cargo Combustible'!#REF! ->  | E16: =+'[1]Cargo Combustible'!#REF! ->  | F16: =+'[1]Cargo Combustible'!#REF! ->  | G16: =+'[1]Cargo Combustible'!#REF! ->  | H16: =+'[1]Cargo Combustible'!#REF! ->  | I16: =+'[1]Cargo Combustible'!#REF! ->  | J16: =+'[1]Cargo Combustible'!#REF! ->  | K16: =+'[1]Cargo Combustible'!#REF! ->  | L16: =+'[1]Cargo Combustible'!#REF! ->  | M16: =+'[1]Cargo Combustible'!#REF! ->  | N16: =+'[1]Cargo Combustible'!#REF! ->  | O16: =+'[1]Cargo Combustible'!#REF! ->  | P16: =+'[1]Cargo Combustible'!#REF! ->  | Q16: =+'[1]Cargo Combustible'!#REF! ->  | R16: =+'[1]Cargo Combustible'!#REF! ->  | S16: =+'[1]Cargo Combustible'!#REF! ->  | T16: =+'[1]Cargo Combustible'!#REF! ->  | U16: =+'[1]Cargo Combustible'!#REF! ->  | V16: =+'[1]Cargo Combustible'!#REF! ->  | W16: =+'[1]Cargo Combustible'!#REF! ->  | X16: =+'[1]Cargo Combustible'!#REF! ->  | Y16: =+'[1]Cargo Combustible'!#REF! ->  | Z16: =+'[1]Cargo Combustible'!#REF! ->  | AA16: =+'[1]Cargo Combustible'!#REF! ->  | AB16: =+'[1]Cargo Combustible'!#REF! ->  | AC16: =+'[1]Cargo Combustible'!#REF! ->  | AD16: =+'[1]Cargo Combustible'!#REF! ->  | AE16: =+'[1]Cargo Combustible'!#REF! ->  | AF16: =+'[1]Cargo Combustible'!#REF! ->  | AG16: =+'[1]Cargo Combustible'!#REF! ->  | AH16: =+'[1]Cargo Combustible'!#REF! ->  | AI16: =+'[1]Cargo Combustible'!#REF! ->  | AJ16: =+'[1]Cargo Combustible'!#REF! ->  | AK16: =+'[1]Cargo Combustible'!#REF! ->  | AL16: =+'[1]Cargo Combustible'!#REF! ->  | AM16: =+'[1]Cargo Combustible'!#REF! ->  | AN16: =+'[1]Cargo Combustible'!#REF! ->  | AO16: =+'[1]Cargo Combustible'!#REF! ->  | AP16: =+'[1]Cargo Combustible'!#REF! ->  | AQ16: =+'[1]Cargo Combustible'!#REF! ->  | AR16: =+'[1]Cargo Combustible'!#REF! ->  | AS16: =+'[1]Cargo Combustible'!#REF! ->  | AT16: =+'[1]Cargo Combustible'!#REF! ->  | AU16: =+'[1]Cargo Combustible'!#REF! ->  | AV16: =+'[1]Cargo Combustible'!#REF! ->  | AW16: =+'[1]Cargo Combustible'!#REF! -> 
A17: BTH | B17: =+'[1]Cargo Combustible'!#REF! ->  | C17: =+'[1]Cargo Combustible'!#REF! ->  | D17: =+'[1]Cargo Combustible'!#REF! ->  | E17: =+'[1]Cargo Combustible'!#REF! ->  | F17: =+'[1]Cargo Combustible'!#REF! ->  | G17: =+'[1]Cargo Combustible'!#REF! ->  | H17: =+'[1]Cargo Combustible'!#REF! ->  | I17: =+'[1]Cargo Combustible'!#REF! ->  | J17: =+'[1]Cargo Combustible'!#REF! ->  | K17: =+'[1]Cargo Combustible'!#REF! ->  | L17: =+'[1]Cargo Combustible'!#REF! ->  | M17: =+'[1]Cargo Combustible'!#REF! ->  | N17: =+'[1]Cargo Combustible'!#REF! ->  | O17: =+'[1]Cargo Combustible'!#REF! ->  | P17: =+'[1]Cargo Combustible'!#REF! ->  | Q17: =+'[1]Cargo Combustible'!#REF! ->  | R17: =+'[1]Cargo Combustible'!#REF! ->  | S17: =+'[1]Cargo Combustible'!#REF! ->  | T17: =+'[1]Cargo Combustible'!#REF! ->  | U17: =+'[1]Cargo Combustible'!#REF! ->  | V17: =+'[1]Cargo Combustible'!#REF! ->  | W17: =+'[1]Cargo Combustible'!#REF! ->  | X17: =+'[1]Cargo Combustible'!#REF! ->  | Y17: =+'[1]Cargo Combustible'!#REF! ->  | Z17: =+'[1]Cargo Combustible'!#REF! ->  | AA17: =+'[1]Cargo Combustible'!#REF! ->  | AB17: =+'[1]Cargo Combustible'!#REF! ->  | AC17: =+'[1]Cargo Combustible'!#REF! ->  | AD17: =+'[1]Cargo Combustible'!#REF! ->  | AE17: =+'[1]Cargo Combustible'!#REF! ->  | AF17: =+'[1]Cargo Combustible'!#REF! ->  | AG17: =+'[1]Cargo Combustible'!#REF! ->  | AH17: =+'[1]Cargo Combustible'!#REF! ->  | AI17: =+'[1]Cargo Combustible'!#REF! ->  | AJ17: =+'[1]Cargo Combustible'!#REF! ->  | AK17: =+'[1]Cargo Combustible'!#REF! ->  | AL17: =+'[1]Cargo Combustible'!#REF! ->  | AM17: =+'[1]Cargo Combustible'!#REF! ->  | AN17: =+'[1]Cargo Combustible'!#REF! ->  | AO17: =+'[1]Cargo Combustible'!#REF! ->  | AP17: =+'[1]Cargo Combustible'!#REF! ->  | AQ17: =+'[1]Cargo Combustible'!#REF! ->  | AR17: =+'[1]Cargo Combustible'!#REF! ->  | AS17: =+'[1]Cargo Combustible'!#REF! ->  | AT17: =+'[1]Cargo Combustible'!#REF! ->  | AU17: =+'[1]Cargo Combustible'!#REF! ->  | AV17: =+'[1]Cargo Combustible'!#REF! ->  | AW17: =+'[1]Cargo Combustible'!#REF! -> 
A18: MTD | B18: =+'[1]Cargo Combustible'!#REF! ->  | C18: =+'[1]Cargo Combustible'!#REF! ->  | D18: =+'[1]Cargo Combustible'!#REF! ->  | E18: =+'[1]Cargo Combustible'!#REF! ->  | F18: =+'[1]Cargo Combustible'!#REF! ->  | G18: =+'[1]Cargo Combustible'!#REF! ->  | H18: =+'[1]Cargo Combustible'!#REF! ->  | I18: =+'[1]Cargo Combustible'!#REF! ->  | J18: =+'[1]Cargo Combustible'!#REF! ->  | K18: =+'[1]Cargo Combustible'!#REF! ->  | L18: =+'[1]Cargo Combustible'!#REF! ->  | M18: =+'[1]Cargo Combustible'!#REF! ->  | N18: =+'[1]Cargo Combustible'!#REF! ->  | O18: =+'[1]Cargo Combustible'!#REF! ->  | P18: =+'[1]Cargo Combustible'!#REF! ->  | Q18: =+'[1]Cargo Combustible'!#REF! ->  | R18: =+'[1]Cargo Combustible'!#REF! ->  | S18: =+'[1]Cargo Combustible'!#REF! ->  | T18: =+'[1]Cargo Combustible'!#REF! ->  | U18: =+'[1]Cargo Combustible'!#REF! ->  | V18: =+'[1]Cargo Combustible'!#REF! ->  | W18: =+'[1]Cargo Combustible'!#REF! ->  | X18: =+'[1]Cargo Combustible'!#REF! ->  | Y18: =+'[1]Cargo Combustible'!#REF! ->  | Z18: =+'[1]Cargo Combustible'!#REF! ->  | AA18: =+'[1]Cargo Combustible'!#REF! ->  | AB18: =+'[1]Cargo Combustible'!#REF! ->  | AC18: =+'[1]Cargo Combustible'!#REF! ->  | AD18: =+'[1]Cargo Combustible'!#REF! ->  | AE18: =+'[1]Cargo Combustible'!#REF! ->  | AF18: =+'[1]Cargo Combustible'!#REF! ->  | AG18: =+'[1]Cargo Combustible'!#REF! ->  | AH18: =+'[1]Cargo Combustible'!#REF! ->  | AI18: =+'[1]Cargo Combustible'!#REF! ->  | AJ18: =+'[1]Cargo Combustible'!#REF! ->  | AK18: =+'[1]Cargo Combustible'!#REF! ->  | AL18: =+'[1]Cargo Combustible'!#REF! ->  | AM18: =+'[1]Cargo Combustible'!#REF! ->  | AN18: =+'[1]Cargo Combustible'!#REF! ->  | AO18: =+'[1]Cargo Combustible'!#REF! ->  | AP18: =+'[1]Cargo Combustible'!#REF! ->  | AQ18: =+'[1]Cargo Combustible'!#REF! ->  | AR18: =+'[1]Cargo Combustible'!#REF! ->  | AS18: =+'[1]Cargo Combustible'!#REF! ->  | AT18: =+'[1]Cargo Combustible'!#REF! ->  | AU18: =+'[1]Cargo Combustible'!#REF! ->  | AV18: =+'[1]Cargo Combustible'!#REF! ->  | AW18: =+'[1]Cargo Combustible'!#REF! -> 
A19: MTH | B19: =+'[1]Cargo Combustible'!#REF! ->  | C19: =+'[1]Cargo Combustible'!#REF! ->  | D19: =+'[1]Cargo Combustible'!#REF! ->  | E19: =+'[1]Cargo Combustible'!#REF! ->  | F19: =+'[1]Cargo Combustible'!#REF! ->  | G19: =+'[1]Cargo Combustible'!#REF! ->  | H19: =+'[1]Cargo Combustible'!#REF! ->  | I19: =+'[1]Cargo Combustible'!#REF! ->  | J19: =+'[1]Cargo Combustible'!#REF! ->  | K19: =+'[1]Cargo Combustible'!#REF! ->  | L19: =+'[1]Cargo Combustible'!#REF! ->  | M19: =+'[1]Cargo Combustible'!#REF! ->  | N19: =+'[1]Cargo Combustible'!#REF! ->  | O19: =+'[1]Cargo Combustible'!#REF! ->  | P19: =+'[1]Cargo Combustible'!#REF! ->  | Q19: =+'[1]Cargo Combustible'!#REF! ->  | R19: =+'[1]Cargo Combustible'!#REF! ->  | S19: =+'[1]Cargo Combustible'!#REF! ->  | T19: =+'[1]Cargo Combustible'!#REF! ->  | U19: =+'[1]Cargo Combustible'!#REF! ->  | V19: =+'[1]Cargo Combustible'!#REF! ->  | W19: =+'[1]Cargo Combustible'!#REF! ->  | X19: =+'[1]Cargo Combustible'!#REF! ->  | Y19: =+'[1]Cargo Combustible'!#REF! ->  | Z19: =+'[1]Cargo Combustible'!#REF! ->  | AA19: =+'[1]Cargo Combustible'!#REF! ->  | AB19: =+'[1]Cargo Combustible'!#REF! ->  | AC19: =+'[1]Cargo Combustible'!#REF! ->  | AD19: =+'[1]Cargo Combustible'!#REF! ->  | AE19: =+'[1]Cargo Combustible'!#REF! ->  | AF19: =+'[1]Cargo Combustible'!#REF! ->  | AG19: =+'[1]Cargo Combustible'!#REF! ->  | AH19: =+'[1]Cargo Combustible'!#REF! ->  | AI19: =+'[1]Cargo Combustible'!#REF! ->  | AJ19: =+'[1]Cargo Combustible'!#REF! ->  | AK19: =+'[1]Cargo Combustible'!#REF! ->  | AL19: =+'[1]Cargo Combustible'!#REF! ->  | AM19: =+'[1]Cargo Combustible'!#REF! ->  | AN19: =+'[1]Cargo Combustible'!#REF! ->  | AO19: =+'[1]Cargo Combustible'!#REF! ->  | AP19: =+'[1]Cargo Combustible'!#REF! ->  | AQ19: =+'[1]Cargo Combustible'!#REF! ->  | AR19: =+'[1]Cargo Combustible'!#REF! ->  | AS19: =+'[1]Cargo Combustible'!#REF! ->  | AT19: =+'[1]Cargo Combustible'!#REF! ->  | AU19: =+'[1]Cargo Combustible'!#REF! ->  | AV19: =+'[1]Cargo Combustible'!#REF! ->  | AW19: =+'[1]Cargo Combustible'!#REF! -> 
A20: ATD | B20: =+'[1]Cargo Combustible'!#REF! ->  | C20: =+'[1]Cargo Combustible'!#REF! ->  | D20: =+'[1]Cargo Combustible'!#REF! ->  | E20: =+'[1]Cargo Combustible'!#REF! ->  | F20: =+'[1]Cargo Combustible'!#REF! ->  | G20: =+'[1]Cargo Combustible'!#REF! ->  | H20: =+'[1]Cargo Combustible'!#REF! ->  | I20: =+'[1]Cargo Combustible'!#REF! ->  | J20: =+'[1]Cargo Combustible'!#REF! ->  | K20: =+'[1]Cargo Combustible'!#REF! ->  | L20: =+'[1]Cargo Combustible'!#REF! ->  | M20: =+'[1]Cargo Combustible'!#REF! ->  | N20: =+'[1]Cargo Combustible'!#REF! ->  | O20: =+'[1]Cargo Combustible'!#REF! ->  | P20: =+'[1]Cargo Combustible'!#REF! ->  | Q20: =+'[1]Cargo Combustible'!#REF! ->  | R20: =+'[1]Cargo Combustible'!#REF! ->  | S20: =+'[1]Cargo Combustible'!#REF! ->  | T20: =+'[1]Cargo Combustible'!#REF! ->  | U20: =+'[1]Cargo Combustible'!#REF! ->  | V20: =+'[1]Cargo Combustible'!#REF! ->  | W20: =+'[1]Cargo Combustible'!#REF! ->  | X20: =+'[1]Cargo Combustible'!#REF! ->  | Y20: =+'[1]Cargo Combustible'!#REF! ->  | Z20: =+'[1]Cargo Combustible'!#REF! ->  | AA20: =+'[1]Cargo Combustible'!#REF! ->  | AB20: =+'[1]Cargo Combustible'!#REF! ->  | AC20: =+'[1]Cargo Combustible'!#REF! ->  | AD20: =+'[1]Cargo Combustible'!#REF! ->  | AE20: =+'[1]Cargo Combustible'!#REF! ->  | AF20: =+'[1]Cargo Combustible'!#REF! ->  | AG20: =+'[1]Cargo Combustible'!#REF! ->  | AH20: =+'[1]Cargo Combustible'!#REF! ->  | AI20: =+'[1]Cargo Combustible'!#REF! ->  | AJ20: =+'[1]Cargo Combustible'!#REF! ->  | AK20: =+'[1]Cargo Combustible'!#REF! ->  | AL20: =+'[1]Cargo Combustible'!#REF! ->  | AM20: =+'[1]Cargo Combustible'!#REF! ->  | AN20: =+'[1]Cargo Combustible'!#REF! ->  | AO20: =+'[1]Cargo Combustible'!#REF! ->  | AP20: =+'[1]Cargo Combustible'!#REF! ->  | AQ20: =+'[1]Cargo Combustible'!#REF! ->  | AR20: =+'[1]Cargo Combustible'!#REF! ->  | AS20: =+'[1]Cargo Combustible'!#REF! ->  | AT20: =+'[1]Cargo Combustible'!#REF! ->  | AU20: =+'[1]Cargo Combustible'!#REF! ->  | AV20: =+'[1]Cargo Combustible'!#REF! ->  | AW20: =+'[1]Cargo Combustible'!#REF! -> 
A21: ATH | B21: =+'[1]Cargo Combustible'!#REF! ->  | C21: =+'[1]Cargo Combustible'!#REF! ->  | D21: =+'[1]Cargo Combustible'!#REF! ->  | E21: =+'[1]Cargo Combustible'!#REF! ->  | F21: =+'[1]Cargo Combustible'!#REF! ->  | G21: =+'[1]Cargo Combustible'!#REF! ->  | H21: =+'[1]Cargo Combustible'!#REF! ->  | I21: =+'[1]Cargo Combustible'!#REF! ->  | J21: =+'[1]Cargo Combustible'!#REF! ->  | K21: =+'[1]Cargo Combustible'!#REF! ->  | L21: =+'[1]Cargo Combustible'!#REF! ->  | M21: =+'[1]Cargo Combustible'!#REF! ->  | N21: =+'[1]Cargo Combustible'!#REF! ->  | O21: =+'[1]Cargo Combustible'!#REF! ->  | P21: =+'[1]Cargo Combustible'!#REF! ->  | Q21: =+'[1]Cargo Combustible'!#REF! ->  | R21: =+'[1]Cargo Combustible'!#REF! ->  | S21: =+'[1]Cargo Combustible'!#REF! ->  | T21: =+'[1]Cargo Combustible'!#REF! ->  | U21: =+'[1]Cargo Combustible'!#REF! ->  | V21: =+'[1]Cargo Combustible'!#REF! ->  | W21: =+'[1]Cargo Combustible'!#REF! ->  | X21: =+'[1]Cargo Combustible'!#REF! ->  | Y21: =+'[1]Cargo Combustible'!#REF! ->  | Z21: =+'[1]Cargo Combustible'!#REF! ->  | AA21: =+'[1]Cargo Combustible'!#REF! ->  | AB21: =+'[1]Cargo Combustible'!#REF! ->  | AC21: =+'[1]Cargo Combustible'!#REF! ->  | AD21: =+'[1]Cargo Combustible'!#REF! ->  | AE21: =+'[1]Cargo Combustible'!#REF! ->  | AF21: =+'[1]Cargo Combustible'!#REF! ->  | AG21: =+'[1]Cargo Combustible'!#REF! ->  | AH21: =+'[1]Cargo Combustible'!#REF! ->  | AI21: =+'[1]Cargo Combustible'!#REF! ->  | AJ21: =+'[1]Cargo Combustible'!#REF! ->  | AK21: =+'[1]Cargo Combustible'!#REF! ->  | AL21: =+'[1]Cargo Combustible'!#REF! ->  | AM21: =+'[1]Cargo Combustible'!#REF! ->  | AN21: =+'[1]Cargo Combustible'!#REF! ->  | AO21: =+'[1]Cargo Combustible'!#REF! ->  | AP21: =+'[1]Cargo Combustible'!#REF! ->  | AQ21: =+'[1]Cargo Combustible'!#REF! ->  | AR21: =+'[1]Cargo Combustible'!#REF! ->  | AS21: =+'[1]Cargo Combustible'!#REF! ->  | AT21: =+'[1]Cargo Combustible'!#REF! ->  | AU21: =+'[1]Cargo Combustible'!#REF! ->  | AV21: =+'[1]Cargo Combustible'!#REF! ->  | AW21: =+'[1]Cargo Combustible'!#REF! -> 

Sheet VAR PRECIO PROM
A1: =+[1]Fecha!$A$1&": Variación del Precio Promedio Estimado de la Energía Eléctrica de Clientes Regulados" -> EDECHI: Variación del Precio Promedio Estimado de la Energía Eléctrica de Clientes Regulados
A2: (En B/./kWh)
A4: =+'Ajuste Transmisión-300'!$B$2 -> EDECHI | B4: =+"Referencia FORM tarifas p-1: "&[1]Fecha!DL7&" ventas p: "&[1]Fecha!DL4 -> Referencia FORM tarifas p-1: Ene-Jun/2026 ventas p: Jul-Dic/2026 | C4: =+"Semestre p-1 "&[1]Fecha!DL$7 -> Semestre p-1 Ene-Jun/2026 | D4: =+"Referencia FORM tarifas p: "&[1]Fecha!DL4&" ventas p: "&[1]Fecha!DL4 -> Referencia FORM tarifas p: Jul-Dic/2026 ventas p: Jul-Dic/2026 | E4: =+"Semestre p "&[1]Fecha!DL$4 -> Semestre p Jul-Dic/2026 | F4: Variación (%)
A5: Comercialización | B5: AT102 / AT809 | C5: =+(SUM('COMER DISTR Y AP-102'!B124:G124,'COMER DISTR Y AP-102'!B182:G182))/(SUM('Facturación-801 (energía)'!H107:M107,'Facturación-801 (energía)'!H457:M457,'Facturación-801 (energía)'!H545:M545)-SUM('Facturación-801 (energía)'!H455:M455)) -> 0.01790211355 | D5: AT101 / AT809 | E5: =+(SUM('COMER DISTR Y AP-101'!B124:G124,'COMER DISTR Y AP-101'!B182:G182))/(SUM('Facturación-801 (energía)'!H107:M107,'Facturación-801 (energía)'!H457:M457,'Facturación-801 (energía)'!H545:M545)-SUM('Facturación-801 (energía)'!H455:M455)) -> 0.01545636113 | F5: =+E5/C5-1 -> -0.1366180827
A6: Distribución | B6: AT104 / AT809 | C6: =+SUM('COMER DISTR Y AP-104'!B124:G124,'COMER DISTR Y AP-104'!B182:G182)/(SUM('Facturación-801 (energía)'!H107:M107,'Facturación-801 (energía)'!H457:M457,'Facturación-801 (energía)'!H545:M545)-SUM('Facturación-801 (energía)'!H455:M455)) -> 0.06109986558 | D6: AT103 / AT809 | E6: =+SUM('COMER DISTR Y AP-103'!B124:G124,'COMER DISTR Y AP-103'!B182:G182)/(SUM('Facturación-801 (energía)'!H107:M107,'Facturación-801 (energía)'!H457:M457,'Facturación-801 (energía)'!H545:M545)-SUM('Facturación-801 (energía)'!H455:M455)) -> 0.05718611012 | F6: -0.06405505843
A7: Alumbrado Público | B7: AT603 / AT809 | C7: =+SUM('ALUMB PUB-603'!B124:G124,'ALUMB PUB-603'!B182:G182)/(SUM('Facturación-801 (energía)'!H107:M107,'Facturación-801 (energía)'!H457:M457,'Facturación-801 (energía)'!H545:M545)-SUM('Facturación-801 (energía)'!H455:M455)) -> 0.001235662073 | D7: AT604 / AT809 | E7: =+SUM('ALUMB PUB-604'!B124:G124,'ALUMB PUB-604'!B182:G182)/(SUM('Facturación-801 (energía)'!H107:M107,'Facturación-801 (energía)'!H457:M457,'Facturación-801 (energía)'!H545:M545)-SUM('Facturación-801 (energía)'!H455:M455)) -> 0.001138846466 | F7: -0.07835120058
A8: Distribución | C8: =+SUM(C5:C7) -> 0.08023764121 | E8: =+SUM(E5:E7) -> 0.07378131771 | F8: -0.08046502114
A9: Peaje de Transmisión | B9: AT305 / AT809 | C9: =+SUM('TRANSMISION-305'!B124:G124,'TRANSMISION-305'!B182:G182)/(SUM('Facturación-801 (energía)'!H107:M107,'Facturación-801 (energía)'!H457:M457,'Facturación-801 (energía)'!H545:M545)-SUM('Facturación-801 (energía)'!H455:M455)) -> 0.006181727303 | D9: AT304 / AT809 | E9: =+SUM('TRANSMISION-304'!B124:G124,'TRANSMISION-304'!B182:G182)/(SUM('Facturación-801 (energía)'!H107:M107,'Facturación-801 (energía)'!H457:M457,'Facturación-801 (energía)'!H545:M545)-SUM('Facturación-801 (energía)'!H455:M455)) -> 0.009487612865 | F9: =+E9/C9-1 -> 0.5347834674
A10: Pérdidas de Transmisión | B10: AT405 / AT809 | C10: =+SUM('PERD TRANS-405'!B124:G124,'PERD TRANS-405'!B149:G149)/(SUM('Facturación-801 (energía)'!H107:M107,'Facturación-801 (energía)'!H457:M457,'Facturación-801 (energía)'!H545:M545)-SUM('Facturación-801 (energía)'!H455:M455)) -> 6.586688464e-05 | D10: AT404 / AT809 | E10: =+SUM('PERD TRANS-404'!B124:G124,'PERD TRANS-404'!B149:G149)/(SUM('Facturación-801 (energía)'!H107:M107,'Facturación-801 (energía)'!H457:M457,'Facturación-801 (energía)'!H545:M545)-SUM('Facturación-801 (energía)'!H455:M455)) -> 7.527657717e-05 | F10: =+E10/C10-1 -> 0.1428592317
A11: Transmisión | C11: =+C10+C9 -> 0.006247594188 | E11: =+E10+E9 -> 0.009562889442 | F11: 0.5306515044
A12: Pérdidas en Distribución | B12: AT202 / AT809 | C12: =+SUM('PERD DISTR Y GEN-202'!B124:G124,'PERD DISTR Y GEN-202'!B182:G182)/(SUM('Facturación-801 (energía)'!H107:M107,'Facturación-801 (energía)'!H457:M457,'Facturación-801 (energía)'!H545:M545)-SUM('Facturación-801 (energía)'!H455:M455)) -> 0.007106398171 | D12: AT201 / AT809 | E12: =+SUM('PERD DISTR Y GEN-201'!B124:G124,'PERD DISTR Y GEN-201'!B182:G182)/(SUM('Facturación-801 (energía)'!H107:M107,'Facturación-801 (energía)'!H457:M457,'Facturación-801 (energía)'!H545:M545)-SUM('Facturación-801 (energía)'!H455:M455)) -> 0.008764391038 | F12: =+E12/C12-1 -> 0.2333098747
A13: Alumbrado Público | B13: AT505 / AT805 | C13: =+SUM('GENERACION-505'!B298:G298,'GENERACION-505'!B447:G447)/(SUM('Facturación-801 (energía)'!H107:M107,'Facturación-801 (energía)'!H457:M457,'Facturación-801 (energía)'!H545:M545)-SUM('Facturación-801 (energía)'!H455:M455)) -> 0.003515738696 | D13: AT504 / AT805 | E13: =+SUM('GENERACION-504'!B298:G298,'GENERACION-504'!B447:G447)/(SUM('Facturación-801 (energía)'!H107:M107,'Facturación-801 (energía)'!H457:M457,'Facturación-801 (energía)'!H545:M545)-SUM('Facturación-801 (energía)'!H455:M455)) -> 0.002919312744 | F13: =+E13/C13-1 -> -0.1696445623
A14: Generación | B14: AT505 / AT805 | C14: =+SUM('GENERACION-505'!B124:G124,'GENERACION-505'!B211:G211,'GENERACION-505'!B397:G397,'GENERACION-505'!B422:G422,'GENERACION-505 (extra)'!B108:G108,'GENERACION-505 (extra)'!B134:G134)/(SUM('Facturación-801 (energía)'!H107:M107,'Facturación-801 (energía)'!H457:M457,'Facturación-801 (energía)'!H545:M545)-SUM('Facturación-801 (energía)'!H455:M455))-C13 -> 0.1133892883 | D14: AT504 / AT805 | E14: =+(SUM('GENERACION-504'!B124:G124,'GENERACION-504'!B211:G211,'GENERACION-504'!B397:G397,'GENERACION-504'!B422:G422)+SUM('GENERACION-504 (extra)'!B108:G108,'GENERACION-504 (extra)'!B134:G134)) /(SUM('Facturación-801 (energía)'!H107:M107,'Facturación-801 (energía)'!H457:M457,'Facturación-801 (energía)'!H545:M545)-SUM('Facturación-801 (energía)'!H455:M455))-E13 -> 0.1184727663 | F14: =+E14/C14-1 -> 0.044832083
A15: Generación | C15: =+C14+C13+C12 -> 0.1240114252 | E15: =+E14+E13+E12 -> 0.1301564701 | F15: =+E15/C15-1 -> 0.04955224803
A16: Precio Promedio CR | C16: =+C15+C11+C8 -> 0.2104966606 | E16: =+E15+E11+E8 -> 0.2135006772 | F16: =+E16/C16-1 -> 0.01427108938
A17: Precio Promedio GC | C17: =+'VAR PRECIO PROM (2)'!C24 -> 0.05906186893 | E17: =+'VAR PRECIO PROM (2)'!E24 -> 0.06038174007 | F17: =+E17/C17-1 -> 0.0223472633
A18: Precio Promedio Total | C18: =+'VAR PRECIO PROM (2)'!C25 -> 0.1967339802 | E18: =+'VAR PRECIO PROM (2)'!E25 -> 0.1995849385 | F18: =+E18/C18-1 -> 0.01449143825
A20: Cargos | B20: =+"Referencia FORM tarifas p-1: "&[1]Fecha!DL7&" ventas p: "&[1]Fecha!DL4 -> Referencia FORM tarifas p-1: Ene-Jun/2026 ventas p: Jul-Dic/2026 | C20: =+"Semestre p-1 "&[1]Fecha!DL$8 -> Semestre p-1 Jul-Dic/2025 | D20: =+"Referencia FORM tarifas p: "&[1]Fecha!DL4&" ventas p: "&[1]Fecha!DL4 -> Referencia FORM tarifas p: Jul-Dic/2026 ventas p: Jul-Dic/2026 | E20: =+"Semestre p "&[1]Fecha!DL$4 -> Semestre p Jul-Dic/2026 | F20: Variación (%)
A21: Comercialización | B21: AT104 | C21: =+(SUM('COMER DISTR Y AP-102'!B124:G124,'COMER DISTR Y AP-102'!B182:G182)) -> 8634219.529 | D21: AT103 | E21: =+(SUM('COMER DISTR Y AP-101'!B124:G124,'COMER DISTR Y AP-101'!B182:G182)) -> 7454629.012 | F21: =+E21/C21-1 -> -0.1366180827
A22: Distribución | B22: AT106 | C22: =+SUM('COMER DISTR Y AP-104'!B124:G124,'COMER DISTR Y AP-104'!B182:G182) -> 29468568.11 | D22: AT105 | E22: =+SUM('COMER DISTR Y AP-103'!B124:G124,'COMER DISTR Y AP-103'!B182:G182) -> 27580957.26 | F22: -0.06405505843
A23: Alumbrado Público | B23: AT605 | C23: =+SUM('ALUMB PUB-603'!B124:G124,'ALUMB PUB-603'!B182:G182) -> 595961.8996 | D23: AT606 | E23: =+SUM('ALUMB PUB-604'!B124:G124,'ALUMB PUB-604'!B182:G182) -> 549267.5692 | F23: -0.07835120058
A24: Precio Promedio de Distribución | C24: =+SUM(C21:C23) -> 38698749.54 | E24: =+SUM(E21:E23) -> 35584853.84 | F24: -0.08046502114
A25: Peaje de Transmisión | B25: AT307 | C25: =+SUM('TRANSMISION-305'!B124:G124,'TRANSMISION-305'!B182:G182) -> 2981457.493 | D25: AT306 | E25: =+SUM('TRANSMISION-304'!B124:G124,'TRANSMISION-304'!B182:G182) -> 4575891.669 | F25: 0.5347834674
A26: Pérdidas de Transmisión | B26: AT407 | C26: =+SUM('PERD TRANS-405'!B124:G124,'PERD TRANS-405'!B149:G149) -> 31767.70943 | D26: AT406 | E26: =+SUM('PERD TRANS-404'!B124:G124,'PERD TRANS-404'!B149:G149) -> 36306.02 | F26: 0.1428592317
A27: Precio Promedio de Transmisión | C27: =+C26+C25 -> 3013225.203 | E27: =+E26+E25 -> 4612197.689 | F27: 0.5306515044
A28: Pérdidas en Distribución | B28: AT204 | C28: =+SUM('PERD DISTR Y GEN-202'!B124:G124,'PERD DISTR Y GEN-202'!B182:G182) -> 3427427.811 | D28: AT203 | E28: =+SUM('PERD DISTR Y GEN-201'!B124:G124,'PERD DISTR Y GEN-201'!B182:G182) -> 4227080.564 | F28: =+E28/C28-1 -> 0.2333098747
A29: Alumbrado Público | B29: AT507 | C29: =+SUM('GENERACION-505'!B298:G298,'GENERACION-505'!B447:G447) -> 1695646.697 | D29: AT506 | E29: =+SUM('GENERACION-504'!B298:G298,'GENERACION-504'!B447:G447) -> 1407989.455 | F29: =+E29/C29-1 -> -0.1696445623
A30: Generación | B30: AT507 | C30: =+SUM('GENERACION-505'!B124:G124,'GENERACION-505'!B211:G211,'GENERACION-505'!B397:G397,'GENERACION-505'!B422:G422,'GENERACION-505 (extra)'!B108:G108,'GENERACION-505 (extra)'!B134:G134)-C29 -> 54687844.78 | D30: AT506 | E30: =+SUM('GENERACION-504'!B124:G124,'GENERACION-504'!B211:G211,'GENERACION-504'!B397:G397,'GENERACION-504'!B422:G422)+SUM('GENERACION-504 (extra)'!B108:G108,'GENERACION-504 (extra)'!B134:G134)-E29 -> 57139614.78 | F30: =+E30/C30-1 -> 0.044832083
A31: Precio Promedio de Generación | C31: =+C30+C29+C28 -> 59810919.29 | E31: =+E30+E29+E28 -> 62774684.8 | F31: =+E31/C31-1 -> 0.04955224803
A32: Ingreso Total CR | C32: =+C31+C27+C24 -> 101522894 | E32: =+E31+E27+E24 -> 102971736.3 | F32: =+E32/C32-1 -> 0.01427108938
A33: Ingreso Total GC | C33: =+'VAR PRECIO PROM (2)'!C41 -> 2847626.431 | E33: =+'VAR PRECIO PROM (2)'!E41 -> 2911263.089 | F33: =+E33/C33-1 -> 0.0223472633
A34: Ingreso Total Empresa | C34: =+C32+C33 -> 104370520.5 | E34: =+E32+E33 -> 105882999.4 | F34: =+E34/C34-1 -> 0.01449143825
A36: Ingreso Total CR | C36: 101522894 | E36: 103762867.2 | F36: 0.02206372459
A37: Ingreso Total GC | C37: 2847626.431 | E37: 2679241.824 | F37: -0.05913156499
A38: Ingreso Total Empresa | C38: 104370520.5 | E38: 106442109 | F38: 0.01984840698
A41: Ingreso Total CR | C41: =+C32-C36 -> 0 | D41: =+D32-D36 -> 0 | E41: =+E32-E36 -> -791130.8795 | F41: =+F32-F36 -> -0.007792635218
A42: Ingreso Total GC | C42: =+C33-C37 -> 0 | D42: 0 | E42: 232021.265 | F42: 0.08147882829
A43: Ingreso Total Empresa | C43: =+C34-C38 -> 0 | D43: 0 | E43: -559109.6145 | F43: -0.00535696873

Sheet VAR PRECIO PROM (2)
A1: =+[1]Fecha!$A$1&": Ingreso Estimado por la Aplicación de la Energía Eléctrica de Clientes Regulados por Tarifa" -> EDECHI: Ingreso Estimado por la Aplicación de la Energía Eléctrica de Clientes Regulados por Tarifa
A2: (En B/./kWh)
A5: EDECHI | B5: =+"Referencia FORM Cargos Tarifarios p-1: "&[1]Fecha!DL7&" ventas p: "&[1]Fecha!DL4 -> Referencia FORM Cargos Tarifarios p-1: Ene-Jun/2026 ventas p: Jul-Dic/2026 | C5: =+"Semestre p-1 "&[1]Fecha!DL$7 -> Semestre p-1 Ene-Jun/2026 | D5: =+"Referencia FORM Cargos Tarifarios p-1: "&[1]Fecha!DL4&" ventas p: "&[1]Fecha!DL4 -> Referencia FORM Cargos Tarifarios p-1: Jul-Dic/2026 ventas p: Jul-Dic/2026 | E5: =+"Semestre p "&[1]Fecha!DL$4 -> Semestre p Jul-Dic/2026 | F5: Variación (%)
A6: BTS (0-300) | B6: (AT102 + AT104 + AT202 + AT603 + AT305 + AT405 + AT505) / AT806 | C6: =+IF(SUM('Facturación-801 (energía)'!H85:M85)=0,0,(SUM('COMER DISTR Y AP-102'!B98:G98)+SUM('COMER DISTR Y AP-104'!B98:G98)+SUM('PERD DISTR Y GEN-202'!B98:G98)+SUM('ALUMB PUB-603'!B98:G98)+SUM('TRANSMISION-305'!B98:G98)+SUM('PERD TRANS-405'!B98:G98)+SUM('GENERACION-505'!B98:G98)+SUM('GENERACION-505'!B185:G185)+SUM('COMER DISTR Y AP-102'!B161:G161)+SUM('COMER DISTR Y AP-104'!B161:G161)+SUM('PERD DISTR Y GEN-202'!B161:G161)+SUM('ALUMB PUB-603'!B161:G161)+SUM('TRANSMISION-305'!B161:G161)+SUM('PERD TRANS-405'!B128:G128)+SUM('GENERACION-505'!B376:G376)+SUM('GENERACION-505'!B401:G401)+SUM('GENERACION-505 (extra)'!B86:G86,'GENERACION-505 (extra)'!B113:G113))/(SUM('Facturación-801 (energía)'!H85:M85)+SUM('Facturación-801 (energía)'!H433:M433))) -> 0.1624890446 | D6: (AT101 + AT103 + AT201 + AT604 +AT304 + AT404 + AT504) / AT806 | E6: =+IF(SUM('Facturación-801 (energía)'!H85:M85)=0,0,(SUM('COMER DISTR Y AP-101'!B98:G98)+SUM('COMER DISTR Y AP-103'!B98:G98)+SUM('PERD DISTR Y GEN-201'!B98:G98)+SUM('ALUMB PUB-604'!B98:G98)+SUM('TRANSMISION-304'!B98:G98)+SUM('PERD TRANS-404'!B98:G98)+SUM('GENERACION-504'!B98:G98)+SUM('GENERACION-504'!B185:G185)+SUM('COMER DISTR Y AP-101'!B161:G161)+SUM('COMER DISTR Y AP-103'!B161:G161)+SUM('PERD DISTR Y GEN-201'!B161:G161)+SUM('ALUMB PUB-604'!B161:G161)+SUM('TRANSMISION-304'!B161:G161)+SUM('PERD TRANS-404'!B128:G128)+SUM('GENERACION-504'!B376:G376)+SUM('GENERACION-504'!B401:G401)+SUM('GENERACION-504 (extra)'!B86:G86,'GENERACION-504 (extra)'!B113:G113))/(SUM('Facturación-801 (energía)'!H85:M85)+SUM('Facturación-801 (energía)'!H433:M433))) -> 0.1615458764 | F6: =+IF(C6=0,0,E6/C6-1) -> -0.005804502953
A7: BTS (301-750) | C7: =+IF(SUM('Facturación-801 (energía)'!H92:M92)=0,0,(SUM('COMER DISTR Y AP-102'!B105:G105)+SUM('COMER DISTR Y AP-104'!B105:G105)+SUM('PERD DISTR Y GEN-202'!B105:G105)+SUM('ALUMB PUB-603'!B105:G105)+SUM('TRANSMISION-305'!B105:G105)+SUM('PERD TRANS-405'!B105:G105)+SUM('GENERACION-505'!B105:G105)+SUM('GENERACION-505'!B192:G192)+SUM('COMER DISTR Y AP-102'!B168:G168)+SUM('COMER DISTR Y AP-104'!B168:G168)+SUM('PERD DISTR Y GEN-202'!B168:G168)+SUM('ALUMB PUB-603'!B168:G168)+SUM('TRANSMISION-305'!B168:G168)+SUM('PERD TRANS-405'!B135:G135)+SUM('GENERACION-505'!B383:G383)+SUM('GENERACION-505'!B408:G408)+SUM('GENERACION-505 (extra)'!B93:G93,'GENERACION-505 (extra)'!B120:G120))/(SUM('Facturación-801 (energía)'!H92:M92)+SUM('Facturación-801 (energía)'!H440:M440))) -> 0.1720345344 | E7: =+IF(SUM('Facturación-801 (energía)'!H92:M92)=0,0,(SUM('COMER DISTR Y AP-101'!B105:G105)+SUM('COMER DISTR Y AP-103'!B105:G105)+SUM('PERD DISTR Y GEN-201'!B105:G105)+SUM('ALUMB PUB-604'!B105:G105)+SUM('TRANSMISION-304'!B105:G105)+SUM('PERD TRANS-404'!B105:G105)+SUM('GENERACION-504'!B105:G105)+SUM('GENERACION-504'!B192:G192)+SUM('COMER DISTR Y AP-101'!B168:G168)+SUM('COMER DISTR Y AP-103'!B168:G168)+SUM('PERD DISTR Y GEN-201'!B168:G168)+SUM('ALUMB PUB-604'!B168:G168)+SUM('TRANSMISION-304'!B168:G168)+SUM('PERD TRANS-404'!B135:G135)+SUM('GENERACION-504'!B383:G383)+SUM('GENERACION-504'!B408:G408)+SUM('GENERACION-504 (extra)'!B93:G93,'GENERACION-504 (extra)'!B120:G120))/(SUM('Facturación-801 (energía)'!H92:M92)+SUM('Facturación-801 (energía)'!H440:M440))) -> 0.1712935359 | F7: =+IF(C7=0,0,E7/C7-1) -> -0.004307266443
A8: BTS (751-más) | C8: =+IF(SUM('Facturación-801 (energía)'!H99:M99)=0,0,(SUM('COMER DISTR Y AP-102'!B112:G112)+SUM('COMER DISTR Y AP-104'!B112:G112)+SUM('PERD DISTR Y GEN-202'!B112:G112)+SUM('ALUMB PUB-603'!B112:G112)+SUM('TRANSMISION-305'!B112:G112)+SUM('PERD TRANS-405'!B112:G112)+SUM('GENERACION-505'!B112:G112)+SUM('GENERACION-505'!B199:G199)+SUM('COMER DISTR Y AP-102'!B175:G175)+SUM('COMER DISTR Y AP-104'!B175:G175)+SUM('PERD DISTR Y GEN-202'!B175:G175)+SUM('ALUMB PUB-603'!B175:G175)+SUM('TRANSMISION-305'!B175:G175)+SUM('PERD TRANS-405'!B142:G142)+SUM('GENERACION-505'!B390:G390)+SUM('GENERACION-505'!B415:G415)+SUM('GENERACION-505 (extra)'!B100:G100,'GENERACION-505 (extra)'!B127:G127))/(SUM('Facturación-801 (energía)'!H99:M99)+SUM('Facturación-801 (energía)'!H447:M447))) -> 0.2705841321 | E8: =+IF(SUM('Facturación-801 (energía)'!H99:M99)=0,0,(SUM('COMER DISTR Y AP-101'!B112:G112)+SUM('COMER DISTR Y AP-103'!B112:G112)+SUM('PERD DISTR Y GEN-201'!B112:G112)+SUM('ALUMB PUB-604'!B112:G112)+SUM('TRANSMISION-304'!B112:G112)+SUM('PERD TRANS-404'!B112:G112)+SUM('GENERACION-504'!B112:G112)+SUM('GENERACION-504'!B199:G199)+SUM('COMER DISTR Y AP-101'!B175:G175)+SUM('COMER DISTR Y AP-103'!B175:G175)+SUM('PERD DISTR Y GEN-201'!B175:G175)+SUM('ALUMB PUB-604'!B175:G175)+SUM('TRANSMISION-304'!B175:G175)+SUM('PERD TRANS-404'!B142:G142)+SUM('GENERACION-504'!B390:G390)+SUM('GENERACION-504'!B415:G415)+SUM('GENERACION-504 (extra)'!B100:G100,'GENERACION-504 (extra)'!B127:G127))/(SUM('Facturación-801 (energía)'!H99:M99)+SUM('Facturación-801 (energía)'!H447:M447))) -> 0.2705171156 | F8: =+IF(C8=0,0,E8/C8-1) -> -0.0002476735095
A9: BTD | C9: =+C32/SUM('Facturación-801 (energía)'!H43:M43) -> 0.2260295061 | E9: =+E32/SUM('Facturación-801 (energía)'!H43:M43) -> 0.2325449458 | F9: =+IF(C9=0,0,E9/C9-1) -> 0.02882561573
A13: BTH | C13: =+IF(SUM('Facturación-801 (energía)'!H42:M42)=0,0,(SUM('COMER DISTR Y AP-102'!B69:G69)+SUM('COMER DISTR Y AP-104'!B69:G69)+SUM('PERD DISTR Y GEN-202'!B69:G69)+SUM('ALUMB PUB-603'!B69:G69)+SUM('TRANSMISION-305'!B69:G69)+SUM('PERD TRANS-405'!B69:G69)+SUM('GENERACION-505'!B69:G69)+SUM('GENERACION-505'!B156:G156)+SUM('GENERACION-505 (extra)'!B57:G57))/SUM('Facturación-801 (energía)'!H42:M42)) -> 0.2922635266 | E13: =+IF(SUM('Facturación-801 (energía)'!H42:M42)=0,0,(SUM('COMER DISTR Y AP-101'!B69:G69)+SUM('COMER DISTR Y AP-103'!B69:G69)+SUM('PERD DISTR Y GEN-201'!B69:G69)+SUM('ALUMB PUB-604'!B69:G69)+SUM('TRANSMISION-304'!B69:G69)+SUM('PERD TRANS-404'!B69:G69)+SUM('GENERACION-504'!B69:G69)+SUM('GENERACION-504'!B156:G156)+SUM('GENERACION-504 (extra)'!B57:G57))/SUM('Facturación-801 (energía)'!H42:M42)) -> 0.2681323062 | F13: =+IF(C13=0,0,E13/C13-1) -> -0.08256665041
A14: MTD | C14: =+C34/SUM('Facturación-801 (energía)'!H15:M15) -> 0.2051302706 | E14: =+E34/SUM('Facturación-801 (energía)'!H15:M15) -> 0.2218146097 | F14: =+IF(C14=0,0,E14/C14-1) -> 0.08133533404
A18: MTH | C18: =+IF(SUM('Facturación-801 (energía)'!H14:M14)=0,0,(SUM('COMER DISTR Y AP-102'!B46:G46)+SUM('COMER DISTR Y AP-104'!B46:G46)+SUM('PERD DISTR Y GEN-202'!B46:G46)+SUM('ALUMB PUB-603'!B46:G46)+SUM('TRANSMISION-305'!B46:G46)+SUM('PERD TRANS-405'!B46:G46)+SUM('GENERACION-505'!B46:G46)+SUM('GENERACION-505'!B133:G133)+SUM('GENERACION-505 (extra)'!B34:G34))/SUM('Facturación-801 (energía)'!H14:M14)) -> 0.2214778385 | E18: =+IF(SUM('Facturación-801 (energía)'!H14:M14)=0,0,(SUM('COMER DISTR Y AP-101'!B46:G46)+SUM('COMER DISTR Y AP-103'!B46:G46)+SUM('PERD DISTR Y GEN-201'!B46:G46)+SUM('ALUMB PUB-604'!B46:G46)+SUM('TRANSMISION-304'!B46:G46)+SUM('PERD TRANS-404'!B46:G46)+SUM('GENERACION-504'!B46:G46)+SUM('GENERACION-504'!B133:G133)+SUM('GENERACION-504 (extra)'!B34:G34))/SUM('Facturación-801 (energía)'!H14:M14)) -> 0.2363098767 | F18: =+IF(C18=0,0,E18/C18-1) -> 0.06696849788
A19: ATD | C19: =+IF(SUM('Facturación-801 (energía)'!H11:M11)=0,0,(SUM('COMER DISTR Y AP-102'!B43:G43)+SUM('COMER DISTR Y AP-104'!B43:G43)+SUM('PERD DISTR Y GEN-202'!B43:G43)+SUM('ALUMB PUB-603'!B43:G43)+SUM('TRANSMISION-305'!B43:G43)+SUM('PERD TRANS-405'!B43:G43)+SUM('GENERACION-505'!B43:G43)+SUM('GENERACION-505'!B130:G130)+SUM('GENERACION-505 (extra)'!B31:G31))/SUM('Facturación-801 (energía)'!H11:M11)) -> 0 | E19: =+IF(SUM('Facturación-801 (energía)'!H11:M11)=0,0,(SUM('COMER DISTR Y AP-101'!B43:G43)+SUM('COMER DISTR Y AP-103'!B43:G43)+SUM('PERD DISTR Y GEN-201'!B43:G43)+SUM('ALUMB PUB-604'!B43:G43)+SUM('TRANSMISION-304'!B43:G43)+SUM('PERD TRANS-404'!B43:G43)+SUM('GENERACION-504'!B43:G43)+SUM('GENERACION-504'!B130:G130)+SUM('GENERACION-504 (extra)'!B31:G31))/SUM('Facturación-801 (energía)'!H11:M11)) -> 0 | F19: 0
A20: ATH | C20: =+IF(SUM('Facturación-801 (energía)'!H10:M10)=0,0,(SUM('COMER DISTR Y AP-102'!B42:G42)+SUM('COMER DISTR Y AP-104'!B42:G42)+SUM('PERD DISTR Y GEN-202'!B42:G42)+SUM('ALUMB PUB-603'!B42:G42)+SUM('TRANSMISION-305'!B42:G42)+SUM('PERD TRANS-405'!B42:G42)+SUM('GENERACION-505'!B42:G42)+SUM('GENERACION-505'!B129:G129)+SUM('GENERACION-505 (extra)'!B30:G30))/SUM('Facturación-801 (energía)'!H10:M10)) -> 0.2142017896 | E20: =+IF(SUM('Facturación-801 (energía)'!H10:M10)=0,0,(SUM('COMER DISTR Y AP-101'!B42:G42)+SUM('COMER DISTR Y AP-103'!B42:G42)+SUM('PERD DISTR Y GEN-201'!B42:G42)+SUM('ALUMB PUB-604'!B42:G42)+SUM('TRANSMISION-304'!B42:G42)+SUM('PERD TRANS-404'!B42:G42)+SUM('GENERACION-504'!B42:G42)+SUM('GENERACION-504'!B129:G129)+SUM('GENERACION-504 (extra)'!B30:G30))/SUM('Facturación-801 (energía)'!H10:M10)) -> 0.2472244726 | F20: 0.1541662329
A21: Prepago | C21: =+IF(SUM('Facturación-801 (energía)'!H106:M106)=0,0,(SUM('COMER DISTR Y AP-102'!B123:G123)+SUM('COMER DISTR Y AP-104'!B123:G123)+SUM('PERD DISTR Y GEN-202'!B123:G123)+SUM('ALUMB PUB-603'!B123:G123)+SUM('TRANSMISION-305'!B123:G123)+SUM('PERD TRANS-405'!B123:G123)+SUM('GENERACION-505'!B123:G123)+SUM('GENERACION-505'!B210:G210)+SUM('GENERACION-505 (extra)'!B107:G107))/SUM('Facturación-801 (energía)'!H106:M106)) -> 0 | E21: =+IF(SUM('Facturación-801 (energía)'!H106:M106)=0,0,(SUM('COMER DISTR Y AP-101'!B123:G123)+SUM('COMER DISTR Y AP-103'!B123:G123)+SUM('PERD DISTR Y GEN-201'!B123:G123)+SUM('ALUMB PUB-604'!B123:G123)+SUM('TRANSMISION-304'!B123:G123)+SUM('PERD TRANS-404'!B123:G123)+SUM('GENERACION-504'!B123:G123)+SUM('GENERACION-504'!B210:G210)+SUM('GENERACION-504 (extra)'!B107:G107))/SUM('Facturación-801 (energía)'!H106:M106)) -> 0 | F21: 0
A22: BTSH | C22: =+(SUM('COMER DISTR Y AP-102'!B120:G120)+ SUM('COMER DISTR Y AP-104'!B120:G120)+ SUM('PERD DISTR Y GEN-202'!B120:G120)+ SUM('ALUMB PUB-603'!B120:G120)+ SUM('TRANSMISION-305'!B120:G120)+ SUM('PERD TRANS-405'!B120:G120)+ SUM('GENERACION-505'!B120:G120)+ SUM('GENERACION-505'!B207:G207) ) / SUM('Facturación-801 (energía)'!H533:M533) -> 0.1956234035 | E22: =+(SUM('COMER DISTR Y AP-101'!B120:G120)+ SUM('COMER DISTR Y AP-103'!B120:G120)+ SUM('PERD DISTR Y GEN-201'!B120:G120)+ SUM('ALUMB PUB-604'!B120:G120)+ SUM('TRANSMISION-304'!B120:G120)+ SUM('PERD TRANS-404'!B120:G120)+ SUM('GENERACION-504'!B120:G120)+ SUM('GENERACION-504'!B207:G207) ) / SUM('Facturación-801 (energía)'!H533:M533) -> 0.2000669428 | F22: 0.02271476347
A23: Precio Promedio | C23: =+IF(SUM('Facturación-801 (energía)'!H107:M107)=0,0,(SUM('COMER DISTR Y AP-102'!B124:G124)+SUM('COMER DISTR Y AP-104'!B124:G124)+SUM('PERD DISTR Y GEN-202'!B124:G124)+SUM('ALUMB PUB-603'!B124:G124)+SUM('TRANSMISION-305'!B124:G124)+SUM('PERD TRANS-405'!B124:G124)+SUM('GENERACION-505'!B124:G124)+SUM('GENERACION-505'!B211:G211)+SUM('COMER DISTR Y AP-102'!B182:G182)+SUM('COMER DISTR Y AP-104'!B182:G182)+SUM('PERD DISTR Y GEN-202'!B182:G182)+SUM('ALUMB PUB-603'!B182:G182)+SUM('TRANSMISION-305'!B182:G182)+SUM('PERD TRANS-405'!B149:G149)+SUM('GENERACION-505'!B397:G397)+SUM('GENERACION-505'!B422:G422)+SUM('GENERACION-505 (extra)'!B108:G108,'GENERACION-505 (extra)'!B134:G134))/ (SUM('Facturación-801 (energía)'!H107:M107)+SUM('Facturación-801 (energía)'!H457:M457)+SUM('Facturación-801 (energía)'!H545:M545)-SUM('Facturación-801 (energía)'!H455:M455))) -> 0.2104966606 | E23: =+IF(SUM('Facturación-801 (energía)'!H107:M107)=0,0,(SUM('COMER DISTR Y AP-101'!B124:G124)+SUM('COMER DISTR Y AP-103'!B124:G124)+SUM('PERD DISTR Y GEN-201'!B124:G124)+SUM('ALUMB PUB-604'!B124:G124)+SUM('TRANSMISION-304'!B124:G124)+SUM('PERD TRANS-404'!B124:G124)+SUM('GENERACION-504'!B124:G124)+SUM('GENERACION-504'!B211:G211)+SUM('COMER DISTR Y AP-101'!B182:G182)+SUM('COMER DISTR Y AP-103'!B182:G182)+SUM('PERD DISTR Y GEN-201'!B182:G182)+SUM('ALUMB PUB-604'!B182:G182)+SUM('TRANSMISION-304'!B182:G182)+SUM('PERD TRANS-404'!B149:G149)+SUM('GENERACION-504'!B397:G397)+SUM('GENERACION-504'!B422:G422)+SUM('GENERACION-504 (extra)'!B108:G108,'GENERACION-504 (extra)'!B134:G134))/ (SUM('Facturación-801 (energía)'!H107:M107)+SUM('Facturación-801 (energía)'!H457:M457)+SUM('Facturación-801 (energía)'!H545:M545)-SUM('Facturación-801 (energía)'!H455:M455))) -> 0.2135006772 | F23: =+E23/C23-1 -> 0.01427108938
A24: Grandes Clientes | C24: =+IF(SUM('Facturación-801 (energía)'!H$376:M$376,'Facturación-801 (energía)'!H$422:M$422)=0,0,(SUM('COMER DISTR Y AP-102'!B157:G157)+SUM('COMER DISTR Y AP-104'!B157:G157)+SUM('PERD DISTR Y GEN-202'!B157:G157)+SUM('ALUMB PUB-603'!B157:G157)+SUM('TRANSMISION-305'!B157:G157)+SUM('GENERACION-505'!B331:G331)+SUM('GENERACION-505'!B364:G364))/SUM('Facturación-801 (energía)'!H$376:M$376,'Facturación-801 (energía)'!H$422:M$422)) -> 0.05906186893 | E24: =+IF(SUM('Facturación-801 (energía)'!H$376:M$376,'Facturación-801 (energía)'!H$422:M$422)=0,0,(SUM('COMER DISTR Y AP-101'!B157:G157)+SUM('COMER DISTR Y AP-103'!B157:G157)+SUM('PERD DISTR Y GEN-201'!B157:G157)+SUM('ALUMB PUB-604'!B157:G157)+SUM('TRANSMISION-304'!B157:G157)+SUM('GENERACION-504'!B331:G331)+SUM('GENERACION-504'!B364:G364))/SUM('Facturación-801 (energía)'!H$376:M$376,'Facturación-801 (energía)'!H$422:M$422)) -> 0.06038174007 | F24: =+IF(C24=0,0,E24/C24-1) -> 0.0223472633
A25: Precio Promedio de Total | C25: =+IF(SUM('Facturación-801 (energía)'!H107:M107)=0,0,(SUM('COMER DISTR Y AP-102'!B124:G124)+SUM('COMER DISTR Y AP-104'!B124:G124)+SUM('PERD DISTR Y GEN-202'!B124:G124)+SUM('ALUMB PUB-603'!B124:G124)+SUM('TRANSMISION-305'!B124:G124)+SUM('PERD TRANS-405'!B124:G124)+SUM('GENERACION-505'!B124:G124)+SUM('GENERACION-505'!B211:G211)+SUM('COMER DISTR Y AP-102'!B182:G182)+SUM('COMER DISTR Y AP-104'!B182:G182)+SUM('PERD DISTR Y GEN-202'!B182:G182)+SUM('ALUMB PUB-603'!B182:G182)+SUM('TRANSMISION-305'!B182:G182)+SUM('PERD TRANS-405'!B149:G149)+SUM('GENERACION-505'!B397:G397)+SUM('GENERACION-505'!B422:G422)+SUM('GENERACION-505 (extra)'!B108:G108,'GENERACION-505 (extra)'!B134:G134)+SUM('COMER DISTR Y AP-102'!B157:G157)+SUM('COMER DISTR Y AP-104'!B157:G157)+SUM('PERD DISTR Y GEN-202'!B157:G157)+SUM('ALUMB PUB-603'!B157:G157)+SUM('TRANSMISION-305'!B157:G157)+SUM('GENERACION-505'!B331:G331)+SUM('GENERACION-505'!B364:G364))/ (SUM('Facturación-801 (energía)'!H107:M107)+SUM('Facturación-801 (energía)'!H457:M457)+SUM('Facturación-801 (energía)'!H545:M545)-SUM('Facturación-801 (energía)'!H455:M455)+SUM('Facturación-801 (energía)'!H$376:M$376,'Facturación-801 (energía)'!H$422:M$422))) -> 0.1967339802 | E25: =+IF(SUM('Facturación-801 (energía)'!H107:M107)=0,0,(SUM('COMER DISTR Y AP-101'!B124:G124)+SUM('COMER DISTR Y AP-103'!B124:G124)+SUM('PERD DISTR Y GEN-201'!B124:G124)+SUM('ALUMB PUB-604'!B124:G124)+SUM('TRANSMISION-304'!B124:G124)+SUM('PERD TRANS-404'!B124:G124)+SUM('GENERACION-504'!B124:G124)+SUM('GENERACION-504'!B211:G211)+SUM('COMER DISTR Y AP-101'!B182:G182)+SUM('COMER DISTR Y AP-103'!B182:G182)+SUM('PERD DISTR Y GEN-201'!B182:G182)+SUM('ALUMB PUB-604'!B182:G182)+SUM('TRANSMISION-304'!B182:G182)+SUM('PERD TRANS-404'!B149:G149)+SUM('GENERACION-504'!B397:G397)+SUM('GENERACION-504'!B422:G422)+SUM('COMER DISTR Y AP-101'!B157:G157)+SUM('COMER DISTR Y AP-103'!B157:G157)+SUM('PERD DISTR Y GEN-201'!B157:G157)+SUM('ALUMB PUB-604'!B157:G157)+SUM('TRANSMISION-304'!B157:G157)+SUM('GENERACION-504'!B331:G331)+SUM('GENERACION-504'!B364:G364)+SUM('GENERACION-504 (extra)'!B108:G108,'GENERACION-504 (extra)'!B134:G134))/ (SUM('Facturación-801 (energía)'!H107:M107)+SUM('Facturación-801 (energía)'!H457:M457)+SUM('Facturación-801 (energía)'!H545:M545)-SUM('Facturación-801 (energía)'!H455:M455)+SUM('Facturación-801 (energía)'!H$376:M$376,'Facturación-801 (energía)'!H$422:M$422))) -> 0.1995849385 | F25: =+E25/C25-1 -> 0.01449143825
A27: =+A1&" (En B/)" -> EDECHI: Ingreso Estimado por la Aplicación de la Energía Eléctrica de Clientes Regulados por Tarifa (En B/)
A28: EDECHI | B28: =+"Referencia FORM Cargos Tarifarios p-1: "&[1]Fecha!DL7&" ventas p: "&[1]Fecha!DL4 -> Referencia FORM Cargos Tarifarios p-1: Ene-Jun/2026 ventas p: Jul-Dic/2026 | C28: =+"Semestre p-1 "&[1]Fecha!DL$7 -> Semestre p-1 Ene-Jun/2026 | D28: =+"Referencia FORM Cargos Tarifarios p-1: "&[1]Fecha!DL4&" ventas p: "&[1]Fecha!DL4 -> Referencia FORM Cargos Tarifarios p-1: Jul-Dic/2026 ventas p: Jul-Dic/2026 | E28: =+"Semestre p "&[1]Fecha!DL$4 -> Semestre p Jul-Dic/2026 | F28: Variación (%)
A29: BTS (0-300) | B29: (AT102 + AT104 + AT202 + AT603 + AT305 + AT405 + AT505) / AT806 | C29: =+IF(SUM('Facturación-801 (energía)'!H85:M85)=0,0,(SUM('COMER DISTR Y AP-102'!B98:G98)+SUM('COMER DISTR Y AP-104'!B98:G98)+SUM('PERD DISTR Y GEN-202'!B98:G98)+SUM('ALUMB PUB-603'!B98:G98)+SUM('TRANSMISION-305'!B98:G98)+SUM('PERD TRANS-405'!B98:G98)+SUM('GENERACION-505'!B98:G98)+SUM('GENERACION-505'!B185:G185)+SUM('COMER DISTR Y AP-102'!B161:G161)+SUM('COMER DISTR Y AP-104'!B161:G161)+SUM('PERD DISTR Y GEN-202'!B161:G161)+SUM('ALUMB PUB-603'!B161:G161)+SUM('TRANSMISION-305'!B161:G161)+SUM('PERD TRANS-405'!B128:G128)+SUM('GENERACION-505'!B376:G376)+SUM('GENERACION-505'!B401:G401))+SUM('GENERACION-505 (extra)'!B86:G86,'GENERACION-505 (extra)'!B113:G113)) -> 18166512.23 | D29: (AT101 + AT103 + AT201 + AT604 +AT304 + AT404 + AT504) / AT806 | E29: =+IF(SUM('Facturación-801 (energía)'!H85:M85)=0,0,(SUM('COMER DISTR Y AP-101'!B98:G98)+SUM('COMER DISTR Y AP-103'!B98:G98)+SUM('PERD DISTR Y GEN-201'!B98:G98)+SUM('ALUMB PUB-604'!B98:G98)+SUM('TRANSMISION-304'!B98:G98)+SUM('PERD TRANS-404'!B98:G98)+SUM('GENERACION-504'!B98:G98)+SUM('GENERACION-504'!B185:G185)+SUM('COMER DISTR Y AP-101'!B161:G161)+SUM('COMER DISTR Y AP-103'!B161:G161)+SUM('PERD DISTR Y GEN-201'!B161:G161)+SUM('ALUMB PUB-604'!B161:G161)+SUM('TRANSMISION-304'!B161:G161)+SUM('PERD TRANS-404'!B128:G128)+SUM('GENERACION-504'!B376:G376)+SUM('GENERACION-504'!B401:G401))+SUM('GENERACION-504 (extra)'!B86:G86,'GENERACION-504 (extra)'!B113:G113)) -> 18061064.66 | F29: =+IF(C29=0,0,E29/C29-1) -> -0.005804502953
A30: BTS (301-750) | C30: =+IF(SUM('Facturación-801 (energía)'!H92:M92)=0,0,(SUM('COMER DISTR Y AP-102'!B105:G105)+SUM('COMER DISTR Y AP-104'!B105:G105)+SUM('PERD DISTR Y GEN-202'!B105:G105)+SUM('ALUMB PUB-603'!B105:G105)+SUM('TRANSMISION-305'!B105:G105)+SUM('PERD TRANS-405'!B105:G105)+SUM('GENERACION-505'!B105:G105)+SUM('GENERACION-505'!B192:G192)+SUM('COMER DISTR Y AP-102'!B168:G168)+SUM('COMER DISTR Y AP-104'!B168:G168)+SUM('PERD DISTR Y GEN-202'!B168:G168)+SUM('ALUMB PUB-603'!B168:G168)+SUM('TRANSMISION-305'!B168:G168)+SUM('PERD TRANS-405'!B135:G135)+SUM('GENERACION-505'!B383:G383)+SUM('GENERACION-505'!B408:G408))) -> 14902568.13 | E30: =+IF(SUM('Facturación-801 (energía)'!H92:M92)=0,0,(SUM('COMER DISTR Y AP-101'!B105:G105)+SUM('COMER DISTR Y AP-103'!B105:G105)+SUM('PERD DISTR Y GEN-201'!B105:G105)+SUM('ALUMB PUB-604'!B105:G105)+SUM('TRANSMISION-304'!B105:G105)+SUM('PERD TRANS-404'!B105:G105)+SUM('GENERACION-504'!B105:G105)+SUM('GENERACION-504'!B192:G192)+SUM('COMER DISTR Y AP-101'!B168:G168)+SUM('COMER DISTR Y AP-103'!B168:G168)+SUM('PERD DISTR Y GEN-201'!B168:G168)+SUM('ALUMB PUB-604'!B168:G168)+SUM('TRANSMISION-304'!B168:G168)+SUM('PERD TRANS-404'!B135:G135)+SUM('GENERACION-504'!B383:G383)+SUM('GENERACION-504'!B408:G408))+SUM('GENERACION-504 (extra)'!B93:G93,'GENERACION-504 (extra)'!B120:G120)) -> 14838378.79 | F30: =+IF(C30=0,0,E30/C30-1) -> -0.004307266443
A31: BTS (751-más) | C31: =+IF(SUM('Facturación-801 (energía)'!H99:M99)=0,0,(SUM('COMER DISTR Y AP-102'!B112:G112)+SUM('COMER DISTR Y AP-104'!B112:G112)+SUM('PERD DISTR Y GEN-202'!B112:G112)+SUM('ALUMB PUB-603'!B112:G112)+SUM('TRANSMISION-305'!B112:G112)+SUM('PERD TRANS-405'!B112:G112)+SUM('GENERACION-505'!B112:G112)+SUM('GENERACION-505'!B199:G199)+SUM('COMER DISTR Y AP-102'!B175:G175)+SUM('COMER DISTR Y AP-104'!B175:G175)+SUM('PERD DISTR Y GEN-202'!B175:G175)+SUM('ALUMB PUB-603'!B175:G175)+SUM('TRANSMISION-305'!B175:G175)+SUM('PERD TRANS-405'!B142:G142)+SUM('GENERACION-505'!B390:G390)+SUM('GENERACION-505'!B415:G415))) -> 33137156.64 | E31: =+IF(SUM('Facturación-801 (energía)'!H99:M99)=0,0,(SUM('COMER DISTR Y AP-101'!B112:G112)+SUM('COMER DISTR Y AP-103'!B112:G112)+SUM('PERD DISTR Y GEN-201'!B112:G112)+SUM('ALUMB PUB-604'!B112:G112)+SUM('TRANSMISION-304'!B112:G112)+SUM('PERD TRANS-404'!B112:G112)+SUM('GENERACION-504'!B112:G112)+SUM('GENERACION-504'!B199:G199)+SUM('COMER DISTR Y AP-101'!B175:G175)+SUM('COMER DISTR Y AP-103'!B175:G175)+SUM('PERD DISTR Y GEN-201'!B175:G175)+SUM('ALUMB PUB-604'!B175:G175)+SUM('TRANSMISION-304'!B175:G175)+SUM('PERD TRANS-404'!B142:G142)+SUM('GENERACION-504'!B390:G390)+SUM('GENERACION-504'!B415:G415))+SUM('GENERACION-504 (extra)'!B100:G100,'GENERACION-504 (extra)'!B127:G127)) -> 33128949.44 | F31: -0.0002476735095
A32: BTD | C32: =+IF(SUM('Facturación-801 (energía)'!H50:BRY50)=0,0,(SUM('COMER DISTR Y AP-102'!B70:BRM70)+SUM('COMER DISTR Y AP-104'!B70:BRS70)+SUM('PERD DISTR Y GEN-202'!B70:BRS70)+SUM('ALUMB PUB-603'!B70:BRS70)+SUM('TRANSMISION-305'!B70:BRS70)+SUM('PERD TRANS-405'!B70:BRS70)+SUM('GENERACION-505'!B70:BRS70)+SUM('GENERACION-505'!B157:BRS157)))+IF(SUM('Facturación-801 (energía)'!H57:BRY57)=0,0,(SUM('COMER DISTR Y AP-102'!B77:BRM77)+SUM('COMER DISTR Y AP-104'!B77:BRS77)+SUM('PERD DISTR Y GEN-202'!B77:BRS77)+SUM('ALUMB PUB-603'!B77:BRS77)+SUM('TRANSMISION-305'!B77:BRS77)+SUM('PERD TRANS-405'!B77:BRS77)+SUM('GENERACION-505'!B77:BRS77)+SUM('GENERACION-505'!B164:BRS164)))+IF(SUM('Facturación-801 (energía)'!H64:BRY64)=0,0,(SUM('COMER DISTR Y AP-102'!B84:BRM84)+SUM('COMER DISTR Y AP-104'!B84:BRS84)+SUM('PERD DISTR Y GEN-202'!B84:BRS84)+SUM('ALUMB PUB-603'!B84:BRS84)+SUM('TRANSMISION-305'!B84:BRS84)+SUM('PERD TRANS-405'!B84:BRS84)+SUM('GENERACION-505'!B84:BRS84)+SUM('GENERACION-505'!B171:BRS171)))+IF(SUM('Facturación-801 (energía)'!H71:BRY71)=0,0,(SUM('COMER DISTR Y AP-102'!B91:BRM91)+SUM('COMER DISTR Y AP-104'!B91:BRS91)+SUM('PERD DISTR Y GEN-202'!B91:BRS91)+SUM('ALUMB PUB-603'!B91:BRS91)+SUM('TRANSMISION-305'!B91:BRS91)+SUM('PERD TRANS-405'!B91:BRS91)+SUM('GENERACION-505'!B91:BRS91)+SUM('GENERACION-505'!B178:BRS178))) -> 23425549.74 | E32: =+IF(SUM('Facturación-801 (energía)'!H50:BRY50)=0,0,(SUM('COMER DISTR Y AP-101'!B70:BRS70)+SUM('COMER DISTR Y AP-103'!B70:BRS70)+SUM('PERD DISTR Y GEN-201'!B70:BRS70)+SUM('ALUMB PUB-604'!B70:BRS70)+SUM('TRANSMISION-304'!B70:BRS70)+SUM('PERD TRANS-404'!B70:BRS70)+SUM('GENERACION-504'!B70:BRR70)+SUM('GENERACION-504'!B157:BRR157))+SUM('GENERACION-504 (extra)'!B58:BRS58))+IF(SUM('Facturación-801 (energía)'!H57:BRY57)=0,0,(SUM('COMER DISTR Y AP-101'!B77:BRS77)+SUM('COMER DISTR Y AP-103'!B77:BRS77)+SUM('PERD DISTR Y GEN-201'!B77:BRS77)+SUM('ALUMB PUB-604'!B77:BRS77)+SUM('TRANSMISION-304'!B77:BRS77)+SUM('PERD TRANS-404'!B77:BRS77)+SUM('GENERACION-504'!B77:BRR77)+SUM('GENERACION-504'!B164:BRR164))+SUM('GENERACION-504 (extra)'!B65:BRS65))+IF(SUM('Facturación-801 (energía)'!H64:BRY64)=0,0,(SUM('COMER DISTR Y AP-101'!B84:BRS84)+SUM('COMER DISTR Y AP-103'!B84:BRS84)+SUM('PERD DISTR Y GEN-201'!B84:BRS84)+SUM('ALUMB PUB-604'!B84:BRS84)+SUM('TRANSMISION-304'!B84:BRS84)+SUM('PERD TRANS-404'!B84:BRS84)+SUM('GENERACION-504'!B84:BRR84)+SUM('GENERACION-504'!B171:BRR171))+SUM('GENERACION-504 (extra)'!B72:BRS72))+IF(SUM('Facturación-801 (energía)'!H71:BRY71)=0,0,(SUM('COMER DISTR Y AP-101'!B91:BRS91)+SUM('COMER DISTR Y AP-103'!B91:BRS91)+SUM('PERD DISTR Y GEN-201'!B91:BRS91)+SUM('ALUMB PUB-604'!B91:BRS91)+SUM('TRANSMISION-304'!B91:BRS91)+SUM('PERD TRANS-404'!B91:BRS91)+SUM('GENERACION-504'!B91:BRR91)+SUM('GENERACION-504'!B178:BRR178))+SUM('GENERACION-504 (extra)'!B79:BRS79)) -> 24100805.63 | F32: 0.02882561573
A33: BTH | C33: =+IF(SUM('Facturación-801 (energía)'!H42:M42)=0,0,(SUM('COMER DISTR Y AP-102'!B69:G69)+SUM('COMER DISTR Y AP-104'!B69:G69)+SUM('PERD DISTR Y GEN-202'!B69:G69)+SUM('ALUMB PUB-603'!B69:G69)+SUM('TRANSMISION-305'!B69:G69)+SUM('PERD TRANS-405'!B69:G69)+SUM('GENERACION-505'!B69:G69)+SUM('GENERACION-505'!B156:G156))) -> 100693.2606 | E33: =+IF(SUM('Facturación-801 (energía)'!H42:M42)=0,0,(SUM('COMER DISTR Y AP-101'!B69:G69)+SUM('COMER DISTR Y AP-103'!B69:G69)+SUM('PERD DISTR Y GEN-201'!B69:G69)+SUM('ALUMB PUB-604'!B69:G69)+SUM('TRANSMISION-304'!B69:G69)+SUM('PERD TRANS-404'!B69:G69)+SUM('GENERACION-504'!B69:G69)+SUM('GENERACION-504'!B156:G156))+SUM('GENERACION-504 (extra)'!B57:G57)) -> 92379.35532 | F33: -0.08256665041
A34: MTD | C34: =+IF(SUM('Facturación-801 (energía)'!H20:M20)=0,0,(SUM('COMER DISTR Y AP-102'!B47:G47)+SUM('COMER DISTR Y AP-104'!B47:G47)+SUM('PERD DISTR Y GEN-202'!B47:G47)+SUM('ALUMB PUB-603'!B47:G47)+SUM('TRANSMISION-305'!B47:G47)+SUM('PERD TRANS-405'!B47:G47)+SUM('GENERACION-505'!B47:G47)+SUM('GENERACION-505'!B134:G134)))+IF(SUM('Facturación-801 (energía)'!H25:M25)=0,0,(SUM('COMER DISTR Y AP-102'!B52:G52)+SUM('COMER DISTR Y AP-104'!B52:G52)+SUM('PERD DISTR Y GEN-202'!B52:G52)+SUM('ALUMB PUB-603'!B52:G52)+SUM('TRANSMISION-305'!B52:G52)+SUM('PERD TRANS-405'!B52:G52)+SUM('GENERACION-505'!B52:G52)+SUM('GENERACION-505'!B139:G139)))+IF(SUM('Facturación-801 (energía)'!H30:M30)=0,0,(SUM('COMER DISTR Y AP-102'!B57:G57)+SUM('COMER DISTR Y AP-104'!B57:G57)+SUM('PERD DISTR Y GEN-202'!B57:G57)+SUM('ALUMB PUB-603'!B57:G57)+SUM('TRANSMISION-305'!B57:G57)+SUM('PERD TRANS-405'!B57:G57)+SUM('GENERACION-505'!B57:G57)+SUM('GENERACION-505'!B144:G144)))+IF(SUM('Facturación-801 (energía)'!H35:M35)=0,0,(SUM('COMER DISTR Y AP-102'!B62:G62)+SUM('COMER DISTR Y AP-104'!B62:G62)+SUM('PERD DISTR Y GEN-202'!B62:G62)+SUM('ALUMB PUB-603'!B62:G62)+SUM('TRANSMISION-305'!B62:G62)+SUM('PERD TRANS-405'!B62:G62)+SUM('GENERACION-505'!B62:G62)+SUM('GENERACION-505'!B149:G149))) -> 11612498.26 | E34: =+IF(SUM('Facturación-801 (energía)'!H20:M20)=0,0,(SUM('COMER DISTR Y AP-101'!B47:G47)+SUM('COMER DISTR Y AP-103'!B47:G47)+SUM('PERD DISTR Y GEN-201'!B47:G47)+SUM('ALUMB PUB-604'!B47:G47)+SUM('TRANSMISION-304'!B47:G47)+SUM('PERD TRANS-404'!B47:G47)+SUM('GENERACION-504'!B47:G47)+SUM('GENERACION-504'!B134:G134))+SUM('GENERACION-504 (extra)'!B35:G35))+IF(SUM('Facturación-801 (energía)'!H25:M25)=0,0,(SUM('COMER DISTR Y AP-101'!B52:G52)+SUM('COMER DISTR Y AP-103'!B52:G52)+SUM('PERD DISTR Y GEN-201'!B52:G52)+SUM('ALUMB PUB-604'!B52:G52)+SUM('TRANSMISION-304'!B52:G52)+SUM('PERD TRANS-404'!B52:G52)+SUM('GENERACION-504'!B52:G52)+SUM('GENERACION-504'!B139:G139))+SUM('GENERACION-504 (extra)'!B40:G40))+IF(SUM('Facturación-801 (energía)'!H30:M30)=0,0,(SUM('COMER DISTR Y AP-101'!B57:G57)+SUM('COMER DISTR Y AP-103'!B57:G57)+SUM('PERD DISTR Y GEN-201'!B57:G57)+SUM('ALUMB PUB-604'!B57:G57)+SUM('TRANSMISION-304'!B57:G57)+SUM('PERD TRANS-404'!B57:G57)+SUM('GENERACION-504'!B57:G57)+SUM('GENERACION-504'!B144:G144))+SUM('GENERACION-504 (extra)'!B45:G45))+IF(SUM('Facturación-801 (energía)'!H35:M35)=0,0,(SUM('COMER DISTR Y AP-101'!B62:G62)+SUM('COMER DISTR Y AP-103'!B62:G62)+SUM('PERD DISTR Y GEN-201'!B62:G62)+SUM('ALUMB PUB-604'!B62:G62)+SUM('TRANSMISION-304'!B62:G62)+SUM('PERD TRANS-404'!B62:G62)+SUM('GENERACION-504'!B62:G62)+SUM('GENERACION-504'!B149:G149))+SUM('GENERACION-504 (extra)'!B50:G50)) -> 12557004.69 | F34: 0.08133533404
A35: MTH | C35: =+IF(SUM('Facturación-801 (energía)'!H14:M14)=0,0,(SUM('COMER DISTR Y AP-102'!B46:G46)+SUM('COMER DISTR Y AP-104'!B46:G46)+SUM('PERD DISTR Y GEN-202'!B46:G46)+SUM('ALUMB PUB-603'!B46:G46)+SUM('TRANSMISION-305'!B46:G46)+SUM('PERD TRANS-405'!B46:G46)+SUM('GENERACION-505'!B46:G46)+SUM('GENERACION-505'!B133:G133))) -> 126106.1591 | E35: =+IF(SUM('Facturación-801 (energía)'!H14:M14)=0,0,(SUM('COMER DISTR Y AP-101'!B46:G46)+SUM('COMER DISTR Y AP-103'!B46:G46)+SUM('PERD DISTR Y GEN-201'!B46:G46)+SUM('ALUMB PUB-604'!B46:G46)+SUM('TRANSMISION-304'!B46:G46)+SUM('PERD TRANS-404'!B46:G46)+SUM('GENERACION-504'!B46:G46)+SUM('GENERACION-504'!B133:G133))+SUM('GENERACION-504 (extra)'!B34:G34)) -> 134551.2991 | F35: 0.06696849788
A36: ATD | C36: =+IF(SUM('Facturación-801 (energía)'!H11:M11)=0,0,(SUM('COMER DISTR Y AP-102'!B43:G43)+SUM('COMER DISTR Y AP-104'!B43:G43)+SUM('PERD DISTR Y GEN-202'!B43:G43)+SUM('ALUMB PUB-603'!B43:G43)+SUM('TRANSMISION-305'!B43:G43)+SUM('PERD TRANS-405'!B43:G43)+SUM('GENERACION-505'!B43:G43)+SUM('GENERACION-505'!B130:G130))) -> 0 | E36: =+IF(SUM('Facturación-801 (energía)'!H11:M11)=0,0,(SUM('COMER DISTR Y AP-101'!B43:G43)+SUM('COMER DISTR Y AP-103'!B43:G43)+SUM('PERD DISTR Y GEN-201'!B43:G43)+SUM('ALUMB PUB-604'!B43:G43)+SUM('TRANSMISION-304'!B43:G43)+SUM('PERD TRANS-404'!B43:G43)+SUM('GENERACION-504'!B43:G43)+SUM('GENERACION-504'!B130:G130))+SUM('GENERACION-504 (extra)'!B31:G31)) -> 0 | F36: 0
A37: ATH | C37: =+IF(SUM('Facturación-801 (energía)'!H10:M10)=0,0,(SUM('COMER DISTR Y AP-102'!B42:G42)+SUM('COMER DISTR Y AP-104'!B42:G42)+SUM('PERD DISTR Y GEN-202'!B42:G42)+SUM('ALUMB PUB-603'!B42:G42)+SUM('TRANSMISION-305'!B42:G42)+SUM('PERD TRANS-405'!B42:G42)+SUM('GENERACION-505'!B42:G42)+SUM('GENERACION-505'!B129:G129))) -> 42722.97534 | E37: =+IF(SUM('Facturación-801 (energía)'!H10:M10)=0,0,(SUM('COMER DISTR Y AP-101'!B42:G42)+SUM('COMER DISTR Y AP-103'!B42:G42)+SUM('PERD DISTR Y GEN-201'!B42:G42)+SUM('ALUMB PUB-604'!B42:G42)+SUM('TRANSMISION-304'!B42:G42)+SUM('PERD TRANS-404'!B42:G42)+SUM('GENERACION-504'!B42:G42)+SUM('GENERACION-504'!B129:G129))+SUM('GENERACION-504 (extra)'!B30:G30)) -> 49309.4155 | F37: 0.1541662329
A38: PREPAGO | C38: =+IF(SUM('Facturación-801 (energía)'!H106:M106)=0,0,(SUM('COMER DISTR Y AP-102'!B123:G123)+SUM('COMER DISTR Y AP-104'!B123:G123)+SUM('PERD DISTR Y GEN-202'!B123:G123)+SUM('ALUMB PUB-603'!B123:G123)+SUM('TRANSMISION-305'!B123:G123)+SUM('PERD TRANS-405'!B123:G123)+SUM('GENERACION-505'!B123:G123)+SUM('GENERACION-505'!B210:G210))) -> 0 | E38: =+IF(SUM('Facturación-801 (energía)'!H106:M106)=0,0,(SUM('COMER DISTR Y AP-101'!B123:G123)+SUM('COMER DISTR Y AP-103'!B123:G123)+SUM('PERD DISTR Y GEN-201'!B123:G123)+SUM('ALUMB PUB-604'!B123:G123)+SUM('TRANSMISION-304'!B123:G123)+SUM('PERD TRANS-404'!B123:G123)+SUM('GENERACION-504'!B123:G123)+SUM('GENERACION-504'!B210:G210))+SUM('GENERACION-504 (extra)'!B107:G107)) -> 0 | F38: 0
A39: BTS-H | C39: =+SUM('COMER DISTR Y AP-102'!B120:G120)+ SUM('COMER DISTR Y AP-104'!B120:G120)+ SUM('PERD DISTR Y GEN-202'!B120:G120)+ SUM('ALUMB PUB-603'!B120:G120)+ SUM('TRANSMISION-305'!B120:G120)+ SUM('PERD TRANS-405'!B120:G120)+ SUM('GENERACION-505'!B120:G120)+ SUM('GENERACION-505'!B207:G207) -> 9086.63799 | E39: =+SUM('COMER DISTR Y AP-101'!B120:G120)+ SUM('COMER DISTR Y AP-103'!B120:G120)+ SUM('PERD DISTR Y GEN-201'!B120:G120)+ SUM('ALUMB PUB-604'!B120:G120)+ SUM('TRANSMISION-304'!B120:G120)+ SUM('PERD TRANS-404'!B120:G120)+ SUM('GENERACION-504'!B120:G120)+ SUM('GENERACION-504'!B207:G207) -> 9293.038823 | F39: 0.02271476347
A40: Precio Promedio de Total | C40: =+IF(SUM('Facturación-801 (energía)'!H107:M107)=0,0,(SUM('COMER DISTR Y AP-102'!B124:G124)+SUM('COMER DISTR Y AP-104'!B124:G124)+SUM('PERD DISTR Y GEN-202'!B124:G124)+SUM('ALUMB PUB-603'!B124:G124)+SUM('TRANSMISION-305'!B124:G124)+SUM('PERD TRANS-405'!B124:G124)+SUM('GENERACION-505'!B124:G124)+SUM('GENERACION-505'!B211:G211)+SUM('COMER DISTR Y AP-102'!B182:G182)+SUM('COMER DISTR Y AP-104'!B182:G182)+SUM('PERD DISTR Y GEN-202'!B182:G182)+SUM('ALUMB PUB-603'!B182:G182)+SUM('TRANSMISION-305'!B182:G182)+SUM('PERD TRANS-405'!B149:G149)+SUM('GENERACION-505'!B397:G397)+SUM('GENERACION-505'!B422:G422))) -> 101522894 | E40: =+IF(SUM('Facturación-801 (energía)'!H107:M107)=0,0,(SUM('COMER DISTR Y AP-101'!B124:G124)+SUM('COMER DISTR Y AP-103'!B124:G124)+SUM('PERD DISTR Y GEN-201'!B124:G124)+SUM('ALUMB PUB-604'!B124:G124)+SUM('TRANSMISION-304'!B124:G124)+SUM('PERD TRANS-404'!B124:G124)+SUM('GENERACION-504'!B124:G124)+SUM('GENERACION-504'!B211:G211)+SUM('COMER DISTR Y AP-101'!B182:G182)+SUM('COMER DISTR Y AP-103'!B182:G182)+SUM('PERD DISTR Y GEN-201'!B182:G182)+SUM('ALUMB PUB-604'!B182:G182)+SUM('TRANSMISION-304'!B182:G182)+SUM('PERD TRANS-404'!B149:G149)+SUM('GENERACION-504'!B397:G397)+SUM('GENERACION-504'!B422:G422))+SUM('GENERACION-504 (extra)'!B108:G108)+SUM('GENERACION-504 (extra)'!B134:G134)) -> 102971736.3 | F40: =+E40/C40-1 -> 0.01427108938
A41: Grandes Clientes | C41: =+IF(SUM('Facturación-801 (energía)'!H$376:M$376,'Facturación-801 (energía)'!H$422:M$422)=0,0,(SUM('COMER DISTR Y AP-102'!B157:G157)+SUM('COMER DISTR Y AP-104'!B157:G157)+SUM('PERD DISTR Y GEN-202'!B157:G157)+SUM('ALUMB PUB-603'!B157:G157)+SUM('TRANSMISION-305'!B157:G157)+SUM('GENERACION-505'!B331:G331)+SUM('GENERACION-505'!B364:G364))) -> 2847626.431 | E41: =+IF(SUM('Facturación-801 (energía)'!H$376:M$376,'Facturación-801 (energía)'!H$422:M$422)=0,0,(SUM('COMER DISTR Y AP-101'!B157:G157)+SUM('COMER DISTR Y AP-103'!B157:G157)+SUM('PERD DISTR Y GEN-201'!B157:G157)+SUM('ALUMB PUB-604'!B157:G157)+SUM('TRANSMISION-304'!B157:G157)+SUM('GENERACION-504'!B331:G331)+SUM('GENERACION-504'!B364:G364))) -> 2911263.089 | F41: =+IF(C41=0,0,E41/C41-1) -> 0.0223472633
A42: Precio Promedio de Total | C42: =+IF(SUM('Facturación-801 (energía)'!H107:M107)=0,0,(SUM('COMER DISTR Y AP-102'!B124:G124)+SUM('COMER DISTR Y AP-104'!B124:G124)+SUM('PERD DISTR Y GEN-202'!B124:G124)+SUM('ALUMB PUB-603'!B124:G124)+SUM('TRANSMISION-305'!B124:G124)+SUM('PERD TRANS-405'!B124:G124)+SUM('GENERACION-505'!B124:G124)+SUM('GENERACION-505'!B211:G211)+SUM('COMER DISTR Y AP-102'!B182:G182)+SUM('COMER DISTR Y AP-104'!B182:G182)+SUM('PERD DISTR Y GEN-202'!B182:G182)+SUM('ALUMB PUB-603'!B182:G182)+SUM('TRANSMISION-305'!B182:G182)+SUM('PERD TRANS-405'!B149:G149)+SUM('GENERACION-505'!B397:G397)+SUM('GENERACION-505'!B422:G422)+SUM('COMER DISTR Y AP-102'!B157:G157)+SUM('COMER DISTR Y AP-104'!B157:G157)+SUM('PERD DISTR Y GEN-202'!B157:G157)+SUM('ALUMB PUB-603'!B157:G157)+SUM('TRANSMISION-305'!B157:G157)+SUM('GENERACION-505'!B331:G331)+SUM('GENERACION-505'!B364:G364))) -> 104370520.5 | E42: =+IF(SUM('Facturación-801 (energía)'!H107:M107)=0,0,(SUM('COMER DISTR Y AP-101'!B124:G124)+SUM('COMER DISTR Y AP-103'!B124:G124)+SUM('PERD DISTR Y GEN-201'!B124:G124)+SUM('ALUMB PUB-604'!B124:G124)+SUM('TRANSMISION-304'!B124:G124)+SUM('PERD TRANS-404'!B124:G124)+SUM('GENERACION-504'!B124:G124)+SUM('GENERACION-504'!B211:G211)+SUM('COMER DISTR Y AP-101'!B182:G182)+SUM('COMER DISTR Y AP-103'!B182:G182)+SUM('PERD DISTR Y GEN-201'!B182:G182)+SUM('ALUMB PUB-604'!B182:G182)+SUM('TRANSMISION-304'!B182:G182)+SUM('PERD TRANS-404'!B149:G149)+SUM('GENERACION-504'!B397:G397)+SUM('GENERACION-504'!B422:G422)+SUM('COMER DISTR Y AP-101'!B157:G157)+SUM('COMER DISTR Y AP-103'!B157:G157)+SUM('PERD DISTR Y GEN-201'!B157:G157)+SUM('ALUMB PUB-604'!B157:G157)+SUM('TRANSMISION-304'!B157:G157)+SUM('GENERACION-504'!B331:G331)+SUM('GENERACION-504'!B364:G364))+SUM('GENERACION-504 (extra)'!B108:G108)+SUM('GENERACION-504 (extra)'!B134:G134)) -> 105882999.4 | F42: =+E42/C42-1 -> 0.01449143825
A56: Grandes Clientes | F56: Var. %
A57: Facturaión Energía | C57: =+SUM('Facturación-801 (energía)'!H$376:M$376,'Facturación-801 (energía)'!H$422:M$422) -> 48214296 | E57: =+SUM('Facturación-801 (energía)'!H$376:M$376,'Facturación-801 (energía)'!H$422:M$422) -> 48214296
A58: Ingresos | C58: =+SUM(C60:C66) -> 2847626.431 | E58: =+SUM(E60:E66) -> 2911263.089 | F58: =+E58/C58-1 -> 0.0223472633
A59: Precio Medio | C59: =+C58/C57 -> 0.05906186893 | E59: =+E58/E57 -> 0.06038174007 | F59: =+E59/C59-1 -> 0.0223472633
A60: Comercialización Fijo | C60: =SUM('COMER DISTR Y AP-102'!B157:G157) -> 541418.0305 | E60: =+SUM('COMER DISTR Y AP-101'!B157:G157) -> 425170.413 | F60: -0.2147095422
A61: Comercialización Variable | C61: =+SUM('COMER DISTR Y AP-104'!B157:G157) -> 1237293.54 | E61: =+SUM('COMER DISTR Y AP-103'!B157:G157) -> 1165114.68 | F61: -0.0583360841
A62: Pérdidas Distribución | C62: =+SUM('PERD DISTR Y GEN-202'!B157:G157) -> 347139.8166 | E62: =+SUM('PERD DISTR Y GEN-201'!B157:G157) -> 431069.1866 | F62: 0.2417739654
A63: Alumbrado Público Sistema | C63: =+SUM('ALUMB PUB-603'!B157:G157) -> 59836.89114 | E63: =+SUM('ALUMB PUB-604'!B157:G157) -> 55497.6045 | F63: -0.07251858439
A64: Transmisión | C64: =+SUM('TRANSMISION-305'!B157:G157) -> 105094.9129 | E64: =+SUM('TRANSMISION-304'!B157:G157) -> 177200.3597 | F64: 0.6860983546
A65: Generación | C65: =+SUM('GENERACION-505'!B364:G364) -> 385149.182 | E65: =+SUM('GENERACION-504'!B364:G364) -> 513532.2427 | F65: 0.3333333333
A66: Alumbrado Público Consumo | C66: =+SUM('GENERACION-505'!B331:G331) -> 171694.0579 | E66: =+SUM('GENERACION-504'!B331:G331) -> 143678.6021 | F66: -0.1631707942
A72: BTS1 | C72: =+(SUM('COMER DISTR Y AP-102'!B98:G98)+SUM('COMER DISTR Y AP-104'!B98:G98)+SUM('PERD DISTR Y GEN-202'!B98:G98)+SUM('ALUMB PUB-603'!B98:G98)+SUM('TRANSMISION-305'!B98:G98)+SUM('PERD TRANS-405'!B98:G98)+SUM('GENERACION-505'!B98:G98)+SUM('GENERACION-505'!B185:G185)+SUM('COMER DISTR Y AP-102'!B161:G161)+SUM('COMER DISTR Y AP-104'!B161:G161)+SUM('PERD DISTR Y GEN-202'!B161:G161)+SUM('ALUMB PUB-603'!B161:G161)+SUM('TRANSMISION-305'!B161:G161)+SUM('PERD TRANS-405'!B128:G128)+SUM('GENERACION-505'!B376:G376)+SUM('GENERACION-505'!B401:G401)) -> 18166512.23 | E72: =+SUM('COMER DISTR Y AP-101'!B98:G98)+SUM('COMER DISTR Y AP-103'!B98:G98)+SUM('PERD DISTR Y GEN-201'!B98:G98)+SUM('ALUMB PUB-604'!B98:G98)+SUM('TRANSMISION-304'!B98:G98)+SUM('PERD TRANS-404'!B98:G98)+SUM('GENERACION-504'!B98:G98)+SUM('GENERACION-504'!B185:G185)+SUM('COMER DISTR Y AP-101'!B161:G161)+SUM('COMER DISTR Y AP-103'!B161:G161)+SUM('PERD DISTR Y GEN-201'!B161:G161)+SUM('ALUMB PUB-604'!B161:G161)+SUM('TRANSMISION-304'!B161:G161)+SUM('PERD TRANS-404'!B128:G128)+SUM('GENERACION-504'!B376:G376)+SUM('GENERACION-504'!B401:G401)+SUM('GENERACION-504 (extra)'!B86:G86,'GENERACION-504 (extra)'!B113:G113) -> 18061064.66 | F72: =+E72/C72-1 -> -0.005804502953
A73: Comercialización | C73: =+SUM('COMER DISTR Y AP-102'!B98:G98)+SUM('COMER DISTR Y AP-102'!B161:G161) -> 3659396.007 | E73: =+SUM('COMER DISTR Y AP-101'!B98:G98)+SUM('COMER DISTR Y AP-101'!B161:G161) -> 3402901.908 | F73: =+E73/C73-1 -> -0.07009192179
A74: Distribución | C74: =+SUM('COMER DISTR Y AP-104'!B98:G98)+SUM('COMER DISTR Y AP-104'!B161:G161) -> 5638120.281 | E74: =+SUM('COMER DISTR Y AP-103'!B98:G98)+SUM('COMER DISTR Y AP-103'!B161:G161) -> 5252429.155 | F74: =+E74/C74-1 -> -0.06840775063
A75: Alumbrado Público | C75: =+SUM('ALUMB PUB-603'!B98:G98)+SUM('ALUMB PUB-603'!B161:G161) -> 128247.0494 | E75: =+SUM('ALUMB PUB-604'!B98:G98)+SUM('ALUMB PUB-604'!B161:G161) -> 117797.2898 | F75: -0.08148148148
A76: Precio Promedio de Distribución | C76: =+SUM(C73:C75) -> 9425763.337 | E76: =+SUM(E73:E75) -> 8773128.353 | F76: -0.06923948344
A77: Peaje de Transmisión | C77: =+SUM('TRANSMISION-305'!B98:G98)+SUM('TRANSMISION-305'!B161:G161) -> 642185.2249 | E77: =+SUM('TRANSMISION-304'!B98:G98)+SUM('TRANSMISION-304'!B161:G161) -> 990827.2036 | F77: 0.5428994083
A78: Pérdidas de Transmisión | C78: =+SUM('PERD TRANS-405'!B98:G98)+SUM('PERD TRANS-405'!B128:G128) -> 6649.847004 | E78: =+SUM('PERD TRANS-404'!B98:G98)+SUM('PERD TRANS-404'!B128:G128) -> 7599.825147 | F78: 0.1428571429
A79: Precio Promedio de Transmisión | C79: =+C77+C78 -> 648835.0719 | E79: =+E77+E78 -> 998427.0287 | F79: 0.5387994143
A80: Pérdidas en Distribución | C80: =+SUM('PERD DISTR Y GEN-202'!B98:G98)+SUM('PERD DISTR Y GEN-202'!B161:G161) -> 736233.0611 | E80: =+SUM('PERD DISTR Y GEN-201'!B98:G98)+SUM('PERD DISTR Y GEN-201'!B161:G161) -> 902479.2362 | F80: 0.2258064516
A81: Alumbrado Público
A82: Generación | C82: =+SUM('GENERACION-505'!B98:G98)+SUM('GENERACION-505'!B185:G185)+SUM('GENERACION-505'!B376:G376)+SUM('GENERACION-505'!B401:G401)+(SUM('GENERACION-505 (extra)'!B86:G86,'GENERACION-505 (extra)'!B113:G113))*0 -> 7355680.764 | E82: =+SUM('GENERACION-504'!B98:G98)+SUM('GENERACION-504'!B185:G185)+SUM('GENERACION-504'!B376:G376)+SUM('GENERACION-504'!B401:G401)+(SUM('GENERACION-504 (extra)'!B86:G86,'GENERACION-504 (extra)'!B113:G113))*0 -> 7387030.043 | F82: =+E82/C82-1 -> 0.004261913987
A83: Precio Promedio de Generación | C83: =+C80+C81+C82 -> 8091913.825 | E83: =+E80+E81+E82 -> 8289509.279 | F83: =+E83/C83-1 -> 0.02441887767
A84: Precio Promedio de Total CR | C84: =+C76+C79+C83 -> 18166512.23 | E84: =+E76+E79+E83 -> 18061064.66 | F84: =+E84/C84-1 -> -0.005804502953
A86: BTS2 | C86: =+SUM('COMER DISTR Y AP-102'!B105:G105)+SUM('COMER DISTR Y AP-104'!B105:G105)+SUM('PERD DISTR Y GEN-202'!B105:G105)+SUM('ALUMB PUB-603'!B105:G105)+SUM('TRANSMISION-305'!B105:G105)+SUM('PERD TRANS-405'!B105:G105)+SUM('GENERACION-505'!B105:G105)+SUM('GENERACION-505'!B192:G192)+SUM('COMER DISTR Y AP-102'!B168:G168)+SUM('COMER DISTR Y AP-104'!B168:G168)+SUM('PERD DISTR Y GEN-202'!B168:G168)+SUM('ALUMB PUB-603'!B168:G168)+SUM('TRANSMISION-305'!B168:G168)+SUM('PERD TRANS-405'!B135:G135)+SUM('GENERACION-505'!B383:G383)+SUM('GENERACION-505'!B408:G408) -> 14902568.13 | E86: =+SUM('COMER DISTR Y AP-101'!B105:G105)+SUM('COMER DISTR Y AP-103'!B105:G105)+SUM('PERD DISTR Y GEN-201'!B105:G105)+SUM('ALUMB PUB-604'!B105:G105)+SUM('TRANSMISION-304'!B105:G105)+SUM('PERD TRANS-404'!B105:G105)+SUM('GENERACION-504'!B105:G105)+SUM('GENERACION-504'!B192:G192)+SUM('COMER DISTR Y AP-101'!B168:G168)+SUM('COMER DISTR Y AP-103'!B168:G168)+SUM('PERD DISTR Y GEN-201'!B168:G168)+SUM('ALUMB PUB-604'!B168:G168)+SUM('TRANSMISION-304'!B168:G168)+SUM('PERD TRANS-404'!B135:G135)+SUM('GENERACION-504'!B383:G383)+SUM('GENERACION-504'!B408:G408)+SUM('GENERACION-504 (extra)'!B93:G93,'GENERACION-504 (extra)'!B120:G120) -> 14838378.79 | F86: =+E86/C86-1 -> -0.004307266443
A87: Comercialización | C87: =+SUM('COMER DISTR Y AP-102'!B105:G105)+SUM('COMER DISTR Y AP-102'!B168:G168) -> 1459145.881 | E87: =+SUM('COMER DISTR Y AP-101'!B105:G105)+SUM('COMER DISTR Y AP-101'!B168:G168) -> 1250319.683 | F87: -0.1431153664
A88: Distribución | C88: =+SUM('COMER DISTR Y AP-104'!B105:G105)+SUM('COMER DISTR Y AP-104'!B168:G168) -> 4590309.192 | E88: =+SUM('COMER DISTR Y AP-103'!B105:G105)+SUM('COMER DISTR Y AP-103'!B168:G168) -> 4276296.465 | F88: -0.06840775063
A89: Alumbrado Público | C89: =+SUM('ALUMB PUB-603'!B105:G105)+SUM('ALUMB PUB-603'!B168:G168) -> 104413.0987 | E89: =+SUM('ALUMB PUB-604'!B105:G105)+SUM('ALUMB PUB-604'!B168:G168) -> 95905.36474 | F89: -0.08148148148
A90: Precio Promedio de Distribución | C90: =+SUM(C87:C89) -> 6153868.171 | E90: =+SUM(E87:E89) -> 5622521.513 | F90: -0.08634352299
A91: Peaje de Transmisión | C91: =+SUM('TRANSMISION-305'!B105:G105)+SUM('TRANSMISION-305'!B168:G168) -> 522838.9239 | E91: =+SUM('TRANSMISION-304'!B105:G105)+SUM('TRANSMISION-304'!B168:G168) -> 806687.8663 | F91: 0.5428994083
A92: Pérdidas de Transmisión | C92: =+SUM('PERD TRANS-405'!B105:G105)+SUM('PERD TRANS-405'!B135:G135) -> 5414.012526 | E92: =+SUM('PERD TRANS-404'!B105:G105)+SUM('PERD TRANS-404'!B135:G135) -> 6187.442887 | F92: 0.1428571429
A93: Precio Promedio de Transmisión | C93: =+C91+C92 -> 528252.9364 | E93: =+E91+E92 -> 812875.3092 | F93: 0.5387994143
A94: Pérdidas en Distribución | C94: =+SUM('PERD DISTR Y GEN-202'!B105:G105)+SUM('PERD DISTR Y GEN-202'!B168:G168) -> 599408.5296 | E94: =+SUM('PERD DISTR Y GEN-201'!B105:G105)+SUM('PERD DISTR Y GEN-201'!B168:G168) -> 734758.8428 | F94: 0.2258064516
A95: Alumbrado Público
A96: Generación | C96: =+SUM('GENERACION-505'!B105:G105)+SUM('GENERACION-505'!B192:G192)+SUM('GENERACION-505'!B383:G383)+SUM('GENERACION-505'!B408:G408)+(SUM('GENERACION-505 (extra)'!B93:G93,'GENERACION-505 (extra)'!B120:G120)) -> 7621038.488 | E96: =+SUM('GENERACION-504'!B105:G105)+SUM('GENERACION-504'!B192:G192)+SUM('GENERACION-504'!B383:G383)+SUM('GENERACION-504'!B408:G408)+(SUM('GENERACION-504 (extra)'!B93:G93,'GENERACION-504 (extra)'!B120:G120)) -> 7668223.129 | F96: =+E96/C96-1 -> 0.006191366232
A97: Precio Promedio de Generación | C97: =+C94+C95+C96 -> 8220447.018 | E97: =+E94+E95+E96 -> 8402981.972 | F97: =+E97/C97-1 -> 0.02220499118
A98: Precio Promedio de Total CR | C98: =+C90+C93+C97 -> 14902568.13 | E98: =+E90+E93+E97 -> 14838378.79 | F98: =+E98/C98-1 -> -0.004307266443
A100: BTS3 | C100: =+SUM('COMER DISTR Y AP-102'!B112:G112)+SUM('COMER DISTR Y AP-104'!B112:G112)+SUM('PERD DISTR Y GEN-202'!B112:G112)+SUM('ALUMB PUB-603'!B112:G112)+SUM('TRANSMISION-305'!B112:G112)+SUM('PERD TRANS-405'!B112:G112)+SUM('GENERACION-505'!B112:G112)+SUM('GENERACION-505'!B199:G199)+SUM('COMER DISTR Y AP-102'!B175:G175)+SUM('COMER DISTR Y AP-104'!B175:G175)+SUM('PERD DISTR Y GEN-202'!B175:G175)+SUM('ALUMB PUB-603'!B175:G175)+SUM('TRANSMISION-305'!B175:G175)+SUM('PERD TRANS-405'!B142:G142)+SUM('GENERACION-505'!B390:G390)+SUM('GENERACION-505'!B415:G415) -> 33137156.64 | E100: =+SUM('COMER DISTR Y AP-101'!B112:G112)+SUM('COMER DISTR Y AP-103'!B112:G112)+SUM('PERD DISTR Y GEN-201'!B112:G112)+SUM('ALUMB PUB-604'!B112:G112)+SUM('TRANSMISION-304'!B112:G112)+SUM('PERD TRANS-404'!B112:G112)+SUM('GENERACION-504'!B112:G112)+SUM('GENERACION-504'!B199:G199)+SUM('COMER DISTR Y AP-101'!B175:G175)+SUM('COMER DISTR Y AP-103'!B175:G175)+SUM('PERD DISTR Y GEN-201'!B175:G175)+SUM('ALUMB PUB-604'!B175:G175)+SUM('TRANSMISION-304'!B175:G175)+SUM('PERD TRANS-404'!B142:G142)+SUM('GENERACION-504'!B390:G390)+SUM('GENERACION-504'!B415:G415)+SUM('GENERACION-504 (extra)'!B100:G100,'GENERACION-504 (extra)'!B127:G127) -> 33128949.44 | F100: =+E100/C100-1 -> -0.0002476735095
